Workbook

Sheet Control
A1: Customer discount rates | B1: % | K1: Cumulative DF assuming 15 years
A2: High income | B2: 0.05 | D2: Recoonections as share of gross connections | E2: 0.25 | G2: Asset lives | H2: Years | J2: High income | K2: =((1+$B2)^-1+(1+$B2)^-2+(1+$B2)^-3+(1+$B2)^-4+(1+$B2)^-5+(1+$B2)^-6+(1+$B2)^-7+(1+$B2)^-8+(1+$B2)^-9+(1+$B2)^-10+(1+$B2)^-11+(1+$B2)^-12+(1+$B2)^-13+(1+$B2)^-14+(1+$B2)^-15) -> 10.37965804
A3: Medium income | B3: 0.1 | G3: Cooking | H3: 15 | J3: Medium income | K3: =((1+$B3)^-1+(1+$B3)^-2+(1+$B3)^-3+(1+$B3)^-4+(1+$B3)^-5+(1+$B3)^-6+(1+$B3)^-7+(1+$B3)^-8+(1+$B3)^-9+(1+$B3)^-10+(1+$B3)^-11+(1+$B3)^-12+(1+$B3)^-13+(1+$B3)^-14+(1+$B3)^-15) -> 7.606079506
A4: Low income | B4: 0.15 | D4: Appliance capital costs | G4: Hot water | H4: 12 | J4: Low income | K4: 5.847370099
A5: Commercial | B5: 0.03 | D5: Cooking | E5: $ real 2021 | G5: Room heating | H5: 15 | J5: Commercial | K5: 11.93793509
D6: Electric cooktop (induction) | E6: 2900 | G6: Ducted heating | H6: 15
A7: Appliance costs | D7: Gas stove | E7: 2100 | G7: Service charge | H7: 15
A8: Cooking | B8: real % change (p.a.)
A9: Electric cooktop (induction) | B9: 0 | D9: Hot water | G9: Decision point | H9: 15
A10: Gas stove | B10: 0 | D10: Heat pump hot water | E10: 3700
D11: Gas instant hot water | E11: 1400 | G11: Elasticities | H11: Residential B3 | I11: Commercial B2 | J11: Commercial B1 | K11: Industrial A1 | L11: Industrial A2
A12: Hot water | G12: Weather | H12: 0.2 | I12: 0.1 | J12: 0.1 | K12: 0 | L12: 0.1
A13: Heat pump hot water | B13: 0 | D13: Room heating | G13: Gas price | H13: -0.25 | I13: -0.3 | J13: -0.3 | K13: -0.37 | L13: -0.4
A14: Gas instant hot water | B14: 0 | D14: RCAC split system | E14: 2199.421687 | G14: Elecricity price | H14: 0.1 | I14: 0.1 | J14: 0.1 | K14: 0.1 | L14: 0.1
D15: Gas wall furnace | E15: 1747.2 | G15: GSP | H15: 0 | I15: 0.406 | J15: 0.29 | K15: 0 | L15: 0.2
A16: Room heating | G16: B1 Trend | H16: 0 | I16: 0 | J16: 0 | K16: 0 | L16: 63
A17: RCAC split system | B17: 0 | D17: Ducted heating
A18: Gas wall furnace | B18: 0 | D18: Ducted RCAC | E18: 4541.998937
D19: Ducted gas heating | E19: 2244.349718
A20: Ducted heating | K20: Residential | L20: Commercial
A21: Ducted RCAC | B21: 0 | D21: Gas disconnection charge | E21: 100 | G21: Distribution share of retail fixed charge | H21: % | J21: Non-Appliance Cost Related Growth | K21: 0.02 | L21: 0.02
A22: Ducted gas heating | B22: 0 | D22: Electricity connection upgrade | E22: 1500 | G22: Residential | H22: 0.4 | J22: Non-Appliance Cost Related Disconnections | K22: 0.005 | L22: 0.005
G23: Commercial | H23: 0.4
A24: Gas disconnection charge | B24: 0
A25: Electricity connection upgrade | B25: 0
A27: Appliance consumption | D27: Appliance efficiency | H27: Maintenance costs (p/a) | J27: Maintenance costs
A28: Cooking | B28: Average consumption | D28: Cooking | E28: % change (p.a.) | G28: Cooking | H28: $ | J28: Cooking | K28: real % change (p.a.)
A29: Electric cooktop (induction) kWh | B29: 133.3 | D29: Electric cooktop (induction) | E29: 0 | G29: Electric cooktop (induction) | H29: 0 | J29: Electric cooktop (induction) | K29: 0
A30: Gas stove (GJ) | B30: 1.2 | D30: Gas stove | E30: 0 | G30: Gas stove | H30: 2.160528801 | J30: Gas stove | K30: 0
A32: Hot water | D32: Hot water | G32: Hot water | J32: Hot water
A33: Heat pump hot water (kWh) | B33: 1095 | D33: Heat pump hot water | E33: 0 | G33: Heat pump hot water | H33: 43.21057602 | J33: Heat pump hot water | K33: 0
A34: Gas instant hot water (GJ) | B34: 20.6 | D34: Gas instant hot water | E34: 0 | G34: Gas instant hot water | H34: 32.40793201 | J34: Gas instant hot water | K34: 0
A36: Room heating | D36: Room heating | G36: Room heating | J36: Room heating
A37: RCAC split system (kWh) | B37: 1170 | D37: RCAC split system | E37: 0 | G37: RCAC split system | H37: 29.16713881 | J37: RCAC split system | K37: 0
A38: Gas wall furnace (GJ) | B38: 19.36551724 | D38: Gas wall furnace | E38: 0 | G38: Gas wall furnace | H38: 25.92634561 | J38: Gas wall furnace | K38: 0
A40: Ducted heating | D40: Ducted heating | G40: Ducted heating | J40: Ducted heating
A41: Ducted RCAC (kWh) | B41: 4735.714286 | D41: Ducted RCAC | E41: 0 | G41: Ducted RCAC | H41: 29.16713881 | J41: Ducted RCAC | K41: 0
A42: Ducted gas heating (GJ) | B42: 68.5862069 | D42: Ducted gas heating | E42: 0 | G42: Ducted gas heating | H42: 29.16713881 | J42: Ducted gas heating | K42: 0
A45: LGA | B45: Income class
A46: ARMADALE | B46: M
A47: BASSENDEAN | B47: M
A48: BAYSWATER | B48: M
A49: BELMONT | B49: M
A50: BUNBURY | B50: M
A51: BUSSELTON | B51: M
A52: CAMBRIDGE | B52: M
A53: CANNING | B53: M
A54: CAPEL | B54: M
A55: CHITTERING | B55: M
A56: COCKBURN | B56: M
A57: COTTESLOE | B57: M
A58: DARDANUP | B58: M
A59: EAST FREMANTLE | B59: M
A60: FREMANTLE | B60: M
A61: GOSNELLS | B61: M
A62: GREATER GERALDTON | B62: M
A63: HARVEY | B63: M
A64: JOONDALUP | B64: M
A65: KALAMUNDA | B65: M
A66: KWINANA | B66: M
A67: MANDURAH | B67: M
A68: MELVILLE | B68: M
A69: MOSMAN PARK | B69: M
A70: MUNDARING | B70: M
A71: MURRAY | B71: M
A72: NEDLANDS | B72: M
A73: PEPPERMINT GROVE | B73: M
A74: PERTH | B74: M
A75: ROCKINGHAM | B75: M
A76: SERPENTINE-JARRAHDALE | B76: M
A77: SOUTH PERTH | B77: M
A78: STIRLING | B78: M
A79: SUBIACO | B79: M
A80: SWAN | B80: M
A81: VICTORIA PARK | B81: M
A82: VINCENT | B82: M
A83: WANNEROO | B83: M

Sheet Summary
A2: Customers | B2: 2020 | C2: =B2+1 -> 2021 | D2: =C2+1 -> 2022 | E2: 2023 | F2: 2024 | G2: 2025 | H2: 2026 | I2: 2027 | J2: 2028 | K2: 2029 | L2: 2030 | M2: 2031 | N2: 2032 | O2: 2033 | P2: 2034 | Q2: 2035 | R2: 2036 | S2: 2037 | T2: 2038 | U2: 2039 | V2: 2040 | W2: 2041 | X2: 2042 | Y2: 2043 | Z2: 2044 | AA2: 2045 | AB2: 2046 | AC2: 2047 | AD2: 2048 | AE2: 2049 | AF2: 2050 | AG2: 2051 | AH2: 2052 | AI2: 2053 | AJ2: 2054 | AK2: 2055 | AL2: 2056 | AM2: 2057 | AN2: 2058 | AO2: 2059 | AP2: 2060 | AQ2: 2061 | AR2: 2062 | AS2: 2063 | AT2: 2064 | AU2: 2065 | AV2: 2066 | AW2: 2067 | AX2: 2068 | AY2: 2069 | AZ2: 2070 | BA2: 2071 | BB2: 2072 | BC2: 2073 | BD2: 2074 | BE2: 2075 | BF2: 2076 | BG2: 2077 | BH2: 2078 | BI2: 2079 | BJ2: 2080 | BK2: 2081 | BL2: 2082 | BM2: 2083 | BN2: 2084 | BO2: 2085 | BP2: =BO2+1 -> 2086 | BQ2: 2087 | BR2: 2088 | BS2: 2089 | BT2: 2090 | BU2: 2091 | BV2: 2092 | BW2: 2093 | BX2: 2094 | BY2: 2095 | BZ2: 2096 | CA2: 2097 | CB2: 2098 | CC2: 2099 | CD2: 2100
A3: Residential B3 | B3: =Forecasts!J83 -> 746639 | C3: =Forecasts!K83 -> 756154 | D3: =Forecasts!L83 -> 761657.5 | E3: =Forecasts!M83 -> 771528.1511 | F3: =Forecasts!N83 -> 780312.799 | G3: =Forecasts!O83 -> 789216.6446 | H3: =Forecasts!P83 -> 797061.5614 | I3: =Forecasts!Q83 -> 804068.2535 | J3: =Forecasts!R83 -> 810263.9123 | K3: =Forecasts!S83 -> 816157.5927 | L3: =Forecasts!T83 -> 820213.8048 | M3: =Forecasts!U83 -> 822512.7357 | N3: =Forecasts!V83 -> 824954.1721 | O3: =Forecasts!W83 -> 827638.4012 | P3: =Forecasts!X83 -> 828917.2092 | Q3: =Forecasts!Y83 -> 829906.6231 | R3: =Forecasts!Z83 -> 835759.09 | S3: =Forecasts!AA83 -> 841434.2946 | T3: =Forecasts!AB83 -> 846336.1231 | U3: =Forecasts!AC83 -> 852245.4425 | V3: =Forecasts!AD83 -> 856157.2153 | W3: =Forecasts!AE83 -> 860109.4292 | X3: =Forecasts!AF83 -> 864109.8821 | Y3: =Forecasts!AG83 -> 868158.3326 | Z3: =Forecasts!AH83 -> 872246.541 | AA3: =Forecasts!AI83 -> 876600.3083 | AB3: =Forecasts!AJ83 -> 880995.3067 | AC3: =Forecasts!AK83 -> 885441.3302 | AD3: =Forecasts!AL83 -> 889933.1235 | AE3: =Forecasts!AM83 -> 894473.4579 | AF3: =Forecasts!AN83 -> 899871.0906 | AG3: =Forecasts!AO83 -> 905320.7352 | AH3: =Forecasts!AP83 -> 910827.1315 | AI3: =Forecasts!AQ83 -> 916377.9959 | AJ3: =Forecasts!AR83 -> 921967.1059 | AK3: =Forecasts!AS83 -> 927786.2703 | AL3: =Forecasts!AT83 -> 933647.339 | AM3: =Forecasts!AU83 -> 939555.1023 | AN3: =Forecasts!AV83 -> 945505.3268 | AO3: =Forecasts!AW83 -> 951505.8002 | AP3: =Forecasts!AX83 -> 957809.2712 | AQ3: =Forecasts!AY83 -> 964164.2248 | AR3: =Forecasts!AZ83 -> 970571.4037 | AS3: =Forecasts!BA83 -> 977026.5467 | AT3: =Forecasts!BB83 -> 983525.4139 | AU3: =Forecasts!BC83 -> 989605.7869 | AV3: =Forecasts!BD83 -> 995734.7579 | AW3: =Forecasts!BE83 -> 1001906.084 | AX3: =Forecasts!BF83 -> 1008126.554 | AY3: =Forecasts!BG83 -> 1014395.921 | AZ3: =Forecasts!BH83 -> 1021292.941 | BA3: =Forecasts!BI83 -> 1028251.477 | BB3: =Forecasts!BJ83 -> 1035260.219 | BC3: =Forecasts!BK83 -> 1042318.918 | BD3: =Forecasts!BL83 -> 1049438.324 | BE3: =Forecasts!BM83 -> 1056613.132 | BF3: =Forecasts!BN83 -> 1063849.066 | BG3: =Forecasts!BO83 -> 1071139.821 | BH3: =Forecasts!BP83 -> 1078487.122 | BI3: =Forecasts!BQ83 -> 1085892.686 | BJ3: =Forecasts!BR83 -> 1093355.223 | BK3: =Forecasts!BS83 -> 1100880.447 | BL3: =Forecasts!BT83 -> 1108464.044 | BM3: =Forecasts!BU83 -> 1116108.724 | BN3: =Forecasts!BV83 -> 1123815.181 | BO3: =Forecasts!BW83 -> 1131584.105 | BP3: =Forecasts!BX83 -> 1139413.184 | BQ3: =Forecasts!BY83 -> 1147303.118 | BR3: =Forecasts!BZ83 -> 1155260.603 | BS3: =Forecasts!CA83 -> 1163279.3 | BT3: =Forecasts!CB83 -> 1171363.903 | BU3: =Forecasts!CC83 -> 1179516.084 | BV3: =Forecasts!CD83 -> 1187731.503 | BW3: =Forecasts!CE83 -> 1196012.846 | BX3: =Forecasts!CF83 -> 1204360.781 | BY3: =Forecasts!CG83 -> 1212775.978 | BZ3: =Forecasts!CH83 -> 1221257.098 | CA3: =Forecasts!CI83 -> 1229813.812 | CB3: =Forecasts!CJ83 -> 1238434.743 | CC3: =Forecasts!CK83 -> 1247127.569 | CD3: =Forecasts!CL83 -> 1255891.932
A4: Gross new connections | B4: =CustomersRes!J83 -> 10691 | C4: =CustomersRes!K83 -> 11512 | D4: =CustomersRes!L83 -> 11512 | E4: =CustomersRes!M83 -> 11512 | F4: =CustomersRes!N83 -> 11512 | G4: =CustomersRes!O83 -> 11512 | H4: =CustomersRes!P83 -> 12084 | I4: =CustomersRes!Q83 -> 11545 | J4: =CustomersRes!R83 -> 11099 | K4: =CustomersRes!S83 -> 10984 | L4: =CustomersRes!T83 -> 10169 | M4: =CustomersRes!U83 -> 9584 | N4: =CustomersRes!V83 -> 9659 | O4: =CustomersRes!W83 -> 9772 | P4: =CustomersRes!X83 -> 9382 | Q4: =CustomersRes!Y83 -> 9322 | R4: =CustomersRes!Z83 -> 11168 | S4: =CustomersRes!AA83 -> 11135 | T4: =CustomersRes!AB83 -> 10820 | U4: =CustomersRes!AC83 -> 11362 | V4: =CustomersRes!AD83 -> 10529 | W4: =CustomersRes!AE83 -> 10587 | X4: =CustomersRes!AF83 -> 10652 | Y4: =CustomersRes!AG83 -> 10721 | Z4: =CustomersRes!AH83 -> 10779 | AA4: =CustomersRes!AI83 -> 10935 | AB4: =CustomersRes!AJ83 -> 11000 | AC4: =CustomersRes!AK83 -> 11070 | AD4: =CustomersRes!AL83 -> 11138 | AE4: =CustomersRes!AM83 -> 11210 | AF4: =CustomersRes!AN83 -> 11630 | AG4: =CustomersRes!AO83 -> 11712 | AH4: =CustomersRes!AP83 -> 11798 | AI4: =CustomersRes!AQ83 -> 11876 | AJ4: =CustomersRes!AR83 -> 11955 | AK4: =CustomersRes!AS83 -> 12121 | AL4: =CustomersRes!AT83 -> 12204 | AM4: =CustomersRes!AU83 -> 12287 | AN4: =CustomersRes!AV83 -> 12371 | AO4: =CustomersRes!AW83 -> 12459 | AP4: =CustomersRes!AX83 -> 12665 | AQ4: =CustomersRes!AY83 -> 12756 | AR4: =CustomersRes!AZ83 -> 12851 | AS4: =CustomersRes!BA83 -> 12940 | AT4: =CustomersRes!BB83 -> 13031 | AU4: =CustomersRes!BC83 -> 12902 | AV4: =CustomersRes!BD83 -> 12992 | AW4: =CustomersRes!BE83 -> 13076 | AX4: =CustomersRes!BF83 -> 13169 | AY4: =CustomersRes!BG83 -> 13259 | AZ4: =CustomersRes!BH83 -> 13625 | BA4: =CustomersRes!BI83 -> 13728 | BB4: =CustomersRes!BJ83 -> 13825 | BC4: =CustomersRes!BK83 -> 13923 | BD4: =CustomersRes!BL83 -> 14026 | BE4: =CustomersRes!BM83 -> 14130 | BF4: =CustomersRes!BN83 -> 14235 | BG4: =CustomersRes!BO83 -> 14341 | BH4: =CustomersRes!BP83 -> 14447 | BI4: =CustomersRes!BQ83 -> 14551 | BJ4: =CustomersRes!BR83 -> 14655 | BK4: =CustomersRes!BS83 -> 14767 | BL4: =CustomersRes!BT83 -> 14876 | BM4: =CustomersRes!BU83 -> 14984 | BN4: =CustomersRes!BV83 -> 15097 | BO4: =CustomersRes!BW83 -> 15211 | BP4: =CustomersRes!BX83 -> 15322 | BQ4: =CustomersRes!BY83 -> 15433 | BR4: =CustomersRes!BZ83 -> 15551 | BS4: =CustomersRes!CA83 -> 15664 | BT4: =CustomersRes!CB83 -> 15784 | BU4: =CustomersRes!CC83 -> 15903 | BV4: =CustomersRes!CD83 -> 16019 | BW4: =CustomersRes!CE83 -> 16140 | BX4: =CustomersRes!CF83 -> 16260 | BY4: =CustomersRes!CG83 -> 16381 | BZ4: =CustomersRes!CH83 -> 16504 | CA4: =CustomersRes!CI83 -> 16634 | CB4: =CustomersRes!CJ83 -> 16756 | CC4: =CustomersRes!CK83 -> 16881 | CD4: =CustomersRes!CL83 -> 17009
A5: Disconnections | B5: =CustomersRes!J125 -> 8177 | C5: =CustomersRes!K125 -> 1999 | D5: =CustomersRes!L125 -> 1999 | E5: =CustomersRes!M125 -> 1999 | F5: =CustomersRes!N125 -> 1999 | G5: =CustomersRes!O125 -> 1999 | H5: =CustomersRes!P125 -> 4239.083223 | I5: =CustomersRes!Q125 -> 4538.307807 | J5: =CustomersRes!R125 -> 4903.341268 | K5: =CustomersRes!S125 -> 5090.319561 | L5: =CustomersRes!T125 -> 6112.787964 | M5: =CustomersRes!U125 -> 7285.069024 | N5: =CustomersRes!V125 -> 7217.563679 | O5: =CustomersRes!W125 -> 7087.77086 | P5: =CustomersRes!X125 -> 8103.192006 | Q5: =CustomersRes!Y125 -> 8332.586046 | R5: =CustomersRes!Z125 -> 5315.533116 | S5: =CustomersRes!AA125 -> 5459.79545 | T5: =CustomersRes!AB125 -> 5918.171473 | U5: =CustomersRes!AC125 -> 5452.680616 | V5: =CustomersRes!AD125 -> 6617.227212 | W5: =CustomersRes!AE125 -> 6634.786076 | X5: =CustomersRes!AF125 -> 6651.547146 | Y5: =CustomersRes!AG125 -> 6672.54941 | Z5: =CustomersRes!AH125 -> 6690.791663 | AA5: =CustomersRes!AI125 -> 6581.232705 | AB5: =CustomersRes!AJ125 -> 6605.001541 | AC5: =CustomersRes!AK125 -> 6623.976534 | AD5: =CustomersRes!AL125 -> 6646.206651 | AE5: =CustomersRes!AM125 -> 6669.665618 | AF5: =CustomersRes!AN125 -> 6232.36729 | AG5: =CustomersRes!AO125 -> 6262.355453 | AH5: =CustomersRes!AP125 -> 6291.603676 | AI5: =CustomersRes!AQ125 -> 6325.135658 | AJ5: =CustomersRes!AR125 -> 6365.889979 | AK5: =CustomersRes!AS125 -> 6301.835529 | AL5: =CustomersRes!AT125 -> 6342.931352 | AM5: =CustomersRes!AU125 -> 6379.236695 | AN5: =CustomersRes!AV125 -> 6420.775511 | AO5: =CustomersRes!AW125 -> 6458.526634 | AP5: =CustomersRes!AX125 -> 6361.529001 | AQ5: =CustomersRes!AY125 -> 6401.046356 | AR5: =CustomersRes!AZ125 -> 6443.821124 | AS5: =CustomersRes!BA125 -> 6484.857018 | AT5: =CustomersRes!BB125 -> 6532.132733 | AU5: =CustomersRes!BC125 -> 6821.62707 | AV5: =CustomersRes!BD125 -> 6863.028934 | AW5: =CustomersRes!BE125 -> 6904.67379 | AX5: =CustomersRes!BF125 -> 6948.530421 | AY5: =CustomersRes!BG125 -> 6989.632769 | AZ5: =CustomersRes!BH125 -> 6727.979605 | BA5: =CustomersRes!BI125 -> 6769.464707 | BB5: =CustomersRes!BJ125 -> 6816.257383 | BC5: =CustomersRes!BK125 -> 6864.301096 | BD5: =CustomersRes!BL125 -> 6906.594591 | BE5: =CustomersRes!BM125 -> 6955.191618 | BF5: =CustomersRes!BN125 -> 6999.06566 | BG5: =CustomersRes!BO125 -> 7050.245331 | BH5: =CustomersRes!BP125 -> 7099.699105 | BI5: =CustomersRes!BQ125 -> 7145.435609 | BJ5: =CustomersRes!BR125 -> 7192.463431 | BK5: =CustomersRes!BS125 -> 7241.776114 | BL5: =CustomersRes!BT125 -> 7292.402233 | BM5: =CustomersRes!BU125 -> 7339.320222 | BN5: =CustomersRes!BV125 -> 7390.543621 | BO5: =CustomersRes!BW125 -> 7442.075903 | BP5: =CustomersRes!BX125 -> 7492.920524 | BQ5: =CustomersRes!BY125 -> 7543.065921 | BR5: =CustomersRes!BZ125 -> 7593.515591 | BS5: =CustomersRes!CA125 -> 7645.303013 | BT5: =CustomersRes!CB125 -> 7699.396498 | BU5: =CustomersRes!CC125 -> 7750.819516 | BV5: =CustomersRes!CD125 -> 7803.580418 | BW5: =CustomersRes!CE125 -> 7858.657516 | BX5: =CustomersRes!CF125 -> 7912.064229 | BY5: =CustomersRes!CG125 -> 7965.803907 | BZ5: =CustomersRes!CH125 -> 8022.879888 | CA5: =CustomersRes!CI125 -> 8077.285488 | CB5: =CustomersRes!CJ125 -> 8135.069061 | CC5: =CustomersRes!CK125 -> 8188.173716 | CD5: =CustomersRes!CL125 -> 8244.637847
A6: Commercial B2 | B6: =Forecasts!J209 -> 12139 | C6: =Forecasts!K209 -> 12318 | D6: =Forecasts!L209 -> 12429 | E6: =Forecasts!M209 -> 12602.81093 | F6: =Forecasts!N209 -> 12738.09801 | G6: =Forecasts!O209 -> 12882.37729 | H6: =Forecasts!P209 -> 13040.9654 | I6: =Forecasts!Q209 -> 13159.76057 | J6: =Forecasts!R209 -> 13218.96177 | K6: =Forecasts!S209 -> 13251.86696 | L6: =Forecasts!T209 -> 13180.60763 | M6: =Forecasts!U209 -> 13030.70459 | N6: =Forecasts!V209 -> 12897.55107 | O6: =Forecasts!W209 -> 12785.06331 | P6: =Forecasts!X209 -> 12634.13799 | Q6: =Forecasts!Y209 -> 12491.9673 | R6: =Forecasts!Z209 -> 12575.50747 | S6: =Forecasts!AA209 -> 12645.62993 | T6: =Forecasts!AB209 -> 12682.40178 | U6: =Forecasts!AC209 -> 12768.98977 | V6: =Forecasts!AD209 -> 12733.14482 | W6: =Forecasts!AE209 -> 12702.4791 | X6: =Forecasts!AF209 -> 12680.9667 | Y6: =Forecasts!AG209 -> 12669.56187 | Z6: =Forecasts!AH209 -> 12660.21406 | AA6: =Forecasts!AI209 -> 12663.91299 | AB6: =Forecasts!AJ209 -> 12670.59342 | AC6: =Forecasts!AK209 -> 12684.24046 | AD6: =Forecasts!AL209 -> 12701.81926 | AE6: =Forecasts!AM209 -> 12725.31016 | AF6: =Forecasts!AN209 -> 12766.68361 | AG6: =Forecasts!AO209 -> 12811.85019 | AH6: =Forecasts!AP209 -> 12861.79094 | AI6: =Forecasts!AQ209 -> 12915.48198 | AJ6: =Forecasts!AR209 -> 12972.90457 | AK6: =Forecasts!AS209 -> 13037.04005 | AL6: =Forecasts!AT209 -> 13105.85485 | AM6: =Forecasts!AU209 -> 13176.32558 | AN6: =Forecasts!AV209 -> 13249.44395 | AO6: =Forecasts!AW209 -> 13323.19673 | AP6: =Forecasts!AX209 -> 13408.58075 | AQ6: =Forecasts!AY209 -> 13496.53784 | AR6: =Forecasts!AZ209 -> 13586.05515 | AS6: =Forecasts!BA209 -> 13678.12488 | AT6: =Forecasts!BB209 -> 13773.73425 | AU6: =Forecasts!BC209 -> 13857.86558 | AV6: =Forecasts!BD209 -> 13946.57625 | AW6: =Forecasts!BE209 -> 14036.84337 | AX6: =Forecasts!BF209 -> 14132.65916 | AY6: =Forecasts!BG209 -> 14230.99586 | AZ6: =Forecasts!BH209 -> 14340.84088 | BA6: =Forecasts!BI209 -> 14454.13668 | BB6: =Forecasts!BJ209 -> 14568.86599 | BC6: =Forecasts!BK209 -> 14684.02166 | BD6: =Forecasts!BL209 -> 14803.60155 | BE6: =Forecasts!BM209 -> 14926.58355 | BF6: =Forecasts!BN209 -> 15050.95063 | BG6: =Forecasts!BO209 -> 15177.69588 | BH6: =Forecasts!BP209 -> 15305.8074 | BI6: =Forecasts!BQ209 -> 15435.27836 | BJ6: =Forecasts!BR209 -> 15566.10197 | BK6: =Forecasts!BS209 -> 15697.27146 | BL6: =Forecasts!BT209 -> 15833.7851 | BM6: =Forecasts!BU209 -> 15971.61618 | BN6: =Forecasts!BV209 -> 16115.75809 | BO6: =Forecasts!BW209 -> 16262.1793 | BP6: =Forecasts!BX209 -> 16408.86841 | BQ6: =Forecasts!BY209 -> 16555.82407 | BR6: =Forecasts!BZ209 -> 16706.04494 | BS6: =Forecasts!CA209 -> 16858.51472 | BT6: =Forecasts!CB209 -> 17015.22215 | BU6: =Forecasts!CC209 -> 17173.14604 | BV6: =Forecasts!CD209 -> 17335.28031 | BW6: =Forecasts!CE209 -> 17500.6039 | BX6: =Forecasts!CF209 -> 17669.10088 | BY6: =Forecasts!CG209 -> 17840.75538 | BZ6: =Forecasts!CH209 -> 18013.5516 | CA6: =Forecasts!CI209 -> 18187.48385 | CB6: =Forecasts!CJ209 -> 18365.54643 | CC6: =Forecasts!CK209 -> 18548.71869 | CD6: =Forecasts!CL209 -> 18733.9751
A7: Gross new connections | B7: =CustomersCOM!J83 -> 241 | C7: =CustomersCOM!K83 -> 224 | D7: =CustomersCOM!L83 -> 224 | E7: =CustomersCOM!M83 -> 224 | F7: =CustomersCOM!N83 -> 224 | G7: =CustomersCOM!O83 -> 224 | H7: =CustomersCOM!P83 -> 238 | I7: =CustomersCOM!Q83 -> 231 | J7: =CustomersCOM!R83 -> 218 | K7: =CustomersCOM!S83 -> 210 | L7: =CustomersCOM!T83 -> 182 | M7: =CustomersCOM!U83 -> 162 | N7: =CustomersCOM!V83 -> 164 | O7: =CustomersCOM!W83 -> 167 | P7: =CustomersCOM!X83 -> 158 | Q7: =CustomersCOM!Y83 -> 158 | R7: =CustomersCOM!Z83 -> 215 | S7: =CustomersCOM!AA83 -> 210 | T7: =CustomersCOM!AB83 -> 202 | U7: =CustomersCOM!AC83 -> 217 | V7: =CustomersCOM!AD83 -> 187 | W7: =CustomersCOM!AE83 -> 188 | X7: =CustomersCOM!AF83 -> 190 | Y7: =CustomersCOM!AG83 -> 192 | Z7: =CustomersCOM!AH83 -> 193 | AA7: =CustomersCOM!AI83 -> 195 | AB7: =CustomersCOM!AJ83 -> 194 | AC7: =CustomersCOM!AK83 -> 197 | AD7: =CustomersCOM!AL83 -> 197 | AE7: =CustomersCOM!AM83 -> 201 | AF7: =CustomersCOM!AN83 -> 204 | AG7: =CustomersCOM!AO83 -> 206 | AH7: =CustomersCOM!AP83 -> 210 | AI7: =CustomersCOM!AQ83 -> 210 | AJ7: =CustomersCOM!AR83 -> 211 | AK7: =CustomersCOM!AS83 -> 214 | AL7: =CustomersCOM!AT83 -> 217 | AM7: =CustomersCOM!AU83 -> 217 | AN7: =CustomersCOM!AV83 -> 220 | AO7: =CustomersCOM!AW83 -> 220 | AP7: =CustomersCOM!AX83 -> 226 | AQ7: =CustomersCOM!AY83 -> 230 | AR7: =CustomersCOM!AZ83 -> 231 | AS7: =CustomersCOM!BA83 -> 233 | AT7: =CustomersCOM!BB83 -> 234 | AU7: =CustomersCOM!BC83 -> 233 | AV7: =CustomersCOM!BD83 -> 236 | AW7: =CustomersCOM!BE83 -> 237 | AX7: =CustomersCOM!BF83 -> 241 | AY7: =CustomersCOM!BG83 -> 242 | AZ7: =CustomersCOM!BH83 -> 247 | BA7: =CustomersCOM!BI83 -> 250 | BB7: =CustomersCOM!BJ83 -> 251 | BC7: =CustomersCOM!BK83 -> 253 | BD7: =CustomersCOM!BL83 -> 255 | BE7: =CustomersCOM!BM83 -> 260 | BF7: =CustomersCOM!BN83 -> 262 | BG7: =CustomersCOM!BO83 -> 264 | BH7: =CustomersCOM!BP83 -> 267 | BI7: =CustomersCOM!BQ83 -> 271 | BJ7: =CustomersCOM!BR83 -> 273 | BK7: =CustomersCOM!BS83 -> 274 | BL7: =CustomersCOM!BT83 -> 279 | BM7: =CustomersCOM!BU83 -> 280 | BN7: =CustomersCOM!BV83 -> 287 | BO7: =CustomersCOM!BW83 -> 289 | BP7: =CustomersCOM!BX83 -> 290 | BQ7: =CustomersCOM!BY83 -> 293 | BR7: =CustomersCOM!BZ83 -> 297 | BS7: =CustomersCOM!CA83 -> 299 | BT7: =CustomersCOM!CB83 -> 303 | BU7: =CustomersCOM!CC83 -> 306 | BV7: =CustomersCOM!CD83 -> 309 | BW7: =CustomersCOM!CE83 -> 313 | BX7: =CustomersCOM!CF83 -> 318 | BY7: =CustomersCOM!CG83 -> 323 | BZ7: =CustomersCOM!CH83 -> 325 | CA7: =CustomersCOM!CI83 -> 328 | CB7: =CustomersCOM!CJ83 -> 332 | CC7: =CustomersCOM!CK83 -> 338 | CD7: =CustomersCOM!CL83 -> 341
A8: Disconnections | B8: =CustomersCOM!J125 -> 280 | C8: =CustomersCOM!K125 -> 50 | D8: =CustomersCOM!L125 -> 50 | E8: =CustomersCOM!M125 -> 50 | F8: =CustomersCOM!N125 -> 50 | G8: =CustomersCOM!O125 -> 50 | H8: =CustomersCOM!P125 -> 79.41188643 | I8: =CustomersCOM!Q125 -> 112.204827 | J8: =CustomersCOM!R125 -> 158.7988029 | K8: =CustomersCOM!S125 -> 177.0948089 | L8: =CustomersCOM!T125 -> 253.2593348 | M8: =CustomersCOM!U125 -> 311.9030381 | N8: =CustomersCOM!V125 -> 297.1535229 | O8: =CustomersCOM!W125 -> 279.4877553 | P8: =CustomersCOM!X125 -> 308.9253166 | Q8: =CustomersCOM!Y125 -> 300.17069 | R8: =CustomersCOM!Z125 -> 131.4598365 | S8: =CustomersCOM!AA125 -> 139.8775373 | T8: =CustomersCOM!AB125 -> 165.2281497 | U8: =CustomersCOM!AC125 -> 130.4120089 | V8: =CustomersCOM!AD125 -> 222.8449489 | W8: =CustomersCOM!AE125 -> 218.6657241 | X8: =CustomersCOM!AF125 -> 211.5123955 | Y8: =CustomersCOM!AG125 -> 203.4048335 | Z8: =CustomersCOM!AH125 -> 202.3478093 | AA8: =CustomersCOM!AI125 -> 191.3010703 | AB8: =CustomersCOM!AJ125 -> 187.3195649 | AC8: =CustomersCOM!AK125 -> 183.3529671 | AD8: =CustomersCOM!AL125 -> 179.4212023 | AE8: =CustomersCOM!AM125 -> 177.5090963 | AF8: =CustomersCOM!AN125 -> 162.6265508 | AG8: =CustomersCOM!AO125 -> 160.833418 | AH8: =CustomersCOM!AP125 -> 160.059251 | AI8: =CustomersCOM!AQ125 -> 156.3089547 | AJ8: =CustomersCOM!AR125 -> 153.5774099 | AK8: =CustomersCOM!AS125 -> 149.8645229 | AL8: =CustomersCOM!AT125 -> 148.1852003 | AM8: =CustomersCOM!AU125 -> 146.5292743 | AN8: =CustomersCOM!AV125 -> 146.8816279 | AO8: =CustomersCOM!AW125 -> 146.2472197 | AP8: =CustomersCOM!AX125 -> 140.6159836 | AQ8: =CustomersCOM!AY125 -> 142.0429037 | AR8: =CustomersCOM!AZ125 -> 141.4826892 | AS8: =CustomersCOM!BA125 -> 140.9302758 | AT8: =CustomersCOM!BB125 -> 138.3906244 | AU8: =CustomersCOM!BC125 -> 148.8686713 | AV8: =CustomersCOM!BD125 -> 147.2893279 | AW8: =CustomersCOM!BE125 -> 146.7328813 | AX8: =CustomersCOM!BF125 -> 145.1842169 | AY8: =CustomersCOM!BG125 -> 143.6632958 | AZ8: =CustomersCOM!BH125 -> 137.1549793 | BA8: =CustomersCOM!BI125 -> 136.7042044 | BB8: =CustomersCOM!BJ125 -> 136.2706834 | BC8: =CustomersCOM!BK125 -> 137.84433 | BD8: =CustomersCOM!BL125 -> 135.4201083 | BE8: =CustomersCOM!BM125 -> 137.0180078 | BF8: =CustomersCOM!BN125 -> 137.6329177 | BG8: =CustomersCOM!BO125 -> 137.2547531 | BH8: =CustomersCOM!BP125 -> 138.8884794 | BI8: =CustomersCOM!BQ125 -> 141.529037 | BJ8: =CustomersCOM!BR125 -> 142.1763918 | BK8: =CustomersCOM!BS125 -> 142.8305098 | BL8: =CustomersCOM!BT125 -> 142.4863573 | BM8: =CustomersCOM!BU125 -> 142.1689255 | BN8: =CustomersCOM!BV125 -> 142.8580809 | BO8: =CustomersCOM!BW125 -> 142.5787905 | BP8: =CustomersCOM!BX125 -> 143.3108965 | BQ8: =CustomersCOM!BY125 -> 146.044342 | BR8: =CustomersCOM!BZ125 -> 146.7791203 | BS8: =CustomersCOM!CA125 -> 146.5302247 | BT8: =CustomersCOM!CB125 -> 146.2925736 | BU8: =CustomersCOM!CC125 -> 148.0761107 | BV8: =CustomersCOM!CD125 -> 146.8657302 | BW8: =CustomersCOM!CE125 -> 147.6764015 | BX8: =CustomersCOM!CF125 -> 149.5030195 | BY8: =CustomersCOM!CG125 -> 151.3455044 | BZ8: =CustomersCOM!CH125 -> 152.2037769 | CA8: =CustomersCOM!CI125 -> 154.067758 | CB8: =CustomersCOM!CJ125 -> 153.9374192 | CC8: =CustomersCOM!CK125 -> 154.8277321 | CD8: =CustomersCOM!CL125 -> 155.7435935
A9: Commercial B1 | B9: =Forecasts!J259 -> 1841 | C9: =Forecasts!K259 -> 1912 | D9: =Forecasts!L259 -> 1940 | E9: =Forecasts!M259 -> 1993.33948 | F9: =Forecasts!N259 -> 2040.015978 | G9: =Forecasts!O259 -> 2084.835369 | H9: =Forecasts!P259 -> 2147.835369 | I9: =Forecasts!Q259 -> 2210.835369 | J9: =Forecasts!R259 -> 2273.835369 | K9: =Forecasts!S259 -> 2336.835369 | L9: =Forecasts!T259 -> 2399.835369 | M9: =Forecasts!U259 -> 2462.835369 | N9: =Forecasts!V259 -> 2525.835369 | O9: =Forecasts!W259 -> 2588.835369 | P9: =Forecasts!X259 -> 2651.835369 | Q9: =Forecasts!Y259 -> 2714.835369 | R9: =Forecasts!Z259 -> 2777.835369 | S9: =Forecasts!AA259 -> 2840.835369 | T9: =Forecasts!AB259 -> 2903.835369 | U9: =Forecasts!AC259 -> 2966.835369 | V9: =Forecasts!AD259 -> 3029.835369 | W9: =Forecasts!AE259 -> 3092.835369 | X9: =Forecasts!AF259 -> 3155.835369 | Y9: =Forecasts!AG259 -> 3218.835369 | Z9: =Forecasts!AH259 -> 3281.835369 | AA9: =Forecasts!AI259 -> 3344.835369 | AB9: =Forecasts!AJ259 -> 3407.835369 | AC9: =Forecasts!AK259 -> 3470.835369 | AD9: =Forecasts!AL259 -> 3533.835369 | AE9: =Forecasts!AM259 -> 3596.835369 | AF9: =Forecasts!AN259 -> 3659.835369 | AG9: =Forecasts!AO259 -> 3722.835369 | AH9: =Forecasts!AP259 -> 3785.835369 | AI9: =Forecasts!AQ259 -> 3848.835369 | AJ9: =Forecasts!AR259 -> 3911.835369 | AK9: =Forecasts!AS259 -> 3974.835369 | AL9: =Forecasts!AT259 -> 4037.835369 | AM9: =Forecasts!AU259 -> 4100.835369 | AN9: =Forecasts!AV259 -> 4163.835369 | AO9: =Forecasts!AW259 -> 4226.835369 | AP9: =Forecasts!AX259 -> 4289.835369 | AQ9: =Forecasts!AY259 -> 4352.835369 | AR9: =Forecasts!AZ259 -> 4415.835369 | AS9: =Forecasts!BA259 -> 4478.835369 | AT9: =Forecasts!BB259 -> 4541.835369 | AU9: =Forecasts!BC259 -> 4604.835369 | AV9: =Forecasts!BD259 -> 4667.835369 | AW9: =Forecasts!BE259 -> 4730.835369 | AX9: =Forecasts!BF259 -> 4793.835369 | AY9: =Forecasts!BG259 -> 4856.835369 | AZ9: =Forecasts!BH259 -> 4919.835369 | BA9: =Forecasts!BI259 -> 4982.835369 | BB9: =Forecasts!BJ259 -> 5045.835369 | BC9: =Forecasts!BK259 -> 5108.835369 | BD9: =Forecasts!BL259 -> 5171.835369 | BE9: =Forecasts!BM259 -> 5234.835369 | BF9: =Forecasts!BN259 -> 5297.835369 | BG9: =Forecasts!BO259 -> 5360.835369 | BH9: =Forecasts!BP259 -> 5423.835369 | BI9: =Forecasts!BQ259 -> 5486.835369 | BJ9: =Forecasts!BR259 -> 5549.835369 | BK9: =Forecasts!BS259 -> 5612.835369 | BL9: =Forecasts!BT259 -> 5675.835369 | BM9: =Forecasts!BU259 -> 5738.835369 | BN9: =Forecasts!BV259 -> 5801.835369 | BO9: =Forecasts!BW259 -> 5864.835369 | BP9: =Forecasts!BX259 -> 5927.835369 | BQ9: =Forecasts!BY259 -> 5990.835369 | BR9: =Forecasts!BZ259 -> 6053.835369 | BS9: =Forecasts!CA259 -> 6116.835369 | BT9: =Forecasts!CB259 -> 6179.835369 | BU9: =Forecasts!CC259 -> 6242.835369 | BV9: =Forecasts!CD259 -> 6305.835369 | BW9: =Forecasts!CE259 -> 6368.835369 | BX9: =Forecasts!CF259 -> 6431.835369 | BY9: =Forecasts!CG259 -> 6494.835369 | BZ9: =Forecasts!CH259 -> 6557.835369 | CA9: =Forecasts!CI259 -> 6620.835369 | CB9: =Forecasts!CJ259 -> 6683.835369 | CC9: =Forecasts!CK259 -> 6746.835369 | CD9: =Forecasts!CL259 -> 6809.835369
A10: Industrial A1 | B10: =Forecasts!J260 -> 74 | C10: =Forecasts!K260 -> 74 | D10: =Forecasts!L260 -> 73 | E10: =Forecasts!M260 -> 72 | F10: =Forecasts!N260 -> 69.5 | G10: =Forecasts!O260 -> 68 | H10: =Forecasts!P260 -> 68 | I10: =Forecasts!Q260 -> 68 | J10: =Forecasts!R260 -> 68 | K10: =Forecasts!S260 -> 68 | L10: =Forecasts!T260 -> 68 | M10: =Forecasts!U260 -> 68 | N10: =Forecasts!V260 -> 68 | O10: =Forecasts!W260 -> 68 | P10: =Forecasts!X260 -> 68 | Q10: =Forecasts!Y260 -> 68 | R10: =Forecasts!Z260 -> 68 | S10: =Forecasts!AA260 -> 68 | T10: =Forecasts!AB260 -> 68 | U10: =Forecasts!AC260 -> 68 | V10: =Forecasts!AD260 -> 68 | W10: =Forecasts!AE260 -> 68 | X10: =Forecasts!AF260 -> 68 | Y10: =Forecasts!AG260 -> 68 | Z10: =Forecasts!AH260 -> 68 | AA10: =Forecasts!AI260 -> 68 | AB10: =Forecasts!AJ260 -> 68 | AC10: =Forecasts!AK260 -> 68 | AD10: =Forecasts!AL260 -> 68 | AE10: =Forecasts!AM260 -> 68 | AF10: =Forecasts!AN260 -> 68 | AG10: =Forecasts!AO260 -> 68 | AH10: =Forecasts!AP260 -> 68 | AI10: =Forecasts!AQ260 -> 68 | AJ10: =Forecasts!AR260 -> 68 | AK10: =Forecasts!AS260 -> 68 | AL10: =Forecasts!AT260 -> 68 | AM10: =Forecasts!AU260 -> 68 | AN10: =Forecasts!AV260 -> 68 | AO10: =Forecasts!AW260 -> 68 | AP10: =Forecasts!AX260 -> 68 | AQ10: =Forecasts!AY260 -> 68 | AR10: =Forecasts!AZ260 -> 68 | AS10: =Forecasts!BA260 -> 68 | AT10: =Forecasts!BB260 -> 68 | AU10: =Forecasts!BC260 -> 68 | AV10: =Forecasts!BD260 -> 68 | AW10: =Forecasts!BE260 -> 68 | AX10: =Forecasts!BF260 -> 68 | AY10: =Forecasts!BG260 -> 68 | AZ10: =Forecasts!BH260 -> 68 | BA10: =Forecasts!BI260 -> 68 | BB10: =Forecasts!BJ260 -> 68 | BC10: =Forecasts!BK260 -> 68 | BD10: =Forecasts!BL260 -> 68 | BE10: =Forecasts!BM260 -> 68 | BF10: =Forecasts!BN260 -> 68 | BG10: =Forecasts!BO260 -> 68 | BH10: =Forecasts!BP260 -> 68 | BI10: =Forecasts!BQ260 -> 68 | BJ10: =Forecasts!BR260 -> 68 | BK10: =Forecasts!BS260 -> 68 | BL10: =Forecasts!BT260 -> 68 | BM10: =Forecasts!BU260 -> 68 | BN10: =Forecasts!BV260 -> 68 | BO10: =Forecasts!BW260 -> 68 | BP10: =Forecasts!BX260 -> 68 | BQ10: =Forecasts!BY260 -> 68 | BR10: =Forecasts!BZ260 -> 68 | BS10: =Forecasts!CA260 -> 68 | BT10: =Forecasts!CB260 -> 68 | BU10: =Forecasts!CC260 -> 68 | BV10: =Forecasts!CD260 -> 68 | BW10: =Forecasts!CE260 -> 68 | BX10: =Forecasts!CF260 -> 68 | BY10: =Forecasts!CG260 -> 68 | BZ10: =Forecasts!CH260 -> 68 | CA10: =Forecasts!CI260 -> 68 | CB10: =Forecasts!CJ260 -> 68 | CC10: =Forecasts!CK260 -> 68 | CD10: =Forecasts!CL260 -> 68
A11: Industrial A2 | B11: =Forecasts!J261 -> 103 | C11: =Forecasts!K261 -> 105 | D11: =Forecasts!L261 -> 104 | E11: =Forecasts!M261 -> 103 | F11: =Forecasts!N261 -> 103 | G11: =Forecasts!O261 -> 103 | H11: =Forecasts!P261 -> 103 | I11: =Forecasts!Q261 -> 103 | J11: =Forecasts!R261 -> 103 | K11: =Forecasts!S261 -> 103 | L11: =Forecasts!T261 -> 103 | M11: =Forecasts!U261 -> 103 | N11: =Forecasts!V261 -> 103 | O11: =Forecasts!W261 -> 103 | P11: =Forecasts!X261 -> 103 | Q11: =Forecasts!Y261 -> 103 | R11: =Forecasts!Z261 -> 103 | S11: =Forecasts!AA261 -> 103 | T11: =Forecasts!AB261 -> 103 | U11: =Forecasts!AC261 -> 103 | V11: =Forecasts!AD261 -> 103 | W11: =Forecasts!AE261 -> 103 | X11: =Forecasts!AF261 -> 103 | Y11: =Forecasts!AG261 -> 103 | Z11: =Forecasts!AH261 -> 103 | AA11: =Forecasts!AI261 -> 103 | AB11: =Forecasts!AJ261 -> 103 | AC11: =Forecasts!AK261 -> 103 | AD11: =Forecasts!AL261 -> 103 | AE11: =Forecasts!AM261 -> 103 | AF11: =Forecasts!AN261 -> 103 | AG11: =Forecasts!AO261 -> 103 | AH11: =Forecasts!AP261 -> 103 | AI11: =Forecasts!AQ261 -> 103 | AJ11: =Forecasts!AR261 -> 103 | AK11: =Forecasts!AS261 -> 103 | AL11: =Forecasts!AT261 -> 103 | AM11: =Forecasts!AU261 -> 103 | AN11: =Forecasts!AV261 -> 103 | AO11: =Forecasts!AW261 -> 103 | AP11: =Forecasts!AX261 -> 103 | AQ11: =Forecasts!AY261 -> 103 | AR11: =Forecasts!AZ261 -> 103 | AS11: =Forecasts!BA261 -> 103 | AT11: =Forecasts!BB261 -> 103 | AU11: =Forecasts!BC261 -> 103 | AV11: =Forecasts!BD261 -> 103 | AW11: =Forecasts!BE261 -> 103 | AX11: =Forecasts!BF261 -> 103 | AY11: =Forecasts!BG261 -> 103 | AZ11: =Forecasts!BH261 -> 103 | BA11: =Forecasts!BI261 -> 103 | BB11: =Forecasts!BJ261 -> 103 | BC11: =Forecasts!BK261 -> 103 | BD11: =Forecasts!BL261 -> 103 | BE11: =Forecasts!BM261 -> 103 | BF11: =Forecasts!BN261 -> 103 | BG11: =Forecasts!BO261 -> 103 | BH11: =Forecasts!BP261 -> 103 | BI11: =Forecasts!BQ261 -> 103 | BJ11: =Forecasts!BR261 -> 103 | BK11: =Forecasts!BS261 -> 103 | BL11: =Forecasts!BT261 -> 103 | BM11: =Forecasts!BU261 -> 103 | BN11: =Forecasts!BV261 -> 103 | BO11: =Forecasts!BW261 -> 103 | BP11: =Forecasts!BX261 -> 103 | BQ11: =Forecasts!BY261 -> 103 | BR11: =Forecasts!BZ261 -> 103 | BS11: =Forecasts!CA261 -> 103 | BT11: =Forecasts!CB261 -> 103 | BU11: =Forecasts!CC261 -> 103 | BV11: =Forecasts!CD261 -> 103 | BW11: =Forecasts!CE261 -> 103 | BX11: =Forecasts!CF261 -> 103 | BY11: =Forecasts!CG261 -> 103 | BZ11: =Forecasts!CH261 -> 103 | CA11: =Forecasts!CI261 -> 103 | CB11: =Forecasts!CJ261 -> 103 | CC11: =Forecasts!CK261 -> 103 | CD11: =Forecasts!CL261 -> 103
A12: ATCO | B12: =SUM(B3,B6,B9,B10,B11) -> 760796 | C12: 770563 | D12: 776203.5 | E12: 786299.3015 | F12: 795263.413 | G12: 804354.8572 | H12: 812421.3621 | I12: 819609.8495 | J12: 825927.7094 | K12: 831917.295 | L12: 835965.2478 | M12: 838177.2757 | N12: 840548.5585 | O12: 843183.2999 | P12: 844374.1825 | Q12: 845284.4258 | R12: 851283.4329 | S12: 857091.7599 | T12: 862093.3603 | U12: 868152.2676 | V12: 872091.1955 | W12: 876075.7437 | X12: 880117.6841 | Y12: 884217.7299 | Z12: 888359.5904 | AA12: 892780.0566 | AB12: 897244.7355 | AC12: 901767.406 | AD12: 906339.7782 | AE12: 910966.6035 | AF12: 916468.6096 | AG12: 922026.4207 | AH12: =SUM(AH3,AH6,AH9,AH10,AH11) -> 927645.7578 | AI12: 933313.3132 | AJ12: 939022.8458 | AK12: 944969.1458 | AL12: 950962.0292 | AM12: 957003.2632 | AN12: 963089.6061 | AO12: 969226.8323 | AP12: 975678.6873 | AQ12: 982184.598 | AR12: 988744.2942 | AS12: 995354.5069 | AT12: 1002011.984 | AU12: 1008239.488 | AV12: 1014520.17 | AW12: 1020844.763 | AX12: 1027224.048 | AY12: 1033654.752 | AZ12: 1040724.618 | BA12: 1047859.449 | BB12: 1055045.921 | BC12: 1062282.775 | BD12: 1069584.76 | BE12: 1076945.551 | BF12: 1084368.852 | BG12: 1091849.352 | BH12: 1099387.765 | BI12: 1106985.8 | BJ12: 1114642.16 | BK12: 1122361.554 | BL12: 1130144.665 | BM12: 1137990.176 | BN12: =SUM(BN3,BN6,BN9,BN10,BN11) -> 1145903.774 | BO12: 1153882.119 | BP12: 1161920.888 | BQ12: 1170020.778 | BR12: 1178191.483 | BS12: 1186425.65 | BT12: 1194729.961 | BU12: 1203103.065 | BV12: 1211543.619 | BW12: 1220053.285 | BX12: 1228632.718 | BY12: 1237282.568 | BZ12: 1245999.485 | CA12: 1254793.131 | CB12: 1263655.125 | CC12: 1272594.123 | CD12: 1281606.742
A15: Volumes (TJ) | B15: 2020 | C15: =B15+1 -> 2021 | D15: =C15+1 -> 2022 | E15: =D15+1 -> 2023 | F15: =E15+1 -> 2024 | G15: =F15+1 -> 2025 | H15: =G15+1 -> 2026 | I15: =H15+1 -> 2027 | J15: =I15+1 -> 2028 | K15: =J15+1 -> 2029 | L15: =K15+1 -> 2030 | M15: =L15+1 -> 2031 | N15: =M15+1 -> 2032 | O15: =N15+1 -> 2033 | P15: =O15+1 -> 2034 | Q15: =P15+1 -> 2035 | R15: =Q15+1 -> 2036 | S15: =R15+1 -> 2037 | T15: =S15+1 -> 2038 | U15: =T15+1 -> 2039 | V15: =U15+1 -> 2040 | W15: =V15+1 -> 2041 | X15: =W15+1 -> 2042 | Y15: =X15+1 -> 2043 | Z15: =Y15+1 -> 2044 | AA15: =Z15+1 -> 2045 | AB15: =AA15+1 -> 2046 | AC15: =AB15+1 -> 2047 | AD15: =AC15+1 -> 2048 | AE15: =AD15+1 -> 2049 | AF15: =AE15+1 -> 2050 | AG15: =AF15+1 -> 2051 | AH15: =AG15+1 -> 2052 | AI15: =AH15+1 -> 2053 | AJ15: =AI15+1 -> 2054 | AK15: =AJ15+1 -> 2055 | AL15: =AK15+1 -> 2056 | AM15: =AL15+1 -> 2057 | AN15: =AM15+1 -> 2058 | AO15: =AN15+1 -> 2059 | AP15: =AO15+1 -> 2060 | AQ15: =AP15+1 -> 2061 | AR15: =AQ15+1 -> 2062 | AS15: =AR15+1 -> 2063 | AT15: =AS15+1 -> 2064 | AU15: =AT15+1 -> 2065 | AV15: =AU15+1 -> 2066 | AW15: =AV15+1 -> 2067 | AX15: =AW15+1 -> 2068 | AY15: =AX15+1 -> 2069 | AZ15: =AY15+1 -> 2070 | BA15: =AZ15+1 -> 2071 | BB15: =BA15+1 -> 2072 | BC15: =BB15+1 -> 2073 | BD15: =BC15+1 -> 2074 | BE15: =BD15+1 -> 2075 | BF15: =BE15+1 -> 2076 | BG15: =BF15+1 -> 2077 | BH15: =BG15+1 -> 2078 | BI15: =BH15+1 -> 2079 | BJ15: =BI15+1 -> 2080 | BK15: =BJ15+1 -> 2081 | BL15: =BK15+1 -> 2082 | BM15: =BL15+1 -> 2083 | BN15: =BM15+1 -> 2084 | BO15: =BN15+1 -> 2085 | BP15: =BO15+1 -> 2086 | BQ15: =BP15+1 -> 2087 | BR15: =BQ15+1 -> 2088 | BS15: =BR15+1 -> 2089 | BT15: =BS15+1 -> 2090 | BU15: =BT15+1 -> 2091 | BV15: =BU15+1 -> 2092 | BW15: =BV15+1 -> 2093 | BX15: =BW15+1 -> 2094 | BY15: =BX15+1 -> 2095 | BZ15: =BY15+1 -> 2096 | CA15: =BZ15+1 -> 2097 | CB15: =CA15+1 -> 2098 | CC15: =CB15+1 -> 2099 | CD15: =CC15+1 -> 2100
A16: Residential B3 | B16: =Forecasts!J125 -> 10104.45949 | C16: =Forecasts!K125 -> 10468.67886 | D16: =Forecasts!L125 -> 10078.78486 | E16: =Forecasts!M125 -> 10260.30388 | F16: =Forecasts!N125 -> 10154.49327 | G16: =Forecasts!O125 -> 10053.04759 | H16: =Forecasts!P125 -> 10045.89171 | I16: =Forecasts!Q125 -> 10018.61704 | J16: =Forecasts!R125 -> 9998.323331 | K16: =Forecasts!S125 -> 10031.79804 | L16: =Forecasts!T125 -> 9975.239516 | M16: =Forecasts!U125 -> 9934.573065 | N16: =Forecasts!V125 -> 9957.008654 | O16: =Forecasts!W125 -> 9984.143068 | P16: =Forecasts!X125 -> 9950.592067 | Q16: =Forecasts!Y125 -> 9947.959853 | R16: =Forecasts!Z125 -> 10129.50609 | S16: =Forecasts!AA125 -> 10181.8245 | T16: =Forecasts!AB125 -> 10194.49358 | U16: =Forecasts!AC125 -> 10285.50797 | V16: =Forecasts!AD125 -> 10263.67989 | W16: =Forecasts!AE125 -> 10301.47105 | X16: =Forecasts!AF125 -> 10339.73335 | Y16: =Forecasts!AG125 -> 10378.44554 | Z16: =Forecasts!AH125 -> 10417.52496 | AA16: =Forecasts!AI125 -> 10463.50271 | AB16: =Forecasts!AJ125 -> 10506.06758 | AC16: =Forecasts!AK125 -> 10549.12097 | AD16: =Forecasts!AL125 -> 10592.59276 | AE16: =Forecasts!AM125 -> 10636.50883 | AF16: =Forecasts!AN125 -> 10705.76183 | AG16: =Forecasts!AO125 -> 10760.46586 | AH16: =Forecasts!AP125 -> 10815.68953 | AI16: =Forecasts!AQ125 -> 10870.60468 | AJ16: =Forecasts!AR125 -> 10925.80881 | AK16: =Forecasts!AS125 -> 10987.63562 | AL16: =Forecasts!AT125 -> 11045.78204 | AM16: =Forecasts!AU125 -> 11104.30277 | AN16: =Forecasts!AV125 -> 11163.14969 | AO16: =Forecasts!AW125 -> 11222.41624 | AP16: =Forecasts!AX125 -> 11290.71886 | AQ16: =Forecasts!AY125 -> 11353.87789 | AR16: =Forecasts!AZ125 -> 11417.45556 | AS16: =Forecasts!BA125 -> 11481.3985 | AT16: =Forecasts!BB125 -> 11545.65734 | AU16: =Forecasts!BC125 -> 11594.68007 | AV16: =Forecasts!BD125 -> 11654.06302 | AW16: =Forecasts!BE125 -> 11713.74566 | AX16: =Forecasts!BF125 -> 11773.80228 | AY16: =Forecasts!BG125 -> 11834.23825 | AZ16: =Forecasts!BH125 -> 11914.48212 | BA16: =Forecasts!BI125 -> 11982.7361 | BB16: =Forecasts!BJ125 -> 12051.35384 | BC16: =Forecasts!BK125 -> 12120.32822 | BD16: =Forecasts!BL125 -> 12189.78886 | BE16: =Forecasts!BM125 -> 12259.66639 | BF16: =Forecasts!BN125 -> 12330.02006 | BG16: =Forecasts!BO125 -> 12400.7755 | BH16: =Forecasts!BP125 -> 12471.95018 | BI16: =Forecasts!BQ125 -> 12543.55845 | BJ16: =Forecasts!BR125 -> 12615.57986 | BK16: =Forecasts!BS125 -> 12688.08899 | BL16: =Forecasts!BT125 -> 12761.02122 | BM16: =Forecasts!BU125 -> 12834.40396 | BN16: =Forecasts!BV125 -> 12908.24222 | BO16: =Forecasts!BW125 -> 12982.53934 | BP16: =Forecasts!BX125 -> 13057.26379 | BQ16: =Forecasts!BY125 -> 13132.42781 | BR16: =Forecasts!BZ125 -> 13208.0942 | BS16: =Forecasts!CA125 -> 13284.18393 | BT16: =Forecasts!CB125 -> 13360.75271 | BU16: =Forecasts!CC125 -> 13437.81107 | BV16: =Forecasts!CD125 -> 13515.30922 | BW16: =Forecasts!CE125 -> 13593.27088 | BX16: =Forecasts!CF125 -> 13671.70308 | BY16: =Forecasts!CG125 -> 13750.60945 | BZ16: =Forecasts!CH125 -> 13829.96141 | CA16: =Forecasts!CI125 -> 13909.86773 | CB16: =Forecasts!CJ125 -> 13990.19142 | CC16: =Forecasts!CK125 -> 14071.01887 | CD16: =Forecasts!CL125 -> 14152.34136
A17: Commercial B2 | B17: =Forecasts!J251 -> 1240.008969 | C17: =Forecasts!K251 -> 1313.873127 | D17: =Forecasts!L251 -> 1333.963313 | E17: =Forecasts!M251 -> 1328.307011 | F17: =Forecasts!N251 -> 1318.401281 | G17: =Forecasts!O251 -> 1307.535686 | H17: =Forecasts!P251 -> 1315.637204 | I17: =Forecasts!Q251 -> 1326.49575 | J17: =Forecasts!R251 -> 1333.697503 | K17: =Forecasts!S251 -> 1347.703026 | L17: =Forecasts!T251 -> 1340.414229 | M17: =Forecasts!U251 -> 1331.771176 | N17: =Forecasts!V251 -> 1333.976226 | O17: =Forecasts!W251 -> 1338.428574 | P17: =Forecasts!X251 -> 1332.243499 | Q17: =Forecasts!Y251 -> 1332.082319 | R17: =Forecasts!Z251 -> 1372.859443 | S17: =Forecasts!AA251 -> 1395.75241 | T17: =Forecasts!AB251 -> 1410.389176 | U17: =Forecasts!AC251 -> 1440.72808 | V17: =Forecasts!AD251 -> 1445.992434 | W17: =Forecasts!AE251 -> 1459.506341 | X17: =Forecasts!AF251 -> 1474.199625 | Y17: =Forecasts!AG251 -> 1490.222431 | Z17: =Forecasts!AH251 -> 1506.659921 | AA17: =Forecasts!AI251 -> 1525.555498 | AB17: =Forecasts!AJ251 -> 1544.329643 | AC17: =Forecasts!AK251 -> 1564.190259 | AD17: =Forecasts!AL251 -> 1584.791707 | AE17: =Forecasts!AM251 -> 1606.404356 | AF17: =Forecasts!AN251 -> 1633.681998 | AG17: =Forecasts!AO251 -> 1658.745906 | AH17: =Forecasts!AP251 -> 1684.795149 | AI17: =Forecasts!AQ251 -> 1708.914421 | AJ17: =Forecasts!AR251 -> 1733.844153 | AK17: =Forecasts!AS251 -> 1760.834461 | AL17: =Forecasts!AT251 -> 1787.994562 | AM17: =Forecasts!AU251 -> 1815.747862 | AN17: =Forecasts!AV251 -> 1844.243771 | AO17: =Forecasts!AW251 -> 1873.214966 | AP17: =Forecasts!AX251 -> 1905.476054 | AQ17: =Forecasts!AY251 -> 1937.312368 | AR17: =Forecasts!AZ251 -> 1969.81875 | AS17: =Forecasts!BA251 -> 2003.152887 | AT17: =Forecasts!BB251 -> 2037.477783 | AU17: =Forecasts!BC251 -> 2068.169949 | AV17: =Forecasts!BD251 -> 2102.36988 | AW17: =Forecasts!BE251 -> 2137.280859 | AX17: =Forecasts!BF251 -> 2173.529909 | AY17: =Forecasts!BG251 -> 2210.678474 | AZ17: =Forecasts!BH251 -> 2253.234659 | BA17: =Forecasts!BI251 -> 2293.878486 | BB17: =Forecasts!BJ251 -> 2335.336003 | BC17: =Forecasts!BK251 -> 2377.458454 | BD17: =Forecasts!BL251 -> 2420.909246 | BE17: =Forecasts!BM251 -> 2465.548991 | BF17: =Forecasts!BN251 -> 2511.066047 | BG17: =Forecasts!BO251 -> 2557.64291 | BH17: =Forecasts!BP251 -> 2605.127769 | BI17: =Forecasts!BQ251 -> 2653.535009 | BJ17: =Forecasts!BR251 -> 2702.879208 | BK17: =Forecasts!BS251 -> 2752.999752 | BL17: =Forecasts!BT251 -> 2804.792912 | BM17: =Forecasts!BU251 -> 2857.575889 | BN17: =Forecasts!BV251 -> 2912.267676 | BO17: =Forecasts!BW251 -> 2968.176439 | BP17: =Forecasts!BX251 -> 3024.954044 | BQ17: =Forecasts!BY251 -> 3082.612121 | BR17: =Forecasts!BZ251 -> 3141.726612 | BS17: =Forecasts!CA251 -> 3202.133564 | BT17: =Forecasts!CB251 -> 3264.238275 | BU17: =Forecasts!CC251 -> 3327.490943 | BV17: =Forecasts!CD251 -> 3392.496093 | BW17: =Forecasts!CE251 -> 3459.088363 | BX17: =Forecasts!CF251 -> 3527.295577 | BY17: =Forecasts!CG251 -> 3597.145944 | BZ17: =Forecasts!CH251 -> 3668.260785 | CA17: =Forecasts!CI251 -> 3740.658948 | CB17: =Forecasts!CJ251 -> 3814.98269 | CC17: =Forecasts!CK251 -> 3891.476634 | CD17: =Forecasts!CL251 -> 3969.545639
A18: Commercial B1 | B18: =Forecasts!J254 -> 1849.395865 | C18: =Forecasts!K254 -> 2058.384921 | D18: =Forecasts!L254 -> 2048.693861 | E18: =Forecasts!M254 -> 2028.068347 | F18: =Forecasts!N254 -> 2034.274037 | G18: =Forecasts!O254 -> 2037.072004 | H18: =Forecasts!P254 -> 2021.223396 | I18: =Forecasts!Q254 -> 2012.497293 | J18: =Forecasts!R254 -> 2007.380129 | K18: =Forecasts!S254 -> 2016.459727 | L18: =Forecasts!T254 -> 2009.401709 | M18: =Forecasts!U254 -> 2012.441087 | N18: =Forecasts!V254 -> 2029.602641 | O18: =Forecasts!W254 -> 2047.252797 | P18: =Forecasts!X254 -> 2055.033288 | Q18: =Forecasts!Y254 -> 2071.041131 | R18: =Forecasts!Z254 -> 2113.075177 | S18: =Forecasts!AA254 -> 2129.068407 | T18: =Forecasts!AB254 -> 2137.771561 | U18: =Forecasts!AC254 -> 2161.532896 | V18: =Forecasts!AD254 -> 2168.039759 | W18: =Forecasts!AE254 -> 2186.063652 | X18: =Forecasts!AF254 -> 2204.233726 | Y18: =Forecasts!AG254 -> 2222.550352 | Z18: =Forecasts!AH254 -> 2241.014636 | AA18: =Forecasts!AI254 -> 2260.683106 | AB18: =Forecasts!AJ254 -> 2279.455082 | AC18: =Forecasts!AK254 -> 2298.378153 | AD18: =Forecasts!AL254 -> 2317.453456 | AE18: =Forecasts!AM254 -> 2336.682133 | AF18: =Forecasts!AN254 -> 2360.553123 | AG18: =Forecasts!AO254 -> 2380.13033 | AH18: =Forecasts!AP254 -> 2399.864695 | AI18: =Forecasts!AQ254 -> 2416.863483 | AJ18: =Forecasts!AR254 -> 2433.977613 | AK18: =Forecasts!AS254 -> 2452.36554 | AL18: =Forecasts!AT254 -> 2469.720641 | AM18: =Forecasts!AU254 -> 2487.193241 | AN18: =Forecasts!AV254 -> 2504.784045 | AO18: =Forecasts!AW254 -> 2522.493762 | AP18: =Forecasts!AX254 -> 2541.989551 | AQ18: =Forecasts!AY254 -> 2559.951004 | AR18: =Forecasts!AZ254 -> 2578.03359 | AS18: =Forecasts!BA254 -> 2596.238027 | AT18: =Forecasts!BB254 -> 2614.565036 | AU18: =Forecasts!BC254 -> 2629.952628 | AV18: =Forecasts!BD254 -> 2648.505346 | AW18: =Forecasts!BE254 -> 2667.182666 | AX18: =Forecasts!BF254 -> 2685.985317 | AY18: =Forecasts!BG254 -> 2704.914028 | AZ18: =Forecasts!BH254 -> 2727.708985 | BA18: =Forecasts!BI254 -> 2746.918353 | BB18: =Forecasts!BJ254 -> 2766.256161 | BC18: =Forecasts!BK254 -> 2785.723148 | BD18: =Forecasts!BL254 -> 2805.320055 | BE18: =Forecasts!BM254 -> 2825.047624 | BF18: =Forecasts!BN254 -> 2844.9066 | BG18: =Forecasts!BO254 -> 2864.897728 | BH18: =Forecasts!BP254 -> 2885.021754 | BI18: =Forecasts!BQ254 -> 2905.279427 | BJ18: =Forecasts!BR254 -> 2925.671497 | BK18: =Forecasts!BS254 -> 2946.198714 | BL18: =Forecasts!BT254 -> 2966.861831 | BM18: =Forecasts!BU254 -> 2987.661599 | BN18: =Forecasts!BV254 -> 3008.598774 | BO18: =Forecasts!BW254 -> 3029.674109 | BP18: =Forecasts!BX254 -> 3050.888361 | BQ18: =Forecasts!BY254 -> 3072.242285 | BR18: =Forecasts!BZ254 -> 3093.736638 | BS18: =Forecasts!CA254 -> 3115.372176 | BT18: =Forecasts!CB254 -> 3137.149659 | BU18: =Forecasts!CC254 -> 3159.069842 | BV18: =Forecasts!CD254 -> 3181.133483 | BW18: =Forecasts!CE254 -> 3203.341341 | BX18: =Forecasts!CF254 -> 3225.694173 | BY18: =Forecasts!CG254 -> 3248.192735 | BZ18: =Forecasts!CH254 -> 3270.837785 | CA18: =Forecasts!CI254 -> 3293.630079 | CB18: =Forecasts!CJ254 -> 3316.570371 | CC18: =Forecasts!CK254 -> 3339.659416 | CD18: =Forecasts!CL254 -> 3362.897968
A19: Industrial A1 | B19: =Forecasts!J255 -> 11756.62018 | C19: =Forecasts!K255 -> 12346.51513 | D19: =Forecasts!L255 -> 12346.18349 | E19: =Forecasts!M255 -> 12278.11222 | F19: =Forecasts!N255 -> 13217.98057 | G19: =Forecasts!O255 -> 13464.27653 | H19: =Forecasts!P255 -> 13263.59286 | I19: =Forecasts!Q255 -> 13054.36331 | J19: =Forecasts!R255 -> 12871.92622 | K19: =Forecasts!S255 -> 12809.43548 | L19: =Forecasts!T255 -> 12618.02705 | M19: =Forecasts!U255 -> 12515.94001 | N19: =Forecasts!V255 -> 12519.45443 | O19: =Forecasts!W255 -> 12524.96858 | P19: =Forecasts!X255 -> 12458.04356 | Q19: =Forecasts!Y255 -> 12451.76845 | R19: =Forecasts!Z255 -> 12601.99859 | S19: =Forecasts!AA255 -> 12593.67299 | T19: =Forecasts!AB255 -> 12530.41129 | U19: =Forecasts!AC255 -> 12566.61205 | V19: =Forecasts!AD255 -> 12506.13811 | W19: =Forecasts!AE255 -> 12507.27816 | X19: =Forecasts!AF255 -> 12508.42155 | Y19: =Forecasts!AG255 -> 12509.56303 | Z19: =Forecasts!AH255 -> 12510.70262 | AA19: =Forecasts!AI255 -> 12519.10705 | AB19: =Forecasts!AJ255 -> 12520.2453 | AC19: =Forecasts!AK255 -> 12521.38165 | AD19: =Forecasts!AL255 -> 12522.51611 | AE19: =Forecasts!AM255 -> 12523.64868 | AF19: =Forecasts!AN255 -> 12554.44436 | AG19: =Forecasts!AO255 -> 12555.58312 | AH19: =Forecasts!AP255 -> 12556.71999 | AI19: =Forecasts!AQ255 -> 12556.71999 | AJ19: =Forecasts!AR255 -> 12556.71999 | AK19: =Forecasts!AS255 -> 12564.08644 | AL19: =Forecasts!AT255 -> 12564.08644 | AM19: =Forecasts!AU255 -> 12564.08644 | AN19: =Forecasts!AV255 -> 12564.08644 | AO19: =Forecasts!AW255 -> 12564.08644 | AP19: =Forecasts!AX255 -> 12574.32345 | AQ19: =Forecasts!AY255 -> 12574.32345 | AR19: =Forecasts!AZ255 -> 12574.32345 | AS19: =Forecasts!BA255 -> 12574.32345 | AT19: =Forecasts!BB255 -> 12574.32345 | AU19: =Forecasts!BC255 -> 12556.15693 | AV19: =Forecasts!BD255 -> 12556.15693 | AW19: =Forecasts!BE255 -> 12556.15693 | AX19: =Forecasts!BF255 -> 12556.15693 | AY19: =Forecasts!BG255 -> 12556.15693 | AZ19: =Forecasts!BH255 -> 12577.56569 | BA19: =Forecasts!BI255 -> 12577.56569 | BB19: =Forecasts!BJ255 -> 12577.56569 | BC19: =Forecasts!BK255 -> 12577.56569 | BD19: =Forecasts!BL255 -> 12577.56569 | BE19: =Forecasts!BM255 -> 12577.56569 | BF19: =Forecasts!BN255 -> 12577.56569 | BG19: =Forecasts!BO255 -> 12577.56569 | BH19: =Forecasts!BP255 -> 12577.56569 | BI19: =Forecasts!BQ255 -> 12577.56569 | BJ19: =Forecasts!BR255 -> 12577.56569 | BK19: =Forecasts!BS255 -> 12577.56569 | BL19: =Forecasts!BT255 -> 12577.56569 | BM19: =Forecasts!BU255 -> 12577.56569 | BN19: =Forecasts!BV255 -> 12577.56569 | BO19: =Forecasts!BW255 -> 12577.56569 | BP19: =Forecasts!BX255 -> 12577.56569 | BQ19: =Forecasts!BY255 -> 12577.56569 | BR19: =Forecasts!BZ255 -> 12577.56569 | BS19: =Forecasts!CA255 -> 12577.56569 | BT19: =Forecasts!CB255 -> 12577.56569 | BU19: =Forecasts!CC255 -> 12577.56569 | BV19: =Forecasts!CD255 -> 12577.56569 | BW19: =Forecasts!CE255 -> 12577.56569 | BX19: =Forecasts!CF255 -> 12577.56569 | BY19: =Forecasts!CG255 -> 12577.56569 | BZ19: =Forecasts!CH255 -> 12577.56569 | CA19: =Forecasts!CI255 -> 12577.56569 | CB19: =Forecasts!CJ255 -> 12577.56569 | CC19: =Forecasts!CK255 -> 12577.56569 | CD19: =Forecasts!CL255 -> 12577.56569
A20: Industrial A2 | B20: =Forecasts!J256 -> 1734.538802 | C20: =Forecasts!K256 -> 1840.626798 | D20: =Forecasts!L256 -> 1770.018862 | E20: =Forecasts!M256 -> 1758.933246 | F20: =Forecasts!N256 -> 1736.023586 | G20: =Forecasts!O256 -> 1707.804035 | H20: =Forecasts!P256 -> 1684.449829 | I20: =Forecasts!Q256 -> 1664.960008 | J20: =Forecasts!R256 -> 1648.70572 | K20: =Forecasts!S256 -> 1649.094688 | L20: =Forecasts!T256 -> 1631.384536 | M20: =Forecasts!U256 -> 1626.325207 | N20: =Forecasts!V256 -> 1635.837389 | O20: =Forecasts!W256 -> 1645.655998 | P20: =Forecasts!X256 -> 1645.385104 | Q20: =Forecasts!Y256 -> 1653.672883 | R20: =Forecasts!Z256 -> 1682.826687 | S20: =Forecasts!AA256 -> 1691.07639 | T20: =Forecasts!AB256 -> 1691.345572 | U20: =Forecasts!AC256 -> 1705.634412 | V20: =Forecasts!AD256 -> 1707.198729 | W20: =Forecasts!AE256 -> 1716.838598 | X20: =Forecasts!AF256 -> 1726.530145 | Y20: =Forecasts!AG256 -> 1736.272822 | Z20: =Forecasts!AH256 -> 1746.066847 | AA20: =Forecasts!AI256 -> 1757.008863 | AB20: =Forecasts!AJ256 -> 1766.912698 | AC20: =Forecasts!AK256 -> 1776.868577 | AD20: =Forecasts!AL256 -> 1786.876719 | AE20: =Forecasts!AM256 -> 1796.937346 | AF20: =Forecasts!AN256 -> 1811.652231 | AG20: =Forecasts!AO256 -> 1821.845509 | AH20: =Forecasts!AP256 -> 1832.092077 | AI20: =Forecasts!AQ256 -> 1840.782108 | AJ20: =Forecasts!AR256 -> 1849.509499 | AK20: =Forecasts!AS256 -> 1859.447352 | AL20: =Forecasts!AT256 -> 1868.255334 | AM20: =Forecasts!AU256 -> 1877.101013 | AN20: =Forecasts!AV256 -> 1885.984492 | AO20: =Forecasts!AW256 -> 1894.905871 | AP20: =Forecasts!AX256 -> 1905.534375 | AQ20: =Forecasts!AY256 -> 1914.539747 | AR20: =Forecasts!AZ256 -> 1923.583354 | AS20: =Forecasts!BA256 -> 1932.665294 | AT20: =Forecasts!BB256 -> 1941.785664 | AU20: =Forecasts!BC256 -> 1947.91174 | AV20: =Forecasts!BD256 -> 1957.09496 | AW20: =Forecasts!BE256 -> 1966.316836 | AX20: =Forecasts!BF256 -> 1975.577461 | AY20: =Forecasts!BG256 -> 1984.876926 | AZ20: =Forecasts!BH256 -> 1997.87402 | BA20: =Forecasts!BI256 -> 2007.26864 | BB20: =Forecasts!BJ256 -> 2016.702439 | BC20: =Forecasts!BK256 -> 2026.175505 | BD20: =Forecasts!BL256 -> 2035.687922 | BE20: =Forecasts!BM256 -> 2045.239776 | BF20: =Forecasts!BN256 -> 2054.831147 | BG20: =Forecasts!BO256 -> 2064.462118 | BH20: =Forecasts!BP256 -> 2074.132768 | BI20: =Forecasts!BQ256 -> 2083.843175 | BJ20: =Forecasts!BR256 -> 2093.593416 | BK20: =Forecasts!BS256 -> 2103.383564 | BL20: =Forecasts!BT256 -> 2113.213692 | BM20: =Forecasts!BU256 -> 2123.083872 | BN20: =Forecasts!BV256 -> 2132.994174 | BO20: =Forecasts!BW256 -> 2142.944663 | BP20: =Forecasts!BX256 -> 2152.935406 | BQ20: =Forecasts!BY256 -> 2162.966466 | BR20: =Forecasts!BZ256 -> 2173.037904 | BS20: =Forecasts!CA256 -> 2183.149778 | BT20: =Forecasts!CB256 -> 2193.302147 | BU20: =Forecasts!CC256 -> 2203.495064 | BV20: =Forecasts!CD256 -> 2213.728582 | BW20: =Forecasts!CE256 -> 2224.002751 | BX20: =Forecasts!CF256 -> 2234.317617 | BY20: =Forecasts!CG256 -> 2244.673226 | BZ20: =Forecasts!CH256 -> 2255.069619 | CA20: =Forecasts!CI256 -> 2265.506837 | CB20: =Forecasts!CJ256 -> 2275.984915 | CC20: =Forecasts!CK256 -> 2286.503888 | CD20: =Forecasts!CL256 -> 2297.063786
A21: ATCO | B21: =SUM(B16:B20) -> 26685.0233 | C21: =SUM(C16:C20) -> 28028.07884 | D21: 27577.64439 | E21: 27653.7247 | F21: 28461.17274 | G21: 28569.73585 | H21: 28330.79499 | I21: 28076.9334 | J21: 27860.0329 | K21: 27854.49096 | L21: 27574.46704 | M21: 27421.05054 | N21: 27475.87934 | O21: 27540.44902 | P21: 27441.29752 | Q21: 27456.52463 | R21: 27900.26599 | S21: 27991.3947 | T21: 27964.41118 | U21: 28160.01541 | V21: 28091.04893 | W21: 28171.15781 | X21: 28253.11839 | Y21: 28337.05418 | Z21: 28421.96899 | AA21: 28525.85723 | AB21: 28617.0103 | AC21: 28709.93961 | AD21: 28804.23075 | AE21: 28900.18134 | AF21: 29066.09354 | AG21: 29176.77073 | AH21: 29289.16145 | AI21: 29393.88468 | AJ21: 29499.86007 | AK21: 29624.36942 | AL21: 29735.83901 | AM21: 29848.43133 | AN21: 29962.24844 | AO21: 30077.11728 | AP21: 30218.04229 | AQ21: 30340.00446 | AR21: 30463.21471 | AS21: 30587.77816 | AT21: 30713.80928 | AU21: 30796.87131 | AV21: 30918.19013 | AW21: 31040.68295 | AX21: 31165.05189 | AY21: 31290.86461 | AZ21: 31470.86547 | BA21: 31608.36727 | BB21: 31747.21413 | BC21: 31887.25102 | BD21: 32029.27178 | BE21: 32173.06848 | BF21: 32318.38954 | BG21: 32465.34395 | BH21: 32613.79816 | BI21: 32763.78176 | BJ21: 32915.28967 | BK21: 33068.23671 | BL21: 33223.45535 | BM21: 33380.29102 | BN21: 33539.66854 | BO21: =SUM(BO16:BO20) -> 33700.90024 | BP21: 33863.6073 | BQ21: 34027.81438 | BR21: 34194.16105 | BS21: 34362.40514 | BT21: 34533.00849 | BU21: 34705.43261 | BV21: 34880.23307 | BW21: 35057.26903 | BX21: 35236.57614 | BY21: 35418.18705 | BZ21: 35601.69529 | CA21: 35787.22928 | CB21: 35975.29508 | CC21: 36166.2245 | CD21: 36359.41444
A56: Residential B3 | D56: 2022 | E56: =D56+1 -> 2023 | F56: =E56+1 -> 2024 | G56: =F56+1 -> 2025 | H56: =G56+1 -> 2026 | I56: =H56+1 -> 2027 | J56: =I56+1 -> 2028 | K56: =J56+1 -> 2029 | L56: =K56+1 -> 2030 | M56: =L56+1 -> 2031 | N56: =M56+1 -> 2032 | O56: =N56+1 -> 2033 | P56: =O56+1 -> 2034 | Q56: =P56+1 -> 2035 | R56: =Q56+1 -> 2036 | S56: =R56+1 -> 2037 | T56: =S56+1 -> 2038 | U56: =T56+1 -> 2039 | V56: =U56+1 -> 2040 | W56: =V56+1 -> 2041 | X56: =W56+1 -> 2042 | Y56: =X56+1 -> 2043 | Z56: =Y56+1 -> 2044 | AA56: =Z56+1 -> 2045 | AB56: =AA56+1 -> 2046 | AC56: =AB56+1 -> 2047 | AD56: =AC56+1 -> 2048 | AE56: =AD56+1 -> 2049 | AF56: =AE56+1 -> 2050 | AG56: =AF56+1 -> 2051 | AH56: =AG56+1 -> 2052 | AI56: =AH56+1 -> 2053 | AJ56: =AI56+1 -> 2054 | AK56: =AJ56+1 -> 2055 | AL56: =AK56+1 -> 2056 | AM56: =AL56+1 -> 2057 | AN56: =AM56+1 -> 2058 | AO56: =AN56+1 -> 2059 | AP56: =AO56+1 -> 2060 | AQ56: =AP56+1 -> 2061 | AR56: =AQ56+1 -> 2062 | AS56: =AR56+1 -> 2063 | AT56: =AS56+1 -> 2064 | AU56: =AT56+1 -> 2065 | AV56: =AU56+1 -> 2066 | AW56: =AV56+1 -> 2067 | AX56: =AW56+1 -> 2068 | AY56: =AX56+1 -> 2069 | AZ56: =AY56+1 -> 2070 | BA56: =AZ56+1 -> 2071 | BB56: =BA56+1 -> 2072 | BC56: =BB56+1 -> 2073 | BD56: =BC56+1 -> 2074 | BE56: =BD56+1 -> 2075 | BF56: =BE56+1 -> 2076 | BG56: =BF56+1 -> 2077 | BH56: =BG56+1 -> 2078 | BI56: =BH56+1 -> 2079 | BJ56: =BI56+1 -> 2080 | BK56: =BJ56+1 -> 2081 | BL56: =BK56+1 -> 2082 | BM56: =BL56+1 -> 2083 | BN56: =BM56+1 -> 2084 | BO56: =BN56+1 -> 2085 | BP56: =BO56+1 -> 2086 | BQ56: =BP56+1 -> 2087 | BR56: =BQ56+1 -> 2088 | BS56: =BR56+1 -> 2089 | BT56: =BS56+1 -> 2090 | BU56: =BT56+1 -> 2091 | BV56: =BU56+1 -> 2092 | BW56: =BV56+1 -> 2093 | BX56: =BW56+1 -> 2094 | BY56: =BX56+1 -> 2095 | BZ56: =BY56+1 -> 2096 | CA56: =BZ56+1 -> 2097 | CB56: =CA56+1 -> 2098 | CC56: =CB56+1 -> 2099 | CD56: =CC56+1 -> 2100
A57: Daily supply charge | C57: 0.3275017112 | D57: 0.337357974 | E57: 0.361889117 | F57: 0.3790788501 | G57: 0.45229295 | H57: 0.45229295 | I57: 0.45229295 | J57: 0.45229295 | K57: 0.45229295 | L57: 0.464257358 | M57: 0.464257358 | N57: 0.464257358 | O57: 0.464257358 | P57: 0.464257358 | Q57: 0.4666119097 | R57: 0.4666119097 | S57: 0.4666119097 | T57: 0.4666119097 | U57: 0.4666119097 | V57: 0.4507049966 | W57: 0.4507049966 | X57: 0.4507049966 | Y57: 0.4507049966 | Z57: 0.4507049966 | AA57: 0.4462970568 | AB57: 0.4462970568 | AC57: 0.4462970568 | AD57: 0.4462970568 | AE57: 0.4462970568 | AF57: 0.4285831622 | AG57: 0.4285831622 | AH57: 0.4285831622 | AI57: 0.4285831622 | AJ57: 0.4285831622 | AK57: 0.4241752225 | AL57: 0.4241752225 | AM57: 0.4241752225 | AN57: 0.4241752225 | AO57: 0.4241752225 | AP57: 0.4180424367 | AQ57: 0.4180424367 | AR57: 0.4180424367 | AS57: 0.4180424367 | AT57: 0.4180424367 | AU57: 0.4285831622 | AV57: 0.4285831622 | AW57: 0.4285831622 | AX57: 0.4285831622 | AY57: 0.4285831622 | AZ57: 0.4158247775 | BA57: 0.4158247775 | BB57: 0.4158247775 | BC57: 0.4158247775 | BD57: 0.4158247775 | BE57: 0.4158247775 | BF57: 0.4158247775 | BG57: 0.4158247775 | BH57: 0.4158247775 | BI57: 0.4158247775 | BJ57: 0.4158247775 | BK57: 0.4158247775 | BL57: 0.4158247775 | BM57: 0.4158247775 | BN57: 0.4158247775 | BO57: 0.4158247775 | BP57: 0.4158247775 | BQ57: 0.4158247775 | BR57: 0.4158247775 | BS57: 0.4158247775 | BT57: 0.4158247775 | BU57: 0.4158247775 | BV57: 0.4158247775 | BW57: 0.4158247775 | BX57: 0.4158247775 | BY57: 0.4158247775 | BZ57: 0.4158247775 | CA57: 0.4158247775 | CB57: 0.4158247775 | CC57: 0.4158247775 | CD57: 0.4158247775
A58: Average volumetric charge $/GJ | C58: 4.049863187 | D58: 4.189938821 | E58: 4.485318003 | F58: 4.691642904 | G58: 5.601899496 | H58: 5.607762503 | I58: 5.611800057 | J58: 5.616311311 | K58: 5.619533794 | L58: 5.776713359 | M58: 5.78128062 | N58: 5.785847881 | O58: 5.790415142 | P58: 5.794982403 | Q58: 5.824982403 | R58: 5.824982403 | S58: 5.824982403 | T58: 5.824982403 | U58: 5.824982403 | V58: 5.625320954 | W58: 5.625320954 | X58: 5.625320954 | Y58: 5.625320954 | Z58: 5.625320954 | AA58: 5.568767138 | AB58: 5.568767138 | AC58: 5.568767138 | AD58: 5.568767138 | AE58: 5.568767138 | AF58: 5.349105689 | AG58: 5.349105689 | AH58: 5.349105689 | AI58: 5.349105689 | AJ58: 5.349105689 | AK58: 5.292551873 | AL58: 5.292551873 | AM58: 5.292551873 | AN58: 5.292551873 | AO58: 5.292551873 | AP58: 5.215998057 | AQ58: 5.215998057 | AR58: 5.215998057 | AS58: 5.215998057 | AT58: 5.215998057 | AU58: 5.349105689 | AV58: 5.349105689 | AW58: 5.349105689 | AX58: 5.349105689 | AY58: 5.349105689 | AZ58: 5.185998057 | BA58: 5.185998057 | BB58: 5.185998057 | BC58: 5.185998057 | BD58: 5.185998057 | BE58: 5.185998057 | BF58: 5.185998057 | BG58: 5.185998057 | BH58: 5.185998057 | BI58: 5.185998057 | BJ58: 5.185998057 | BK58: 5.185998057 | BL58: 5.185998057 | BM58: 5.185998057 | BN58: 5.185998057 | BO58: 5.185998057 | BP58: 5.185998057 | BQ58: 5.185998057 | BR58: 5.185998057 | BS58: 5.185998057 | BT58: 5.185998057 | BU58: 5.185998057 | BV58: 5.185998057 | BW58: 5.185998057 | BX58: 5.185998057 | BY58: 5.185998057 | BZ58: 5.185998057 | CA58: 5.185998057 | CB58: 5.185998057 | CC58: 5.185998057 | CD58: 5.185998057
A59: Commercial B2
A60: Daily supply charge | C60: 0.6564818617 | D60: 0.6793155373 | E60: 0.7287063655 | F60: 0.7633199179 | G60: 0.9107460643 | H60: 0.9107460643 | I60: 0.9107460643 | J60: 0.9107460643 | K60: 0.9107460643 | L60: 0.9348117728 | M60: 0.9348117728 | N60: 0.9348117728 | O60: 0.9348117728 | P60: 0.9348117728 | Q60: 0.9395482546 | R60: 0.9395482546 | S60: 0.9395482546 | T60: 0.9395482546 | U60: 0.9395482546 | V60: 0.9074880219 | W60: 0.9074880219 | X60: 0.9074880219 | Y60: 0.9074880219 | Z60: 0.9074880219 | AA60: 0.8986173854 | AB60: 0.8986173854 | AC60: 0.8986173854 | AD60: 0.8986173854 | AE60: 0.8986173854 | AF60: 0.8629705681 | AG60: 0.8629705681 | AH60: 0.8629705681 | AI60: 0.8629705681 | AJ60: 0.8629705681 | AK60: 0.8541273101 | AL60: 0.8541273101 | AM60: 0.8541273101 | AN60: 0.8541273101 | AO60: 0.8541273101 | AP60: 0.8418069815 | AQ60: 0.8418069815 | AR60: 0.8418069815 | AS60: 0.8418069815 | AT60: 0.8418069815 | AU60: 0.8630253251 | AV60: 0.8630253251 | AW60: 0.8630253251 | AX60: 0.8630253251 | AY60: 0.8630253251 | AZ60: 0.8373169062 | BA60: 0.8373169062 | BB60: 0.8373169062 | BC60: 0.8373169062 | BD60: 0.8373169062 | BE60: 0.8373169062 | BF60: 0.8373169062 | BG60: 0.8373169062 | BH60: 0.8373169062 | BI60: 0.8373169062 | BJ60: 0.8373169062 | BK60: 0.8373169062 | BL60: 0.8373169062 | BM60: 0.8373169062 | BN60: 0.8373169062 | BO60: 0.8373169062 | BP60: 0.8373169062 | BQ60: 0.8373169062 | BR60: 0.8373169062 | BS60: 0.8373169062 | BT60: 0.8373169062 | BU60: 0.8373169062 | BV60: 0.8373169062 | BW60: 0.8373169062 | BX60: 0.8373169062 | BY60: 0.8373169062 | BZ60: 0.8373169062 | CA60: 0.8373169062 | CB60: 0.8373169062 | CC60: 0.8373169062 | CD60: 0.8373169062
A61: Average volumetric charge $/GJ | C61: 4.553632728 | D61: 4.717642483 | E61: 5.086432336 | F61: 5.339998359 | G61: 6.377300938 | H61: 6.384875627 | I61: 6.391641499 | J61: 6.399289614 | K61: 6.405677035 | L61: 6.58042422 | M61: 6.588545523 | N61: 6.596666826 | O61: 6.604788129 | P61: 6.612909431 | Q61: 6.647077264 | R61: 6.647077264 | S61: 6.647077264 | T61: 6.647077264 | U61: 6.647077264 | V61: 6.417063267 | W61: 6.417063267 | X61: 6.417063267 | Y61: 6.417063267 | Z61: 6.417063267 | AA61: 6.354559767 | AB61: 6.354559767 | AC61: 6.354559767 | AD61: 6.354559767 | AE61: 6.354559767 | AF61: 6.100377937 | AG61: 6.100377937 | AH61: 6.100377937 | AI61: 6.100377937 | AJ61: 6.100377937 | AK61: 6.037874437 | AL61: 6.037874437 | AM61: 6.037874437 | AN61: 6.037874437 | AO61: 6.037874437 | AP61: 5.951203105 | AQ61: 5.951203105 | AR61: 5.951203105 | AS61: 5.951203105 | AT61: 5.951203105 | AU61: 6.10454577 | AV61: 6.10454577 | AW61: 6.10454577 | AX61: 6.10454577 | AY61: 6.10454577 | AZ61: 5.922867438 | BA61: 5.922867438 | BB61: 5.922867438 | BC61: 5.922867438 | BD61: 5.922867438 | BE61: 5.922867438 | BF61: 5.922867438 | BG61: 5.922867438 | BH61: 5.922867438 | BI61: 5.922867438 | BJ61: 5.922867438 | BK61: 5.922867438 | BL61: 5.922867438 | BM61: 5.922867438 | BN61: 5.922867438 | BO61: 5.922867438 | BP61: 5.922867438 | BQ61: 5.922867438 | BR61: 5.922867438 | BS61: 5.922867438 | BT61: 5.922867438 | BU61: 5.922867438 | BV61: 5.922867438 | BW61: 5.922867438 | BX61: 5.922867438 | BY61: 5.922867438 | BZ61: 5.922867438 | CA61: 5.922867438 | CB61: 5.922867438 | CC61: 5.922867438 | CD61: 5.922867438
A62: Commercial B1
A63: Daily supply charge | C63: 0.3941136208 | D63: 0.4078302533 | E63: 0.4374811773 | F63: 0.4582615332 | G63: 3.629158111 | H63: 3.629158111 | I63: 3.629158111 | J63: 3.629158111 | K63: 3.629158111 | L63: 3.725092402 | M63: 3.725092402 | N63: 3.725092402 | O63: 3.725092402 | P63: 3.725092402 | Q63: 3.743928816 | R63: 3.743928816 | S63: 3.743928816 | T63: 3.743928816 | U63: 3.743928816 | V63: 3.616208077 | W63: 3.616208077 | X63: 3.616208077 | Y63: 3.616208077 | Z63: 3.616208077 | AA63: 3.58091718 | AB63: 3.58091718 | AC63: 3.58091718 | AD63: 3.58091718 | AE63: 3.58091718 | AF63: 3.438877481 | AG63: 3.438877481 | AH63: 3.438877481 | AI63: 3.438877481 | AJ63: 3.438877481 | AK63: 3.403613963 | AL63: 3.403613963 | AM63: 3.403613963 | AN63: 3.403613963 | AO63: 3.403613963 | AP63: 3.354524298 | AQ63: 3.354524298 | AR63: 3.354524298 | AS63: 3.354524298 | AT63: 3.354524298 | AU63: 3.439041752 | AV63: 3.439041752 | AW63: 3.439041752 | AX63: 3.439041752 | AY63: 3.439041752 | AZ63: 3.336563997 | BA63: 3.336563997 | BB63: 3.336563997 | BC63: 3.336563997 | BD63: 3.336563997 | BE63: 3.336563997 | BF63: 3.336563997 | BG63: 3.336563997 | BH63: 3.336563997 | BI63: 3.336563997 | BJ63: 3.336563997 | BK63: 3.336563997 | BL63: 3.336563997 | BM63: 3.336563997 | BN63: 3.336563997 | BO63: 3.336563997 | BP63: 3.336563997 | BQ63: 3.336563997 | BR63: 3.336563997 | BS63: 3.336563997 | BT63: 3.336563997 | BU63: 3.336563997 | BV63: 3.336563997 | BW63: 3.336563997 | BX63: 3.336563997 | BY63: 3.336563997 | BZ63: 3.336563997 | CA63: 3.336563997 | CB63: 3.336563997 | CC63: 3.336563997 | CD63: 3.336563997
A64: Average volumetric charge $/GJ | C64: 3.562540525 | D64: 3.699666624 | E64: 3.965113162 | F64: 4.153456037 | G64: 4.958037678 | H64: 4.958037678 | I64: 4.958037678 | J64: 4.958037678 | K64: 4.958037678 | L64: 5.085760947 | M64: 5.085760947 | N64: 5.085760947 | O64: 5.085760947 | P64: 5.085760947 | Q64: 5.114622581 | R64: 5.114622581 | S64: 5.114622581 | T64: 5.114622581 | U64: 5.114622581 | V64: 4.938037678 | W64: 4.938037678 | X64: 4.938037678 | Y64: 4.938037678 | Z64: 4.938037678 | AA64: 4.889176043 | AB64: 4.889176043 | AC64: 4.889176043 | AD64: 4.889176043 | AE64: 4.889176043 | AF64: 4.69259114 | AG64: 4.69259114 | AH64: 4.69259114 | AI64: 4.69259114 | AJ64: 4.69259114 | AK64: 4.643729506 | AL64: 4.643729506 | AM64: 4.643729506 | AN64: 4.643729506 | AO64: 4.643729506 | AP64: 4.574867871 | AQ64: 4.574867871 | AR64: 4.574867871 | AS64: 4.574867871 | AT64: 4.574867871 | AU64: 4.69259114 | AV64: 4.69259114 | AW64: 4.69259114 | AX64: 4.69259114 | AY64: 4.69259114 | AZ64: 4.554867871 | BA64: 4.554867871 | BB64: 4.554867871 | BC64: 4.554867871 | BD64: 4.554867871 | BE64: 4.554867871 | BF64: 4.554867871 | BG64: 4.554867871 | BH64: 4.554867871 | BI64: 4.554867871 | BJ64: 4.554867871 | BK64: 4.554867871 | BL64: 4.554867871 | BM64: 4.554867871 | BN64: 4.554867871 | BO64: 4.554867871 | BP64: 4.554867871 | BQ64: 4.554867871 | BR64: 4.554867871 | BS64: 4.554867871 | BT64: 4.554867871 | BU64: 4.554867871 | BV64: 4.554867871 | BW64: 4.554867871 | BX64: 4.554867871 | BY64: 4.554867871 | BZ64: 4.554867871 | CA64: 4.554867871 | CB64: 4.554867871 | CC64: 4.554867871 | CD64: 4.554867871
A65: Industrial A1
A66: Daily supply charge | C66: 0.5812517326 | D66: 0.5619244412 | E66: 0.5746551555 | F66: 0.6309659431 | G66: 0.7883380096 | H66: 0.8034928623 | I66: 0.8199434682 | J66: 0.8366316777 | K66: 0.8542916918 | L66: 0.8935841315 | M66: 0.9050279827 | N66: 0.9134079324 | O66: 0.9188257674 | P66: 0.9213870074 | Q66: 0.9319416919 | R66: 0.9374405585 | S66: 0.9425900195 | T66: 0.9474223519 | U66: 0.9519659761 | V66: 0.9236203315 | W66: 0.9275212666 | X66: 0.9312083086 | Y66: 0.9346985799 | Z66: 0.9380074233 | AA66: 0.9319694542 | AB66: 0.9349263297 | AC66: 0.937740621 | AD66: 0.9404223989 | AE66: 0.9429808073 | AF66: 0.9079154571 | AG66: 0.9101586491 | AH66: 0.912305309 | AI66: 0.9143615367 | AJ66: 0.9163329287 | AK66: 0.9088111122 | AL66: 0.9106092309 | AM66: 0.9123374865 | AN66: 0.9139998732 | AO66: 0.9156000861 | AP66: 0.9039178211 | AQ66: 0.9053822899 | AR66: 0.9067948966 | AS66: 0.9081583483 | AT66: 0.9094751668 | AU66: 0.9336917821 | AV66: 0.9349532273 | AW66: 0.9361736335 | AX66: 0.9373549715 | AY66: 0.9384990876 | AZ66: 0.9116071144 | BA66: 0.9126498478 | BB66: 0.9136612092 | BC66: 0.9146425935 | BD66: 0.915595314 | BE66: 0.915595314 | BF66: 0.915595314 | BG66: 0.915595314 | BH66: 0.915595314 | BI66: 0.915595314 | BJ66: 0.915595314 | BK66: 0.915595314 | BL66: 0.915595314 | BM66: 0.915595314 | BN66: 0.915595314 | BO66: 0.915595314 | BP66: 0.915595314 | BQ66: 0.915595314 | BR66: 0.915595314 | BS66: 0.915595314 | BT66: 0.915595314 | BU66: 0.915595314 | BV66: 0.915595314 | BW66: 0.915595314 | BX66: 0.915595314 | BY66: 0.915595314 | BZ66: 0.915595314 | CA66: 0.915595314 | CB66: 0.915595314 | CC66: 0.915595314 | CD66: 0.915595314
A67: Average volumetric charge $/GJ | C67: 0.1348207712 | D67: 0.1477956152 | E67: 0.159838144 | F67: 0.168039367 | G67: 0.2181662543 | H67: 0.2312093916 | I67: 0.2451254364 | J67: 0.2596761498 | K67: 0.2749895902 | L67: 0.2921237164 | M67: 0.2990904205 | N67: 0.3039292775 | O67: 0.3066076449 | P67: 0.3071790037 | Q67: 0.3149632081 | R67: 0.3208817227 | S67: 0.326514164 | T67: 0.3318807837 | U67: 0.3369999662 | V67: 0.330200034 | W67: 0.3347132785 | X67: 0.3390318926 | Y67: 0.3431682006 | Z67: 0.3471335077 | AA67: 0.3475140667 | AB67: 0.3511321248 | AC67: 0.3546093412 | AD67: 0.3579537826 | AE67: 0.3611729115 | AF67: 0.3498545348 | AG67: 0.3527249633 | AH67: 0.3554935631 | AI67: 0.3581656583 | AJ67: 0.3607462084 | AK67: 0.3595137438 | AL67: 0.3619000782 | AM67: 0.3642086535 | AN67: 0.3664432094 | AO67: 0.3686072497 | AP67: 0.3653660399 | AQ67: 0.3673694627 | AR67: 0.3693125211 | AS67: 0.3711979028 | AT67: 0.3730281383 | AU67: 0.384222424 | AV67: 0.3859927254 | AW67: 0.3877134229 | AX67: 0.3893865726 | AY67: 0.3910141186 | AZ67: 0.3809257523 | BA67: 0.3824216783 | BB67: 0.3838784324 | BC67: 0.3852975334 | BD67: 0.3866804225 | BE67: 0.3866804225 | BF67: 0.3866804225 | BG67: 0.3866804225 | BH67: 0.3866804225 | BI67: 0.3866804225 | BJ67: 0.3866804225 | BK67: 0.3866804225 | BL67: 0.3866804225 | BM67: 0.3866804225 | BN67: 0.3866804225 | BO67: 0.3866804225 | BP67: 0.3866804225 | BQ67: 0.3866804225 | BR67: 0.3866804225 | BS67: 0.3866804225 | BT67: 0.3866804225 | BU67: 0.3866804225 | BV67: 0.3866804225 | BW67: 0.3866804225 | BX67: 0.3866804225 | BY67: 0.3866804225 | BZ67: 0.3866804225 | CA67: 0.3866804225 | CB67: 0.3866804225 | CC67: 0.3866804225 | CD67: 0.3866804225
A68: Industrial A2
A69: Daily supply charge | C69: 51.73850787 | D69: 53.53900068 | E69: 57.43151266 | F69: 60.15950951 | G69: 71.77837098 | H69: 71.77837098 | I69: 71.77837098 | J69: 71.77837098 | K69: 71.77837098 | L69: 73.67572895 | M69: 73.67572895 | N69: 73.67572895 | O69: 73.67572895 | P69: 73.67572895 | Q69: 74.04821355 | R69: 74.04821355 | S69: 74.04821355 | T69: 74.04821355 | U69: 74.04821355 | V69: 71.52208077 | W69: 71.52208077 | X69: 71.52208077 | Y69: 71.52208077 | Z69: 71.52208077 | AA69: 70.82384668 | AB69: 70.82384668 | AC69: 70.82384668 | AD69: 70.82384668 | AE69: 70.82384668 | AF69: 68.01442847 | AG69: 68.01442847 | AH69: 68.01442847 | AI69: 68.01442847 | AJ69: 68.01442847 | AK69: 67.31696099 | AL69: 67.31696099 | AM69: 67.31696099 | AN69: 67.31696099 | AO69: 67.31696099 | AP69: 66.34584531 | AQ69: 66.34584531 | AR69: 66.34584531 | AS69: 66.34584531 | AT69: 66.34584531 | AU69: 68.01741273 | AV69: 68.01741273 | AW69: 68.01741273 | AX69: 68.01741273 | AY69: 68.01741273 | AZ69: 65.99074606 | BA69: 65.99074606 | BB69: 65.99074606 | BC69: 65.99074606 | BD69: 65.99074606 | BE69: 65.99074606 | BF69: 65.99074606 | BG69: 65.99074606 | BH69: 65.99074606 | BI69: 65.99074606 | BJ69: 65.99074606 | BK69: 65.99074606 | BL69: 65.99074606 | BM69: 65.99074606 | BN69: 65.99074606 | BO69: 65.99074606 | BP69: 65.99074606 | BQ69: 65.99074606 | BR69: 65.99074606 | BS69: 65.99074606 | BT69: 65.99074606 | BU69: 65.99074606 | BV69: 65.99074606 | BW69: 65.99074606 | BX69: 65.99074606 | BY69: 65.99074606 | BZ69: 65.99074606 | CA69: 65.99074606 | CB69: 65.99074606 | CC69: 65.99074606 | CD69: 65.99074606
A70: Average volumetric charge $/GJ | C70: 1.35343836 | D70: 1.399124813 | E70: 1.499730135 | F70: 1.570967316 | G70: 1.874662669 | H70: 1.874662669 | I70: 1.874662669 | J70: 1.874662669 | K70: 1.874662669 | L70: 1.927779236 | M70: 1.927779236 | N70: 1.927779236 | O70: 1.927779236 | P70: 1.927779236 | Q70: 1.937779236 | R70: 1.937779236 | S70: 1.937779236 | T70: 1.937779236 | U70: 1.937779236 | V70: 1.87029048 | W70: 1.87029048 | X70: 1.87029048 | Y70: 1.87029048 | Z70: 1.87029048 | AA70: 1.855918291 | AB70: 1.855918291 | AC70: 1.855918291 | AD70: 1.855918291 | AE70: 1.855918291 | AF70: 1.784057346 | AG70: 1.784057346 | AH70: 1.784057346 | AI70: 1.784057346 | AJ70: 1.784057346 | AK70: 1.769685158 | AL70: 1.769685158 | AM70: 1.769685158 | AN70: 1.769685158 | AO70: 1.769685158 | AP70: 1.745312969 | AQ70: 1.745312969 | AR70: 1.745312969 | AS70: 1.745312969 | AT70: 1.745312969 | AU70: 1.788429535 | AV70: 1.788429535 | AW70: 1.788429535 | AX70: 1.788429535 | AY70: 1.788429535 | AZ70: 1.735312969 | BA70: 1.735312969 | BB70: 1.735312969 | BC70: 1.735312969 | BD70: 1.735312969 | BE70: 1.735312969 | BF70: 1.735312969 | BG70: 1.735312969 | BH70: 1.735312969 | BI70: 1.735312969 | BJ70: 1.735312969 | BK70: 1.735312969 | BL70: 1.735312969 | BM70: 1.735312969 | BN70: 1.735312969 | BO70: 1.735312969 | BP70: 1.735312969 | BQ70: 1.735312969 | BR70: 1.735312969 | BS70: 1.735312969 | BT70: 1.735312969 | BU70: 1.735312969 | BV70: 1.735312969 | BW70: 1.735312969 | BX70: 1.735312969 | BY70: 1.735312969 | BZ70: 1.735312969 | CA70: 1.735312969 | CB70: 1.735312969 | CC70: 1.735312969 | CD70: 1.735312969

Sheet Reg
A2: Capital account | B2: 2020 | C2: =B2+1 -> 2021 | D2: =C2+1 -> 2022 | E2: 2023 | F2: 2024 | G2: 2025 | H2: 2026 | I2: 2027 | J2: 2028 | K2: 2029 | L2: 2030 | M2: 2031 | N2: 2032 | O2: 2033 | P2: 2034 | Q2: 2035 | R2: 2036 | S2: 2037 | T2: 2038 | U2: 2039 | V2: 2040 | W2: 2041 | X2: 2042 | Y2: 2043 | Z2: 2044 | AA2: 2045 | AB2: 2046 | AC2: 2047 | AD2: 2048 | AE2: 2049 | AF2: 2050 | AG2: 2051 | AH2: 2052 | AI2: 2053 | AJ2: 2054 | AK2: 2055 | AL2: 2056 | AM2: 2057 | AN2: 2058 | AO2: 2059 | AP2: 2060 | AQ2: 2061 | AR2: 2062 | AS2: 2063 | AT2: 2064 | AU2: 2065 | AV2: 2066 | AW2: 2067 | AX2: 2068 | AY2: 2069 | AZ2: 2070 | BA2: 2071 | BB2: 2072 | BC2: 2073 | BD2: 2074 | BE2: 2075 | BF2: 2076 | BG2: 2077 | BH2: 2078 | BI2: 2079 | BJ2: 2080 | BK2: 2081 | BL2: 2082 | BM2: 2083 | BN2: 2084 | BO2: 2085 | BP2: =BO2+1 -> 2086 | BQ2: 2087 | BR2: 2088 | BS2: 2089 | BT2: 2090 | BU2: 2091 | BV2: 2092 | BW2: 2093 | BX2: 2094 | BY2: 2095 | BZ2: 2096 | CA2: 2097 | CB2: 2098 | CC2: 2099 | CD2: 2100
A3: Opening RAB $ million | C3: 1538.343817 | D3: 1556.793116 | E3: 1575.104854 | F3: 1593.40554 | G3: 1616.15264 | H3: 1645.082988 | I3: 1662.686741 | J3: 1673.132376 | K3: 1685.680957 | L3: 1697.997087 | M3: 1714.294662 | N3: 1729.789659 | O3: 1746.230596 | P3: 1761.31525 | Q3: 1775.127391 | R3: 1787.877557 | S3: 1799.479593 | T3: 1810.090704 | U3: 1819.60969 | V3: 1828.44699 | W3: 1841.720387 | X3: 1854.381636 | Y3: 1866.464902 | Z3: 1877.87234 | AA3: 1888.525643 | AB3: 1898.513458 | AC3: 1907.455889 | AD3: 1915.511451 | AE3: 1922.684542 | AF3: 1929.011437 | AG3: 1941.652548 | AH3: 1953.560064 | AI3: 1964.669907 | AJ3: 1975.031301 | AK3: 1984.78366 | AL3: 1993.851042 | AM3: 2002.142786 | AN3: 2009.727624 | AO3: 2016.650129 | AP3: 2023.067416 | AQ3: 2028.76169 | AR3: 2033.862124 | AS3: 2038.295176 | AT3: 2042.068673 | AU3: 2045.288705 | AV3: 2048.190766 | AW3: 2050.515354 | AX3: 2052.290008 | AY3: 2053.61195 | AZ3: 2054.423137 | BA3: 2054.691393 | BB3: 2054.337245 | BC3: 2053.42649 | BD3: 2052.095771
A4: Capex $m | C4: 84.23746264 | D4: 85.26567214 | E4: 86.72374176 | F4: 93.90949304 | G4: 91.32236033 | H4: 89.4957495 | I4: 82.67972718 | J4: 84.12557509 | K4: 82.65558911 | L4: 86.05580024 | M4: 86.05580024 | N4: 86.05580024 | O4: 86.05580024 | P4: 86.05580024 | Q4: 86.05580024 | R4: 86.05580024 | S4: 86.05580024 | T4: 86.05580024 | U4: 86.05580024 | V4: 86.05580024 | W4: 86.05580024 | X4: 86.05580024 | Y4: 86.05580024 | Z4: 86.05580024 | AA4: 86.05580024 | AB4: 86.05580024 | AC4: 86.05580024 | AD4: 86.05580024 | AE4: 86.05580024 | AF4: 86.05580024 | AG4: 86.05580024 | AH4: 86.05580024 | AI4: 86.05580024 | AJ4: 86.05580024 | AK4: 86.05580024 | AL4: 86.05580024 | AM4: 86.05580024 | AN4: 86.05580024 | AO4: 86.05580024 | AP4: 86.05580024 | AQ4: 86.05580024 | AR4: 86.05580024 | AS4: 86.05580024 | AT4: 86.05580024 | AU4: 86.05580024 | AV4: 86.05580024 | AW4: 86.05580024 | AX4: 86.05580024 | AY4: 86.05580024 | AZ4: 86.05580024 | BA4: 86.05580024 | BB4: 86.05580024 | BC4: 86.05580024 | BD4: 86.05580024
A5: Depreciation $ million | C5: -65.21878211 | D5: -66.95409637 | E5: -68.42321731 | F5: -71.16255596 | G5: -62.39201184 | H5: -71.89199653 | I5: -72.23409187 | J5: -71.57699418 | K5: -70.3394591 | L5: -69.75822517 | M5: -70.56080372 | N5: -69.61486331 | O5: -70.97114593 | P5: -72.24365968 | Q5: -73.30563416 | R5: -74.45376386 | S5: -75.44468894 | T5: -76.53681475 | U5: -77.21850063 | V5: -72.78240234 | W5: -73.39455211 | X5: -73.97253372 | Y5: -74.64836256 | Z5: -75.40249681 | AA5: -76.06798544 | AB5: -77.11336952 | AC5: -78.00023816 | AD5: -78.88270911 | AE5: -79.72890556 | AF5: -73.41468919 | AG5: -74.14828372 | AH5: -74.94595757 | AI5: -75.69440648 | AJ5: -76.30344127 | AK5: -76.98841818 | AL5: -77.76405588 | AM5: -78.47096258 | AN5: -79.13329522 | AO5: -79.63851311 | AP5: -80.36152648 | AQ5: -80.9553656 | AR5: -81.6227489 | AS5: -82.2823025 | AT5: -82.83576862 | AU5: -83.15373904 | AV5: -83.73121244 | AW5: -84.28114581 | AX5: -84.73385861 | AY5: -85.24461373 | AZ5: -85.78754336 | BA5: -86.40994851 | BB5: -86.96655491 | BC5: -87.38651952 | BD5: -87.74510074
A6: Disposals $m | C6: -0.5695437146
A7: Closing RAB $ million | C7: 1556.792953 | D7: 1575.104691 | E7: 1593.405378 | F7: 1616.152477 | G7: 1645.082988 | H7: 1662.686741 | I7: 1673.132376 | J7: 1685.680957 | K7: 1697.997087 | L7: 1714.294662 | M7: 1729.789659 | N7: 1746.230596 | O7: 1761.31525 | P7: 1775.127391 | Q7: 1787.877557 | R7: 1799.479593 | S7: 1810.090704 | T7: 1819.60969 | U7: 1828.44699 | V7: 1841.720387 | W7: 1854.381636 | X7: 1866.464902 | Y7: 1877.87234 | Z7: 1888.525643 | AA7: 1898.513458 | AB7: 1907.455889 | AC7: 1915.511451 | AD7: 1922.684542 | AE7: 1929.011437 | AF7: 1941.652548 | AG7: 1953.560064 | AH7: 1964.669907 | AI7: 1975.031301 | AJ7: 1984.78366 | AK7: 1993.851042 | AL7: 2002.142786 | AM7: 2009.727624 | AN7: 2016.650129 | AO7: 2023.067416 | AP7: 2028.76169 | AQ7: 2033.862124 | AR7: 2038.295176 | AS7: 2042.068673 | AT7: 2045.288705 | AU7: 2048.190766 | AV7: 2050.515354 | AW7: 2052.290008 | AX7: 2053.61195 | AY7: 2054.423137 | AZ7: 2054.691393 | BA7: 2054.337245 | BB7: 2053.42649 | BC7: 2052.095771 | BD7: 2050.406471
A10: Real post tax WACC | C10: 0.02981411904 | D10: 0.02981411904 | E10: 0.02981411904 | F10: 0.02981411904 | G10: 0.04571651546 | H10: 0.04571651546 | I10: 0.04571651546 | J10: 0.04571651546 | K10: 0.04571651546 | L10: 0.04571651546 | M10: 0.04571651546 | N10: 0.04571651546 | O10: 0.04571651546 | P10: 0.04571651546 | Q10: 0.04571651546 | R10: 0.04571651546 | S10: 0.04571651546 | T10: 0.04571651546 | U10: 0.04571651546 | V10: 0.04571651546 | W10: 0.04571651546 | X10: 0.04571651546 | Y10: 0.04571651546 | Z10: 0.04571651546 | AA10: 0.04571651546 | AB10: 0.04571651546 | AC10: 0.04571651546 | AD10: 0.04571651546 | AE10: 0.04571651546 | AF10: 0.04571651546 | AG10: 0.04571651546 | AH10: 0.04571651546 | AI10: 0.04571651546 | AJ10: 0.04571651546 | AK10: 0.04571651546 | AL10: 0.04571651546 | AM10: 0.04571651546 | AN10: 0.04571651546 | AO10: 0.04571651546 | AP10: 0.04571651546 | AQ10: 0.04571651546 | AR10: 0.04571651546 | AS10: 0.04571651546 | AT10: 0.04571651546 | AU10: 0.04571651546 | AV10: 0.04571651546 | AW10: 0.04571651546 | AX10: 0.04571651546 | AY10: 0.04571651546 | AZ10: 0.04571651546 | BA10: 0.04571651546 | BB10: 0.04571651546 | BC10: 0.04571651546 | BD10: 0.04571651546 | BE10: 0.04571651546 | BF10: 0.04571651546 | BG10: 0.04571651546 | BH10: 0.04571651546 | BI10: 0.04571651546 | BJ10: 0.04571651546 | BK10: 0.04571651546 | BL10: 0.04571651546 | BM10: 0.04571651546 | BN10: 0.04571651546 | BO10: 0.04571651546 | BP10: 0.04571651546 | BQ10: 0.04571651546 | BR10: 0.04571651546 | BS10: 0.04571651546 | BT10: 0.04571651546 | BU10: 0.04571651546 | BV10: 0.04571651546 | BW10: 0.04571651546 | BX10: 0.04571651546 | BY10: 0.04571651546 | BZ10: 0.04571651546 | CA10: 0.04571651546 | CB10: 0.04571651546 | CC10: 0.04571651546 | CD10: 0.04571651546
A12: Revenue | B12: 2020 | C12: =B12+1 -> 2021 | D12: =C12+1 -> 2022 | E12: =D12+1 -> 2023 | F12: =E12+1 -> 2024 | G12: =F12+1 -> 2025 | H12: =G12+1 -> 2026 | I12: =H12+1 -> 2027 | J12: =I12+1 -> 2028 | K12: =J12+1 -> 2029 | L12: =K12+1 -> 2030 | M12: =L12+1 -> 2031 | N12: =M12+1 -> 2032 | O12: =N12+1 -> 2033 | P12: =O12+1 -> 2034 | Q12: =P12+1 -> 2035 | R12: =Q12+1 -> 2036 | S12: =R12+1 -> 2037 | T12: =S12+1 -> 2038 | U12: =T12+1 -> 2039 | V12: =U12+1 -> 2040 | W12: =V12+1 -> 2041 | X12: =W12+1 -> 2042 | Y12: =X12+1 -> 2043 | Z12: =Y12+1 -> 2044 | AA12: =Z12+1 -> 2045 | AB12: =AA12+1 -> 2046 | AC12: =AB12+1 -> 2047 | AD12: =AC12+1 -> 2048 | AE12: =AD12+1 -> 2049 | AF12: =AE12+1 -> 2050 | AG12: =AF12+1 -> 2051 | AH12: =AG12+1 -> 2052 | AI12: =AH12+1 -> 2053 | AJ12: =AI12+1 -> 2054 | AK12: =AJ12+1 -> 2055 | AL12: =AK12+1 -> 2056 | AM12: =AL12+1 -> 2057 | AN12: =AM12+1 -> 2058 | AO12: =AN12+1 -> 2059 | AP12: =AO12+1 -> 2060 | AQ12: =AP12+1 -> 2061 | AR12: =AQ12+1 -> 2062 | AS12: =AR12+1 -> 2063 | AT12: =AS12+1 -> 2064 | AU12: =AT12+1 -> 2065 | AV12: =AU12+1 -> 2066 | AW12: =AV12+1 -> 2067 | AX12: =AW12+1 -> 2068 | AY12: =AX12+1 -> 2069 | AZ12: =AY12+1 -> 2070 | BA12: =AZ12+1 -> 2071 | BB12: =BA12+1 -> 2072 | BC12: =BB12+1 -> 2073 | BD12: =BC12+1 -> 2074 | BE12: =BD12+1 -> 2075 | BF12: =BE12+1 -> 2076 | BG12: =BF12+1 -> 2077 | BH12: =BG12+1 -> 2078 | BI12: =BH12+1 -> 2079 | BJ12: =BI12+1 -> 2080 | BK12: =BJ12+1 -> 2081 | BL12: =BK12+1 -> 2082 | BM12: =BL12+1 -> 2083 | BN12: =BM12+1 -> 2084 | BO12: =BN12+1 -> 2085 | BP12: =BO12+1 -> 2086 | BQ12: =BP12+1 -> 2087 | BR12: =BQ12+1 -> 2088 | BS12: =BR12+1 -> 2089 | BT12: =BS12+1 -> 2090 | BU12: =BT12+1 -> 2091 | BV12: =BU12+1 -> 2092 | BW12: =BV12+1 -> 2093 | BX12: =BW12+1 -> 2094 | BY12: =BX12+1 -> 2095 | BZ12: =BY12+1 -> 2096 | CA12: =BZ12+1 -> 2097 | CB12: =CA12+1 -> 2098 | CC12: =CB12+1 -> 2099 | CD12: =CC12+1 -> 2100
A13: Components of revenue ($m real)
A14: Depreciation | C14: =C5*-1 -> 65.21878211 | D14: =D5*-1 -> 66.95409637 | E14: 68.42321731 | F14: 71.16255596 | G14: 62.39201184 | H14: 71.89199653 | I14: 72.23409187 | J14: 71.57699418 | K14: 70.3394591 | L14: 69.75822517 | M14: 70.56080372 | N14: 69.61486331 | O14: 70.97114593 | P14: 72.24365968 | Q14: 73.30563416 | R14: 74.45376386 | S14: 75.44468894 | T14: 76.53681475 | U14: 77.21850063 | V14: 72.78240234 | W14: 73.39455211 | X14: 73.97253372 | Y14: 74.64836256 | Z14: 75.40249681 | AA14: 76.06798544 | AB14: 77.11336952 | AC14: 78.00023816 | AD14: 78.88270911 | AE14: 79.72890556 | AF14: 73.41468919 | AG14: 74.14828372 | AH14: 74.94595757 | AI14: 75.69440648 | AJ14: 76.30344127 | AK14: 76.98841818 | AL14: 77.76405588 | AM14: 78.47096258 | AN14: 79.13329522 | AO14: 79.63851311 | AP14: 80.36152648 | AQ14: 80.9553656 | AR14: 81.6227489 | AS14: 82.2823025 | AT14: 82.83576862 | AU14: 83.15373904 | AV14: 83.73121244 | AW14: 84.28114581 | AX14: 84.73385861 | AY14: 85.24461373 | AZ14: 85.78754336 | BA14: 86.40994851 | BB14: 86.96655491 | BC14: 87.38651952 | BD14: 87.74510074
A15: Return on asset | C15: =C10*C3 -> 45.86436568 | D15: =D10*D3 -> 46.41441527 | E15: 46.96036361 | F15: 47.50598246 | G15: 73.88486714 | H15: 75.20746186 | I15: 76.01224411 | J15: 76.48978216 | K15: 77.06345955 | L15: 77.6265101 | M15: 78.37157844 | N15: 79.07995569 | O15: 79.83157803 | P15: 80.52119587 | Q15: 81.1526388 | R15: 81.73553197 | S15: 82.26593664 | T15: 82.75103968 | U15: 83.18621453 | V15: 83.59022507 | W15: 84.19703857 | X15: 84.77586672 | Y15: 85.32827156 | Z15: 85.84977986 | AA15: 86.33681177 | AB15: 86.79341986 | AC15: 87.20223663 | AD15: 87.57050886 | AE15: 87.89843759 | AF15: 88.18768117 | AG15: 88.76558872 | AH15: 89.30995888 | AI15: 89.81786218 | AJ15: 90.29154899 | AK15: 90.73739286 | AL15: 91.15192198 | AM15: 91.53099164 | AN15: 91.87774398 | AO15: 92.19421679 | AP15: 92.4875928 | AQ15: 92.74791515 | AR15: 92.98108925 | AS15: 93.18375291 | AT15: 93.35626408 | AU15: 93.5034727 | AV15: 93.63614483 | AW15: 93.74241688 | AX15: 93.8235479 | AY15: 93.88398247 | AZ15: 93.92106709 | BA15: 93.93333086 | BB15: 93.91714043 | BC15: 93.8755039 | BD15: 93.81466805
A16: Opex (ex UAFG) | C16: 71.46310387 | D16: 70.54416894 | E16: 67.59559973 | F16: 65.25287792 | G16: 69.73331245 | H16: 71.42369014 | I16: 71.78982938 | J16: 75.13180069 | K16: 73.91513014 | L16: 74.24909054 | M16: 74.57470404 | N16: 74.89189775 | O16: 75.20067167 | P16: 75.50102581 | Q16: 75.79709739 | R16: 76.09316897 | S16: 76.38924055 | T16: 76.68531213 | U16: 76.98138371 | V16: 77.27745529 | W16: 77.57352687 | X16: 77.86959845 | Y16: 78.16567003 | Z16: 78.46174161 | AA16: 78.75781319 | AB16: 79.05388477 | AC16: 79.34995635 | AD16: 79.64602793 | AE16: 79.94209951 | AF16: 80.23817109 | AG16: 80.53424267 | AH16: 80.83031425 | AI16: 81.12638583 | AJ16: 81.42245741 | AK16: 81.71852899 | AL16: 82.01460057 | AM16: 82.31067215 | AN16: 82.60674373 | AO16: 82.90281531 | AP16: 83.1988869 | AQ16: 83.49495848 | AR16: 83.79103006 | AS16: 84.08710164 | AT16: 84.38317322 | AU16: 84.6792448 | AV16: 84.97531638 | AW16: 85.27138796 | AX16: 85.56745954 | AY16: 85.86353112 | AZ16: 86.1596027 | BA16: 86.45567428 | BB16: 86.75174586 | BC16: 87.04781744 | BD16: 87.34388902
A17: UAFG | C17: =C23*(C25*Summary!C19*1000+C26*Summary!C20*1000+C27*Summary!C18*1000+C28*Summary!C17*1000+C29*Summary!C16*1000)/1000000 -> 5.039943179 | D17: =D23*(D25*Summary!D19*1000+D26*Summary!D20*1000+D27*Summary!D18*1000+D28*Summary!D17*1000+D29*Summary!D16*1000)/1000000 -> 3.505621723 | E17: =E23*(E25*Summary!E19*1000+E26*Summary!E20*1000+E27*Summary!E18*1000+E28*Summary!E17*1000+E29*Summary!E16*1000)/1000000 -> 3.642292931 | F17: =F23*(F25*Summary!F19*1000+F26*Summary!F20*1000+F27*Summary!F18*1000+F28*Summary!F17*1000+F29*Summary!F16*1000)/1000000 -> 3.80038679 | G17: =G23*(G25*Summary!G19*1000+G26*Summary!G20*1000+G27*Summary!G18*1000+G28*Summary!G17*1000+G29*Summary!G16*1000)/1000000 -> 3.882486829 | H17: =H23*(H25*Summary!H19*1000+H26*Summary!H20*1000+H27*Summary!H18*1000+H28*Summary!H17*1000+H29*Summary!H16*1000)/1000000 -> 3.892750132 | I17: =I23*(I25*Summary!I19*1000+I26*Summary!I20*1000+I27*Summary!I18*1000+I28*Summary!I17*1000+I29*Summary!I16*1000)/1000000 -> 3.900096843 | J17: =J23*(J25*Summary!J19*1000+J26*Summary!J20*1000+J27*Summary!J18*1000+J28*Summary!J17*1000+J29*Summary!J16*1000)/1000000 -> 3.909657872 | K17: =K23*(K25*Summary!K19*1000+K26*Summary!K20*1000+K27*Summary!K18*1000+K28*Summary!K17*1000+K29*Summary!K16*1000)/1000000 -> 3.941703502 | L17: =L23*(L25*Summary!L19*1000+L26*Summary!L20*1000+L27*Summary!L18*1000+L28*Summary!L17*1000+L29*Summary!L16*1000)/1000000 -> 3.936205521 | M17: =M23*(M25*Summary!M19*1000+M26*Summary!M20*1000+M27*Summary!M18*1000+M28*Summary!M17*1000+M29*Summary!M16*1000)/1000000 -> 3.938544445 | N17: =N23*(N25*Summary!N19*1000+N26*Summary!N20*1000+N27*Summary!N18*1000+N28*Summary!N17*1000+N29*Summary!N16*1000)/1000000 -> 3.967291811 | O17: =O23*(O25*Summary!O19*1000+O26*Summary!O20*1000+O27*Summary!O18*1000+O28*Summary!O17*1000+O29*Summary!O16*1000)/1000000 -> 3.998386819 | P17: =P23*(P25*Summary!P19*1000+P26*Summary!P20*1000+P27*Summary!P18*1000+P28*Summary!P17*1000+P29*Summary!P16*1000)/1000000 -> 4.005320079 | Q17: =Q23*(Q25*Summary!Q19*1000+Q26*Summary!Q20*1000+Q27*Summary!Q18*1000+Q28*Summary!Q17*1000+Q29*Summary!Q16*1000)/1000000 -> 4.009185028 | R17: =R23*(R25*Summary!R19*1000+R26*Summary!R20*1000+R27*Summary!R18*1000+R28*Summary!R17*1000+R29*Summary!R16*1000)/1000000 -> 4.087705694 | S17: =S23*(S25*Summary!S19*1000+S26*Summary!S20*1000+S27*Summary!S18*1000+S28*Summary!S17*1000+S29*Summary!S16*1000)/1000000 -> 4.114260483 | T17: =T23*(T25*Summary!T19*1000+T26*Summary!T20*1000+T27*Summary!T18*1000+T28*Summary!T17*1000+T29*Summary!T16*1000)/1000000 -> 4.124200881 | U17: =U23*(U25*Summary!U19*1000+U26*Summary!U20*1000+U27*Summary!U18*1000+U28*Summary!U17*1000+U29*Summary!U16*1000)/1000000 -> 4.166889068 | V17: =V23*(V25*Summary!V19*1000+V26*Summary!V20*1000+V27*Summary!V18*1000+V28*Summary!V17*1000+V29*Summary!V16*1000)/1000000 -> 4.163452036 | W17: =W23*(W25*Summary!W19*1000+W26*Summary!W20*1000+W27*Summary!W18*1000+W28*Summary!W17*1000+W29*Summary!W16*1000)/1000000 -> 4.183731209 | X17: =X23*(X25*Summary!X19*1000+X26*Summary!X20*1000+X27*Summary!X18*1000+X28*Summary!X17*1000+X29*Summary!X16*1000)/1000000 -> 4.204533987 | Y17: =Y23*(Y25*Summary!Y19*1000+Y26*Summary!Y20*1000+Y27*Summary!Y18*1000+Y28*Summary!Y17*1000+Y29*Summary!Y16*1000)/1000000 -> 4.225897962 | Z17: =Z23*(Z25*Summary!Z19*1000+Z26*Summary!Z20*1000+Z27*Summary!Z18*1000+Z28*Summary!Z17*1000+Z29*Summary!Z16*1000)/1000000 -> 4.247533022 | AA17: =AA23*(AA25*Summary!AA19*1000+AA26*Summary!AA20*1000+AA27*Summary!AA18*1000+AA28*Summary!AA17*1000+AA29*Summary!AA16*1000)/1000000 -> 4.272315608 | AB17: =AB23*(AB25*Summary!AB19*1000+AB26*Summary!AB20*1000+AB27*Summary!AB18*1000+AB28*Summary!AB17*1000+AB29*Summary!AB16*1000)/1000000 -> 4.295736376 | AC17: =AC23*(AC25*Summary!AC19*1000+AC26*Summary!AC20*1000+AC27*Summary!AC18*1000+AC28*Summary!AC17*1000+AC29*Summary!AC16*1000)/1000000 -> 4.319660153 | AD17: =AD23*(AD25*Summary!AD19*1000+AD26*Summary!AD20*1000+AD27*Summary!AD18*1000+AD28*Summary!AD17*1000+AD29*Summary!AD16*1000)/1000000 -> 4.343966215 | AE17: =AE23*(AE25*Summary!AE19*1000+AE26*Summary!AE20*1000+AE27*Summary!AE18*1000+AE28*Summary!AE17*1000+AE29*Summary!AE16*1000)/1000000 -> 4.368741152 | AF17: =AF23*(AF25*Summary!AF19*1000+AF26*Summary!AF20*1000+AF27*Summary!AF18*1000+AF28*Summary!AF17*1000+AF29*Summary!AF16*1000)/1000000 -> 4.404190808 | AG17: =AG23*(AG25*Summary!AG19*1000+AG26*Summary!AG20*1000+AG27*Summary!AG18*1000+AG28*Summary!AG17*1000+AG29*Summary!AG16*1000)/1000000 -> 4.433214365 | AH17: =AH23*(AH25*Summary!AH19*1000+AH26*Summary!AH20*1000+AH27*Summary!AH18*1000+AH28*Summary!AH17*1000+AH29*Summary!AH16*1000)/1000000 -> 4.462722318 | AI17: =AI23*(AI25*Summary!AI19*1000+AI26*Summary!AI20*1000+AI27*Summary!AI18*1000+AI28*Summary!AI17*1000+AI29*Summary!AI16*1000)/1000000 -> 4.490758737 | AJ17: =AJ23*(AJ25*Summary!AJ19*1000+AJ26*Summary!AJ20*1000+AJ27*Summary!AJ18*1000+AJ28*Summary!AJ17*1000+AJ29*Summary!AJ16*1000)/1000000 -> 4.519149182 | AK17: =AK23*(AK25*Summary!AK19*1000+AK26*Summary!AK20*1000+AK27*Summary!AK18*1000+AK28*Summary!AK17*1000+AK29*Summary!AK16*1000)/1000000 -> 4.550512839 | AL17: =AL23*(AL25*Summary!AL19*1000+AL26*Summary!AL20*1000+AL27*Summary!AL18*1000+AL28*Summary!AL17*1000+AL29*Summary!AL16*1000)/1000000 -> 4.580480229 | AM17: =AM23*(AM25*Summary!AM19*1000+AM26*Summary!AM20*1000+AM27*Summary!AM18*1000+AM28*Summary!AM17*1000+AM29*Summary!AM16*1000)/1000000 -> 4.610763862 | AN17: =AN23*(AN25*Summary!AN19*1000+AN26*Summary!AN20*1000+AN27*Summary!AN18*1000+AN28*Summary!AN17*1000+AN29*Summary!AN16*1000)/1000000 -> 4.641393431 | AO17: =AO23*(AO25*Summary!AO19*1000+AO26*Summary!AO20*1000+AO27*Summary!AO18*1000+AO28*Summary!AO17*1000+AO29*Summary!AO16*1000)/1000000 -> 4.672318518 | AP17: =AP23*(AP25*Summary!AP19*1000+AP26*Summary!AP20*1000+AP27*Summary!AP18*1000+AP28*Summary!AP17*1000+AP29*Summary!AP16*1000)/1000000 -> 4.707455681 | AQ17: =AQ23*(AQ25*Summary!AQ19*1000+AQ26*Summary!AQ20*1000+AQ27*Summary!AQ18*1000+AQ28*Summary!AQ17*1000+AQ29*Summary!AQ16*1000)/1000000 -> 4.740422356 | AR17: =AR23*(AR25*Summary!AR19*1000+AR26*Summary!AR20*1000+AR27*Summary!AR18*1000+AR28*Summary!AR17*1000+AR29*Summary!AR16*1000)/1000000 -> 4.773741622 | AS17: =AS23*(AS25*Summary!AS19*1000+AS26*Summary!AS20*1000+AS27*Summary!AS18*1000+AS28*Summary!AS17*1000+AS29*Summary!AS16*1000)/1000000 -> 4.807444064 | AT17: =AT23*(AT25*Summary!AT19*1000+AT26*Summary!AT20*1000+AT27*Summary!AT18*1000+AT28*Summary!AT17*1000+AT29*Summary!AT16*1000)/1000000 -> 4.841562978 | AU17: =AU23*(AU25*Summary!AU19*1000+AU26*Summary!AU20*1000+AU27*Summary!AU18*1000+AU28*Summary!AU17*1000+AU29*Summary!AU16*1000)/1000000 -> 4.869149342 | AV17: =AV23*(AV25*Summary!AV19*1000+AV26*Summary!AV20*1000+AV27*Summary!AV18*1000+AV28*Summary!AV17*1000+AV29*Summary!AV16*1000)/1000000 -> 4.901878451 | AW17: =AW23*(AW25*Summary!AW19*1000+AW26*Summary!AW20*1000+AW27*Summary!AW18*1000+AW28*Summary!AW17*1000+AW29*Summary!AW16*1000)/1000000 -> 4.934938463 | AX17: =AX23*(AX25*Summary!AX19*1000+AX26*Summary!AX20*1000+AX27*Summary!AX18*1000+AX28*Summary!AX17*1000+AX29*Summary!AX16*1000)/1000000 -> 4.968533785 | AY17: =AY23*(AY25*Summary!AY19*1000+AY26*Summary!AY20*1000+AY27*Summary!AY18*1000+AY28*Summary!AY17*1000+AY29*Summary!AY16*1000)/1000000 -> 5.002538509 | AZ17: =AZ23*(AZ25*Summary!AZ19*1000+AZ26*Summary!AZ20*1000+AZ27*Summary!AZ18*1000+AZ28*Summary!AZ17*1000+AZ29*Summary!AZ16*1000)/1000000 -> 5.045227637 | BA17: =BA23*(BA25*Summary!BA19*1000+BA26*Summary!BA20*1000+BA27*Summary!BA18*1000+BA28*Summary!BA17*1000+BA29*Summary!BA16*1000)/1000000 -> 5.08260891 | BB17: =BB23*(BB25*Summary!BB19*1000+BB26*Summary!BB20*1000+BB27*Summary!BB18*1000+BB28*Summary!BB17*1000+BB29*Summary!BB16*1000)/1000000 -> 5.120370748 | BC17: =BC23*(BC25*Summary!BC19*1000+BC26*Summary!BC20*1000+BC27*Summary!BC18*1000+BC28*Summary!BC17*1000+BC29*Summary!BC16*1000)/1000000 -> 5.158467986 | BD17: =BD23*(BD25*Summary!BD19*1000+BD26*Summary!BD20*1000+BD27*Summary!BD18*1000+BD28*Summary!BD17*1000+BD29*Summary!BD16*1000)/1000000 -> 5.197131734
A18: Tax and imputation credits | C18: 0 | D18: 0 | E18: 0 | F18: 0 | G18: 0 | H18: 0 | I18: 0 | J18: 0 | K18: 0 | L18: 0 | M18: 0 | N18: 0 | O18: 0 | P18: 0 | Q18: 0 | R18: 0 | S18: 0 | T18: 0 | U18: 0 | V18: 0 | W18: 0 | X18: 0 | Y18: 0 | Z18: 0 | AA18: 0 | AB18: 0 | AC18: 0 | AD18: 0 | AE18: 0 | AF18: 0 | AG18: 0 | AH18: 0 | AI18: 0 | AJ18: 0 | AK18: 0 | AL18: 0 | AM18: 0 | AN18: 0 | AO18: 0 | AP18: 0 | AQ18: 0 | AR18: 0 | AS18: 0 | AT18: 0 | AU18: 0 | AV18: 0 | AW18: 0 | AX18: 0 | AY18: 0 | AZ18: 0 | BA18: 0 | BB18: 0 | BC18: 0 | BD18: 0
A19: Regulated revenue ($M) | C19: =SUM(C14:C18) -> 187.5861948 | D19: =SUM(D14:D18) -> 187.4183023 | E19: =SUM(E14:E18) -> 186.6214736 | F19: 187.7218031 | G19: 209.8926783 | H19: 222.4158987 | I19: 223.9362622 | J19: 227.1082349 | K19: 225.2597523 | L19: 225.5700313 | M19: 227.4456306 | N19: 227.5540086 | O19: 230.0017825 | P19: 232.2712014 | Q19: 234.2645554 | R19: 236.3701705 | S19: 238.2141266 | T19: 240.0973674 | U19: 241.5529879 | V19: 237.8135347 | W19: 239.3488488 | X19: 240.8225329 | Y19: 242.3682021 | Z19: 243.9615513 | AA19: 245.434926 | AB19: 247.2564105 | AC19: 248.8720913 | AD19: 250.4432121 | AE19: 251.9381838 | AF19: 246.2447323 | AG19: 247.8813295 | AH19: 249.548953 | AI19: 251.1294132 | AJ19: 252.5365969 | AK19: 253.9948529 | AL19: 255.5110587 | AM19: 256.9233902 | AN19: 258.2591764 | AO19: 259.4078637 | AP19: 260.7554618 | AQ19: 261.9386616 | AR19: 263.1686098 | AS19: 264.3606011 | AT19: 265.4167689 | AU19: 266.2056059 | AV19: 267.2445521 | AW19: 268.2298891 | AX19: 269.0933998 | AY19: 269.9946658 | AZ19: 270.9134408 | BA19: 271.8815626 | BB19: 272.755812 | BC19: 273.4683088 | BD19: 274.1007895
A22: UAFG
A23: Cost per GJ of gas | B23: $/GJ real $2023 | C23: 7.5 | D23: 7.5 | E23: 7.7075 | F23: 8.089491525 | G23: 8.325745342 | H23: 8.360765003 | I23: 8.395931964 | J23: 8.431246843 | K23: 8.466710264 | L23: 8.502322851 | M23: 8.53808523 | N23: 8.573998034 | O23: 8.610061893 | P23: 8.646277444 | Q23: 8.646277444 | R23: 8.646277444 | S23: 8.646277444 | T23: 8.646277444 | U23: 8.646277444 | V23: 8.646277444 | W23: 8.646277444 | X23: 8.646277444 | Y23: 8.646277444 | Z23: 8.646277444 | AA23: 8.646277444 | AB23: 8.646277444 | AC23: 8.646277444 | AD23: 8.646277444 | AE23: 8.646277444 | AF23: 8.646277444 | AG23: 8.646277444 | AH23: 8.646277444 | AI23: 8.646277444 | AJ23: 8.646277444 | AK23: 8.646277444 | AL23: 8.646277444 | AM23: 8.646277444 | AN23: 8.646277444 | AO23: 8.646277444 | AP23: 8.646277444 | AQ23: 8.646277444 | AR23: 8.646277444 | AS23: 8.646277444 | AT23: 8.646277444 | AU23: 8.646277444 | AV23: 8.646277444 | AW23: 8.646277444 | AX23: 8.646277444 | AY23: 8.646277444 | AZ23: 8.646277444 | BA23: 8.646277444 | BB23: 8.646277444 | BC23: 8.646277444 | BD23: 8.646277444 | BE23: 8.646277444 | BF23: 8.646277444 | BG23: 8.646277444 | BH23: 8.646277444 | BI23: 8.646277444 | BJ23: 8.646277444 | BK23: 8.646277444 | BL23: 8.646277444 | BM23: 8.646277444 | BN23: 8.646277444 | BO23: 8.646277444 | BP23: 8.646277444 | BQ23: 8.646277444 | BR23: 8.646277444 | BS23: 8.646277444 | BT23: 8.646277444 | BU23: 8.646277444 | BV23: 8.646277444 | BW23: 8.646277444 | BX23: 8.646277444 | BY23: 8.646277444 | BZ23: 8.646277444 | CA23: 8.646277444 | CB23: 8.646277444 | CC23: 8.646277444 | CD23: 8.646277444
A24: % of through put lost
A25: A1 | C25: 0.003984063745 | D25: 0.000999000999 | E25: 0.000999000999 | F25: 0.000999000999 | G25: 0.000999000999 | H25: 0.000999000999 | I25: 0.000999000999 | J25: 0.000999000999 | K25: 0.000999000999 | L25: 0.000999000999 | M25: 0.000999000999 | N25: 0.000999000999 | O25: 0.000999000999 | P25: 0.000999000999 | Q25: 0.000999000999 | R25: 0.000999000999 | S25: 0.000999000999 | T25: 0.000999000999 | U25: 0.000999000999 | V25: 0.000999000999 | W25: 0.000999000999 | X25: 0.000999000999 | Y25: 0.000999000999 | Z25: 0.000999000999 | AA25: 0.000999000999 | AB25: 0.000999000999 | AC25: 0.000999000999 | AD25: 0.000999000999 | AE25: 0.000999000999 | AF25: 0.000999000999 | AG25: 0.000999000999 | AH25: 0.000999000999 | AI25: 0.000999000999 | AJ25: 0.000999000999 | AK25: 0.000999000999 | AL25: 0.000999000999 | AM25: 0.000999000999 | AN25: 0.000999000999 | AO25: 0.000999000999 | AP25: 0.000999000999 | AQ25: 0.000999000999 | AR25: 0.000999000999 | AS25: 0.000999000999 | AT25: 0.000999000999 | AU25: 0.000999000999 | AV25: 0.000999000999 | AW25: 0.000999000999 | AX25: 0.000999000999 | AY25: 0.000999000999 | AZ25: 0.000999000999 | BA25: 0.000999000999 | BB25: 0.000999000999 | BC25: 0.000999000999 | BD25: 0.000999000999 | BE25: 0.000999000999 | BF25: 0.000999000999 | BG25: 0.000999000999 | BH25: 0.000999000999 | BI25: 0.000999000999 | BJ25: 0.000999000999 | BK25: 0.000999000999 | BL25: 0.000999000999 | BM25: 0.000999000999 | BN25: 0.000999000999 | BO25: 0.000999000999 | BP25: 0.000999000999 | BQ25: 0.000999000999 | BR25: 0.000999000999 | BS25: 0.000999000999 | BT25: 0.000999000999 | BU25: 0.000999000999 | BV25: 0.000999000999 | BW25: 0.000999000999 | BX25: 0.000999000999 | BY25: 0.000999000999 | BZ25: 0.000999000999 | CA25: 0.000999000999 | CB25: 0.000999000999 | CC25: 0.000999000999 | CD25: 0.000999000999
A26: A2 | C26: 0.003984063745 | D26: 0.000999000999 | E26: 0.000999000999 | F26: 0.000999000999 | G26: 0.000999000999 | H26: 0.000999000999 | I26: 0.000999000999 | J26: 0.000999000999 | K26: 0.000999000999 | L26: 0.000999000999 | M26: 0.000999000999 | N26: 0.000999000999 | O26: 0.000999000999 | P26: 0.000999000999 | Q26: 0.000999000999 | R26: 0.000999000999 | S26: 0.000999000999 | T26: 0.000999000999 | U26: 0.000999000999 | V26: 0.000999000999 | W26: 0.000999000999 | X26: 0.000999000999 | Y26: 0.000999000999 | Z26: 0.000999000999 | AA26: 0.000999000999 | AB26: 0.000999000999 | AC26: 0.000999000999 | AD26: 0.000999000999 | AE26: 0.000999000999 | AF26: 0.000999000999 | AG26: 0.000999000999 | AH26: 0.000999000999 | AI26: 0.000999000999 | AJ26: 0.000999000999 | AK26: 0.000999000999 | AL26: 0.000999000999 | AM26: 0.000999000999 | AN26: 0.000999000999 | AO26: 0.000999000999 | AP26: 0.000999000999 | AQ26: 0.000999000999 | AR26: 0.000999000999 | AS26: 0.000999000999 | AT26: 0.000999000999 | AU26: 0.000999000999 | AV26: 0.000999000999 | AW26: 0.000999000999 | AX26: 0.000999000999 | AY26: 0.000999000999 | AZ26: 0.000999000999 | BA26: 0.000999000999 | BB26: 0.000999000999 | BC26: 0.000999000999 | BD26: 0.000999000999 | BE26: 0.000999000999 | BF26: 0.000999000999 | BG26: 0.000999000999 | BH26: 0.000999000999 | BI26: 0.000999000999 | BJ26: 0.000999000999 | BK26: 0.000999000999 | BL26: 0.000999000999 | BM26: 0.000999000999 | BN26: 0.000999000999 | BO26: 0.000999000999 | BP26: 0.000999000999 | BQ26: 0.000999000999 | BR26: 0.000999000999 | BS26: 0.000999000999 | BT26: 0.000999000999 | BU26: 0.000999000999 | BV26: 0.000999000999 | BW26: 0.000999000999 | BX26: 0.000999000999 | BY26: 0.000999000999 | BZ26: 0.000999000999 | CA26: 0.000999000999 | CB26: 0.000999000999 | CC26: 0.000999000999 | CD26: 0.000999000999
A27: B1 | C27: 0.04324913834 | D27: 0.03367500513 | E27: 0.03367500513 | F27: 0.03367500513 | G27: 0.03367500513 | H27: 0.03367500513 | I27: 0.03367500513 | J27: 0.03367500513 | K27: 0.03367500513 | L27: 0.03367500513 | M27: 0.03367500513 | N27: 0.03367500513 | O27: 0.03367500513 | P27: 0.03367500513 | Q27: 0.03367500513 | R27: 0.03367500513 | S27: 0.03367500513 | T27: 0.03367500513 | U27: 0.03367500513 | V27: 0.03367500513 | W27: 0.03367500513 | X27: 0.03367500513 | Y27: 0.03367500513 | Z27: 0.03367500513 | AA27: 0.03367500513 | AB27: 0.03367500513 | AC27: 0.03367500513 | AD27: 0.03367500513 | AE27: 0.03367500513 | AF27: 0.03367500513 | AG27: 0.03367500513 | AH27: 0.03367500513 | AI27: 0.03367500513 | AJ27: 0.03367500513 | AK27: 0.03367500513 | AL27: 0.03367500513 | AM27: 0.03367500513 | AN27: 0.03367500513 | AO27: 0.03367500513 | AP27: 0.03367500513 | AQ27: 0.03367500513 | AR27: 0.03367500513 | AS27: 0.03367500513 | AT27: 0.03367500513 | AU27: 0.03367500513 | AV27: 0.03367500513 | AW27: 0.03367500513 | AX27: 0.03367500513 | AY27: 0.03367500513 | AZ27: 0.03367500513 | BA27: 0.03367500513 | BB27: 0.03367500513 | BC27: 0.03367500513 | BD27: 0.03367500513 | BE27: 0.03367500513 | BF27: 0.03367500513 | BG27: 0.03367500513 | BH27: 0.03367500513 | BI27: 0.03367500513 | BJ27: 0.03367500513 | BK27: 0.03367500513 | BL27: 0.03367500513 | BM27: 0.03367500513 | BN27: 0.03367500513 | BO27: 0.03367500513 | BP27: 0.03367500513 | BQ27: 0.03367500513 | BR27: 0.03367500513 | BS27: 0.03367500513 | BT27: 0.03367500513 | BU27: 0.03367500513 | BV27: 0.03367500513 | BW27: 0.03367500513 | BX27: 0.03367500513 | BY27: 0.03367500513 | BZ27: 0.03367500513 | CA27: 0.03367500513 | CB27: 0.03367500513 | CC27: 0.03367500513 | CD27: 0.03367500513
A28: B2 | C28: 0.04206194322 | D28: 0.03367500513 | E28: 0.03367500513 | F28: 0.03367500513 | G28: 0.03367500513 | H28: 0.03367500513 | I28: 0.03367500513 | J28: 0.03367500513 | K28: 0.03367500513 | L28: 0.03367500513 | M28: 0.03367500513 | N28: 0.03367500513 | O28: 0.03367500513 | P28: 0.03367500513 | Q28: 0.03367500513 | R28: 0.03367500513 | S28: 0.03367500513 | T28: 0.03367500513 | U28: 0.03367500513 | V28: 0.03367500513 | W28: 0.03367500513 | X28: 0.03367500513 | Y28: 0.03367500513 | Z28: 0.03367500513 | AA28: 0.03367500513 | AB28: 0.03367500513 | AC28: 0.03367500513 | AD28: 0.03367500513 | AE28: 0.03367500513 | AF28: 0.03367500513 | AG28: 0.03367500513 | AH28: 0.03367500513 | AI28: 0.03367500513 | AJ28: 0.03367500513 | AK28: 0.03367500513 | AL28: 0.03367500513 | AM28: 0.03367500513 | AN28: 0.03367500513 | AO28: 0.03367500513 | AP28: 0.03367500513 | AQ28: 0.03367500513 | AR28: 0.03367500513 | AS28: 0.03367500513 | AT28: 0.03367500513 | AU28: 0.03367500513 | AV28: 0.03367500513 | AW28: 0.03367500513 | AX28: 0.03367500513 | AY28: 0.03367500513 | AZ28: 0.03367500513 | BA28: 0.03367500513 | BB28: 0.03367500513 | BC28: 0.03367500513 | BD28: 0.03367500513 | BE28: 0.03367500513 | BF28: 0.03367500513 | BG28: 0.03367500513 | BH28: 0.03367500513 | BI28: 0.03367500513 | BJ28: 0.03367500513 | BK28: 0.03367500513 | BL28: 0.03367500513 | BM28: 0.03367500513 | BN28: 0.03367500513 | BO28: 0.03367500513 | BP28: 0.03367500513 | BQ28: 0.03367500513 | BR28: 0.03367500513 | BS28: 0.03367500513 | BT28: 0.03367500513 | BU28: 0.03367500513 | BV28: 0.03367500513 | BW28: 0.03367500513 | BX28: 0.03367500513 | BY28: 0.03367500513 | BZ28: 0.03367500513 | CA28: 0.03367500513 | CB28: 0.03367500513 | CC28: 0.03367500513 | CD28: 0.03367500513
A29: B3 | C29: 0.04500878488 | D29: 0.03367500513 | E29: 0.03367500513 | F29: 0.03367500513 | G29: 0.03367500513 | H29: 0.03367500513 | I29: 0.03367500513 | J29: 0.03367500513 | K29: 0.03367500513 | L29: 0.03367500513 | M29: 0.03367500513 | N29: 0.03367500513 | O29: 0.03367500513 | P29: 0.03367500513 | Q29: 0.03367500513 | R29: 0.03367500513 | S29: 0.03367500513 | T29: 0.03367500513 | U29: 0.03367500513 | V29: 0.03367500513 | W29: 0.03367500513 | X29: 0.03367500513 | Y29: 0.03367500513 | Z29: 0.03367500513 | AA29: 0.03367500513 | AB29: 0.03367500513 | AC29: 0.03367500513 | AD29: 0.03367500513 | AE29: 0.03367500513 | AF29: 0.03367500513 | AG29: 0.03367500513 | AH29: 0.03367500513 | AI29: 0.03367500513 | AJ29: 0.03367500513 | AK29: 0.03367500513 | AL29: 0.03367500513 | AM29: 0.03367500513 | AN29: 0.03367500513 | AO29: 0.03367500513 | AP29: 0.03367500513 | AQ29: 0.03367500513 | AR29: 0.03367500513 | AS29: 0.03367500513 | AT29: 0.03367500513 | AU29: 0.03367500513 | AV29: 0.03367500513 | AW29: 0.03367500513 | AX29: 0.03367500513 | AY29: 0.03367500513 | AZ29: 0.03367500513 | BA29: 0.03367500513 | BB29: 0.03367500513 | BC29: 0.03367500513 | BD29: 0.03367500513 | BE29: 0.03367500513 | BF29: 0.03367500513 | BG29: 0.03367500513 | BH29: 0.03367500513 | BI29: 0.03367500513 | BJ29: 0.03367500513 | BK29: 0.03367500513 | BL29: 0.03367500513 | BM29: 0.03367500513 | BN29: 0.03367500513 | BO29: 0.03367500513 | BP29: 0.03367500513 | BQ29: 0.03367500513 | BR29: 0.03367500513 | BS29: 0.03367500513 | BT29: 0.03367500513 | BU29: 0.03367500513 | BV29: 0.03367500513 | BW29: 0.03367500513 | BX29: 0.03367500513 | BY29: 0.03367500513 | BZ29: 0.03367500513 | CA29: 0.03367500513 | CB29: 0.03367500513 | CC29: 0.03367500513 | CD29: 0.03367500513
A32: Volumes (TJ) | B32: 2020 | C32: =B32+1 -> 2021 | D32: =C32+1 -> 2022 | E32: =D32+1 -> 2023 | F32: =E32+1 -> 2024 | G32: =F32+1 -> 2025 | H32: =G32+1 -> 2026 | I32: =H32+1 -> 2027 | J32: =I32+1 -> 2028 | K32: =J32+1 -> 2029 | L32: =K32+1 -> 2030 | M32: =L32+1 -> 2031 | N32: =M32+1 -> 2032 | O32: =N32+1 -> 2033 | P32: =O32+1 -> 2034 | Q32: =P32+1 -> 2035 | R32: =Q32+1 -> 2036 | S32: =R32+1 -> 2037 | T32: =S32+1 -> 2038 | U32: =T32+1 -> 2039 | V32: =U32+1 -> 2040 | W32: =V32+1 -> 2041 | X32: =W32+1 -> 2042 | Y32: =X32+1 -> 2043 | Z32: =Y32+1 -> 2044 | AA32: =Z32+1 -> 2045 | AB32: =AA32+1 -> 2046 | AC32: =AB32+1 -> 2047 | AD32: =AC32+1 -> 2048 | AE32: =AD32+1 -> 2049 | AF32: =AE32+1 -> 2050 | AG32: =AF32+1 -> 2051 | AH32: =AG32+1 -> 2052 | AI32: =AH32+1 -> 2053 | AJ32: =AI32+1 -> 2054 | AK32: =AJ32+1 -> 2055 | AL32: =AK32+1 -> 2056 | AM32: =AL32+1 -> 2057 | AN32: =AM32+1 -> 2058 | AO32: =AN32+1 -> 2059 | AP32: =AO32+1 -> 2060 | AQ32: =AP32+1 -> 2061 | AR32: =AQ32+1 -> 2062 | AS32: =AR32+1 -> 2063 | AT32: =AS32+1 -> 2064 | AU32: =AT32+1 -> 2065 | AV32: =AU32+1 -> 2066 | AW32: =AV32+1 -> 2067 | AX32: =AW32+1 -> 2068 | AY32: =AX32+1 -> 2069 | AZ32: =AY32+1 -> 2070 | BA32: =AZ32+1 -> 2071 | BB32: =BA32+1 -> 2072 | BC32: =BB32+1 -> 2073 | BD32: =BC32+1 -> 2074 | BE32: =BD32+1 -> 2075 | BF32: =BE32+1 -> 2076 | BG32: =BF32+1 -> 2077 | BH32: =BG32+1 -> 2078 | BI32: =BH32+1 -> 2079 | BJ32: =BI32+1 -> 2080 | BK32: =BJ32+1 -> 2081 | BL32: =BK32+1 -> 2082 | BM32: =BL32+1 -> 2083 | BN32: =BM32+1 -> 2084 | BO32: =BN32+1 -> 2085 | BP32: =BO32+1 -> 2086 | BQ32: =BP32+1 -> 2087 | BR32: =BQ32+1 -> 2088 | BS32: =BR32+1 -> 2089 | BT32: =BS32+1 -> 2090 | BU32: =BT32+1 -> 2091 | BV32: =BU32+1 -> 2092 | BW32: =BV32+1 -> 2093 | BX32: =BW32+1 -> 2094 | BY32: =BX32+1 -> 2095 | BZ32: =BY32+1 -> 2096 | CA32: =BZ32+1 -> 2097 | CB32: =CA32+1 -> 2098 | CC32: =CB32+1 -> 2099 | CD32: =CC32+1 -> 2100
A33: Residential B3 | B33: =Summary!B16 -> 10104.45949 | C33: =Summary!C16 -> 10468.67886 | D33: =Summary!D16 -> 10078.78486 | E33: =Summary!E16 -> 10260.30388 | F33: =Summary!F16 -> 10154.49327 | G33: =Summary!G16 -> 10053.04759 | H33: =Summary!H16 -> 10045.89171 | I33: =Summary!I16 -> 10018.61704 | J33: =Summary!J16 -> 9998.323331 | K33: =Summary!K16 -> 10031.79804 | L33: =Summary!L16 -> 9975.239516 | M33: =Summary!M16 -> 9934.573065 | N33: =Summary!N16 -> 9957.008654 | O33: =Summary!O16 -> 9984.143068 | P33: =Summary!P16 -> 9950.592067 | Q33: =Summary!Q16 -> 9947.959853 | R33: =Summary!R16 -> 10129.50609 | S33: =Summary!S16 -> 10181.8245 | T33: =Summary!T16 -> 10194.49358 | U33: =Summary!U16 -> 10285.50797 | V33: =Summary!V16 -> 10263.67989 | W33: =Summary!W16 -> 10301.47105 | X33: =Summary!X16 -> 10339.73335 | Y33: =Summary!Y16 -> 10378.44554 | Z33: =Summary!Z16 -> 10417.52496 | AA33: =Summary!AA16 -> 10463.50271 | AB33: =Summary!AB16 -> 10506.06758 | AC33: =Summary!AC16 -> 10549.12097 | AD33: =Summary!AD16 -> 10592.59276 | AE33: =Summary!AE16 -> 10636.50883 | AF33: =Summary!AF16 -> 10705.76183 | AG33: =Summary!AG16 -> 10760.46586 | AH33: =Summary!AH16 -> 10815.68953 | AI33: =Summary!AI16 -> 10870.60468 | AJ33: =Summary!AJ16 -> 10925.80881 | AK33: =Summary!AK16 -> 10987.63562 | AL33: =Summary!AL16 -> 11045.78204 | AM33: =Summary!AM16 -> 11104.30277 | AN33: =Summary!AN16 -> 11163.14969 | AO33: =Summary!AO16 -> 11222.41624 | AP33: =Summary!AP16 -> 11290.71886 | AQ33: =Summary!AQ16 -> 11353.87789 | AR33: =Summary!AR16 -> 11417.45556 | AS33: =Summary!AS16 -> 11481.3985 | AT33: =Summary!AT16 -> 11545.65734 | AU33: =Summary!AU16 -> 11594.68007 | AV33: =Summary!AV16 -> 11654.06302 | AW33: =Summary!AW16 -> 11713.74566 | AX33: =Summary!AX16 -> 11773.80228 | AY33: =Summary!AY16 -> 11834.23825 | AZ33: =Summary!AZ16 -> 11914.48212 | BA33: =Summary!BA16 -> 11982.7361 | BB33: =Summary!BB16 -> 12051.35384 | BC33: =Summary!BC16 -> 12120.32822 | BD33: =Summary!BD16 -> 12189.78886 | BE33: =Summary!BE16 -> 12259.66639 | BF33: =Summary!BF16 -> 12330.02006 | BG33: =Summary!BG16 -> 12400.7755 | BH33: =Summary!BH16 -> 12471.95018 | BI33: =Summary!BI16 -> 12543.55845 | BJ33: =Summary!BJ16 -> 12615.57986 | BK33: =Summary!BK16 -> 12688.08899 | BL33: =Summary!BL16 -> 12761.02122 | BM33: =Summary!BM16 -> 12834.40396 | BN33: =Summary!BN16 -> 12908.24222 | BO33: =Summary!BO16 -> 12982.53934 | BP33: =Summary!BP16 -> 13057.26379 | BQ33: =Summary!BQ16 -> 13132.42781 | BR33: =Summary!BR16 -> 13208.0942 | BS33: =Summary!BS16 -> 13284.18393 | BT33: =Summary!BT16 -> 13360.75271 | BU33: =Summary!BU16 -> 13437.81107 | BV33: =Summary!BV16 -> 13515.30922 | BW33: =Summary!BW16 -> 13593.27088 | BX33: =Summary!BX16 -> 13671.70308 | BY33: =Summary!BY16 -> 13750.60945 | BZ33: =Summary!BZ16 -> 13829.96141 | CA33: =Summary!CA16 -> 13909.86773 | CB33: =Summary!CB16 -> 13990.19142 | CC33: =Summary!CC16 -> 14071.01887 | CD33: =Summary!CD16 -> 14152.34136
A34: Commercial B2 | B34: =Summary!B17 -> 1240.008969 | C34: =Summary!C17 -> 1313.873127 | D34: =Summary!D17 -> 1333.963313 | E34: =Summary!E17 -> 1328.307011 | F34: =Summary!F17 -> 1318.401281 | G34: =Summary!G17 -> 1307.535686 | H34: =Summary!H17 -> 1315.637204 | I34: =Summary!I17 -> 1326.49575 | J34: =Summary!J17 -> 1333.697503 | K34: =Summary!K17 -> 1347.703026 | L34: =Summary!L17 -> 1340.414229 | M34: =Summary!M17 -> 1331.771176 | N34: =Summary!N17 -> 1333.976226 | O34: =Summary!O17 -> 1338.428574 | P34: =Summary!P17 -> 1332.243499 | Q34: =Summary!Q17 -> 1332.082319 | R34: =Summary!R17 -> 1372.859443 | S34: =Summary!S17 -> 1395.75241 | T34: =Summary!T17 -> 1410.389176 | U34: =Summary!U17 -> 1440.72808 | V34: =Summary!V17 -> 1445.992434 | W34: =Summary!W17 -> 1459.506341 | X34: =Summary!X17 -> 1474.199625 | Y34: =Summary!Y17 -> 1490.222431 | Z34: =Summary!Z17 -> 1506.659921 | AA34: =Summary!AA17 -> 1525.555498 | AB34: =Summary!AB17 -> 1544.329643 | AC34: =Summary!AC17 -> 1564.190259 | AD34: =Summary!AD17 -> 1584.791707 | AE34: =Summary!AE17 -> 1606.404356 | AF34: =Summary!AF17 -> 1633.681998 | AG34: =Summary!AG17 -> 1658.745906 | AH34: =Summary!AH17 -> 1684.795149 | AI34: =Summary!AI17 -> 1708.914421 | AJ34: =Summary!AJ17 -> 1733.844153 | AK34: =Summary!AK17 -> 1760.834461 | AL34: =Summary!AL17 -> 1787.994562 | AM34: =Summary!AM17 -> 1815.747862 | AN34: =Summary!AN17 -> 1844.243771 | AO34: =Summary!AO17 -> 1873.214966 | AP34: =Summary!AP17 -> 1905.476054 | AQ34: =Summary!AQ17 -> 1937.312368 | AR34: =Summary!AR17 -> 1969.81875 | AS34: =Summary!AS17 -> 2003.152887 | AT34: =Summary!AT17 -> 2037.477783 | AU34: =Summary!AU17 -> 2068.169949 | AV34: =Summary!AV17 -> 2102.36988 | AW34: =Summary!AW17 -> 2137.280859 | AX34: =Summary!AX17 -> 2173.529909 | AY34: =Summary!AY17 -> 2210.678474 | AZ34: =Summary!AZ17 -> 2253.234659 | BA34: =Summary!BA17 -> 2293.878486 | BB34: =Summary!BB17 -> 2335.336003 | BC34: =Summary!BC17 -> 2377.458454 | BD34: =Summary!BD17 -> 2420.909246 | BE34: =Summary!BE17 -> 2465.548991 | BF34: =Summary!BF17 -> 2511.066047 | BG34: =Summary!BG17 -> 2557.64291 | BH34: =Summary!BH17 -> 2605.127769 | BI34: =Summary!BI17 -> 2653.535009 | BJ34: =Summary!BJ17 -> 2702.879208 | BK34: =Summary!BK17 -> 2752.999752 | BL34: =Summary!BL17 -> 2804.792912 | BM34: =Summary!BM17 -> 2857.575889 | BN34: =Summary!BN17 -> 2912.267676 | BO34: =Summary!BO17 -> 2968.176439 | BP34: =Summary!BP17 -> 3024.954044 | BQ34: =Summary!BQ17 -> 3082.612121 | BR34: =Summary!BR17 -> 3141.726612 | BS34: =Summary!BS17 -> 3202.133564 | BT34: =Summary!BT17 -> 3264.238275 | BU34: =Summary!BU17 -> 3327.490943 | BV34: =Summary!BV17 -> 3392.496093 | BW34: =Summary!BW17 -> 3459.088363 | BX34: =Summary!BX17 -> 3527.295577 | BY34: =Summary!BY17 -> 3597.145944 | BZ34: =Summary!BZ17 -> 3668.260785 | CA34: =Summary!CA17 -> 3740.658948 | CB34: =Summary!CB17 -> 3814.98269 | CC34: =Summary!CC17 -> 3891.476634 | CD34: =Summary!CD17 -> 3969.545639
A35: Commercial B1 | B35: =Summary!B18 -> 1849.395865 | C35: =Summary!C18 -> 2058.384921 | D35: =Summary!D18 -> 2048.693861 | E35: =Summary!E18 -> 2028.068347 | F35: =Summary!F18 -> 2034.274037 | G35: =Summary!G18 -> 2037.072004 | H35: =Summary!H18 -> 2021.223396 | I35: =Summary!I18 -> 2012.497293 | J35: =Summary!J18 -> 2007.380129 | K35: =Summary!K18 -> 2016.459727 | L35: =Summary!L18 -> 2009.401709 | M35: =Summary!M18 -> 2012.441087 | N35: =Summary!N18 -> 2029.602641 | O35: =Summary!O18 -> 2047.252797 | P35: =Summary!P18 -> 2055.033288 | Q35: =Summary!Q18 -> 2071.041131 | R35: =Summary!R18 -> 2113.075177 | S35: =Summary!S18 -> 2129.068407 | T35: =Summary!T18 -> 2137.771561 | U35: =Summary!U18 -> 2161.532896 | V35: =Summary!V18 -> 2168.039759 | W35: =Summary!W18 -> 2186.063652 | X35: =Summary!X18 -> 2204.233726 | Y35: =Summary!Y18 -> 2222.550352 | Z35: =Summary!Z18 -> 2241.014636 | AA35: =Summary!AA18 -> 2260.683106 | AB35: =Summary!AB18 -> 2279.455082 | AC35: =Summary!AC18 -> 2298.378153 | AD35: =Summary!AD18 -> 2317.453456 | AE35: =Summary!AE18 -> 2336.682133 | AF35: =Summary!AF18 -> 2360.553123 | AG35: =Summary!AG18 -> 2380.13033 | AH35: =Summary!AH18 -> 2399.864695 | AI35: =Summary!AI18 -> 2416.863483 | AJ35: =Summary!AJ18 -> 2433.977613 | AK35: =Summary!AK18 -> 2452.36554 | AL35: =Summary!AL18 -> 2469.720641 | AM35: =Summary!AM18 -> 2487.193241 | AN35: =Summary!AN18 -> 2504.784045 | AO35: =Summary!AO18 -> 2522.493762 | AP35: =Summary!AP18 -> 2541.989551 | AQ35: =Summary!AQ18 -> 2559.951004 | AR35: =Summary!AR18 -> 2578.03359 | AS35: =Summary!AS18 -> 2596.238027 | AT35: =Summary!AT18 -> 2614.565036 | AU35: =Summary!AU18 -> 2629.952628 | AV35: =Summary!AV18 -> 2648.505346 | AW35: =Summary!AW18 -> 2667.182666 | AX35: =Summary!AX18 -> 2685.985317 | AY35: =Summary!AY18 -> 2704.914028 | AZ35: =Summary!AZ18 -> 2727.708985 | BA35: =Summary!BA18 -> 2746.918353 | BB35: =Summary!BB18 -> 2766.256161 | BC35: =Summary!BC18 -> 2785.723148 | BD35: =Summary!BD18 -> 2805.320055 | BE35: =Summary!BE18 -> 2825.047624 | BF35: =Summary!BF18 -> 2844.9066 | BG35: =Summary!BG18 -> 2864.897728 | BH35: =Summary!BH18 -> 2885.021754 | BI35: =Summary!BI18 -> 2905.279427 | BJ35: =Summary!BJ18 -> 2925.671497 | BK35: =Summary!BK18 -> 2946.198714 | BL35: =Summary!BL18 -> 2966.861831 | BM35: =Summary!BM18 -> 2987.661599 | BN35: =Summary!BN18 -> 3008.598774 | BO35: =Summary!BO18 -> 3029.674109 | BP35: =Summary!BP18 -> 3050.888361 | BQ35: =Summary!BQ18 -> 3072.242285 | BR35: =Summary!BR18 -> 3093.736638 | BS35: =Summary!BS18 -> 3115.372176 | BT35: =Summary!BT18 -> 3137.149659 | BU35: =Summary!BU18 -> 3159.069842 | BV35: =Summary!BV18 -> 3181.133483 | BW35: =Summary!BW18 -> 3203.341341 | BX35: =Summary!BX18 -> 3225.694173 | BY35: =Summary!BY18 -> 3248.192735 | BZ35: =Summary!BZ18 -> 3270.837785 | CA35: =Summary!CA18 -> 3293.630079 | CB35: =Summary!CB18 -> 3316.570371 | CC35: =Summary!CC18 -> 3339.659416 | CD35: =Summary!CD18 -> 3362.897968
A36: Industrial A1 | B36: =Summary!B19 -> 11756.62018 | C36: =Summary!C19 -> 12346.51513 | D36: =Summary!D19 -> 12346.18349 | E36: =Summary!E19 -> 12278.11222 | F36: =Summary!F19 -> 13217.98057 | G36: =Summary!G19 -> 13464.27653 | H36: =Summary!H19 -> 13263.59286 | I36: =Summary!I19 -> 13054.36331 | J36: =Summary!J19 -> 12871.92622 | K36: =Summary!K19 -> 12809.43548 | L36: =Summary!L19 -> 12618.02705 | M36: =Summary!M19 -> 12515.94001 | N36: =Summary!N19 -> 12519.45443 | O36: =Summary!O19 -> 12524.96858 | P36: =Summary!P19 -> 12458.04356 | Q36: =Summary!Q19 -> 12451.76845 | R36: =Summary!R19 -> 12601.99859 | S36: =Summary!S19 -> 12593.67299 | T36: =Summary!T19 -> 12530.41129 | U36: =Summary!U19 -> 12566.61205 | V36: =Summary!V19 -> 12506.13811 | W36: =Summary!W19 -> 12507.27816 | X36: =Summary!X19 -> 12508.42155 | Y36: =Summary!Y19 -> 12509.56303 | Z36: =Summary!Z19 -> 12510.70262 | AA36: =Summary!AA19 -> 12519.10705 | AB36: =Summary!AB19 -> 12520.2453 | AC36: =Summary!AC19 -> 12521.38165 | AD36: =Summary!AD19 -> 12522.51611 | AE36: =Summary!AE19 -> 12523.64868 | AF36: =Summary!AF19 -> 12554.44436 | AG36: =Summary!AG19 -> 12555.58312 | AH36: =Summary!AH19 -> 12556.71999 | AI36: =Summary!AI19 -> 12556.71999 | AJ36: =Summary!AJ19 -> 12556.71999 | AK36: =Summary!AK19 -> 12564.08644 | AL36: =Summary!AL19 -> 12564.08644 | AM36: =Summary!AM19 -> 12564.08644 | AN36: =Summary!AN19 -> 12564.08644 | AO36: =Summary!AO19 -> 12564.08644 | AP36: =Summary!AP19 -> 12574.32345 | AQ36: =Summary!AQ19 -> 12574.32345 | AR36: =Summary!AR19 -> 12574.32345 | AS36: =Summary!AS19 -> 12574.32345 | AT36: =Summary!AT19 -> 12574.32345 | AU36: =Summary!AU19 -> 12556.15693 | AV36: =Summary!AV19 -> 12556.15693 | AW36: =Summary!AW19 -> 12556.15693 | AX36: =Summary!AX19 -> 12556.15693 | AY36: =Summary!AY19 -> 12556.15693 | AZ36: =Summary!AZ19 -> 12577.56569 | BA36: =Summary!BA19 -> 12577.56569 | BB36: =Summary!BB19 -> 12577.56569 | BC36: =Summary!BC19 -> 12577.56569 | BD36: =Summary!BD19 -> 12577.56569 | BE36: =Summary!BE19 -> 12577.56569 | BF36: =Summary!BF19 -> 12577.56569 | BG36: =Summary!BG19 -> 12577.56569 | BH36: =Summary!BH19 -> 12577.56569 | BI36: =Summary!BI19 -> 12577.56569 | BJ36: =Summary!BJ19 -> 12577.56569 | BK36: =Summary!BK19 -> 12577.56569 | BL36: =Summary!BL19 -> 12577.56569 | BM36: =Summary!BM19 -> 12577.56569 | BN36: =Summary!BN19 -> 12577.56569 | BO36: =Summary!BO19 -> 12577.56569 | BP36: =Summary!BP19 -> 12577.56569 | BQ36: =Summary!BQ19 -> 12577.56569 | BR36: =Summary!BR19 -> 12577.56569 | BS36: =Summary!BS19 -> 12577.56569 | BT36: =Summary!BT19 -> 12577.56569 | BU36: =Summary!BU19 -> 12577.56569 | BV36: =Summary!BV19 -> 12577.56569 | BW36: =Summary!BW19 -> 12577.56569 | BX36: =Summary!BX19 -> 12577.56569 | BY36: =Summary!BY19 -> 12577.56569 | BZ36: =Summary!BZ19 -> 12577.56569 | CA36: =Summary!CA19 -> 12577.56569 | CB36: =Summary!CB19 -> 12577.56569 | CC36: =Summary!CC19 -> 12577.56569 | CD36: =Summary!CD19 -> 12577.56569
A37: Industrial A2 | B37: =Summary!B20 -> 1734.538802 | C37: =Summary!C20 -> 1840.626798 | D37: =Summary!D20 -> 1770.018862 | E37: =Summary!E20 -> 1758.933246 | F37: =Summary!F20 -> 1736.023586 | G37: =Summary!G20 -> 1707.804035 | H37: =Summary!H20 -> 1684.449829 | I37: =Summary!I20 -> 1664.960008 | J37: =Summary!J20 -> 1648.70572 | K37: =Summary!K20 -> 1649.094688 | L37: =Summary!L20 -> 1631.384536 | M37: =Summary!M20 -> 1626.325207 | N37: =Summary!N20 -> 1635.837389 | O37: =Summary!O20 -> 1645.655998 | P37: =Summary!P20 -> 1645.385104 | Q37: =Summary!Q20 -> 1653.672883 | R37: =Summary!R20 -> 1682.826687 | S37: =Summary!S20 -> 1691.07639 | T37: =Summary!T20 -> 1691.345572 | U37: =Summary!U20 -> 1705.634412 | V37: =Summary!V20 -> 1707.198729 | W37: =Summary!W20 -> 1716.838598 | X37: =Summary!X20 -> 1726.530145 | Y37: =Summary!Y20 -> 1736.272822 | Z37: =Summary!Z20 -> 1746.066847 | AA37: =Summary!AA20 -> 1757.008863 | AB37: =Summary!AB20 -> 1766.912698 | AC37: =Summary!AC20 -> 1776.868577 | AD37: =Summary!AD20 -> 1786.876719 | AE37: =Summary!AE20 -> 1796.937346 | AF37: =Summary!AF20 -> 1811.652231 | AG37: =Summary!AG20 -> 1821.845509 | AH37: =Summary!AH20 -> 1832.092077 | AI37: =Summary!AI20 -> 1840.782108 | AJ37: =Summary!AJ20 -> 1849.509499 | AK37: =Summary!AK20 -> 1859.447352 | AL37: =Summary!AL20 -> 1868.255334 | AM37: =Summary!AM20 -> 1877.101013 | AN37: =Summary!AN20 -> 1885.984492 | AO37: =Summary!AO20 -> 1894.905871 | AP37: =Summary!AP20 -> 1905.534375 | AQ37: =Summary!AQ20 -> 1914.539747 | AR37: =Summary!AR20 -> 1923.583354 | AS37: =Summary!AS20 -> 1932.665294 | AT37: =Summary!AT20 -> 1941.785664 | AU37: =Summary!AU20 -> 1947.91174 | AV37: =Summary!AV20 -> 1957.09496 | AW37: =Summary!AW20 -> 1966.316836 | AX37: =Summary!AX20 -> 1975.577461 | AY37: =Summary!AY20 -> 1984.876926 | AZ37: =Summary!AZ20 -> 1997.87402 | BA37: =Summary!BA20 -> 2007.26864 | BB37: =Summary!BB20 -> 2016.702439 | BC37: =Summary!BC20 -> 2026.175505 | BD37: =Summary!BD20 -> 2035.687922 | BE37: =Summary!BE20 -> 2045.239776 | BF37: =Summary!BF20 -> 2054.831147 | BG37: =Summary!BG20 -> 2064.462118 | BH37: =Summary!BH20 -> 2074.132768 | BI37: =Summary!BI20 -> 2083.843175 | BJ37: =Summary!BJ20 -> 2093.593416 | BK37: =Summary!BK20 -> 2103.383564 | BL37: =Summary!BL20 -> 2113.213692 | BM37: =Summary!BM20 -> 2123.083872 | BN37: =Summary!BN20 -> 2132.994174 | BO37: =Summary!BO20 -> 2142.944663 | BP37: =Summary!BP20 -> 2152.935406 | BQ37: =Summary!BQ20 -> 2162.966466 | BR37: =Summary!BR20 -> 2173.037904 | BS37: =Summary!BS20 -> 2183.149778 | BT37: =Summary!BT20 -> 2193.302147 | BU37: =Summary!BU20 -> 2203.495064 | BV37: =Summary!BV20 -> 2213.728582 | BW37: =Summary!BW20 -> 2224.002751 | BX37: =Summary!BX20 -> 2234.317617 | BY37: =Summary!BY20 -> 2244.673226 | BZ37: =Summary!BZ20 -> 2255.069619 | CA37: =Summary!CA20 -> 2265.506837 | CB37: =Summary!CB20 -> 2275.984915 | CC37: =Summary!CC20 -> 2286.503888 | CD37: =Summary!CD20 -> 2297.063786
A38: ATCO | B38: =Summary!B21 -> 26685.0233 | C38: =Summary!C21 -> 28028.07884 | D38: =Summary!D21 -> 27577.64439 | E38: =Summary!E21 -> 27653.7247 | F38: =Summary!F21 -> 28461.17274 | G38: =Summary!G21 -> 28569.73585 | H38: =Summary!H21 -> 28330.79499 | I38: =Summary!I21 -> 28076.9334 | J38: =Summary!J21 -> 27860.0329 | K38: =Summary!K21 -> 27854.49096 | L38: =Summary!L21 -> 27574.46704 | M38: =Summary!M21 -> 27421.05054 | N38: =Summary!N21 -> 27475.87934 | O38: =Summary!O21 -> 27540.44902 | P38: =Summary!P21 -> 27441.29752 | Q38: =Summary!Q21 -> 27456.52463 | R38: =Summary!R21 -> 27900.26599 | S38: =Summary!S21 -> 27991.3947 | T38: =Summary!T21 -> 27964.41118 | U38: =Summary!U21 -> 28160.01541 | V38: =Summary!V21 -> 28091.04893 | W38: =Summary!W21 -> 28171.15781 | X38: =Summary!X21 -> 28253.11839 | Y38: =Summary!Y21 -> 28337.05418 | Z38: =Summary!Z21 -> 28421.96899 | AA38: =Summary!AA21 -> 28525.85723 | AB38: =Summary!AB21 -> 28617.0103 | AC38: =Summary!AC21 -> 28709.93961 | AD38: =Summary!AD21 -> 28804.23075 | AE38: =Summary!AE21 -> 28900.18134 | AF38: =Summary!AF21 -> 29066.09354 | AG38: =Summary!AG21 -> 29176.77073 | AH38: =Summary!AH21 -> 29289.16145 | AI38: =Summary!AI21 -> 29393.88468 | AJ38: =Summary!AJ21 -> 29499.86007 | AK38: =Summary!AK21 -> 29624.36942 | AL38: =Summary!AL21 -> 29735.83901 | AM38: =Summary!AM21 -> 29848.43133 | AN38: =Summary!AN21 -> 29962.24844 | AO38: =Summary!AO21 -> 30077.11728 | AP38: =Summary!AP21 -> 30218.04229 | AQ38: =Summary!AQ21 -> 30340.00446 | AR38: =Summary!AR21 -> 30463.21471 | AS38: =Summary!AS21 -> 30587.77816 | AT38: =Summary!AT21 -> 30713.80928 | AU38: =Summary!AU21 -> 30796.87131 | AV38: =Summary!AV21 -> 30918.19013 | AW38: =Summary!AW21 -> 31040.68295 | AX38: =Summary!AX21 -> 31165.05189 | AY38: =Summary!AY21 -> 31290.86461 | AZ38: =Summary!AZ21 -> 31470.86547 | BA38: =Summary!BA21 -> 31608.36727 | BB38: =Summary!BB21 -> 31747.21413 | BC38: =Summary!BC21 -> 31887.25102 | BD38: =Summary!BD21 -> 32029.27178 | BE38: =Summary!BE21 -> 32173.06848 | BF38: =Summary!BF21 -> 32318.38954 | BG38: =Summary!BG21 -> 32465.34395 | BH38: =Summary!BH21 -> 32613.79816 | BI38: =Summary!BI21 -> 32763.78176 | BJ38: =Summary!BJ21 -> 32915.28967 | BK38: =Summary!BK21 -> 33068.23671 | BL38: =Summary!BL21 -> 33223.45535 | BM38: =Summary!BM21 -> 33380.29102 | BN38: =Summary!BN21 -> 33539.66854 | BO38: =Summary!BO21 -> 33700.90024 | BP38: =Summary!BP21 -> 33863.6073 | BQ38: =Summary!BQ21 -> 34027.81438 | BR38: =Summary!BR21 -> 34194.16105 | BS38: =Summary!BS21 -> 34362.40514 | BT38: =Summary!BT21 -> 34533.00849 | BU38: =Summary!BU21 -> 34705.43261 | BV38: =Summary!BV21 -> 34880.23307 | BW38: =Summary!BW21 -> 35057.26903 | BX38: =Summary!BX21 -> 35236.57614 | BY38: =Summary!BY21 -> 35418.18705 | BZ38: =Summary!BZ21 -> 35601.69529 | CA38: =Summary!CA21 -> 35787.22928 | CB38: =Summary!CB21 -> 35975.29508 | CC38: =Summary!CC21 -> 36166.2245 | CD38: =Summary!CD21 -> 36359.41444
A40: Average annual tariff ($ per GJ) | C40: =C19*1000000/(C38*1000) -> 6.692795318 | D40: =D19*1000000/(D38*1000) -> 6.796022883 | E40: 6.748511298 | F40: 6.595715673 | G40: 7.346678996 | H40: 7.850676224 | I40: 7.975809145 | J40: 8.151757599 | K40: 8.087017373 | L40: 8.180394965 | M40: 8.294562977 | N40: 8.281955447 | O40: 8.351417302 | P40: 8.464293691 | Q40: 8.532199851 | R40: 8.471968351 | S40: 8.510262858 | T40: 8.585818809 | U40: 8.577871298 | V40: 8.465811845 | W40: 8.496237549 | X40: 8.523750529 | Y40: 8.55304862 | Z40: 8.583555609 | AA40: 8.603945678 | AB40: 8.640190152 | AC40: 8.668499297 | AD40: 8.694667609 | AE40: 8.717529513 | AF40: 8.471889486 | AG40: 8.495845266 | AH40: 8.520180869 | AI40: 8.543593878 | AJ40: 8.560603212 | AK40: 8.573848419 | AL40: 8.592697133 | AM40: 8.607601096 | AN40: 8.619485847 | AO40: 8.624758194 | AP40: 8.629131542 | AQ40: 8.633441763 | AR40: 8.638898172 | AS40: 8.642687276 | AT40: 8.641610244 | AU40: 8.643917208 | AV40: 8.643602712 | AW40: 8.641236713 | AX40: 8.634460189 | AY40: 8.628546038 | AZ40: 8.608388639 | BA40: 8.601569333 | BB40: 8.591488085 | BC40: 8.576101736 | BD40: 8.557821465 | BE40: 0 | BF40: 0 | BG40: 0 | BH40: 0 | BI40: 0 | BJ40: 0 | BK40: 0 | BL40: 0 | BM40: 0 | BN40: 0 | BO40: 0 | BP40: =BP19*1000000/(BP38*1000) -> 0 | BQ40: 0 | BR40: 0 | BS40: 0 | BT40: 0 | BU40: 0 | BV40: 0 | BW40: 0 | BX40: 0 | BY40: 0 | BZ40: 0 | CA40: 0 | CB40: 0 | CC40: 0 | CD40: 0
A42: NPV of revenue | B42: =NPV(G10,G19:BD19) -> 4670.674381
A45: Target Tariff $/GJ | G45: 8.371484142 | H45: =G45 -> 8.371484142 | I45: 8.371484142 | J45: 8.371484142 | K45: 8.371484142 | L45: 8.371484142 | M45: 8.371484142 | N45: 8.371484142 | O45: 8.371484142 | P45: 8.371484142 | Q45: 8.371484142 | R45: 8.371484142 | S45: 8.371484142 | T45: 8.371484142 | U45: 8.371484142 | V45: 8.371484142 | W45: 8.371484142 | X45: 8.371484142 | Y45: 8.371484142 | Z45: 8.371484142 | AA45: 8.371484142 | AB45: 8.371484142 | AC45: 8.371484142 | AD45: 8.371484142 | AE45: 8.371484142 | AF45: 8.371484142 | AG45: 8.371484142 | AH45: 8.371484142 | AI45: 8.371484142 | AJ45: 8.371484142 | AK45: 8.371484142 | AL45: 8.371484142 | AM45: 8.371484142 | AN45: 8.371484142 | AO45: 8.371484142 | AP45: 8.371484142 | AQ45: 8.371484142 | AR45: 8.371484142 | AS45: 8.371484142 | AT45: 8.371484142 | AU45: 8.371484142 | AV45: 8.371484142 | AW45: 8.371484142 | AX45: 8.371484142 | AY45: 8.371484142 | AZ45: 8.371484142 | BA45: 8.371484142 | BB45: 8.371484142 | BC45: 8.371484142 | BD45: 8.371484142
A46: Difference in tariff $/GJ | G46: =G40-G45 -> -1.024805147 | H46: -0.5208079184 | I46: -0.3956749975 | J46: -0.2197265436 | K46: -0.2844667696 | L46: -0.1910891776 | M46: -0.07692116501 | N46: -0.08952869515 | O46: -0.02006684 | P46: 0.09280954826 | Q46: 0.1607157084 | R46: 0.1004842087 | S46: 0.1387787155 | T46: 0.2143346662 | U46: 0.2063871554 | V46: 0.09432770239 | W46: 0.1247534062 | X46: 0.1522663868 | Y46: 0.1815644773 | Z46: 0.2120714665 | AA46: 0.2324615359 | AB46: 0.2687060092 | AC46: 0.2970151542 | AD46: 0.3231834663 | AE46: 0.3460453707 | AF46: 0.100405344 | AG46: 0.1243611237 | AH46: 0.1486967261 | AI46: 0.1721097354 | AJ46: 0.1891190691 | AK46: 0.2023642765 | AL46: 0.221212991 | AM46: 0.2361169536 | AN46: 0.2480017042 | AO46: 0.2532740519 | AP46: 0.2576473997 | AQ46: 0.2619576204 | AR46: 0.2674140293 | AS46: 0.2712031331 | AT46: 0.2701261014 | AU46: 0.2724330652 | AV46: 0.2721185696 | AW46: 0.2697525704 | AX46: 0.2629760466 | AY46: 0.2570618955 | AZ46: 0.2369044963 | BA46: 0.2300851901 | BB46: 0.2200039429 | BC46: 0.204617593 | BD46: 0.1863373228
A47: Dollar adjustment $m | G47: =G46*G38/1000 -> -29.27841234 | H47: -14.75490237 | I47: -11.10934055 | J47: -6.121588734 | K47: -7.923677063 | L47: -5.269182229 | M47: -2.109259154 | N47: -2.459879625 | O47: -0.5526497839 | P47: 2.546814426 | Q47: 4.412694806 | R47: 2.80353615 | S47: 3.884609801 | T47: 5.993742734 | U47: 5.811865475 | V47: 2.649764103 | W47: 3.514447894 | X47: 4.302000253 | Y47: 5.145002428 | Z47: 6.027488644 | AA47: 6.631164583 | AB47: 7.689562633 | AC47: 8.527287141 | AD47: 9.309051139 | AE47: 10.00077397 | AF47: 2.91839112 | AG47: 3.628455994 | AH47: 4.355202418 | AI47: 5.058973715 | AJ47: 5.578986076 | AK47: 5.994914082 | AL47: 6.577953889 | AM47: 7.047720676 | AN47: 7.430688675 | AO47: 7.617753362 | AP47: 7.785600019 | AQ47: 7.94779537 | AR47: 8.146290991 | AS47: 8.295501273 | AT47: 8.296601561 | AU47: 8.390086051 | AV47: 8.413413673 | AW47: 8.373304013 | AX47: 8.195662137 | AY47: 8.043688966 | AZ47: 7.455589531 | BA47: 7.272617191 | BB47: 6.984512285 | BC47: 6.524692553 | BD47: 5.968248753
A49: =NPV(G10,G47:BD47) -> -4.91242307e-13
B51: 2020 | C51: =B51+1 -> 2021 | D51: =C51+1 -> 2022 | E51: =D51+1 -> 2023 | F51: =E51+1 -> 2024 | G51: =F51+1 -> 2025 | H51: =G51+1 -> 2026 | I51: =H51+1 -> 2027 | J51: =I51+1 -> 2028 | K51: =J51+1 -> 2029 | L51: =K51+1 -> 2030 | M51: =L51+1 -> 2031 | N51: =M51+1 -> 2032 | O51: =N51+1 -> 2033 | P51: =O51+1 -> 2034 | Q51: =P51+1 -> 2035 | R51: =Q51+1 -> 2036 | S51: =R51+1 -> 2037 | T51: =S51+1 -> 2038 | U51: =T51+1 -> 2039 | V51: =U51+1 -> 2040 | W51: =V51+1 -> 2041 | X51: =W51+1 -> 2042 | Y51: =X51+1 -> 2043 | Z51: =Y51+1 -> 2044 | AA51: =Z51+1 -> 2045 | AB51: =AA51+1 -> 2046 | AC51: =AB51+1 -> 2047 | AD51: =AC51+1 -> 2048 | AE51: =AD51+1 -> 2049 | AF51: =AE51+1 -> 2050 | AG51: =AF51+1 -> 2051 | AH51: =AG51+1 -> 2052 | AI51: =AH51+1 -> 2053 | AJ51: =AI51+1 -> 2054 | AK51: =AJ51+1 -> 2055 | AL51: =AK51+1 -> 2056 | AM51: =AL51+1 -> 2057 | AN51: =AM51+1 -> 2058 | AO51: =AN51+1 -> 2059 | AP51: =AO51+1 -> 2060 | AQ51: =AP51+1 -> 2061 | AR51: =AQ51+1 -> 2062 | AS51: =AR51+1 -> 2063 | AT51: =AS51+1 -> 2064 | AU51: =AT51+1 -> 2065 | AV51: =AU51+1 -> 2066 | AW51: =AV51+1 -> 2067 | AX51: =AW51+1 -> 2068 | AY51: =AX51+1 -> 2069 | AZ51: =AY51+1 -> 2070 | BA51: =AZ51+1 -> 2071 | BB51: =BA51+1 -> 2072 | BC51: =BB51+1 -> 2073 | BD51: =BC51+1 -> 2074
A52: Opening RAB (Real RAB start period) | C52: =C3 -> 1538.343817 | D52: =D3 -> 1556.793116 | E52: 1575.104854 | F52: 1593.40554 | G52: =F57 -> 1616.152477 | H52: =G57 -> 1615.804406 | I52: 1617.314742 | J52: 1614.576787 | K52: 1618.326822 | L52: 1619.640078 | M52: 1627.086262 | N52: 1636.485135 | O52: 1646.200634 | P52: 1656.159618 | Q52: 1667.711224 | R52: 1679.963392 | S52: 1689.435505 | T52: 1698.900393 | U52: 1709.329888 | V52: 1718.937445 | W52: 1729.854212 | X52: 1740.915776 | Y52: 1752.113779 | Z52: 1763.438485 | AA52: 1774.88776 | AB52: 1786.311611 | AC52: 1797.814127 | AD52: 1809.384537 | AE52: 1821.014926 | AF52: 1832.694614 | AG52: 1843.850847 | AH52: 1854.915667 | AI52: 1865.871034 | AJ52: 1876.774661 | AK52: 1887.614055 | AL52: 1898.234095 | AM52: 1908.73252 | AN52: 1919.094686 | AO52: 1929.304458 | AP52: 1939.346358 | AQ52: 1948.998797 | AR52: 1958.400546 | AS52: 1967.530048 | AT52: 1976.363912 | AU52: 1984.876752 | AV52: 1993.407075 | AW52: 2001.640557 | AX52: 2009.55413 | AY52: 2017.117999 | AZ52: 2024.304498 | BA52: 2030.651425 | BB52: 2036.47087 | BC52: 2041.72784 | BD52: 2046.386991
A53: Real capital expenditure (capex as incurred) | C53: =C4 -> 84.23746264 | D53: =D4 -> 85.26567214 | E53: 86.72374176 | F53: 93.90949304 | G53: 91.32236033 | H53: 89.4957495 | I53: 82.67972718 | J53: 84.12557509 | K53: 82.65558911 | L53: 86.05580024 | M53: 86.05580024 | N53: 86.05580024 | O53: 86.05580024 | P53: 86.05580024 | Q53: 86.05580024 | R53: 86.05580024 | S53: 86.05580024 | T53: 86.05580024 | U53: 86.05580024 | V53: 86.05580024 | W53: 86.05580024 | X53: 86.05580024 | Y53: 86.05580024 | Z53: 86.05580024 | AA53: 86.05580024 | AB53: 86.05580024 | AC53: 86.05580024 | AD53: 86.05580024 | AE53: 86.05580024 | AF53: 86.05580024 | AG53: 86.05580024 | AH53: 86.05580024 | AI53: 86.05580024 | AJ53: 86.05580024 | AK53: 86.05580024 | AL53: 86.05580024 | AM53: 86.05580024 | AN53: 86.05580024 | AO53: 86.05580024 | AP53: 86.05580024 | AQ53: 86.05580024 | AR53: 86.05580024 | AS53: 86.05580024 | AT53: 86.05580024 | AU53: 86.05580024 | AV53: 86.05580024 | AW53: 86.05580024 | AX53: 86.05580024 | AY53: 86.05580024 | AZ53: 86.05580024 | BA53: 86.05580024 | BB53: 86.05580024 | BC53: 86.05580024 | BD53: 86.05580024
A54: Real straight line Depreciation | C54: =C5 -> -65.21878211 | D54: =D5 -> -66.95409637 | E54: -68.42321731 | F54: -71.16255596 | G54: -62.39201184 | H54: -71.89199653 | I54: -72.23409187 | J54: -71.57699418 | K54: -70.3394591 | L54: -69.75822517 | M54: -70.56080372 | N54: -69.61486331 | O54: -70.97114593 | P54: -72.24365968 | Q54: -73.30563416 | R54: -74.45376386 | S54: -75.44468894 | T54: -76.53681475 | U54: -77.21850063 | V54: -72.78240234 | W54: -73.39455211 | X54: -73.97253372 | Y54: -74.64836256 | Z54: -75.40249681 | AA54: -76.06798544 | AB54: -77.11336952 | AC54: -78.00023816 | AD54: -78.88270911 | AE54: -79.72890556 | AF54: -73.41468919 | AG54: -74.14828372 | AH54: -74.94595757 | AI54: -75.69440648 | AJ54: -76.30344127 | AK54: -76.98841818 | AL54: -77.76405588 | AM54: -78.47096258 | AN54: -79.13329522 | AO54: -79.63851311 | AP54: -80.36152648 | AQ54: -80.9553656 | AR54: -81.6227489 | AS54: -82.2823025 | AT54: -82.83576862 | AU54: -83.15373904 | AV54: -83.73121244 | AW54: -84.28114581 | AX54: -84.73385861 | AY54: -85.24461373 | AZ54: -85.78754336 | BA54: -86.40994851 | BB54: -86.96655491 | BC54: -87.38651952 | BD54: -87.74510074
A55: Bring forward real depreciation | G55: -29.27841976 | H55: -16.09341711 | I55: -13.18359025 | J55: -8.79854624 | K55: -11.00287345 | L55: -8.851391645 | M55: -6.096123353 | N55: -6.725437342 | O55: -5.12567106 | P55: -2.260534671 | Q55: -0.4979980595 | R55: -2.129923451 | S55: -1.146222479 | T55: 0.9105091568 | U55: 0.7702572039 | V55: -2.356630693 | W55: -1.599683845 | X55: -0.8852634578 | Y55: -0.08273244267 | Z55: 0.7959715342 | AA55: 1.436036518 | AB55: 2.560085154 | AC55: 3.514847834 | AD55: 4.457298427 | AE55: 5.352793408 | AF55: -1.484878377 | AG55: -0.8426969682 | AH55: -0.1544757133 | AI55: 0.5422334929 | AJ55: 1.08703488 | AK55: 1.552658333 | AL55: 2.206680268 | AM55: 2.777328787 | AN55: 3.287266581 | AO55: 3.624613642 | AP55: 3.958165004 | AQ55: 4.301313867 | AR55: 4.69645057 | AS55: 5.060366208 | AT55: 5.292808805 | AU55: 5.628262071 | AV55: 5.908894223 | AW55: 6.138918617 | AX55: 6.241926708 | AY55: 6.375312677 | AZ55: 6.078670322 | BA55: 6.173593608 | BB55: 6.167723889 | BC55: 5.989871002 | BD55: 5.707263232
A56: Disposals | C56: =C6 -> -0.5695437146 | D56: =D6 -> 0 | E56: 0 | F56: 0 | G56: 0 | H56: 0 | I56: 0 | J56: 0 | K56: 0 | L56: 0 | M56: 0 | N56: 0 | O56: 0 | P56: 0 | Q56: 0 | R56: 0 | S56: 0 | T56: 0 | U56: 0 | V56: 0 | W56: 0 | X56: 0 | Y56: 0 | Z56: 0 | AA56: 0 | AB56: 0 | AC56: 0 | AD56: 0 | AE56: 0 | AF56: 0 | AG56: 0 | AH56: 0 | AI56: 0 | AJ56: 0 | AK56: 0 | AL56: 0 | AM56: 0 | AN56: 0 | AO56: 0 | AP56: 0 | AQ56: 0 | AR56: 0 | AS56: 0 | AT56: 0 | AU56: 0 | AV56: 0 | AW56: 0 | AX56: 0 | AY56: 0 | AZ56: 0 | BA56: 0 | BB56: 0 | BC56: 0 | BD56: 0
A57: Real Residual Capital Base (end period) | C57: =SUM(C52:C56) -> 1556.792953 | D57: =SUM(D52:D56) -> 1575.104691 | E57: 1593.405378 | F57: 1616.152477 | G57: 1615.804406 | H57: 1617.314742 | I57: 1614.576787 | J57: 1618.326822 | K57: 1619.640078 | L57: 1627.086262 | M57: 1636.485135 | N57: 1646.200634 | O57: 1656.159618 | P57: 1667.711224 | Q57: 1679.963392 | R57: 1689.435505 | S57: 1698.900393 | T57: 1709.329888 | U57: 1718.937445 | V57: 1729.854212 | W57: 1740.915776 | X57: 1752.113779 | Y57: 1763.438485 | Z57: 1774.88776 | AA57: 1786.311611 | AB57: 1797.814127 | AC57: 1809.384537 | AD57: 1821.014926 | AE57: 1832.694614 | AF57: 1843.850847 | AG57: 1854.915667 | AH57: 1865.871034 | AI57: 1876.774661 | AJ57: 1887.614055 | AK57: 1898.234095 | AL57: 1908.73252 | AM57: 1919.094686 | AN57: 1929.304458 | AO57: 1939.346358 | AP57: 1948.998797 | AQ57: 1958.400546 | AR57: 1967.530048 | AS57: 1976.363912 | AT57: 1984.876752 | AU57: 1993.407075 | AV57: 2001.640557 | AW57: 2009.55413 | AX57: 2017.117999 | AY57: 2024.304498 | AZ57: 2030.651425 | BA57: 2036.47087 | BB57: 2041.72784 | BC57: 2046.386991 | BD57: 2050.404954
A60: Return on capital (real) $m | C60: =C52*C10 -> 45.86436568 | D60: =D52*D10 -> 46.41441527 | E60: 46.96036361 | F60: 47.50598246 | G60: 73.88485972 | H60: 73.86894712 | I60: 73.93799441 | J60: 73.81282465 | K60: 73.98426317 | L60: 74.04430068 | M60: 74.38471424 | N60: 74.81439797 | O60: 75.25855676 | P60: 75.71384677 | Q60: 76.24194594 | R60: 76.80207237 | S60: 77.23510437 | T60: 77.6678061 | U60: 78.14460625 | V60: 78.58383027 | W60: 79.08290683 | X60: 79.58860301 | Y60: 80.10053669 | Z60: 80.61826275 | AA60: 81.1416837 | AB60: 81.66394238 | AC60: 82.18979732 | AD60: 82.71875615 | AE60: 83.25045703 | AF60: 83.78441167 | AG60: 84.29443576 | AH60: 84.80028075 | AI60: 85.30112195 | AJ60: 85.7995978 | AK60: 86.29513711 | AL60: 86.78064836 | AM60: 87.26059975 | AN60: 87.73432189 | AO60: 88.20107707 | AP60: 88.66015778 | AQ60: 89.10143365 | AR60: 89.53124883 | AS60: 89.94861785 | AT60: 90.35247132 | AU60: 90.74164872 | AV60: 91.13162538 | AW60: 91.50803149 | AX60: 91.86981247 | AY60: 92.21560618 | AZ60: 92.54414788 | BA60: 92.83430727 | BB60: 93.10035204 | BC60: 93.34068235 | BD60: 93.55368253
A61: Depreciation (real) $m | C61: =-SUM(C54:C55) -> 65.21878211 | D61: =-SUM(D54:D55) -> 66.95409637 | E61: 68.42321731 | F61: 71.16255596 | G61: 91.67043159 | H61: 87.98541364 | I61: 85.41768213 | J61: 80.37554042 | K61: 81.34233255 | L61: 78.60961682 | M61: 76.65692707 | N61: 76.34030065 | O61: 76.09681699 | P61: 74.50419435 | Q61: 73.80363222 | R61: 76.58368731 | S61: 76.59091142 | T61: 75.6263056 | U61: 76.44824342 | V61: 75.13903303 | W61: 74.99423595 | X61: 74.85779717 | Y61: 74.731095 | Z61: 74.60652528 | AA61: 74.63194892 | AB61: 74.55328437 | AC61: 74.48539033 | AD61: 74.42541068 | AE61: 74.37611215 | AF61: 74.89956757 | AG61: 74.99098069 | AH61: 75.10043329 | AI61: 75.15217298 | AJ61: 75.21640639 | AK61: 75.43575984 | AL61: 75.55737561 | AM61: 75.69363379 | AN61: 75.84602864 | AO61: 76.01389947 | AP61: 76.40336147 | AQ61: 76.65405173 | AR61: 76.92629833 | AS61: 77.22193629 | AT61: 77.54295981 | AU61: 77.52547697 | AV61: 77.82231821 | AW61: 78.1422272 | AX61: 78.49193191 | AY61: 78.86930105 | AZ61: 79.70887304 | BA61: 80.2363549 | BB61: 80.79883102 | BC61: 81.39664852 | BD61: 82.0378375
A62: Operating expenses (inc UAFG) real$m | C62: =SUM(C16:C17) -> 76.50304704 | D62: =SUM(D16:D17) -> 74.04979066 | E62: 71.23789266 | F62: 69.05326471 | G62: 73.61579928 | H62: 75.31644027 | I62: 75.68992623 | J62: 79.04145856 | K62: 77.85683364 | L62: 78.18529606 | M62: 78.51324848 | N62: 78.85918956 | O62: 79.19905849 | P62: 79.50634589 | Q62: 79.80628241 | R62: 80.18087466 | S62: 80.50350103 | T62: 80.80951301 | U62: 81.14827278 | V62: 81.44090732 | W62: 81.75725808 | X62: 82.07413244 | Y62: 82.39156799 | Z62: 82.70927463 | AA62: 83.0301288 | AB62: 83.34962115 | AC62: 83.6696165 | AD62: 83.98999415 | AE62: 84.31084066 | AF62: 84.6423619 | AG62: 84.96745704 | AH62: 85.29303657 | AI62: 85.61714457 | AJ62: 85.9416066 | AK62: 86.26904183 | AL62: 86.5950808 | AM62: 86.92143602 | AN62: 87.24813717 | AO62: 87.57513383 | AP62: 87.90634258 | AQ62: 88.23538083 | AR62: 88.56477168 | AS62: 88.8945457 | AT62: 89.22473619 | AU62: 89.54839414 | AV62: 89.87719483 | AW62: 90.20632642 | AX62: 90.53599332 | AY62: 90.86606963 | AZ62: 91.20483034 | BA62: 91.53828319 | BB62: 91.87211661 | BC62: 92.20628543 | BD62: 92.54102075
A63: Tax and imputation credits | C63: =C18 -> 0 | D63: =D18 -> 0 | E63: 0 | F63: 0 | G63: 0 | H63: 0 | I63: 0 | J63: 0 | K63: 0 | L63: 0 | M63: 0 | N63: 0 | O63: 0 | P63: 0 | Q63: 0 | R63: 0 | S63: 0 | T63: 0 | U63: 0 | V63: 0 | W63: 0 | X63: 0 | Y63: 0 | Z63: 0 | AA63: 0 | AB63: 0 | AC63: 0 | AD63: 0 | AE63: 0 | AF63: 0 | AG63: 0 | AH63: 0 | AI63: 0 | AJ63: 0 | AK63: 0 | AL63: 0 | AM63: 0 | AN63: 0 | AO63: 0 | AP63: 0 | AQ63: 0 | AR63: 0 | AS63: 0 | AT63: 0 | AU63: 0 | AV63: 0 | AW63: 0 | AX63: 0 | AY63: 0 | AZ63: 0 | BA63: 0 | BB63: 0 | BC63: 0 | BD63: 0
A64: Revenue-capital (real) $m | C64: =SUM(C60:C63) -> 187.5861948 | D64: =SUM(D60:D63) -> 187.4183023 | E64: 186.6214736 | F64: 187.7218031 | G64: 239.1710906 | H64: 237.170801 | I64: 235.0456028 | J64: 233.2298236 | K64: 233.1834294 | L64: 230.8392136 | M64: 229.5548898 | N64: 230.0138882 | O64: 230.5544322 | P64: 229.724387 | Q64: 229.8518606 | R64: 233.5666343 | S64: 234.3295168 | T64: 234.1036247 | U64: 235.7411225 | V64: 235.1637706 | W64: 235.8344009 | X64: 236.5205326 | Y64: 237.2231997 | Z64: 237.9340627 | AA64: 238.8037614 | AB64: 239.5668479 | AC64: 240.3448042 | AD64: 241.134161 | AE64: 241.9374098 | AF64: 243.3263411 | AG64: 244.2528735 | AH64: 245.1937506 | AI64: 246.0704395 | AJ64: 246.9576108 | AK64: 247.9999388 | AL64: 248.9331048 | AM64: 249.8756696 | AN64: 250.8284877 | AO64: 251.7901104 | AP64: 252.9698618 | AQ64: 253.9908662 | AR64: 255.0223188 | AS64: 256.0650998 | AT64: 257.1201673 | AU64: 257.8155198 | AV64: 258.8311384 | AW64: 259.8565851 | AX64: 260.8977377 | AY64: 261.9509769 | AZ64: 263.4578512 | BA64: 264.6089454 | BB64: 265.7712997 | BC64: 266.9436163 | BD64: 268.1325408
A65: Gas demand TJ | C65: =C38 -> 28028.07884 | D65: =D38 -> 27577.64439 | E65: 27653.7247 | F65: 28461.17274 | G65: 28569.73585 | H65: 28330.79499 | I65: 28076.9334 | J65: 27860.0329 | K65: 27854.49096 | L65: 27574.46704 | M65: 27421.05054 | N65: 27475.87934 | O65: 27540.44902 | P65: 27441.29752 | Q65: 27456.52463 | R65: 27900.26599 | S65: 27991.3947 | T65: 27964.41118 | U65: 28160.01541 | V65: 28091.04893 | W65: 28171.15781 | X65: 28253.11839 | Y65: 28337.05418 | Z65: 28421.96899 | AA65: 28525.85723 | AB65: 28617.0103 | AC65: 28709.93961 | AD65: 28804.23075 | AE65: 28900.18134 | AF65: 29066.09354 | AG65: 29176.77073 | AH65: 29289.16145 | AI65: 29393.88468 | AJ65: 29499.86007 | AK65: 29624.36942 | AL65: 29735.83901 | AM65: 29848.43133 | AN65: 29962.24844 | AO65: 30077.11728 | AP65: 30218.04229 | AQ65: 30340.00446 | AR65: 30463.21471 | AS65: 30587.77816 | AT65: 30713.80928 | AU65: 30796.87131 | AV65: 30918.19013 | AW65: 31040.68295 | AX65: 31165.05189 | AY65: 31290.86461 | AZ65: 31470.86547 | BA65: 31608.36727 | BB65: 31747.21413 | BC65: 31887.25102 | BD65: 32029.27178
A66: Annual average tariff | C66: =C64*1000/C65 -> 6.692795318 | D66: =D64*1000/D65 -> 6.796022883 | E66: 6.748511298 | F66: 6.595715673 | G66: 8.371484142 | H66: 8.371484142 | I66: 8.371484142 | J66: 8.371484142 | K66: 8.371484142 | L66: 8.371484142 | M66: 8.371484142 | N66: 8.371484142 | O66: 8.371484142 | P66: 8.371484142 | Q66: 8.371484142 | R66: 8.371484142 | S66: 8.371484142 | T66: 8.371484142 | U66: 8.371484142 | V66: 8.371484142 | W66: 8.371484142 | X66: 8.371484142 | Y66: 8.371484142 | Z66: 8.371484142 | AA66: 8.371484142 | AB66: 8.371484142 | AC66: 8.371484142 | AD66: 8.371484142 | AE66: 8.371484142 | AF66: 8.371484142 | AG66: 8.371484142 | AH66: 8.371484142 | AI66: 8.371484142 | AJ66: 8.371484142 | AK66: 8.371484142 | AL66: 8.371484142 | AM66: 8.371484142 | AN66: 8.371484142 | AO66: 8.371484142 | AP66: 8.371484142 | AQ66: 8.371484142 | AR66: 8.371484142 | AS66: 8.371484142 | AT66: 8.371484142 | AU66: 8.371484142 | AV66: 8.371484142 | AW66: 8.371484142 | AX66: 8.371484142 | AY66: 8.371484142 | AZ66: 8.371484142 | BA66: 8.371484142 | BB66: 8.371484142 | BC66: 8.371484142 | BD66: 8.371484142
G68: =G66-G45 -> 0 | H68: 0 | I68: 0 | J68: 0 | K68: 0 | L68: 0 | M68: 0 | N68: 0 | O68: 0 | P68: 0 | Q68: 0 | R68: 0 | S68: 0 | T68: 0 | U68: 0 | V68: 0 | W68: 0 | X68: 0 | Y68: 0 | Z68: 0 | AA68: 0 | AB68: 0 | AC68: 0 | AD68: 0 | AE68: 0 | AF68: 0 | AG68: 0 | AH68: 0 | AI68: 0 | AJ68: 0 | AK68: 0 | AL68: 0 | AM68: 0 | AN68: 0 | AO68: 0 | AP68: 0 | AQ68: 0 | AR68: 0 | AS68: 0 | AT68: 0 | AU68: 0 | AV68: 0 | AW68: 0 | AX68: 0 | AY68: 0 | AZ68: 0 | BA68: 0 | BB68: 0 | BC68: 0 | BD68: 0
G70: =(G68*(G38*1000)+G55*1000000)/1000000 -> -29.27841976 | H70: -16.09341711 | I70: -13.18359025 | J70: -8.79854624 | K70: -11.00287345 | L70: -8.851391645 | M70: -6.096123353 | N70: -6.725437342 | O70: -5.12567106 | P70: -2.260534671 | Q70: -0.4979980595 | R70: -2.129923451 | S70: -1.146222479 | T70: 0.9105091568 | U70: 0.7702572039 | V70: -2.356630693 | W70: -1.599683845 | X70: -0.8852634578 | Y70: -0.08273244267 | Z70: 0.7959715342 | AA70: 1.436036518 | AB70: 2.560085154 | AC70: 3.514847834 | AD70: 4.457298427 | AE70: 5.352793408 | AF70: -1.484878377 | AG70: -0.8426969682 | AH70: -0.1544757133 | AI70: 0.5422334929 | AJ70: 1.08703488 | AK70: 1.552658333 | AL70: 2.206680268 | AM70: 2.777328787 | AN70: 3.287266581 | AO70: 3.624613642 | AP70: 3.958165004 | AQ70: 4.301313867 | AR70: 4.69645057 | AS70: 5.060366208 | AT70: 5.292808805 | AU70: 5.628262071 | AV70: 5.908894223 | AW70: 6.138918617 | AX70: 6.241926708 | AY70: 6.375312677 | AZ70: 6.078670322 | BA70: 6.173593608 | BB70: 6.167723889 | BC70: 5.989871002 | BD70: 5.707263232
A73: NPV of revised revenue (real) | B73: =NPV(G10,G64:BD64) -> 4670.674381
A75: NPV of differences in revenue component
A76: =NPV(G10,G76:BD76) -> 73.56261915 | G76: =G15-G60 -> 7.417223586e-06 | H76: 1.338514747 | I76: 2.074249699 | J76: 2.676957507 | K76: 3.079196382 | L76: 3.582209416 | M76: 3.986864199 | N76: 4.265557716 | O76: 4.573021277 | P76: 4.807349097 | Q76: 4.910692865 | R76: 4.933459601 | S76: 5.030832279 | T76: 5.083233577 | U76: 5.041608271 | V76: 5.006394796 | W76: 5.114131739 | X76: 5.187263711 | Y76: 5.227734871 | Z76: 5.23151711 | AA76: 5.195128065 | AB76: 5.129477479 | AC76: 5.012439307 | AD76: 4.851752712 | AE76: 4.647980559 | AF76: 4.403269497 | AG76: 4.471152962 | AH76: 4.509678131 | AI76: 4.516740222 | AJ76: 4.491951196 | AK76: 4.442255749 | AL76: 4.371273621 | AM76: 4.270391888 | AN76: 4.143422094 | AO76: 3.99313972 | AP76: 3.827435015 | AQ76: 3.646481503 | AR76: 3.449840421 | AS76: 3.235135066 | AT76: 3.003792756 | AU76: 2.76182398 | AV76: 2.50451945 | AW76: 2.234385396 | AX76: 1.953735428 | AY76: 1.66837629 | AZ76: 1.376919209 | BA76: 1.099023583 | BB76: 0.8167883956 | BC76: 0.534821551 | BD76: 0.2609855208
A77: =NPV(G10,G77:BD77) -> -73.56261915 | G77: =SUM(G14,G16,G17,G18)-SUM(G61,G62,G63) -> -29.27841976 | H77: -16.09341711 | I77: -13.18359025 | J77: -8.79854624 | K77: -11.00287345 | L77: -8.851391645 | M77: -6.096123353 | N77: -6.725437342 | O77: -5.12567106 | P77: -2.260534671 | Q77: -0.4979980595 | R77: -2.129923451 | S77: -1.146222479 | T77: 0.9105091568 | U77: 0.7702572039 | V77: -2.356630693 | W77: -1.599683845 | X77: -0.8852634578 | Y77: -0.08273244267 | Z77: 0.7959715342 | AA77: 1.436036518 | AB77: 2.560085154 | AC77: 3.514847834 | AD77: 4.457298427 | AE77: 5.352793408 | AF77: -1.484878377 | AG77: -0.8426969682 | AH77: -0.1544757133 | AI77: 0.5422334929 | AJ77: 1.08703488 | AK77: 1.552658333 | AL77: 2.206680268 | AM77: 2.777328787 | AN77: 3.287266581 | AO77: 3.624613642 | AP77: 3.958165004 | AQ77: 4.301313867 | AR77: 4.69645057 | AS77: 5.060366208 | AT77: 5.292808805 | AU77: 5.628262071 | AV77: 5.908894223 | AW77: 6.138918617 | AX77: 6.241926708 | AY77: 6.375312677 | AZ77: 6.078670322 | BA77: 6.173593608 | BB77: 6.167723889 | BC77: 5.989871002 | BD77: 5.707263232
A79: Annual tariff | G79: =G40 -> 7.346678996 | H79: 7.850676224 | I79: 7.975809145 | J79: 8.151757599 | K79: 8.087017373 | L79: 8.180394965 | M79: 8.294562977 | N79: 8.281955447 | O79: 8.351417302 | P79: 8.464293691 | Q79: 8.532199851 | R79: 8.471968351 | S79: 8.510262858 | T79: 8.585818809 | U79: 8.577871298 | V79: 8.465811845 | W79: 8.496237549 | X79: 8.523750529 | Y79: 8.55304862 | Z79: 8.583555609 | AA79: 8.603945678 | AB79: 8.640190152 | AC79: 8.668499297 | AD79: 8.694667609 | AE79: 8.717529513 | AF79: 8.471889486 | AG79: 8.495845266 | AH79: 8.520180869 | AI79: 8.543593878 | AJ79: 8.560603212 | AK79: 8.573848419 | AL79: 8.592697133 | AM79: 8.607601096 | AN79: 8.619485847 | AO79: 8.624758194 | AP79: 8.629131542 | AQ79: 8.633441763 | AR79: 8.638898172 | AS79: 8.642687276 | AT79: 8.641610244 | AU79: 8.643917208 | AV79: 8.643602712 | AW79: 8.641236713 | AX79: 8.634460189 | AY79: 8.628546038 | AZ79: 8.608388639 | BA79: 8.601569333 | BB79: 8.591488085 | BC79: 8.576101736 | BD79: 8.557821465
A80: Constant annual tariff | G80: =G45 -> 8.371484142 | H80: 8.371484142 | I80: 8.371484142 | J80: 8.371484142 | K80: 8.371484142 | L80: 8.371484142 | M80: 8.371484142 | N80: 8.371484142 | O80: 8.371484142 | P80: 8.371484142 | Q80: 8.371484142 | R80: 8.371484142 | S80: 8.371484142 | T80: 8.371484142 | U80: 8.371484142 | V80: 8.371484142 | W80: 8.371484142 | X80: 8.371484142 | Y80: 8.371484142 | Z80: 8.371484142 | AA80: 8.371484142 | AB80: 8.371484142 | AC80: 8.371484142 | AD80: 8.371484142 | AE80: 8.371484142 | AF80: 8.371484142 | AG80: 8.371484142 | AH80: 8.371484142 | AI80: 8.371484142 | AJ80: 8.371484142 | AK80: 8.371484142 | AL80: 8.371484142 | AM80: 8.371484142 | AN80: 8.371484142 | AO80: 8.371484142 | AP80: 8.371484142 | AQ80: 8.371484142 | AR80: 8.371484142 | AS80: 8.371484142 | AT80: 8.371484142 | AU80: 8.371484142 | AV80: 8.371484142 | AW80: 8.371484142 | AX80: 8.371484142 | AY80: 8.371484142 | AZ80: 8.371484142 | BA80: 8.371484142 | BB80: 8.371484142 | BC80: 8.371484142 | BD80: 8.371484142
A86: Share of total cost (original revenue) | C86: 2021 | D86: =C86+1 -> 2022 | E86: =D86+1 -> 2023 | F86: =E86+1 -> 2024 | G86: =F86+1 -> 2025 | H86: =G86+1 -> 2026 | I86: =H86+1 -> 2027 | J86: =I86+1 -> 2028 | K86: =J86+1 -> 2029 | L86: =K86+1 -> 2030 | M86: =L86+1 -> 2031 | N86: =M86+1 -> 2032 | O86: =N86+1 -> 2033 | P86: =O86+1 -> 2034 | Q86: =P86+1 -> 2035 | R86: =Q86+1 -> 2036 | S86: =R86+1 -> 2037 | T86: =S86+1 -> 2038 | U86: =T86+1 -> 2039 | V86: =U86+1 -> 2040 | W86: =V86+1 -> 2041 | X86: =W86+1 -> 2042 | Y86: =X86+1 -> 2043 | Z86: =Y86+1 -> 2044 | AA86: =Z86+1 -> 2045 | AB86: =AA86+1 -> 2046 | AC86: =AB86+1 -> 2047 | AD86: =AC86+1 -> 2048 | AE86: =AD86+1 -> 2049 | AF86: =AE86+1 -> 2050 | AG86: =AF86+1 -> 2051 | AH86: =AG86+1 -> 2052 | AI86: =AH86+1 -> 2053 | AJ86: =AI86+1 -> 2054 | AK86: =AJ86+1 -> 2055 | AL86: =AK86+1 -> 2056 | AM86: =AL86+1 -> 2057 | AN86: =AM86+1 -> 2058 | AO86: =AN86+1 -> 2059 | AP86: =AO86+1 -> 2060 | AQ86: =AP86+1 -> 2061 | AR86: =AQ86+1 -> 2062 | AS86: =AR86+1 -> 2063 | AT86: =AS86+1 -> 2064 | AU86: =AT86+1 -> 2065 | AV86: =AU86+1 -> 2066 | AW86: =AV86+1 -> 2067 | AX86: =AW86+1 -> 2068 | AY86: =AX86+1 -> 2069 | AZ86: =AY86+1 -> 2070 | BA86: =AZ86+1 -> 2071 | BB86: =BA86+1 -> 2072 | BC86: =BB86+1 -> 2073 | BD86: =BC86+1 -> 2074
A87: Residential B3 | B87: 0.8187442046 | C87: =$B87*C$19 -> 153.5851099 | D87: =$B87*D$19 -> 153.4476488 | E87: 152.79525 | F87: 153.6961384 | G87: 171.8484139 | H87: 182.101728 | I87: 183.3465169 | J87: 185.9435511 | K87: 184.4301167 | L87: 184.6841559 | M87: 186.219792 | N87: 186.3085257 | O87: 188.3126264 | P87: 190.1707001 | Q87: 191.8027471 | R87: 193.5267072 | S87: 195.0364356 | T87: 196.5783281 | U87: 197.770109 | V87: 194.7084533 | W87: 195.9654828 | X87: 197.1720531 | Y87: 198.4375609 | Z87: 199.7421063 | AA87: 200.9484233 | AB87: 202.4397532 | AC87: 203.7625824 | AD87: 205.0489285 | AE87: 206.2729279 | AF87: 201.6114475 | AG87: 202.9514019 | AH87: 204.3167591 | AI87: 205.6107517 | AJ87: 206.7628751 | AK87: 207.9568138 | AL87: 209.1981985 | AM87: 210.3545368 | AN87: 211.4482039 | AO87: 212.3886851 | AP87: 213.4920232 | AQ87: 214.4607611 | AR87: 215.4677741 | AS87: 216.4437101 | AT87: 217.3084413 | AU87: 217.9542971 | AV87: 218.8049282 | AW87: 219.6116672 | AX87: 220.3186616 | AY87: 221.0565679 | AZ87: 221.8088096 | BA87: 222.6014537 | BB87: 223.3172403 | BC87: 223.900593 | BD87: 224.4184329
A88: Commercial B2 | B88: 0.05641177407 | C88: =$B88*C$19 -> 10.58207004 | D88: 10.57259893 | E88: 10.5276484 | F88: 10.58971995 | G88: 11.84041834 | H88: 12.54687542 | I88: 12.63264183 | J88: 12.81157844 | K88: 12.70730225 | L88: 12.72480564 | M88: 12.83061153 | N88: 12.83672532 | O88: 12.97480859 | P88: 13.10283054 | Q88: 13.21527917 | R88: 13.33406065 | S88: 13.43808149 | T88: 13.54431845 | U88: 13.62643258 | V88: 13.41548339 | W88: 13.50209318 | X88: 13.58522631 | Y88: 13.67242026 | Z88: 13.76230391 | AA88: 13.84541959 | AB88: 13.94817277 | AC88: 14.03931619 | AD88: 14.1279459 | AE88: 14.2122799 | AF88: 13.8911022 | AG88: 13.98342555 | AH88: 14.07749916 | AI88: 14.16665572 | AJ88: 14.24603745 | AK88: 14.32830025 | AL88: 14.41383211 | AM88: 14.49350424 | AN88: 14.56885831 | AO88: 14.6336578 | AP88: 14.7096782 | AQ88: 14.7764246 | AR88: 14.84580816 | AS88: 14.9130505 | AT88: 14.9726308 | AU88: 15.0171305 | AV88: 15.07573929 | AW88: 15.1313239 | AX88: 15.18003608 | AY88: 15.23087809 | AZ88: 15.28270781 | BA88: 15.33732128 | BB88: 15.38663924 | BC88: 15.42683245 | BD88: 15.46251181
A89: Commercial B1 | B89: 0.05641177407 | C89: 10.58207004 | D89: 10.57259893 | E89: 10.5276484 | F89: 10.58971995 | G89: 11.84041834 | H89: 12.54687542 | I89: 12.63264183 | J89: 12.81157844 | K89: 12.70730225 | L89: 12.72480564 | M89: 12.83061153 | N89: 12.83672532 | O89: 12.97480859 | P89: 13.10283054 | Q89: 13.21527917 | R89: 13.33406065 | S89: 13.43808149 | T89: 13.54431845 | U89: 13.62643258 | V89: 13.41548339 | W89: 13.50209318 | X89: 13.58522631 | Y89: 13.67242026 | Z89: 13.76230391 | AA89: 13.84541959 | AB89: 13.94817277 | AC89: 14.03931619 | AD89: 14.1279459 | AE89: 14.2122799 | AF89: 13.8911022 | AG89: 13.98342555 | AH89: 14.07749916 | AI89: 14.16665572 | AJ89: 14.24603745 | AK89: 14.32830025 | AL89: 14.41383211 | AM89: 14.49350424 | AN89: 14.56885831 | AO89: 14.6336578 | AP89: 14.7096782 | AQ89: 14.7764246 | AR89: 14.84580816 | AS89: 14.9130505 | AT89: 14.9726308 | AU89: 15.0171305 | AV89: 15.07573929 | AW89: 15.1313239 | AX89: 15.18003608 | AY89: 15.23087809 | AZ89: 15.28270781 | BA89: 15.33732128 | BB89: 15.38663924 | BC89: 15.42683245 | BD89: 15.46251181
A90: Industrial A1 | B90: 0.04283942027 | C90: 8.036083836 | D90: 8.028891418 | E90: 7.994755737 | F90: 8.041893218 | G90: 8.991680655 | H90: 9.528168157 | I90: 9.593299649 | J90: 9.729185121 | K90: 9.649997198 | L90: 9.663289372 | M90: 9.743638959 | N90: 9.748281806 | O90: 9.85314302 | P90: 9.950363614 | Q90: 10.03575774 | R90: 10.12596107 | S90: 10.20495508 | T90: 10.28563203 | U90: 10.34798997 | V90: 10.18779396 | W90: 10.25356592 | X90: 10.3166977 | Y90: 10.38291327 | Z90: 10.45117143 | AA90: 10.51428994 | AB90: 10.59232128 | AC90: 10.66153611 | AD90: 10.72884202 | AE90: 10.79288574 | AF90: 10.54898157 | AG90: 10.61909245 | AH90: 10.69053248 | AI90: 10.75823847 | AJ90: 10.81852141 | AK90: 10.88099225 | AL90: 10.94594562 | AM90: 11.00644909 | AN90: 11.06367339 | AO90: 11.11288249 | AP90: 11.17061282 | AQ90: 11.22130041 | AR90: 11.27399068 | AS90: 11.32505489 | AT90: 11.37030051 | AU90: 11.40409383 | AV90: 11.44860168 | AW90: 11.49081295 | AX90: 11.52780525 | AY90: 11.56641496 | AZ90: 11.60577475 | BA90: 11.64724852 | BB90: 11.68470086 | BC90: 11.71522381 | BD90: 11.74231892
A91: Industrial A2 | B91: 0.02635447004 | C91: 4.943734752 | D91: 4.939310033 | E91: 4.918310035 | F91: 4.947308637 | G91: 5.531610301 | H91: 5.861653138 | I91: 5.901721514 | J91: 5.985317173 | K91: 5.936601394 | L91: 5.944778633 | M91: 5.994209059 | N91: 5.997065302 | O91: 6.061575085 | P91: 6.12138442 | Q91: 6.173918207 | R91: 6.229410577 | S91: 6.278007064 | T91: 6.327638878 | U91: 6.366000984 | V91: 6.267449677 | W91: 6.307912064 | X91: 6.346750228 | Y91: 6.387485522 | Z91: 6.429477395 | AA91: 6.468307405 | AB91: 6.516311664 | AC91: 6.558892075 | AD91: 6.600298131 | AE91: 6.639697318 | AF91: 6.489649419 | AG91: 6.532781072 | AH91: 6.576730407 | AI91: 6.618382598 | AJ91: 6.655468176 | AK91: 6.693899741 | AL91: 6.733858541 | AM91: 6.771079791 | AN91: 6.806283727 | AO91: 6.836556774 | AP91: 6.872072008 | AQ91: 6.90325461 | AR91: 6.935669244 | AS91: 6.967083542 | AT91: 6.994918285 | AU91: 7.015707665 | AV91: 7.043088542 | AW91: 7.069056577 | AX91: 7.091813945 | AY91: 7.115566332 | AZ91: 7.139780159 | BA91: 7.165294495 | BB91: 7.188334875 | BC91: 7.207112353 | BD91: 7.223781047
A92: ATCO | B92: =SUM(B87:B91) -> 1.000761643 | C92: 187.7290686 | D92: 187.5610482 | E92: 186.7636125 | F92: 187.8647801 | G92: 210.0525416 | H92: 222.5853002 | I92: =$B92*I$19 -> 224.1068217 | J92: 227.2812103 | K92: 225.4313198 | L92: 225.7418352 | M92: 227.618863 | N92: 227.7273235 | O92: 230.1769617 | P92: 232.4481092 | Q92: 234.4429814 | R92: 236.5502002 | S92: 238.3955608 | T92: 240.2802359 | U92: 241.7369651 | V92: 237.9946638 | W92: 239.5311471 | X92: 241.0059537 | Y92: 242.5528002 | Z92: 244.1473629 | AA92: 245.6218598 | AB92: 247.4447317 | AC92: 249.061643 | AD92: 250.6339604 | AE92: 252.1300708 | AF92: 246.4322829 | AG92: 248.0701266 | AH92: 249.7390203 | AI92: 251.3206842 | AJ92: 252.7289396 | AK92: 254.1883063 | AL92: 255.7056669 | AM92: 257.1190742 | AN92: 258.4558777 | AO92: 259.6054399 | AP92: 260.9540644 | AQ92: 262.1381653 | AR92: 263.3690504 | AS92: 264.5619495 | AT92: 265.6189217 | AU92: 266.4083595 | AV92: 267.4480971 | AW92: 268.4341846 | AX92: 269.298353 | AY92: 270.2003054 | AZ92: 271.1197801 | BA92: 272.0886393 | BB92: 272.9635545 | BC92: 273.6765941 | BD92: 274.3095565
A94: Average tariff by tariff class
A95: Residential B3 | C95: =C87*1000/C33 -> 14.67091616 | D95: 15.22481639 | E95: 14.8918835 | F95: 15.13577628 | G95: 17.09416098 | H95: 18.12698498 | I95: 18.30058143 | J95: 18.5974733 | K95: 18.38455241 | L95: 18.51425779 | M95: 18.7446195 | N95: 18.71129495 | O95: 18.86117067 | P95: 19.11149596 | Q95: 19.28061129 | R95: 19.10524614 | S95: 19.15535233 | T95: 19.28279484 | U95: 19.22803516 | V95: 18.97062802 | W95: 19.02305814 | X95: 19.0693557 | Y95: 19.12016208 | Z95: 19.17366236 | AA95: 19.20469932 | AB95: 19.26884172 | AC95: 19.31559824 | AD95: 19.35776567 | AE95: 19.39291652 | AF95: 18.83205051 | AG95: 18.86083786 | AH95: 18.89077515 | AI95: =AI87*1000/AI33 -> 18.91438036 | AJ95: 18.9242626 | AK95: 18.92643886 | AL95: 18.93919306 | AM95: 18.94351596 | AN95: 18.94162578 | AO95: 18.92539721 | AP95: 18.90862982 | AQ95: 18.88876763 | AR95: 18.87178566 | AS95: 18.85168519 | AT95: 18.82166038 | AU95: 18.79778448 | AV95: 18.77499099 | AW95: 18.74820177 | AX95: 18.71261776 | AY95: 18.67940828 | AZ95: 18.61673948 | BA95: 18.57684688 | BB95: 18.53046914 | BC95: 18.47314601 | BD95: 18.41036259
A96: Commercial B2 | C96: =C88*1000/C34 -> 8.054103417 | D96: 7.925704423 | E96: 7.925613818 | F96: 8.03224337 | G96: 9.055522135 | H96: 9.536728957 | I96: 9.523318739 | J96: 9.606060152 | K96: 9.42885933 | L96: 9.493189019 | M96: 9.634246306 | N96: 9.622904119 | O96: 9.69406126 | P96: 9.835161926 | Q96: 9.920767642 | R96: 9.712618959 | S96: 9.627840434 | T96: 9.603249 | U96: 9.458018325 | V96: 9.277699575 | W96: 9.251137044 | X96: 9.215323412 | Y96: 9.174751347 | Z96: 9.134313406 | AA96: 9.075657759 | AB96: 9.031862357 | AC96: 8.975453021 | AD96: 8.914702064 | AE96: 8.847261804 | AF96: 8.502941341 | AG96: 8.430119108 | AH96: 8.355614724 | AI96: =AI88*1000/AI34 -> 8.289856736 | AJ96: 8.216446342 | AK96: 8.137221628 | AL96: 8.061451873 | AM96: 7.982112796 | AN96: 7.899638071 | AO96: 7.81205471 | AP96: 7.719686727 | AQ96: 7.627280373 | AR96: 7.536636638 | AS96: 7.444788962 | AT96: 7.348610583 | AU96: 7.261071799 | AV96: 7.170831089 | AW96: 7.079707769 | AX96: 6.984047475 | AY96: 6.889684893 | AZ96: 6.782563792 | BA96: 6.686196055 | BB96: 6.588619035 | BC96: 6.488791602 | BD96: 6.387067932
A97: Commercial B1 | C97: =C89*1000/C35 -> 5.140957813 | D97: 5.160653395 | E97: 5.190973183 | F97: 5.205650641 | G97: 5.812469231 | H97: 6.207564907 | I97: 6.277097552 | J97: 6.382238346 | K97: 6.301788268 | L97: 6.332634029 | M97: 6.375645784 | N97: 6.324748038 | O97: 6.337668022 | P97: 6.375969974 | Q97: 6.380983445 | R97: 6.310263258 | S97: 6.311718986 | T97: 6.335718323 | U97: 6.304059776 | V97: 6.187840114 | W97: 6.176441005 | X97: 6.163242198 | Y97: 6.15168077 | Z97: 6.141103986 | AA97: 6.124440687 | AB97: 6.119082091 | AC97: 6.108357829 | AD97: 6.096323471 | AE97: 6.082247861 | AF97: 5.884681038 | AG97: 5.875067166 | AH97: 5.865955355 | AI97: =AI89*1000/AI35 -> 5.86158706 | AJ97: 5.852986227 | AK97: 5.84264459 | AL97: 5.836219641 | AM97: 5.827252988 | AN97: 5.816412932 | AO97: 5.801266201 | AP97: 5.786679255 | AQ97: 5.772151331 | AR97: 5.758578249 | AS97: 5.744099865 | AT97: 5.726623967 | AU97: 5.7100384 | AV97: 5.692168724 | AW97: 5.673148711 | AX97: 5.651570759 | AY97: 5.630817811 | AZ97: 5.602763307 | BA97: 5.583464563 | BB97: 5.562261174 | BC97: 5.537819674 | BD97: 5.511853018
A98: Industrial A1 | C98: =C90*1000/C36 -> 0.6508787096 | D98: 0.650313631 | E98: 0.651138839 | F98: 0.6084055864 | G98: 0.6678175865 | H98: 0.7183700721 | I98: 0.7348730396 | J98: 0.7558453146 | K98: 0.7533507009 | L98: 0.7658320381 | M98: 0.7784983749 | N98: 0.7786506881 | O98: 0.7866800588 | P98: 0.7987099713 | Q98: 0.805970476 | R98: 0.8035202509 | S98: 0.8103239691 | T98: 0.8208535053 | U98: 0.8234510564 | V98: 0.8146234967 | W98: 0.8198079381 | X98: 0.8247801416 | Y98: 0.8299980777 | Z98: 0.8353784552 | AA98: 0.8398594164 | AB98: 0.8460154759 | AC98: 0.8514664285 | AD98: 0.856764082 | AE98: 0.8618004238 | AF98: 0.8402587381 | AG98: 0.8457665682 | AH98: 0.8513793795 | AI98: =AI90*1000/AI36 -> 0.8567713926 | AJ98: 0.8615722428 | AK98: 0.8660392698 | AL98: 0.871209035 | AM98: 0.8760246232 | AN98: 0.8805792165 | AO98: 0.8844958642 | AP98: 0.8883669057 | AQ98: 0.8923979449 | AR98: 0.8965882515 | AS98: 0.9006492425 | AT98: 0.904247497 | AU98: 0.9082471566 | AV98: 0.9117918601 | AW98: 0.9151536584 | AX98: 0.9180998065 | AY98: 0.9211747691 | AZ98: 0.9227361661 | BA98: 0.9260336066 | BB98: 0.9290113162 | BC98: 0.9314380937 | BD98: 0.9335923346
A99: Industrial A2 | C99: =C91*1000/C37 -> 2.685897411 | D99: 2.790540903 | E99: 2.796189138 | F99: 2.849793446 | G99: 3.239019341 | H99: 3.479862111 | I99: 3.544662625 | J99: 3.630312614 | K99: 3.599915419 | L99: 3.644008204 | M99: 3.685738273 | N99: 3.666052227 | O99: 3.683379207 | P99: 3.720335383 | Q99: 3.733457971 | R99: 3.701754093 | S99: 3.712432567 | T99: 3.741186297 | U99: 3.732336155 | V99: 3.671189282 | W99: 3.674143902 | X99: 3.67601472 | Y99: 3.678848993 | Z99: 3.682263027 | AA99: 3.681431289 | AB99: 3.687964703 | AC99: 3.691264599 | AD99: 3.693762451 | AE99: 3.695007694 | AF99: 3.582171738 | AG99: 3.585804087 | AH99: 3.589737923 | AI99: =AI91*1000/AI37 -> 3.595418801 | AJ99: 3.598504458 | AK99: 3.599940452 | AL99: 3.604356652 | AM99: 3.607200541 | AN99: 3.608875766 | AO99: 3.607860885 | AP99: 3.606375249 | AQ99: 3.605699291 | AR99: 3.605598493 | AS99: 3.604909533 | AT99: 3.60231225 | AU99: 3.601655826 | AV99: 3.598746451 | AW99: 3.595075039 | AX99: 3.589742283 | AY99: 3.584890448 | AZ99: 3.573688875 | BA99: 3.56967391 | BB99: 3.564400347 | BC99: 3.557003002 | BD99: 3.548569979
A102: Original
A103: Residential B3 | C103: 2021 | D103: 2022 | E103: =D103+1 -> 2023 | F103: 2024 | G103: 2025 | H103: 2026 | I103: 2027 | J103: 2028 | K103: 2029 | L103: 2030 | M103: 2031 | N103: 2032 | O103: 2033 | P103: 2034 | Q103: 2035 | R103: 2036 | S103: 2037 | T103: 2038 | U103: 2039 | V103: 2040 | W103: 2041 | X103: 2042 | Y103: 2043 | Z103: 2044 | AA103: 2045 | AB103: 2046 | AC103: 2047 | AD103: 2048 | AE103: 2049 | AF103: 2050 | AG103: 2051 | AH103: 2052 | AI103: 2053 | AJ103: 2054 | AK103: 2055 | AL103: 2056 | AM103: 2057 | AN103: 2058 | AO103: 2059 | AP103: 2060 | AQ103: 2061 | AR103: 2062 | AS103: 2063 | AT103: 2064 | AU103: 2065 | AV103: 2066 | AW103: 2067 | AX103: 2068 | AY103: 2069 | AZ103: 2070 | BA103: 2071 | BB103: 2072 | BC103: 2073 | BD103: 2074
A104: Daily supply charge | C104: 0.3275017112 | D104: 0.337357974 | E104: 0.361889117 | F104: 0.3790788501 | G104: =F104*G95/F95 -> 0.4281270263 | H104: 0.4539943307 | I104: 0.4583420921 | J104: 0.4657778143 | K104: 0.4604451637 | L104: 0.4636936635 | M104: 0.4694631233 | N104: 0.4686285027 | O104: 0.4723821732 | P104: 0.4786516251 | Q104: 0.4828871558 | R104: 0.4784950971 | S104: 0.4797500177 | T104: 0.4829418432 | U104: 0.4815703751 | V104: 0.4751235566 | W104: 0.4764366805 | X104: 0.477596213 | Y104: 0.47886867 | Z104: 0.4802085963 | AA104: 0.4809859237 | AB104: 0.4825923842 | AC104: 0.4837634116 | AD104: 0.4848195042 | AE104: 0.4856998651 | AF104: 0.4716528522 | AG104: 0.4723738379 | AH104: 0.4731236238 | AI104: 0.4737148216 | AJ104: 0.4739623245 | AK104: 0.4740168293 | AL104: 0.4743362611 | AM104: 0.474444529 | AN104: 0.474397189 | AO104: 0.4739907411 | AP104: 0.4735707979 | AQ104: 0.4730733451 | AR104: 0.472648028 | AS104: 0.4721446072 | AT104: 0.4713926291 | AU104: 0.4707946521 | AV104: 0.4702237841 | AW104: 0.4695528422 | AX104: 0.4686616329 | AY104: 0.467829894 | AZ104: 0.4662603401 | BA104: 0.4652612211 | BB104: 0.4640996804 | BC104: 0.4626640101 | BD104: 0.4610915856
A105: Average volumetric charge $/GJ | C105: 4.049863187 | D105: 4.189938821 | E105: 4.485318003 | F105: 4.691642904 | G105: =F105*G95/F95 -> 5.298684229 | H105: 5.618829116 | I105: 5.67263888 | J105: 5.764666577 | K105: 5.6986674 | L105: 5.738872231 | M105: 5.810277546 | N105: 5.799947923 | O105: 5.846404964 | P105: 5.923998397 | Q105: 5.976419147 | R105: 5.92206114 | S105: 5.937592576 | T105: 5.977095981 | U105: 5.960122103 | V105: 5.880333504 | W105: 5.89658529 | X105: 5.910936163 | Y105: 5.926684638 | Z105: 5.943268142 | AA105: 5.952888681 | AB105: 5.972770927 | AC105: 5.987264066 | AD105: 6.000334721 | AE105: 6.011230447 | AF105: 5.837378573 | AG105: 5.846301802 | AH105: 5.855581475 | AI105: 5.862898394 | AJ105: 5.865961595 | AK105: 5.86663617 | AL105: 5.870589596 | AM105: 5.871929566 | AN105: 5.871343665 | AO105: 5.866313291 | AP105: 5.861115894 | AQ105: 5.854959204 | AR105: 5.849695297 | AS105: 5.843464744 | AT105: 5.834157941 | AU105: 5.826757119 | AV105: 5.819691812 | AW105: 5.811387947 | AX105: 5.800357956 | AY105: 5.790063998 | AZ105: 5.770638524 | BA105: 5.758272998 | BB105: 5.74389727 | BC105: 5.726128797 | BD105: 5.706667795
A106: Commercial B2
A107: Daily supply charge | C107: 0.6564818617 | D107: 0.6793155373 | E107: 0.7287063655 | F107: 0.7633199179 | G107: =F107*G96/F96 -> 0.8605641157 | H107: 0.9062941483 | I107: 0.9050197489 | J107: 0.9128828284 | K107: 0.8960430851 | L107: 0.9021564622 | M107: 0.9155614142 | N107: 0.9144835438 | O107: 0.9212457472 | P107: 0.9346548216 | Q107: 0.9427901015 | R107: 0.9230093219 | S107: 0.9149526516 | T107: 0.9126156791 | U107: 0.8988141219 | V107: 0.8816780756 | W107: 0.879153786 | X107: 0.875750346 | Y107: 0.8718947027 | Z107: 0.8680518055 | AA107: 0.8624776437 | AB107: 0.8583156804 | AC107: 0.85295499 | AD107: 0.8471817068 | AE107: 0.840772726 | AF107: 0.8080512737 | AG107: 0.8011308334 | AH107: 0.794050535 | AI107: 0.7878014238 | AJ107: 0.7808250894 | AK107: 0.7732962086 | AL107: 0.7660956595 | AM107: 0.7585559106 | AN107: 0.750718175 | AO107: 0.7423949555 | AP107: 0.7336170441 | AQ107: 0.7248354862 | AR107: 0.7162214333 | AS107: 0.7074929677 | AT107: 0.6983529468 | AU107: 0.6900339636 | AV107: 0.6814582111 | AW107: 0.6727985824 | AX107: 0.6637077961 | AY107: 0.654740334 | AZ107: 0.6445604047 | BA107: 0.6354023887 | BB107: 0.6261294521 | BC107: 0.6166426545 | BD107: 0.6069756536
A108: Average volumetric charge $/GJ | C108: 4.553632728 | D108: 4.717642483 | E108: 5.086432336 | F108: 5.339998359 | G108: =F108*G96/F96 -> 6.020294844 | H108: 6.340210902 | I108: 6.331295517 | J108: 6.386303687 | K108: 6.268496985 | L108: 6.311264668 | M108: 6.405042414 | N108: 6.397501898 | O108: 6.444808609 | P108: 6.538615195 | Q108: 6.595527611 | R108: 6.457146144 | S108: 6.400783661 | T108: 6.384434776 | U108: 6.287882477 | V108: 6.168002913 | W108: 6.150343604 | X108: 6.126533975 | Y108: 6.099560843 | Z108: 6.072676879 | AA108: 6.033681415 | AB108: 6.004565343 | AC108: 5.967063272 | AD108: 5.926674803 | AE108: 5.88183915 | AF108: 5.65292792 | AG108: 5.604514222 | AH108: 5.554982196 | AI108: 5.511264952 | AJ108: 5.462460232 | AK108: 5.409790035 | AL108: 5.359416764 | AM108: 5.306670536 | AN108: 5.251839666 | AO108: 5.19361247 | AP108: 5.132204361 | AQ108: 5.070770742 | AR108: 5.010508948 | AS108: 4.94944675 | AT108: 4.885505412 | AU108: 4.827307852 | AV108: 4.767313997 | AW108: 4.706733366 | AX108: 4.643136461 | AY108: 4.580402302 | AZ108: 4.509186021 | BA108: 4.445118794 | BB108: 4.380247611 | BC108: 4.313880309 | BD108: 4.246252349
A109: Commercial B1
A110: Daily supply charge | C110: 0.3941136208 | D110: 0.4078302533 | E110: 0.4374811773 | F110: 0.4582615332 | G110: =F110*G97/F97 -> 0.5116807187 | H110: 0.5464616064 | I110: 0.5525826734 | J110: 0.5618383813 | K110: 0.5547562356 | L110: 0.557471636 | M110: 0.5612580277 | N110: 0.5567774199 | O110: 0.5579147862 | P110: 0.5612865667 | Q110: 0.5617279104 | R110: 0.5555023022 | S110: 0.5556304522 | T110: 0.5577431512 | U110: 0.5549561999 | V110: 0.5447252021 | W110: 0.5437217208 | X110: 0.5425598093 | Y110: 0.5415420388 | Z110: 0.540610948 | AA110: 0.5391440519 | AB110: 0.5386723263 | AC110: 0.5377282528 | AD110: 0.5366688495 | AE110: 0.5354297516 | AF110: 0.5180376365 | AG110: 0.5171913125 | AH110: 0.5163891855 | AI110: 0.5160046377 | AJ110: 0.515247493 | AK110: 0.5143371026 | AL110: 0.5137715043 | AM110: 0.5129821559 | AN110: 0.5120278888 | AO110: 0.5106944985 | AP110: 0.5094103869 | AQ110: 0.5081314712 | AR110: 0.5069366117 | AS110: 0.5056620569 | AT110: 0.5041236265 | AU110: 0.5026635732 | AV110: 0.5010904777 | AW110: 0.4994161164 | AX110: 0.4975165757 | AY110: 0.4956896613 | AZ110: 0.4932199796 | BA110: 0.4915210812 | BB110: 0.4896545138 | BC110: 0.4875028905 | BD110: 0.4852170053
A111: Average volumetric charge $/GJ | C111: 3.562540525 | D111: 3.699666624 | E111: 3.965113162 | F111: 4.153456037 | G111: =F111*G97/F97 -> 4.637621131 | H111: 4.952857906 | I111: 5.008336232 | J111: 5.092225394 | K111: 5.028036326 | L111: 5.052647373 | M111: 5.086965356 | N111: 5.046355341 | O111: 5.056663868 | P111: 5.087224019 | Q111: 5.09122414 | R111: 5.034798305 | S111: 5.035959793 | T111: 5.055108252 | U111: 5.029848704 | V111: 4.937119996 | W111: 4.928024938 | X111: 4.917493946 | Y111: 4.908269377 | Z111: 4.899830431 | AA111: 4.886535209 | AB111: 4.882259722 | AC111: 4.873703106 | AD111: 4.864101198 | AE111: 4.852870628 | AF111: 4.695237093 | AG111: 4.687566429 | AH111: 4.680296347 | AI111: 4.676810996 | AJ111: 4.669948611 | AK111: 4.661697282 | AL111: 4.656570978 | AM111: 4.649416714 | AN111: 4.64076771 | AO111: 4.628682519 | AP111: 4.617043966 | AQ111: 4.605452506 | AR111: 4.59462289 | AS111: 4.583070956 | AT111: 4.569127382 | AU111: 4.555894181 | AV111: 4.541636421 | AW111: 4.526460838 | AX111: 4.50924434 | AY111: 4.492686091 | AZ111: 4.470302117 | BA111: 4.454904141 | BB111: 4.437986497 | BC111: 4.418485246 | BD111: 4.397767113
A112: Industrial A1
A113: Daily supply charge | C113: 0.5812517326 | D113: 0.5619244412 | E113: 0.5746551555 | F113: 0.6309659431 | G113: =F113*G98/F98 -> 0.6925810063 | H113: 0.7450080344 | I113: 0.7621229503 | J113: 0.7838729006 | K113: 0.7812857839 | L113: 0.794229943 | M113: 0.8073659617 | N113: 0.8075239228 | O113: 0.8158510315 | P113: 0.8283270265 | Q113: 0.8358567588 | R113: 0.8333156767 | S113: 0.8403716843 | T113: 0.8512916675 | U113: 0.8539855386 | V113: 0.8448306431 | W113: 0.8502073294 | X113: 0.8553639078 | Y113: 0.8607753308 | Z113: 0.8663552186 | AA113: 0.8710023389 | AB113: 0.8773866719 | AC113: 0.8830397519 | AD113: 0.8885338483 | AE113: 0.8937569433 | AF113: 0.8714164679 | AG113: 0.8771285344 | AH113: 0.882949475 | AI113: 0.88854143 | AJ113: 0.893520301 | AK113: 0.8981529704 | AL113: 0.9035144363 | AM113: 0.9085085918 | AN113: 0.9132320745 | AO113: 0.9172939559 | AP113: 0.9213085399 | AQ113: 0.9254890545 | AR113: 0.9298347423 | AS113: 0.9340463194 | AT113: 0.9377780012 | AU113: 0.9419259726 | AV113: 0.9456021177 | AW113: 0.9490885752 | AX113: 0.9521439698 | AY113: 0.9553329554 | AZ113: 0.9569522507 | BA113: 0.960371964 | BB113: 0.9634600904 | BC113: 0.9659768555 | BD113: 0.9682109781
A114: Average volumetric charge $/GJ | C114: 0.1348207712 | D114: 0.1477956152 | E114: 0.159838144 | F114: 0.168039367 | G114: =F114*G98/F98 -> 0.1844487411 | H114: 0.1984111502 | I114: 0.2029692086 | J114: 0.2087616732 | K114: 0.2080726701 | L114: 0.2115199692 | M114: 0.2150183644 | N114: 0.2150604328 | O114: 0.2172781152 | P114: 0.2206007324 | Q114: 0.2226060569 | R114: 0.2219293138 | S114: 0.2238084755 | T114: 0.2267166944 | U114: 0.2274341284 | V114: 0.2249959891 | W114: 0.2264279126 | X114: 0.2278012168 | Y114: 0.2292423914 | Z114: 0.2307284317 | AA114: 0.2319660566 | AB114: 0.2336663374 | AC114: 0.2351718703 | AD114: 0.2366350625 | AE114: 0.2380260815 | AF114: 0.2320763477 | AG114: 0.23359759 | AH114: 0.2351478277 | AI114: 0.2366370817 | AJ114: 0.2379630587 | AK114: 0.239196835 | AL114: 0.240624705 | AM114: 0.2419547526 | AN114: 0.2432127143 | AO114: 0.2442944779 | AP114: 0.2453636452 | AQ114: 0.2464770033 | AR114: 0.2476343504 | AS114: 0.2487559811 | AT114: 0.2497498057 | AU114: 0.2508544968 | AV114: 0.2518335308 | AW114: 0.252762047 | AX114: 0.2535757622 | AY114: 0.2544250554 | AZ114: 0.2548563075 | BA114: 0.2557670484 | BB114: 0.2565894807 | BC114: 0.2572597477 | BD114: 0.257854741
A115: Industrial A2
A116: Daily supply charge | C116: 51.73850787 | D116: 53.53900068 | E116: 57.43151266 | F116: 60.15950951 | G116: =F116*G99/F99 -> 68.37611869 | H116: 73.46034083 | I116: 74.82828807 | J116: 76.63637047 | K116: 75.99468174 | L116: 76.92548615 | M116: 77.80641332 | N116: 77.39083832 | O116: 77.75661313 | P116: 78.53676281 | Q116: 78.81378233 | R116: 78.14450936 | S116: 78.36993334 | T116: 78.97692831 | U116: 78.79010066 | V116: 77.49928223 | W116: 77.56165463 | X116: 77.60114786 | Y116: 77.66097973 | Z116: 77.73305043 | AA116: 77.71549234 | AB116: 77.85341355 | AC116: 77.92307477 | AD116: 77.97580476 | AE116: 78.002092 | AF116: 75.62011032 | AG116: 75.69678967 | AH116: 75.77983346 | AI116: 75.89975754 | AJ116: 75.96489617 | AK116: 75.99521019 | AL116: 76.08843673 | AM116: 76.14847161 | AN116: 76.18383581 | AO116: 76.16241154 | AP116: 76.13104958 | AQ116: 76.11678002 | AR116: 76.11465217 | AS116: 76.10010813 | AT116: 76.04527915 | AU116: 76.03142195 | AV116: 75.97000467 | AW116: 75.89250069 | AX116: 75.77992551 | AY116: 75.67750265 | AZ116: 75.44103597 | BA116: 75.35627956 | BB116: 75.24495396 | BC116: 75.08879504 | BD116: 74.91077282
A117: Average volumetric charge $/GJ | C117: 1.35343836 | D117: 1.399124813 | E117: 1.499730135 | F117: 1.570967316 | G117: =F117*G99/F99 -> 1.785530643 | H117: 1.918296798 | I117: 1.954018506 | J117: 2.001233624 | K117: 1.984476971 | L117: 2.008783408 | M117: 2.031787382 | N117: 2.02093532 | O117: 2.030486931 | P117: 2.050859266 | Q117: 2.058093178 | R117: 2.040616208 | S117: 2.046502787 | T117: 2.062353469 | U117: 2.05747477 | V117: 2.023767155 | W117: 2.025395909 | X117: 2.02642721 | Y117: 2.027989621 | Z117: 2.02987163 | AA117: 2.029413129 | AB117: 2.033014716 | AC117: 2.034833805 | AD117: 2.036210763 | AE117: 2.036897211 | AF117: 1.974695651 | AG117: 1.976698007 | AH117: 1.978866559 | AI117: 1.981998181 | AJ117: 1.98369917 | AK117: 1.984490771 | AL117: 1.98692523 | AM117: 1.988492942 | AN117: 1.989416421 | AO117: 1.988856961 | AP117: 1.988037995 | AQ117: 1.987665368 | AR117: 1.987609803 | AS117: 1.987230009 | AT117: 1.98579824 | AU117: 1.985436382 | AV117: 1.98383257 | AW117: 1.98180868 | AX117: 1.978868963 | AY117: 1.976194358 | AZ117: 1.970019417 | BA117: 1.967806141 | BB117: 1.964899055 | BC117: 1.96082122 | BD117: 1.956172461
A119: Share of total cost (adjusted revenue) | C119: 2021 | D119: =C119+1 -> 2022 | E119: =D119+1 -> 2023 | F119: =E119+1 -> 2024 | G119: =F119+1 -> 2025 | H119: =G119+1 -> 2026 | I119: =H119+1 -> 2027 | J119: =I119+1 -> 2028 | K119: =J119+1 -> 2029 | L119: =K119+1 -> 2030 | M119: =L119+1 -> 2031 | N119: =M119+1 -> 2032 | O119: =N119+1 -> 2033 | P119: =O119+1 -> 2034 | Q119: =P119+1 -> 2035 | R119: =Q119+1 -> 2036 | S119: =R119+1 -> 2037 | T119: =S119+1 -> 2038 | U119: =T119+1 -> 2039 | V119: =U119+1 -> 2040 | W119: =V119+1 -> 2041 | X119: =W119+1 -> 2042 | Y119: =X119+1 -> 2043 | Z119: =Y119+1 -> 2044 | AA119: =Z119+1 -> 2045 | AB119: =AA119+1 -> 2046 | AC119: =AB119+1 -> 2047 | AD119: =AC119+1 -> 2048 | AE119: =AD119+1 -> 2049 | AF119: =AE119+1 -> 2050 | AG119: =AF119+1 -> 2051 | AH119: =AG119+1 -> 2052 | AI119: =AH119+1 -> 2053 | AJ119: =AI119+1 -> 2054 | AK119: =AJ119+1 -> 2055 | AL119: =AK119+1 -> 2056 | AM119: =AL119+1 -> 2057 | AN119: =AM119+1 -> 2058 | AO119: =AN119+1 -> 2059 | AP119: =AO119+1 -> 2060 | AQ119: =AP119+1 -> 2061 | AR119: =AQ119+1 -> 2062 | AS119: =AR119+1 -> 2063 | AT119: =AS119+1 -> 2064 | AU119: =AT119+1 -> 2065 | AV119: =AU119+1 -> 2066 | AW119: =AV119+1 -> 2067 | AX119: =AW119+1 -> 2068 | AY119: =AX119+1 -> 2069 | AZ119: =AY119+1 -> 2070 | BA119: =AZ119+1 -> 2071 | BB119: =BA119+1 -> 2072 | BC119: =BB119+1 -> 2073 | BD119: =BC119+1 -> 2074 | BF119: Sum of costs | BG119: Sum of volume
A120: Residential B3 | B120: 0.8187442046 | C120: =$B120*C$64 -> 153.5851099 | D120: =$B120*D$64 -> 153.4476488 | E120: 152.79525 | F120: 153.6961384 | G120: 195.8199443 | H120: 194.1822188 | I120: 192.4422251 | J120: 190.9555664 | K120: 190.9175814 | L120: 188.9982683 | M120: 187.9467357 | N120: 188.3225379 | O120: 188.7651052 | P120: 188.0855105 | Q120: 188.1898788 | R120: 191.2313283 | S120: 191.8559339 | T120: 191.670986 | U120: 193.0116778 | V120: 192.5389743 | W120: 193.088049 | X120: 193.6498154 | Y120: 194.2251199 | Z120: 194.8071349 | AA120: 195.5191957 | AB120: 196.1439683 | AC120: 196.7809155 | AD120: 197.4271968 | AE120: 198.0848522 | AF120: 199.2220316 | AG120: 199.9806246 | AH120: 200.7509623 | AI120: 201.4687463 | AJ120: 202.1951126 | AK120: 203.0485126 | AL120: 203.8125369 | AM120: 204.5842563 | AN120: 205.3643707 | AO120: 206.1516936 | AP120: 207.1176083 | AQ120: 207.9535497 | AR120: 208.7980456 | AS120: 209.6518165 | AT120: 210.5156469 | AU120: 211.0849627 | AV120: 211.9164946 | AW120: 212.7560731 | AX120: 213.6085107 | AY120: 214.4708442 | AZ120: 215.7045889 | BA120: 216.6470405 | BB120: 217.5987114 | BC120: 218.5585388 | BD120: 219.5319638 | BF120: =SUM(G120:BD120) -> 10037.15396 | BG120: =SUM(G33:BD33) -> 540657.1174
A121: Commercial B2 | B121: 0.05641177407 | C121: =$B121*C$64 -> 10.58207004 | D121: 10.57259893 | E121: 10.5276484 | F121: 10.58971995 | G121: 13.49206553 | H121: 13.37922564 | I121: 13.25933944 | J121: 13.15690812 | K121: 13.15429093 | L121: 13.02204956 | M121: 12.94959858 | N121: 12.97549149 | O121: 13.00598454 | P121: 12.95916022 | Q121: 12.96635123 | R121: 13.17590821 | S121: 13.21894376 | T121: 13.20620079 | U121: 13.29857494 | V121: 13.2660055 | W121: 13.30383694 | X121: 13.34254285 | Y121: 13.38218154 | Z121: 13.42228259 | AA121: 13.47134384 | AB121: 13.5143909 | AC121: 13.55827679 | AD121: 13.60280581 | AE121: 13.6481185 | AF121: 13.72647058 | AG121: 13.77873791 | AH121: 13.83181446 | AI121: 13.88127004 | AJ121: 13.93131694 | AK121: 13.99011652 | AL121: 14.04275806 | AM121: 14.09592982 | AN121: 14.14967998 | AO121: 14.20392682 | AP121: 14.27047869 | AQ121: 14.32807536 | AR121: 14.38626143 | AS121: 14.44508656 | AT121: 14.50460479 | AU121: 14.54383086 | AV121: 14.6011237 | AW121: 14.65897097 | AX121: 14.71770423 | AY121: 14.77711932 | AZ121: 14.86212478 | BA121: 14.92706004 | BB121: 14.99263051 | BC121: 15.05876297 | BD121: 15.12583231 | BF121: =SUM(G121:BD121) -> 691.5635659 | BG121: =SUM(G34:BD34) -> 85189.66753
A122: Commercial B1 | B122: 0.05641177407 | C122: 10.58207004 | D122: 10.57259893 | E122: 10.5276484 | F122: 10.58971995 | G122: 13.49206553 | H122: 13.37922564 | I122: 13.25933944 | J122: 13.15690812 | K122: 13.15429093 | L122: 13.02204956 | M122: 12.94959858 | N122: 12.97549149 | O122: 13.00598454 | P122: 12.95916022 | Q122: 12.96635123 | R122: 13.17590821 | S122: 13.21894376 | T122: 13.20620079 | U122: 13.29857494 | V122: 13.2660055 | W122: 13.30383694 | X122: 13.34254285 | Y122: 13.38218154 | Z122: 13.42228259 | AA122: 13.47134384 | AB122: 13.5143909 | AC122: 13.55827679 | AD122: 13.60280581 | AE122: 13.6481185 | AF122: 13.72647058 | AG122: 13.77873791 | AH122: 13.83181446 | AI122: 13.88127004 | AJ122: 13.93131694 | AK122: 13.99011652 | AL122: 14.04275806 | AM122: 14.09592982 | AN122: 14.14967998 | AO122: 14.20392682 | AP122: 14.27047869 | AQ122: 14.32807536 | AR122: 14.38626143 | AS122: 14.44508656 | AT122: 14.50460479 | AU122: 14.54383086 | AV122: 14.6011237 | AW122: 14.65897097 | AX122: 14.71770423 | AY122: 14.77711932 | AZ122: 14.86212478 | BA122: 14.92706004 | BB122: 14.99263051 | BC122: 15.05876297 | BD122: 15.12583231 | BF122: 691.5635659 | BG122: 117862.5977
A123: Industrial A1 | B123: 0.04283942027 | C123: 8.036083836 | D123: 8.028891418 | E123: 7.994755737 | F123: 8.041893218 | G123: 10.24595087 | H123: 10.16025962 | I123: 10.06921736 | J123: 9.991430433 | K123: 9.989442929 | L123: 9.889018084 | M123: 9.833998398 | N123: 9.853661623 | O123: 9.876818217 | P123: 9.84125956 | Q123: 9.846720454 | R123: 10.00585921 | S123: 10.03854065 | T123: 10.02886356 | U123: 10.09901302 | V123: 10.0742796 | W123: 10.10300901 | X123: 10.1324025 | Y123: 10.16250435 | Z123: 10.19295731 | AA123: 10.2302147 | AB123: 10.26290488 | AC123: 10.29623207 | AD123: 10.33004766 | AE123: 10.36445838 | AF123: 10.42395939 | AG123: 10.4636515 | AH123: 10.50395813 | AI123: 10.54151497 | AJ123: 10.57952088 | AK123: 10.6241736 | AL123: 10.66414989 | AM123: 10.70452882 | AN123: 10.745347 | AO123: 10.78654236 | AP123: 10.83708223 | AQ123: 10.88082146 | AR123: 10.92500829 | AS123: 10.96968043 | AT123: 11.01487891 | AU123: 11.04466741 | AV123: 11.08817592 | AW123: 11.13210546 | AX123: 11.17670783 | AY123: 11.22182799 | AZ123: 11.28638161 | BA123: 11.33569382 | BB123: 11.3854884 | BC123: 11.43570977 | BD123: 11.4866426 | BF123: 525.1772831 | BG123: 630134.3437
A124: Industrial A2 | B124: 0.02635447004 | C124: 4.943734752 | D124: 4.939310033 | E124: 4.918310035 | F124: 4.947308637 | G124: 6.303227342 | H124: 6.250510771 | I124: 6.194502297 | J124: 6.1466484 | K124: 6.145425703 | L124: 6.083645138 | M124: 6.049797466 | N124: 6.061894125 | O124: 6.076139878 | P124: 6.054264475 | Q124: 6.057623974 | R124: 6.155524868 | S124: 6.175630231 | T124: 6.169676964 | U124: 6.21283235 | V124: 6.197616548 | W124: 6.215290653 | X124: 6.233373291 | Y124: 6.251891709 | Z124: 6.270626126 | AA124: 6.293546576 | AB124: 6.313657316 | AC124: 6.334159941 | AD124: 6.354963022 | AE124: 6.37613222 | AF124: 6.412736768 | AG124: 6.437155037 | AH124: 6.461951355 | AI124: 6.485056026 | AJ124: 6.508436955 | AK124: 6.535906957 | AL124: 6.560500052 | AM124: 6.585340848 | AN124: 6.610451865 | AO124: 6.635794921 | AP124: 6.666886645 | AQ124: 6.693794675 | AR124: 6.720978062 | AS124: 6.748460003 | AT124: 6.776265747 | AU124: 6.794591394 | AV124: 6.821357484 | AW124: 6.848382587 | AX124: 6.875821612 | AY124: 6.903579172 | AZ124: 6.943292048 | BA124: 6.973628523 | BB124: 7.004261755 | BC124: 7.035157539 | BD124: 7.066491014 | BF124: 323.0848804 | BG124: 90556.84017
A125: ATCO | B125: =SUM(B120:B124) -> 1.000761643 | C125: 187.7290686 | D125: 187.5610482 | E125: 186.7636125 | F125: 187.8647801 | G125: 239.3532536 | H125: 237.3514405 | I125: =$B125*I$64 -> 235.2246236 | J125: 233.4074615 | K125: 233.3610319 | L125: 231.0150306 | M125: 229.7297287 | N125: 230.1890767 | O125: 230.7300324 | P125: 229.899355 | Q125: 230.0269257 | R125: 233.7445287 | S125: 234.5079923 | T125: 234.2819281 | U125: 235.920673 | V125: 235.3428815 | W125: 236.0140225 | X125: 236.7006768 | Y125: 237.4038791 | Z125: 238.1152835 | AA125: 238.9856447 | AB125: 239.7493123 | AC125: 240.5278611 | AD125: 241.3178191 | AE125: 242.1216798 | AF125: 243.511669 | AG125: 244.438907 | AH125: 245.3805007 | AI125: 246.2578574 | AJ125: 247.1457043 | AK125: 248.1888262 | AL125: 249.1227029 | AM125: 250.0659856 | AN125: 251.0195295 | AO125: 251.9818846 | AP125: 253.1625346 | AQ125: 254.1843166 | AR125: 255.2165548 | AS125: 256.26013 | AT125: 257.3160011 | AU125: 258.0118832 | AV125: 259.0282754 | AW125: 260.0545031 | AX125: 261.0964487 | AY125: 262.15049 | AZ125: 263.6585121 | BA125: 264.8104829 | BB125: 265.9737225 | BC125: 267.146932 | BD125: 268.3367621 | BF125: 12268.54326 | BG125: 1464400.566
A127: Adjusted average tariff by tariff class | B127: Average tariff adjusted
A128: Residential B3 | B128: =BF120*1000/BG120 -> 18.56473103 | C128: =C120*1000/C33 -> 14.67091616 | D128: 15.22481639 | E128: 14.8918835 | F128: 15.13577628 | G128: =B128 -> 18.56473103 | H128: =G128 -> 18.56473103 | I128: =H128 -> 18.56473103 | J128: 18.56473103 | K128: 18.56473103 | L128: 18.56473103 | M128: 18.56473103 | N128: 18.56473103 | O128: 18.56473103 | P128: 18.56473103 | Q128: 18.56473103 | R128: 18.56473103 | S128: 18.56473103 | T128: 18.56473103 | U128: 18.56473103 | V128: 18.56473103 | W128: 18.56473103 | X128: 18.56473103 | Y128: 18.56473103 | Z128: 18.56473103 | AA128: 18.56473103 | AB128: 18.56473103 | AC128: 18.56473103 | AD128: 18.56473103 | AE128: 18.56473103 | AF128: 18.56473103 | AG128: 18.56473103 | AH128: 18.56473103 | AI128: 18.56473103 | AJ128: 18.56473103 | AK128: 18.56473103 | AL128: 18.56473103 | AM128: 18.56473103 | AN128: 18.56473103 | AO128: 18.56473103 | AP128: 18.56473103 | AQ128: 18.56473103 | AR128: 18.56473103 | AS128: 18.56473103 | AT128: 18.56473103 | AU128: 18.56473103 | AV128: 18.56473103 | AW128: 18.56473103 | AX128: 18.56473103 | AY128: 18.56473103 | AZ128: 18.56473103 | BA128: 18.56473103 | BB128: 18.56473103 | BC128: 18.56473103 | BD128: 18.56473103
A129: Commercial B2 | B129: =BF121*1000/BG121 -> 8.117927748 | C129: =C121*1000/C34 -> 8.054103417 | D129: 7.925704423 | E129: 7.925613818 | F129: 8.03224337 | G129: =B129 -> 8.117927748 | H129: =G129 -> 8.117927748 | I129: 8.117927748 | J129: 8.117927748 | K129: 8.117927748 | L129: 8.117927748 | M129: 8.117927748 | N129: 8.117927748 | O129: 8.117927748 | P129: 8.117927748 | Q129: 8.117927748 | R129: 8.117927748 | S129: 8.117927748 | T129: 8.117927748 | U129: 8.117927748 | V129: 8.117927748 | W129: 8.117927748 | X129: 8.117927748 | Y129: 8.117927748 | Z129: 8.117927748 | AA129: 8.117927748 | AB129: 8.117927748 | AC129: 8.117927748 | AD129: 8.117927748 | AE129: 8.117927748 | AF129: 8.117927748 | AG129: 8.117927748 | AH129: 8.117927748 | AI129: 8.117927748 | AJ129: 8.117927748 | AK129: 8.117927748 | AL129: 8.117927748 | AM129: 8.117927748 | AN129: 8.117927748 | AO129: 8.117927748 | AP129: 8.117927748 | AQ129: 8.117927748 | AR129: 8.117927748 | AS129: 8.117927748 | AT129: 8.117927748 | AU129: 8.117927748 | AV129: 8.117927748 | AW129: 8.117927748 | AX129: 8.117927748 | AY129: 8.117927748 | AZ129: 8.117927748 | BA129: 8.117927748 | BB129: 8.117927748 | BC129: 8.117927748 | BD129: 8.117927748
A130: Commercial B1 | B130: =BF122*1000/BG122 -> 5.867540506 | C130: =C122*1000/C35 -> 5.140957813 | D130: 5.160653395 | E130: 5.190973183 | F130: 5.205650641 | G130: 5.867540506 | H130: 5.867540506 | I130: 5.867540506 | J130: 5.867540506 | K130: 5.867540506 | L130: 5.867540506 | M130: 5.867540506 | N130: 5.867540506 | O130: 5.867540506 | P130: 5.867540506 | Q130: 5.867540506 | R130: 5.867540506 | S130: 5.867540506 | T130: 5.867540506 | U130: 5.867540506 | V130: 5.867540506 | W130: 5.867540506 | X130: 5.867540506 | Y130: 5.867540506 | Z130: 5.867540506 | AA130: 5.867540506 | AB130: 5.867540506 | AC130: 5.867540506 | AD130: 5.867540506 | AE130: 5.867540506 | AF130: 5.867540506 | AG130: 5.867540506 | AH130: 5.867540506 | AI130: 5.867540506 | AJ130: 5.867540506 | AK130: 5.867540506 | AL130: 5.867540506 | AM130: 5.867540506 | AN130: 5.867540506 | AO130: 5.867540506 | AP130: 5.867540506 | AQ130: 5.867540506 | AR130: 5.867540506 | AS130: 5.867540506 | AT130: 5.867540506 | AU130: 5.867540506 | AV130: 5.867540506 | AW130: 5.867540506 | AX130: 5.867540506 | AY130: 5.867540506 | AZ130: 5.867540506 | BA130: 5.867540506 | BB130: 5.867540506 | BC130: 5.867540506 | BD130: 5.867540506
A131: Industrial A1 | B131: =BF123*1000/BG123 -> 0.8334370097 | C131: =C123*1000/C36 -> 0.6508787096 | D131: 0.650313631 | E131: 0.651138839 | F131: 0.6084055864 | G131: 0.8334370097 | H131: 0.8334370097 | I131: 0.8334370097 | J131: 0.8334370097 | K131: 0.8334370097 | L131: 0.8334370097 | M131: 0.8334370097 | N131: 0.8334370097 | O131: 0.8334370097 | P131: 0.8334370097 | Q131: 0.8334370097 | R131: 0.8334370097 | S131: 0.8334370097 | T131: 0.8334370097 | U131: 0.8334370097 | V131: 0.8334370097 | W131: 0.8334370097 | X131: 0.8334370097 | Y131: 0.8334370097 | Z131: 0.8334370097 | AA131: 0.8334370097 | AB131: 0.8334370097 | AC131: 0.8334370097 | AD131: 0.8334370097 | AE131: 0.8334370097 | AF131: 0.8334370097 | AG131: 0.8334370097 | AH131: 0.8334370097 | AI131: 0.8334370097 | AJ131: 0.8334370097 | AK131: 0.8334370097 | AL131: 0.8334370097 | AM131: 0.8334370097 | AN131: 0.8334370097 | AO131: 0.8334370097 | AP131: 0.8334370097 | AQ131: 0.8334370097 | AR131: 0.8334370097 | AS131: 0.8334370097 | AT131: 0.8334370097 | AU131: 0.8334370097 | AV131: 0.8334370097 | AW131: 0.8334370097 | AX131: 0.8334370097 | AY131: 0.8334370097 | AZ131: 0.8334370097 | BA131: 0.8334370097 | BB131: 0.8334370097 | BC131: 0.8334370097 | BD131: 0.8334370097
A132: Industrial A2 | B132: =BF124*1000/BG124 -> 3.567757884 | C132: =C124*1000/C37 -> 2.685897411 | D132: 2.790540903 | E132: 2.796189138 | F132: 2.849793446 | G132: 3.567757884 | H132: 3.567757884 | I132: 3.567757884 | J132: 3.567757884 | K132: 3.567757884 | L132: 3.567757884 | M132: 3.567757884 | N132: 3.567757884 | O132: 3.567757884 | P132: 3.567757884 | Q132: 3.567757884 | R132: 3.567757884 | S132: 3.567757884 | T132: 3.567757884 | U132: 3.567757884 | V132: 3.567757884 | W132: 3.567757884 | X132: 3.567757884 | Y132: 3.567757884 | Z132: 3.567757884 | AA132: 3.567757884 | AB132: 3.567757884 | AC132: 3.567757884 | AD132: 3.567757884 | AE132: 3.567757884 | AF132: 3.567757884 | AG132: 3.567757884 | AH132: 3.567757884 | AI132: 3.567757884 | AJ132: 3.567757884 | AK132: 3.567757884 | AL132: 3.567757884 | AM132: 3.567757884 | AN132: 3.567757884 | AO132: 3.567757884 | AP132: 3.567757884 | AQ132: 3.567757884 | AR132: 3.567757884 | AS132: 3.567757884 | AT132: 3.567757884 | AU132: 3.567757884 | AV132: 3.567757884 | AW132: 3.567757884 | AX132: 3.567757884 | AY132: 3.567757884 | AZ132: 3.567757884 | BA132: 3.567757884 | BB132: 3.567757884 | BC132: 3.567757884 | BD132: 3.567757884
A135: Adjusted tariffs | C135: 2021 | D135: 2022 | E135: =D135+1 -> 2023 | F135: =E135+1 -> 2024 | G135: =F135+1 -> 2025 | H135: =G135+1 -> 2026 | I135: =H135+1 -> 2027 | J135: =I135+1 -> 2028 | K135: =J135+1 -> 2029 | L135: =K135+1 -> 2030 | M135: =L135+1 -> 2031 | N135: =M135+1 -> 2032 | O135: =N135+1 -> 2033 | P135: =O135+1 -> 2034 | Q135: =P135+1 -> 2035 | R135: =Q135+1 -> 2036 | S135: =R135+1 -> 2037 | T135: =S135+1 -> 2038 | U135: =T135+1 -> 2039 | V135: =U135+1 -> 2040 | W135: =V135+1 -> 2041 | X135: =W135+1 -> 2042 | Y135: =X135+1 -> 2043 | Z135: =Y135+1 -> 2044 | AA135: =Z135+1 -> 2045 | AB135: =AA135+1 -> 2046 | AC135: =AB135+1 -> 2047 | AD135: =AC135+1 -> 2048 | AE135: =AD135+1 -> 2049 | AF135: =AE135+1 -> 2050 | AG135: =AF135+1 -> 2051 | AH135: =AG135+1 -> 2052 | AI135: =AH135+1 -> 2053 | AJ135: =AI135+1 -> 2054 | AK135: =AJ135+1 -> 2055 | AL135: =AK135+1 -> 2056 | AM135: =AL135+1 -> 2057 | AN135: =AM135+1 -> 2058 | AO135: =AN135+1 -> 2059 | AP135: =AO135+1 -> 2060 | AQ135: =AP135+1 -> 2061 | AR135: =AQ135+1 -> 2062 | AS135: =AR135+1 -> 2063 | AT135: =AS135+1 -> 2064 | AU135: =AT135+1 -> 2065 | AV135: =AU135+1 -> 2066 | AW135: =AV135+1 -> 2067 | AX135: =AW135+1 -> 2068 | AY135: =AX135+1 -> 2069 | AZ135: =AY135+1 -> 2070 | BA135: =AZ135+1 -> 2071 | BB135: =BA135+1 -> 2072 | BC135: =BB135+1 -> 2073 | BD135: =BC135+1 -> 2074
A136: Residential B3
A137: Daily supply charge | C137: 0.3275017112 | D137: 0.337357974 | E137: 0.361889117 | F137: 0.3790788501 | G137: =$F137*$B128/$F128 -> 0.4649577771 | H137: 0.4649577771 | I137: 0.4649577771 | J137: 0.4649577771 | K137: 0.4649577771 | L137: 0.4649577771 | M137: 0.4649577771 | N137: 0.4649577771 | O137: 0.4649577771 | P137: 0.4649577771 | Q137: 0.4649577771 | R137: 0.4649577771 | S137: 0.4649577771 | T137: 0.4649577771 | U137: 0.4649577771 | V137: 0.4649577771 | W137: 0.4649577771 | X137: 0.4649577771 | Y137: 0.4649577771 | Z137: 0.4649577771 | AA137: 0.4649577771 | AB137: 0.4649577771 | AC137: 0.4649577771 | AD137: 0.4649577771 | AE137: 0.4649577771 | AF137: 0.4649577771 | AG137: 0.4649577771 | AH137: 0.4649577771 | AI137: 0.4649577771 | AJ137: 0.4649577771 | AK137: 0.4649577771 | AL137: 0.4649577771 | AM137: 0.4649577771 | AN137: 0.4649577771 | AO137: 0.4649577771 | AP137: 0.4649577771 | AQ137: 0.4649577771 | AR137: 0.4649577771 | AS137: 0.4649577771 | AT137: 0.4649577771 | AU137: 0.4649577771 | AV137: 0.4649577771 | AW137: 0.4649577771 | AX137: 0.4649577771 | AY137: 0.4649577771 | AZ137: 0.4649577771 | BA137: 0.4649577771 | BB137: 0.4649577771 | BC137: 0.4649577771 | BD137: 0.4649577771
A138: Average volumetric charge $/GJ | C138: 4.049863187 | D138: 4.189938821 | E138: 4.485318003 | F138: 4.691642904 | G138: =$F138*$B128/$F128 -> 5.754517444 | H138: 5.754517444 | I138: 5.754517444 | J138: 5.754517444 | K138: 5.754517444 | L138: 5.754517444 | M138: 5.754517444 | N138: 5.754517444 | O138: 5.754517444 | P138: 5.754517444 | Q138: 5.754517444 | R138: 5.754517444 | S138: 5.754517444 | T138: 5.754517444 | U138: 5.754517444 | V138: 5.754517444 | W138: 5.754517444 | X138: 5.754517444 | Y138: 5.754517444 | Z138: 5.754517444 | AA138: 5.754517444 | AB138: 5.754517444 | AC138: 5.754517444 | AD138: 5.754517444 | AE138: 5.754517444 | AF138: 5.754517444 | AG138: 5.754517444 | AH138: 5.754517444 | AI138: 5.754517444 | AJ138: 5.754517444 | AK138: 5.754517444 | AL138: 5.754517444 | AM138: 5.754517444 | AN138: 5.754517444 | AO138: 5.754517444 | AP138: 5.754517444 | AQ138: 5.754517444 | AR138: 5.754517444 | AS138: 5.754517444 | AT138: 5.754517444 | AU138: 5.754517444 | AV138: 5.754517444 | AW138: 5.754517444 | AX138: 5.754517444 | AY138: 5.754517444 | AZ138: 5.754517444 | BA138: 5.754517444 | BB138: 5.754517444 | BC138: 5.754517444 | BD138: 5.754517444
A139: Commercial B2
A140: Daily supply charge | C140: 0.6564818617 | D140: 0.6793155373 | E140: 0.7287063655 | F140: 0.7633199179 | G140: =$F140*$B129/$F129 -> 0.7714626732 | H140: =$F140*$B129/$F129 -> 0.7714626732 | I140: 0.7714626732 | J140: 0.7714626732 | K140: 0.7714626732 | L140: 0.7714626732 | M140: 0.7714626732 | N140: 0.7714626732 | O140: 0.7714626732 | P140: 0.7714626732 | Q140: 0.7714626732 | R140: 0.7714626732 | S140: 0.7714626732 | T140: 0.7714626732 | U140: 0.7714626732 | V140: 0.7714626732 | W140: 0.7714626732 | X140: 0.7714626732 | Y140: 0.7714626732 | Z140: 0.7714626732 | AA140: 0.7714626732 | AB140: 0.7714626732 | AC140: 0.7714626732 | AD140: 0.7714626732 | AE140: 0.7714626732 | AF140: 0.7714626732 | AG140: 0.7714626732 | AH140: 0.7714626732 | AI140: 0.7714626732 | AJ140: 0.7714626732 | AK140: 0.7714626732 | AL140: 0.7714626732 | AM140: 0.7714626732 | AN140: 0.7714626732 | AO140: 0.7714626732 | AP140: 0.7714626732 | AQ140: 0.7714626732 | AR140: 0.7714626732 | AS140: 0.7714626732 | AT140: 0.7714626732 | AU140: 0.7714626732 | AV140: 0.7714626732 | AW140: 0.7714626732 | AX140: 0.7714626732 | AY140: 0.7714626732 | AZ140: 0.7714626732 | BA140: 0.7714626732 | BB140: 0.7714626732 | BC140: 0.7714626732 | BD140: 0.7714626732
A141: Average volumetric charge $/GJ | C141: 4.553632728 | D141: 4.717642483 | E141: 5.086432336 | F141: 5.339998359 | G141: =$F141*$B129/$F129 -> 5.396963072 | H141: =$F141*$B129/$F129 -> 5.396963072 | I141: 5.396963072 | J141: 5.396963072 | K141: 5.396963072 | L141: 5.396963072 | M141: 5.396963072 | N141: 5.396963072 | O141: 5.396963072 | P141: 5.396963072 | Q141: 5.396963072 | R141: 5.396963072 | S141: 5.396963072 | T141: 5.396963072 | U141: 5.396963072 | V141: 5.396963072 | W141: 5.396963072 | X141: 5.396963072 | Y141: 5.396963072 | Z141: 5.396963072 | AA141: 5.396963072 | AB141: 5.396963072 | AC141: 5.396963072 | AD141: 5.396963072 | AE141: 5.396963072 | AF141: 5.396963072 | AG141: 5.396963072 | AH141: 5.396963072 | AI141: 5.396963072 | AJ141: 5.396963072 | AK141: 5.396963072 | AL141: 5.396963072 | AM141: 5.396963072 | AN141: 5.396963072 | AO141: 5.396963072 | AP141: 5.396963072 | AQ141: 5.396963072 | AR141: 5.396963072 | AS141: 5.396963072 | AT141: 5.396963072 | AU141: 5.396963072 | AV141: 5.396963072 | AW141: 5.396963072 | AX141: 5.396963072 | AY141: 5.396963072 | AZ141: 5.396963072 | BA141: 5.396963072 | BB141: 5.396963072 | BC141: 5.396963072 | BD141: 5.396963072
A142: Commercial B1
A143: Daily supply charge | C143: 0.3941136208 | D143: 0.4078302533 | E143: 0.4374811773 | F143: 0.4582615332 | G143: =$F143*$B130/$F130 -> 0.5165287288 | H143: =$F143*$B130/$F130 -> 0.5165287288 | I143: 0.5165287288 | J143: 0.5165287288 | K143: 0.5165287288 | L143: 0.5165287288 | M143: 0.5165287288 | N143: 0.5165287288 | O143: 0.5165287288 | P143: 0.5165287288 | Q143: 0.5165287288 | R143: 0.5165287288 | S143: 0.5165287288 | T143: 0.5165287288 | U143: 0.5165287288 | V143: 0.5165287288 | W143: 0.5165287288 | X143: 0.5165287288 | Y143: 0.5165287288 | Z143: 0.5165287288 | AA143: 0.5165287288 | AB143: 0.5165287288 | AC143: 0.5165287288 | AD143: 0.5165287288 | AE143: 0.5165287288 | AF143: 0.5165287288 | AG143: 0.5165287288 | AH143: 0.5165287288 | AI143: 0.5165287288 | AJ143: 0.5165287288 | AK143: 0.5165287288 | AL143: 0.5165287288 | AM143: 0.5165287288 | AN143: 0.5165287288 | AO143: 0.5165287288 | AP143: 0.5165287288 | AQ143: 0.5165287288 | AR143: 0.5165287288 | AS143: 0.5165287288 | AT143: 0.5165287288 | AU143: 0.5165287288 | AV143: 0.5165287288 | AW143: 0.5165287288 | AX143: 0.5165287288 | AY143: 0.5165287288 | AZ143: 0.5165287288 | BA143: 0.5165287288 | BB143: 0.5165287288 | BC143: 0.5165287288 | BD143: 0.5165287288
A144: Average volumetric charge $/GJ | C144: 3.562540525 | D144: 3.699666624 | E144: 3.965113162 | F144: 4.153456037 | G144: =$F144*$B130/$F130 -> 4.681561098 | H144: =$F144*$B130/$F130 -> 4.681561098 | I144: 4.681561098 | J144: 4.681561098 | K144: 4.681561098 | L144: 4.681561098 | M144: 4.681561098 | N144: 4.681561098 | O144: 4.681561098 | P144: 4.681561098 | Q144: 4.681561098 | R144: 4.681561098 | S144: 4.681561098 | T144: 4.681561098 | U144: 4.681561098 | V144: 4.681561098 | W144: 4.681561098 | X144: 4.681561098 | Y144: 4.681561098 | Z144: 4.681561098 | AA144: 4.681561098 | AB144: 4.681561098 | AC144: 4.681561098 | AD144: 4.681561098 | AE144: 4.681561098 | AF144: 4.681561098 | AG144: 4.681561098 | AH144: 4.681561098 | AI144: 4.681561098 | AJ144: 4.681561098 | AK144: 4.681561098 | AL144: 4.681561098 | AM144: 4.681561098 | AN144: 4.681561098 | AO144: 4.681561098 | AP144: 4.681561098 | AQ144: 4.681561098 | AR144: 4.681561098 | AS144: 4.681561098 | AT144: 4.681561098 | AU144: 4.681561098 | AV144: 4.681561098 | AW144: 4.681561098 | AX144: 4.681561098 | AY144: 4.681561098 | AZ144: 4.681561098 | BA144: 4.681561098 | BB144: 4.681561098 | BC144: 4.681561098 | BD144: 4.681561098
A145: Industrial A1
A146: Daily supply charge | C146: 0.5812517326 | D146: 0.5619244412 | E146: 0.5746551555 | F146: 0.6309659431 | G146: =$F146*$B131/$F131 -> 0.8643417822 | H146: =$F146*$B131/$F131 -> 0.8643417822 | I146: 0.8643417822 | J146: 0.8643417822 | K146: 0.8643417822 | L146: 0.8643417822 | M146: 0.8643417822 | N146: 0.8643417822 | O146: 0.8643417822 | P146: 0.8643417822 | Q146: 0.8643417822 | R146: 0.8643417822 | S146: 0.8643417822 | T146: 0.8643417822 | U146: 0.8643417822 | V146: 0.8643417822 | W146: 0.8643417822 | X146: 0.8643417822 | Y146: 0.8643417822 | Z146: 0.8643417822 | AA146: 0.8643417822 | AB146: 0.8643417822 | AC146: 0.8643417822 | AD146: 0.8643417822 | AE146: 0.8643417822 | AF146: 0.8643417822 | AG146: 0.8643417822 | AH146: 0.8643417822 | AI146: 0.8643417822 | AJ146: 0.8643417822 | AK146: 0.8643417822 | AL146: 0.8643417822 | AM146: 0.8643417822 | AN146: 0.8643417822 | AO146: 0.8643417822 | AP146: 0.8643417822 | AQ146: 0.8643417822 | AR146: 0.8643417822 | AS146: 0.8643417822 | AT146: 0.8643417822 | AU146: 0.8643417822 | AV146: 0.8643417822 | AW146: 0.8643417822 | AX146: 0.8643417822 | AY146: 0.8643417822 | AZ146: 0.8643417822 | BA146: 0.8643417822 | BB146: 0.8643417822 | BC146: 0.8643417822 | BD146: 0.8643417822
A147: Average volumetric charge $/GJ | C147: 0.1348207712 | D147: 0.1477956152 | E147: 0.159838144 | F147: 0.168039367 | G147: =$F147*$B131/$F131 -> 0.2301922116 | H147: =$F147*$B131/$F131 -> 0.2301922116 | I147: 0.2301922116 | J147: 0.2301922116 | K147: 0.2301922116 | L147: 0.2301922116 | M147: 0.2301922116 | N147: 0.2301922116 | O147: 0.2301922116 | P147: 0.2301922116 | Q147: 0.2301922116 | R147: 0.2301922116 | S147: 0.2301922116 | T147: 0.2301922116 | U147: 0.2301922116 | V147: 0.2301922116 | W147: 0.2301922116 | X147: 0.2301922116 | Y147: 0.2301922116 | Z147: 0.2301922116 | AA147: 0.2301922116 | AB147: 0.2301922116 | AC147: 0.2301922116 | AD147: 0.2301922116 | AE147: 0.2301922116 | AF147: 0.2301922116 | AG147: 0.2301922116 | AH147: 0.2301922116 | AI147: 0.2301922116 | AJ147: 0.2301922116 | AK147: 0.2301922116 | AL147: 0.2301922116 | AM147: 0.2301922116 | AN147: 0.2301922116 | AO147: 0.2301922116 | AP147: 0.2301922116 | AQ147: 0.2301922116 | AR147: 0.2301922116 | AS147: 0.2301922116 | AT147: 0.2301922116 | AU147: 0.2301922116 | AV147: 0.2301922116 | AW147: 0.2301922116 | AX147: 0.2301922116 | AY147: 0.2301922116 | AZ147: 0.2301922116 | BA147: 0.2301922116 | BB147: 0.2301922116 | BC147: 0.2301922116 | BD147: 0.2301922116
A148: Industrial A2
A149: Daily supply charge | C149: 51.73850787 | D149: 53.53900068 | E149: 57.43151266 | F149: 60.15950951 | G149: =$F149*$B132/$F132 -> 75.31583198 | H149: =$F149*$B132/$F132 -> 75.31583198 | I149: 75.31583198 | J149: 75.31583198 | K149: 75.31583198 | L149: 75.31583198 | M149: 75.31583198 | N149: 75.31583198 | O149: 75.31583198 | P149: 75.31583198 | Q149: 75.31583198 | R149: 75.31583198 | S149: 75.31583198 | T149: 75.31583198 | U149: 75.31583198 | V149: 75.31583198 | W149: 75.31583198 | X149: 75.31583198 | Y149: 75.31583198 | Z149: 75.31583198 | AA149: 75.31583198 | AB149: 75.31583198 | AC149: 75.31583198 | AD149: 75.31583198 | AE149: 75.31583198 | AF149: 75.31583198 | AG149: 75.31583198 | AH149: 75.31583198 | AI149: 75.31583198 | AJ149: 75.31583198 | AK149: 75.31583198 | AL149: 75.31583198 | AM149: 75.31583198 | AN149: 75.31583198 | AO149: 75.31583198 | AP149: 75.31583198 | AQ149: 75.31583198 | AR149: 75.31583198 | AS149: 75.31583198 | AT149: 75.31583198 | AU149: 75.31583198 | AV149: 75.31583198 | AW149: 75.31583198 | AX149: 75.31583198 | AY149: 75.31583198 | AZ149: 75.31583198 | BA149: 75.31583198 | BB149: 75.31583198 | BC149: 75.31583198 | BD149: 75.31583198
A150: Average volumetric charge $/GJ | C150: 1.35343836 | D150: 1.399124813 | E150: 1.499730135 | F150: 1.570967316 | G150: =$F150*$B132/$F132 -> 1.966749919 | H150: =$F150*$B132/$F132 -> 1.966749919 | I150: 1.966749919 | J150: 1.966749919 | K150: 1.966749919 | L150: 1.966749919 | M150: 1.966749919 | N150: 1.966749919 | O150: 1.966749919 | P150: 1.966749919 | Q150: 1.966749919 | R150: 1.966749919 | S150: 1.966749919 | T150: 1.966749919 | U150: 1.966749919 | V150: 1.966749919 | W150: 1.966749919 | X150: 1.966749919 | Y150: 1.966749919 | Z150: 1.966749919 | AA150: 1.966749919 | AB150: 1.966749919 | AC150: 1.966749919 | AD150: 1.966749919 | AE150: 1.966749919 | AF150: 1.966749919 | AG150: 1.966749919 | AH150: 1.966749919 | AI150: 1.966749919 | AJ150: 1.966749919 | AK150: 1.966749919 | AL150: 1.966749919 | AM150: 1.966749919 | AN150: 1.966749919 | AO150: 1.966749919 | AP150: 1.966749919 | AQ150: 1.966749919 | AR150: 1.966749919 | AS150: 1.966749919 | AT150: 1.966749919 | AU150: 1.966749919 | AV150: 1.966749919 | AW150: 1.966749919 | AX150: 1.966749919 | AY150: 1.966749919 | AZ150: 1.966749919 | BA150: 1.966749919 | BB150: 1.966749919 | BC150: 1.966749919 | BD150: 1.966749919

Sheet Scenarios
A2: Residential Network ON/OFF
A3: LGA | B3: 2021 | C3: =B3+1 -> 2022 | D3: =C3+1 -> 2023 | E3: 2024 | F3: 2025 | G3: 2026 | H3: 2027 | I3: 2028 | J3: 2029 | K3: 2030 | L3: 2031 | M3: 2032 | N3: 2033 | O3: 2034 | P3: 2035 | Q3: 2036 | R3: 2037 | S3: 2038 | T3: 2039 | U3: 2040 | V3: 2041 | W3: 2042 | X3: 2043 | Y3: 2044 | Z3: 2045 | AA3: 2046 | AB3: 2047 | AC3: 2048 | AD3: 2049 | AE3: 2050 | AF3: 2051 | AG3: 2052 | AH3: 2053 | AI3: 2054 | AJ3: 2055 | AK3: 2056 | AL3: 2057 | AM3: 2058 | AN3: 2059 | AO3: 2060 | AP3: 2061 | AQ3: 2062 | AR3: 2063 | AS3: 2064 | AT3: 2065 | AU3: 2066 | AV3: 2067 | AW3: 2068 | AX3: 2069 | AY3: 2070 | AZ3: 2071 | BA3: 2072 | BB3: 2073 | BC3: 2074 | BD3: 2075 | BE3: 2076 | BF3: 2077 | BG3: 2078 | BH3: 2079 | BI3: 2080 | BJ3: 2081 | BK3: 2082 | BL3: 2083 | BM3: 2084 | BN3: 2085 | BO3: 2086 | BP3: =BO3+1 -> 2087 | BQ3: 2088 | BR3: 2089 | BS3: 2090 | BT3: 2091 | BU3: 2092 | BV3: 2093 | BW3: 2094 | BX3: 2095 | BY3: 2096 | BZ3: 2097 | CA3: 2098 | CB3: 2099 | CC3: 2100
A4: ARMADALE | B4: 1 | C4: 1 | D4: 1 | E4: 1 | F4: 1 | G4: 1 | H4: 1 | I4: 1 | J4: 1 | K4: 1 | L4: 1 | M4: 1 | N4: 1 | O4: 1 | P4: 1 | Q4: 1 | R4: 1 | S4: 1 | T4: 1 | U4: 1 | V4: 1 | W4: 1 | X4: 1 | Y4: 1 | Z4: 1 | AA4: 1 | AB4: 1 | AC4: 1 | AD4: 1 | AE4: 1 | AF4: 1 | AG4: 1 | AH4: 1 | AI4: 1 | AJ4: 1 | AK4: 1 | AL4: 1 | AM4: 1 | AN4: 1 | AO4: 1 | AP4: 1 | AQ4: 1 | AR4: 1 | AS4: 1 | AT4: 1 | AU4: 1 | AV4: 1 | AW4: 1 | AX4: 1 | AY4: 1 | AZ4: 1 | BA4: 1 | BB4: 1 | BC4: 1 | BD4: 1 | BE4: 1 | BF4: 1 | BG4: 1 | BH4: 1 | BI4: 1 | BJ4: 1 | BK4: 1 | BL4: 1 | BM4: 1 | BN4: 1 | BO4: 1 | BP4: 1 | BQ4: 1 | BR4: 1 | BS4: 1 | BT4: 1 | BU4: 1 | BV4: 1 | BW4: 1 | BX4: 1 | BY4: 1 | BZ4: 1 | CA4: 1 | CB4: 1 | CC4: 1
A5: BASSENDEAN | B5: 1 | C5: 1 | D5: 1 | E5: 1 | F5: 1 | G5: 1 | H5: 1 | I5: 1 | J5: 1 | K5: 1 | L5: 1 | M5: 1 | N5: 1 | O5: 1 | P5: 1 | Q5: 1 | R5: 1 | S5: 1 | T5: 1 | U5: 1 | V5: 1 | W5: 1 | X5: 1 | Y5: 1 | Z5: 1 | AA5: 1 | AB5: 1 | AC5: 1 | AD5: 1 | AE5: 1 | AF5: 1 | AG5: 1 | AH5: 1 | AI5: 1 | AJ5: 1 | AK5: 1 | AL5: 1 | AM5: 1 | AN5: 1 | AO5: 1 | AP5: 1 | AQ5: 1 | AR5: 1 | AS5: 1 | AT5: 1 | AU5: 1 | AV5: 1 | AW5: 1 | AX5: 1 | AY5: 1 | AZ5: 1 | BA5: 1 | BB5: 1 | BC5: 1 | BD5: 1 | BE5: 1 | BF5: 1 | BG5: 1 | BH5: 1 | BI5: 1 | BJ5: 1 | BK5: 1 | BL5: 1 | BM5: 1 | BN5: 1 | BO5: 1 | BP5: 1 | BQ5: 1 | BR5: 1 | BS5: 1 | BT5: 1 | BU5: 1 | BV5: 1 | BW5: 1 | BX5: 1 | BY5: 1 | BZ5: 1 | CA5: 1 | CB5: 1 | CC5: 1
A6: BAYSWATER | B6: 1 | C6: 1 | D6: 1 | E6: 1 | F6: 1 | G6: 1 | H6: 1 | I6: 1 | J6: 1 | K6: 1 | L6: 1 | M6: 1 | N6: 1 | O6: 1 | P6: 1 | Q6: 1 | R6: 1 | S6: 1 | T6: 1 | U6: 1 | V6: 1 | W6: 1 | X6: 1 | Y6: 1 | Z6: 1 | AA6: 1 | AB6: 1 | AC6: 1 | AD6: 1 | AE6: 1 | AF6: 1 | AG6: 1 | AH6: 1 | AI6: 1 | AJ6: 1 | AK6: 1 | AL6: 1 | AM6: 1 | AN6: 1 | AO6: 1 | AP6: 1 | AQ6: 1 | AR6: 1 | AS6: 1 | AT6: 1 | AU6: 1 | AV6: 1 | AW6: 1 | AX6: 1 | AY6: 1 | AZ6: 1 | BA6: 1 | BB6: 1 | BC6: 1 | BD6: 1 | BE6: 1 | BF6: 1 | BG6: 1 | BH6: 1 | BI6: 1 | BJ6: 1 | BK6: 1 | BL6: 1 | BM6: 1 | BN6: 1 | BO6: 1 | BP6: 1 | BQ6: 1 | BR6: 1 | BS6: 1 | BT6: 1 | BU6: 1 | BV6: 1 | BW6: 1 | BX6: 1 | BY6: 1 | BZ6: 1 | CA6: 1 | CB6: 1 | CC6: 1
A7: BELMONT | B7: 1 | C7: 1 | D7: 1 | E7: 1 | F7: 1 | G7: 1 | H7: 1 | I7: 1 | J7: 1 | K7: 1 | L7: 1 | M7: 1 | N7: 1 | O7: 1 | P7: 1 | Q7: 1 | R7: 1 | S7: 1 | T7: 1 | U7: 1 | V7: 1 | W7: 1 | X7: 1 | Y7: 1 | Z7: 1 | AA7: 1 | AB7: 1 | AC7: 1 | AD7: 1 | AE7: 1 | AF7: 1 | AG7: 1 | AH7: 1 | AI7: 1 | AJ7: 1 | AK7: 1 | AL7: 1 | AM7: 1 | AN7: 1 | AO7: 1 | AP7: 1 | AQ7: 1 | AR7: 1 | AS7: 1 | AT7: 1 | AU7: 1 | AV7: 1 | AW7: 1 | AX7: 1 | AY7: 1 | AZ7: 1 | BA7: 1 | BB7: 1 | BC7: 1 | BD7: 1 | BE7: 1 | BF7: 1 | BG7: 1 | BH7: 1 | BI7: 1 | BJ7: 1 | BK7: 1 | BL7: 1 | BM7: 1 | BN7: 1 | BO7: 1 | BP7: 1 | BQ7: 1 | BR7: 1 | BS7: 1 | BT7: 1 | BU7: 1 | BV7: 1 | BW7: 1 | BX7: 1 | BY7: 1 | BZ7: 1 | CA7: 1 | CB7: 1 | CC7: 1
A8: BUNBURY | B8: 1 | C8: 1 | D8: 1 | E8: 1 | F8: 1 | G8: 1 | H8: 1 | I8: 1 | J8: 1 | K8: 1 | L8: 1 | M8: 1 | N8: 1 | O8: 1 | P8: 1 | Q8: 1 | R8: 1 | S8: 1 | T8: 1 | U8: 1 | V8: 1 | W8: 1 | X8: 1 | Y8: 1 | Z8: 1 | AA8: 1 | AB8: 1 | AC8: 1 | AD8: 1 | AE8: 1 | AF8: 1 | AG8: 1 | AH8: 1 | AI8: 1 | AJ8: 1 | AK8: 1 | AL8: 1 | AM8: 1 | AN8: 1 | AO8: 1 | AP8: 1 | AQ8: 1 | AR8: 1 | AS8: 1 | AT8: 1 | AU8: 1 | AV8: 1 | AW8: 1 | AX8: 1 | AY8: 1 | AZ8: 1 | BA8: 1 | BB8: 1 | BC8: 1 | BD8: 1 | BE8: 1 | BF8: 1 | BG8: 1 | BH8: 1 | BI8: 1 | BJ8: 1 | BK8: 1 | BL8: 1 | BM8: 1 | BN8: 1 | BO8: 1 | BP8: 1 | BQ8: 1 | BR8: 1 | BS8: 1 | BT8: 1 | BU8: 1 | BV8: 1 | BW8: 1 | BX8: 1 | BY8: 1 | BZ8: 1 | CA8: 1 | CB8: 1 | CC8: 1
A9: BUSSELTON | B9: 1 | C9: 1 | D9: 1 | E9: 1 | F9: 1 | G9: 1 | H9: 1 | I9: 1 | J9: 1 | K9: 1 | L9: 1 | M9: 1 | N9: 1 | O9: 1 | P9: 1 | Q9: 1 | R9: 1 | S9: 1 | T9: 1 | U9: 1 | V9: 1 | W9: 1 | X9: 1 | Y9: 1 | Z9: 1 | AA9: 1 | AB9: 1 | AC9: 1 | AD9: 1 | AE9: 1 | AF9: 1 | AG9: 1 | AH9: 1 | AI9: 1 | AJ9: 1 | AK9: 1 | AL9: 1 | AM9: 1 | AN9: 1 | AO9: 1 | AP9: 1 | AQ9: 1 | AR9: 1 | AS9: 1 | AT9: 1 | AU9: 1 | AV9: 1 | AW9: 1 | AX9: 1 | AY9: 1 | AZ9: 1 | BA9: 1 | BB9: 1 | BC9: 1 | BD9: 1 | BE9: 1 | BF9: 1 | BG9: 1 | BH9: 1 | BI9: 1 | BJ9: 1 | BK9: 1 | BL9: 1 | BM9: 1 | BN9: 1 | BO9: 1 | BP9: 1 | BQ9: 1 | BR9: 1 | BS9: 1 | BT9: 1 | BU9: 1 | BV9: 1 | BW9: 1 | BX9: 1 | BY9: 1 | BZ9: 1 | CA9: 1 | CB9: 1 | CC9: 1
A10: CAMBRIDGE | B10: 1 | C10: 1 | D10: 1 | E10: 1 | F10: 1 | G10: 1 | H10: 1 | I10: 1 | J10: 1 | K10: 1 | L10: 1 | M10: 1 | N10: 1 | O10: 1 | P10: 1 | Q10: 1 | R10: 1 | S10: 1 | T10: 1 | U10: 1 | V10: 1 | W10: 1 | X10: 1 | Y10: 1 | Z10: 1 | AA10: 1 | AB10: 1 | AC10: 1 | AD10: 1 | AE10: 1 | AF10: 1 | AG10: 1 | AH10: 1 | AI10: 1 | AJ10: 1 | AK10: 1 | AL10: 1 | AM10: 1 | AN10: 1 | AO10: 1 | AP10: 1 | AQ10: 1 | AR10: 1 | AS10: 1 | AT10: 1 | AU10: 1 | AV10: 1 | AW10: 1 | AX10: 1 | AY10: 1 | AZ10: 1 | BA10: 1 | BB10: 1 | BC10: 1 | BD10: 1 | BE10: 1 | BF10: 1 | BG10: 1 | BH10: 1 | BI10: 1 | BJ10: 1 | BK10: 1 | BL10: 1 | BM10: 1 | BN10: 1 | BO10: 1 | BP10: 1 | BQ10: 1 | BR10: 1 | BS10: 1 | BT10: 1 | BU10: 1 | BV10: 1 | BW10: 1 | BX10: 1 | BY10: 1 | BZ10: 1 | CA10: 1 | CB10: 1 | CC10: 1
A11: CANNING | B11: 1 | C11: 1 | D11: 1 | E11: 1 | F11: 1 | G11: 1 | H11: 1 | I11: 1 | J11: 1 | K11: 1 | L11: 1 | M11: 1 | N11: 1 | O11: 1 | P11: 1 | Q11: 1 | R11: 1 | S11: 1 | T11: 1 | U11: 1 | V11: 1 | W11: 1 | X11: 1 | Y11: 1 | Z11: 1 | AA11: 1 | AB11: 1 | AC11: 1 | AD11: 1 | AE11: 1 | AF11: 1 | AG11: 1 | AH11: 1 | AI11: 1 | AJ11: 1 | AK11: 1 | AL11: 1 | AM11: 1 | AN11: 1 | AO11: 1 | AP11: 1 | AQ11: 1 | AR11: 1 | AS11: 1 | AT11: 1 | AU11: 1 | AV11: 1 | AW11: 1 | AX11: 1 | AY11: 1 | AZ11: 1 | BA11: 1 | BB11: 1 | BC11: 1 | BD11: 1 | BE11: 1 | BF11: 1 | BG11: 1 | BH11: 1 | BI11: 1 | BJ11: 1 | BK11: 1 | BL11: 1 | BM11: 1 | BN11: 1 | BO11: 1 | BP11: 1 | BQ11: 1 | BR11: 1 | BS11: 1 | BT11: 1 | BU11: 1 | BV11: 1 | BW11: 1 | BX11: 1 | BY11: 1 | BZ11: 1 | CA11: 1 | CB11: 1 | CC11: 1
A12: CAPEL | B12: 1 | C12: 1 | D12: 1 | E12: 1 | F12: 1 | G12: 1 | H12: 1 | I12: 1 | J12: 1 | K12: 1 | L12: 1 | M12: 1 | N12: 1 | O12: 1 | P12: 1 | Q12: 1 | R12: 1 | S12: 1 | T12: 1 | U12: 1 | V12: 1 | W12: 1 | X12: 1 | Y12: 1 | Z12: 1 | AA12: 1 | AB12: 1 | AC12: 1 | AD12: 1 | AE12: 1 | AF12: 1 | AG12: 1 | AH12: 1 | AI12: 1 | AJ12: 1 | AK12: 1 | AL12: 1 | AM12: 1 | AN12: 1 | AO12: 1 | AP12: 1 | AQ12: 1 | AR12: 1 | AS12: 1 | AT12: 1 | AU12: 1 | AV12: 1 | AW12: 1 | AX12: 1 | AY12: 1 | AZ12: 1 | BA12: 1 | BB12: 1 | BC12: 1 | BD12: 1 | BE12: 1 | BF12: 1 | BG12: 1 | BH12: 1 | BI12: 1 | BJ12: 1 | BK12: 1 | BL12: 1 | BM12: 1 | BN12: 1 | BO12: 1 | BP12: 1 | BQ12: 1 | BR12: 1 | BS12: 1 | BT12: 1 | BU12: 1 | BV12: 1 | BW12: 1 | BX12: 1 | BY12: 1 | BZ12: 1 | CA12: 1 | CB12: 1 | CC12: 1
A13: CHITTERING | B13: 1 | C13: 1 | D13: 1 | E13: 1 | F13: 1 | G13: 1 | H13: 1 | I13: 1 | J13: 1 | K13: 1 | L13: 1 | M13: 1 | N13: 1 | O13: 1 | P13: 1 | Q13: 1 | R13: 1 | S13: 1 | T13: 1 | U13: 1 | V13: 1 | W13: 1 | X13: 1 | Y13: 1 | Z13: 1 | AA13: 1 | AB13: 1 | AC13: 1 | AD13: 1 | AE13: 1 | AF13: 1 | AG13: 1 | AH13: 1 | AI13: 1 | AJ13: 1 | AK13: 1 | AL13: 1 | AM13: 1 | AN13: 1 | AO13: 1 | AP13: 1 | AQ13: 1 | AR13: 1 | AS13: 1 | AT13: 1 | AU13: 1 | AV13: 1 | AW13: 1 | AX13: 1 | AY13: 1 | AZ13: 1 | BA13: 1 | BB13: 1 | BC13: 1 | BD13: 1 | BE13: 1 | BF13: 1 | BG13: 1 | BH13: 1 | BI13: 1 | BJ13: 1 | BK13: 1 | BL13: 1 | BM13: 1 | BN13: 1 | BO13: 1 | BP13: 1 | BQ13: 1 | BR13: 1 | BS13: 1 | BT13: 1 | BU13: 1 | BV13: 1 | BW13: 1 | BX13: 1 | BY13: 1 | BZ13: 1 | CA13: 1 | CB13: 1 | CC13: 1
A14: COCKBURN | B14: 1 | C14: 1 | D14: 1 | E14: 1 | F14: 1 | G14: 1 | H14: 1 | I14: 1 | J14: 1 | K14: 1 | L14: 1 | M14: 1 | N14: 1 | O14: 1 | P14: 1 | Q14: 1 | R14: 1 | S14: 1 | T14: 1 | U14: 1 | V14: 1 | W14: 1 | X14: 1 | Y14: 1 | Z14: 1 | AA14: 1 | AB14: 1 | AC14: 1 | AD14: 1 | AE14: 1 | AF14: 1 | AG14: 1 | AH14: 1 | AI14: 1 | AJ14: 1 | AK14: 1 | AL14: 1 | AM14: 1 | AN14: 1 | AO14: 1 | AP14: 1 | AQ14: 1 | AR14: 1 | AS14: 1 | AT14: 1 | AU14: 1 | AV14: 1 | AW14: 1 | AX14: 1 | AY14: 1 | AZ14: 1 | BA14: 1 | BB14: 1 | BC14: 1 | BD14: 1 | BE14: 1 | BF14: 1 | BG14: 1 | BH14: 1 | BI14: 1 | BJ14: 1 | BK14: 1 | BL14: 1 | BM14: 1 | BN14: 1 | BO14: 1 | BP14: 1 | BQ14: 1 | BR14: 1 | BS14: 1 | BT14: 1 | BU14: 1 | BV14: 1 | BW14: 1 | BX14: 1 | BY14: 1 | BZ14: 1 | CA14: 1 | CB14: 1 | CC14: 1
A15: COTTESLOE | B15: 1 | C15: 1 | D15: 1 | E15: 1 | F15: 1 | G15: 1 | H15: 1 | I15: 1 | J15: 1 | K15: 1 | L15: 1 | M15: 1 | N15: 1 | O15: 1 | P15: 1 | Q15: 1 | R15: 1 | S15: 1 | T15: 1 | U15: 1 | V15: 1 | W15: 1 | X15: 1 | Y15: 1 | Z15: 1 | AA15: 1 | AB15: 1 | AC15: 1 | AD15: 1 | AE15: 1 | AF15: 1 | AG15: 1 | AH15: 1 | AI15: 1 | AJ15: 1 | AK15: 1 | AL15: 1 | AM15: 1 | AN15: 1 | AO15: 1 | AP15: 1 | AQ15: 1 | AR15: 1 | AS15: 1 | AT15: 1 | AU15: 1 | AV15: 1 | AW15: 1 | AX15: 1 | AY15: 1 | AZ15: 1 | BA15: 1 | BB15: 1 | BC15: 1 | BD15: 1 | BE15: 1 | BF15: 1 | BG15: 1 | BH15: 1 | BI15: 1 | BJ15: 1 | BK15: 1 | BL15: 1 | BM15: 1 | BN15: 1 | BO15: 1 | BP15: 1 | BQ15: 1 | BR15: 1 | BS15: 1 | BT15: 1 | BU15: 1 | BV15: 1 | BW15: 1 | BX15: 1 | BY15: 1 | BZ15: 1 | CA15: 1 | CB15: 1 | CC15: 1
A16: DARDANUP | B16: 1 | C16: 1 | D16: 1 | E16: 1 | F16: 1 | G16: 1 | H16: 1 | I16: 1 | J16: 1 | K16: 1 | L16: 1 | M16: 1 | N16: 1 | O16: 1 | P16: 1 | Q16: 1 | R16: 1 | S16: 1 | T16: 1 | U16: 1 | V16: 1 | W16: 1 | X16: 1 | Y16: 1 | Z16: 1 | AA16: 1 | AB16: 1 | AC16: 1 | AD16: 1 | AE16: 1 | AF16: 1 | AG16: 1 | AH16: 1 | AI16: 1 | AJ16: 1 | AK16: 1 | AL16: 1 | AM16: 1 | AN16: 1 | AO16: 1 | AP16: 1 | AQ16: 1 | AR16: 1 | AS16: 1 | AT16: 1 | AU16: 1 | AV16: 1 | AW16: 1 | AX16: 1 | AY16: 1 | AZ16: 1 | BA16: 1 | BB16: 1 | BC16: 1 | BD16: 1 | BE16: 1 | BF16: 1 | BG16: 1 | BH16: 1 | BI16: 1 | BJ16: 1 | BK16: 1 | BL16: 1 | BM16: 1 | BN16: 1 | BO16: 1 | BP16: 1 | BQ16: 1 | BR16: 1 | BS16: 1 | BT16: 1 | BU16: 1 | BV16: 1 | BW16: 1 | BX16: 1 | BY16: 1 | BZ16: 1 | CA16: 1 | CB16: 1 | CC16: 1
A17: EAST FREMANTLE | B17: 1 | C17: 1 | D17: 1 | E17: 1 | F17: 1 | G17: 1 | H17: 1 | I17: 1 | J17: 1 | K17: 1 | L17: 1 | M17: 1 | N17: 1 | O17: 1 | P17: 1 | Q17: 1 | R17: 1 | S17: 1 | T17: 1 | U17: 1 | V17: 1 | W17: 1 | X17: 1 | Y17: 1 | Z17: 1 | AA17: 1 | AB17: 1 | AC17: 1 | AD17: 1 | AE17: 1 | AF17: 1 | AG17: 1 | AH17: 1 | AI17: 1 | AJ17: 1 | AK17: 1 | AL17: 1 | AM17: 1 | AN17: 1 | AO17: 1 | AP17: 1 | AQ17: 1 | AR17: 1 | AS17: 1 | AT17: 1 | AU17: 1 | AV17: 1 | AW17: 1 | AX17: 1 | AY17: 1 | AZ17: 1 | BA17: 1 | BB17: 1 | BC17: 1 | BD17: 1 | BE17: 1 | BF17: 1 | BG17: 1 | BH17: 1 | BI17: 1 | BJ17: 1 | BK17: 1 | BL17: 1 | BM17: 1 | BN17: 1 | BO17: 1 | BP17: 1 | BQ17: 1 | BR17: 1 | BS17: 1 | BT17: 1 | BU17: 1 | BV17: 1 | BW17: 1 | BX17: 1 | BY17: 1 | BZ17: 1 | CA17: 1 | CB17: 1 | CC17: 1
A18: FREMANTLE | B18: 1 | C18: 1 | D18: 1 | E18: 1 | F18: 1 | G18: 1 | H18: 1 | I18: 1 | J18: 1 | K18: 1 | L18: 1 | M18: 1 | N18: 1 | O18: 1 | P18: 1 | Q18: 1 | R18: 1 | S18: 1 | T18: 1 | U18: 1 | V18: 1 | W18: 1 | X18: 1 | Y18: 1 | Z18: 1 | AA18: 1 | AB18: 1 | AC18: 1 | AD18: 1 | AE18: 1 | AF18: 1 | AG18: 1 | AH18: 1 | AI18: 1 | AJ18: 1 | AK18: 1 | AL18: 1 | AM18: 1 | AN18: 1 | AO18: 1 | AP18: 1 | AQ18: 1 | AR18: 1 | AS18: 1 | AT18: 1 | AU18: 1 | AV18: 1 | AW18: 1 | AX18: 1 | AY18: 1 | AZ18: 1 | BA18: 1 | BB18: 1 | BC18: 1 | BD18: 1 | BE18: 1 | BF18: 1 | BG18: 1 | BH18: 1 | BI18: 1 | BJ18: 1 | BK18: 1 | BL18: 1 | BM18: 1 | BN18: 1 | BO18: 1 | BP18: 1 | BQ18: 1 | BR18: 1 | BS18: 1 | BT18: 1 | BU18: 1 | BV18: 1 | BW18: 1 | BX18: 1 | BY18: 1 | BZ18: 1 | CA18: 1 | CB18: 1 | CC18: 1
A19: GOSNELLS | B19: 1 | C19: 1 | D19: 1 | E19: 1 | F19: 1 | G19: 1 | H19: 1 | I19: 1 | J19: 1 | K19: 1 | L19: 1 | M19: 1 | N19: 1 | O19: 1 | P19: 1 | Q19: 1 | R19: 1 | S19: 1 | T19: 1 | U19: 1 | V19: 1 | W19: 1 | X19: 1 | Y19: 1 | Z19: 1 | AA19: 1 | AB19: 1 | AC19: 1 | AD19: 1 | AE19: 1 | AF19: 1 | AG19: 1 | AH19: 1 | AI19: 1 | AJ19: 1 | AK19: 1 | AL19: 1 | AM19: 1 | AN19: 1 | AO19: 1 | AP19: 1 | AQ19: 1 | AR19: 1 | AS19: 1 | AT19: 1 | AU19: 1 | AV19: 1 | AW19: 1 | AX19: 1 | AY19: 1 | AZ19: 1 | BA19: 1 | BB19: 1 | BC19: 1 | BD19: 1 | BE19: 1 | BF19: 1 | BG19: 1 | BH19: 1 | BI19: 1 | BJ19: 1 | BK19: 1 | BL19: 1 | BM19: 1 | BN19: 1 | BO19: 1 | BP19: 1 | BQ19: 1 | BR19: 1 | BS19: 1 | BT19: 1 | BU19: 1 | BV19: 1 | BW19: 1 | BX19: 1 | BY19: 1 | BZ19: 1 | CA19: 1 | CB19: 1 | CC19: 1
A20: GREATER GERALDTON | B20: 1 | C20: 1 | D20: 1 | E20: 1 | F20: 1 | G20: 1 | H20: 1 | I20: 1 | J20: 1 | K20: 1 | L20: 1 | M20: 1 | N20: 1 | O20: 1 | P20: 1 | Q20: 1 | R20: 1 | S20: 1 | T20: 1 | U20: 1 | V20: 1 | W20: 1 | X20: 1 | Y20: 1 | Z20: 1 | AA20: 1 | AB20: 1 | AC20: 1 | AD20: 1 | AE20: 1 | AF20: 1 | AG20: 1 | AH20: 1 | AI20: 1 | AJ20: 1 | AK20: 1 | AL20: 1 | AM20: 1 | AN20: 1 | AO20: 1 | AP20: 1 | AQ20: 1 | AR20: 1 | AS20: 1 | AT20: 1 | AU20: 1 | AV20: 1 | AW20: 1 | AX20: 1 | AY20: 1 | AZ20: 1 | BA20: 1 | BB20: 1 | BC20: 1 | BD20: 1 | BE20: 1 | BF20: 1 | BG20: 1 | BH20: 1 | BI20: 1 | BJ20: 1 | BK20: 1 | BL20: 1 | BM20: 1 | BN20: 1 | BO20: 1 | BP20: 1 | BQ20: 1 | BR20: 1 | BS20: 1 | BT20: 1 | BU20: 1 | BV20: 1 | BW20: 1 | BX20: 1 | BY20: 1 | BZ20: 1 | CA20: 1 | CB20: 1 | CC20: 1
A21: HARVEY | B21: 1 | C21: 1 | D21: 1 | E21: 1 | F21: 1 | G21: 1 | H21: 1 | I21: 1 | J21: 1 | K21: 1 | L21: 1 | M21: 1 | N21: 1 | O21: 1 | P21: 1 | Q21: 1 | R21: 1 | S21: 1 | T21: 1 | U21: 1 | V21: 1 | W21: 1 | X21: 1 | Y21: 1 | Z21: 1 | AA21: 1 | AB21: 1 | AC21: 1 | AD21: 1 | AE21: 1 | AF21: 1 | AG21: 1 | AH21: 1 | AI21: 1 | AJ21: 1 | AK21: 1 | AL21: 1 | AM21: 1 | AN21: 1 | AO21: 1 | AP21: 1 | AQ21: 1 | AR21: 1 | AS21: 1 | AT21: 1 | AU21: 1 | AV21: 1 | AW21: 1 | AX21: 1 | AY21: 1 | AZ21: 1 | BA21: 1 | BB21: 1 | BC21: 1 | BD21: 1 | BE21: 1 | BF21: 1 | BG21: 1 | BH21: 1 | BI21: 1 | BJ21: 1 | BK21: 1 | BL21: 1 | BM21: 1 | BN21: 1 | BO21: 1 | BP21: 1 | BQ21: 1 | BR21: 1 | BS21: 1 | BT21: 1 | BU21: 1 | BV21: 1 | BW21: 1 | BX21: 1 | BY21: 1 | BZ21: 1 | CA21: 1 | CB21: 1 | CC21: 1
A22: JOONDALUP | B22: 1 | C22: 1 | D22: 1 | E22: 1 | F22: 1 | G22: 1 | H22: 1 | I22: 1 | J22: 1 | K22: 1 | L22: 1 | M22: 1 | N22: 1 | O22: 1 | P22: 1 | Q22: 1 | R22: 1 | S22: 1 | T22: 1 | U22: 1 | V22: 1 | W22: 1 | X22: 1 | Y22: 1 | Z22: 1 | AA22: 1 | AB22: 1 | AC22: 1 | AD22: 1 | AE22: 1 | AF22: 1 | AG22: 1 | AH22: 1 | AI22: 1 | AJ22: 1 | AK22: 1 | AL22: 1 | AM22: 1 | AN22: 1 | AO22: 1 | AP22: 1 | AQ22: 1 | AR22: 1 | AS22: 1 | AT22: 1 | AU22: 1 | AV22: 1 | AW22: 1 | AX22: 1 | AY22: 1 | AZ22: 1 | BA22: 1 | BB22: 1 | BC22: 1 | BD22: 1 | BE22: 1 | BF22: 1 | BG22: 1 | BH22: 1 | BI22: 1 | BJ22: 1 | BK22: 1 | BL22: 1 | BM22: 1 | BN22: 1 | BO22: 1 | BP22: 1 | BQ22: 1 | BR22: 1 | BS22: 1 | BT22: 1 | BU22: 1 | BV22: 1 | BW22: 1 | BX22: 1 | BY22: 1 | BZ22: 1 | CA22: 1 | CB22: 1 | CC22: 1
A23: KALAMUNDA | B23: 1 | C23: 1 | D23: 1 | E23: 1 | F23: 1 | G23: 1 | H23: 1 | I23: 1 | J23: 1 | K23: 1 | L23: 1 | M23: 1 | N23: 1 | O23: 1 | P23: 1 | Q23: 1 | R23: 1 | S23: 1 | T23: 1 | U23: 1 | V23: 1 | W23: 1 | X23: 1 | Y23: 1 | Z23: 1 | AA23: 1 | AB23: 1 | AC23: 1 | AD23: 1 | AE23: 1 | AF23: 1 | AG23: 1 | AH23: 1 | AI23: 1 | AJ23: 1 | AK23: 1 | AL23: 1 | AM23: 1 | AN23: 1 | AO23: 1 | AP23: 1 | AQ23: 1 | AR23: 1 | AS23: 1 | AT23: 1 | AU23: 1 | AV23: 1 | AW23: 1 | AX23: 1 | AY23: 1 | AZ23: 1 | BA23: 1 | BB23: 1 | BC23: 1 | BD23: 1 | BE23: 1 | BF23: 1 | BG23: 1 | BH23: 1 | BI23: 1 | BJ23: 1 | BK23: 1 | BL23: 1 | BM23: 1 | BN23: 1 | BO23: 1 | BP23: 1 | BQ23: 1 | BR23: 1 | BS23: 1 | BT23: 1 | BU23: 1 | BV23: 1 | BW23: 1 | BX23: 1 | BY23: 1 | BZ23: 1 | CA23: 1 | CB23: 1 | CC23: 1
A24: KWINANA | B24: 1 | C24: 1 | D24: 1 | E24: 1 | F24: 1 | G24: 1 | H24: 1 | I24: 1 | J24: 1 | K24: 1 | L24: 1 | M24: 1 | N24: 1 | O24: 1 | P24: 1 | Q24: 1 | R24: 1 | S24: 1 | T24: 1 | U24: 1 | V24: 1 | W24: 1 | X24: 1 | Y24: 1 | Z24: 1 | AA24: 1 | AB24: 1 | AC24: 1 | AD24: 1 | AE24: 1 | AF24: 1 | AG24: 1 | AH24: 1 | AI24: 1 | AJ24: 1 | AK24: 1 | AL24: 1 | AM24: 1 | AN24: 1 | AO24: 1 | AP24: 1 | AQ24: 1 | AR24: 1 | AS24: 1 | AT24: 1 | AU24: 1 | AV24: 1 | AW24: 1 | AX24: 1 | AY24: 1 | AZ24: 1 | BA24: 1 | BB24: 1 | BC24: 1 | BD24: 1 | BE24: 1 | BF24: 1 | BG24: 1 | BH24: 1 | BI24: 1 | BJ24: 1 | BK24: 1 | BL24: 1 | BM24: 1 | BN24: 1 | BO24: 1 | BP24: 1 | BQ24: 1 | BR24: 1 | BS24: 1 | BT24: 1 | BU24: 1 | BV24: 1 | BW24: 1 | BX24: 1 | BY24: 1 | BZ24: 1 | CA24: 1 | CB24: 1 | CC24: 1
A25: MANDURAH | B25: 1 | C25: 1 | D25: 1 | E25: 1 | F25: 1 | G25: 1 | H25: 1 | I25: 1 | J25: 1 | K25: 1 | L25: 1 | M25: 1 | N25: 1 | O25: 1 | P25: 1 | Q25: 1 | R25: 1 | S25: 1 | T25: 1 | U25: 1 | V25: 1 | W25: 1 | X25: 1 | Y25: 1 | Z25: 1 | AA25: 1 | AB25: 1 | AC25: 1 | AD25: 1 | AE25: 1 | AF25: 1 | AG25: 1 | AH25: 1 | AI25: 1 | AJ25: 1 | AK25: 1 | AL25: 1 | AM25: 1 | AN25: 1 | AO25: 1 | AP25: 1 | AQ25: 1 | AR25: 1 | AS25: 1 | AT25: 1 | AU25: 1 | AV25: 1 | AW25: 1 | AX25: 1 | AY25: 1 | AZ25: 1 | BA25: 1 | BB25: 1 | BC25: 1 | BD25: 1 | BE25: 1 | BF25: 1 | BG25: 1 | BH25: 1 | BI25: 1 | BJ25: 1 | BK25: 1 | BL25: 1 | BM25: 1 | BN25: 1 | BO25: 1 | BP25: 1 | BQ25: 1 | BR25: 1 | BS25: 1 | BT25: 1 | BU25: 1 | BV25: 1 | BW25: 1 | BX25: 1 | BY25: 1 | BZ25: 1 | CA25: 1 | CB25: 1 | CC25: 1
A26: MELVILLE | B26: 1 | C26: 1 | D26: 1 | E26: 1 | F26: 1 | G26: 1 | H26: 1 | I26: 1 | J26: 1 | K26: 1 | L26: 1 | M26: 1 | N26: 1 | O26: 1 | P26: 1 | Q26: 1 | R26: 1 | S26: 1 | T26: 1 | U26: 1 | V26: 1 | W26: 1 | X26: 1 | Y26: 1 | Z26: 1 | AA26: 1 | AB26: 1 | AC26: 1 | AD26: 1 | AE26: 1 | AF26: 1 | AG26: 1 | AH26: 1 | AI26: 1 | AJ26: 1 | AK26: 1 | AL26: 1 | AM26: 1 | AN26: 1 | AO26: 1 | AP26: 1 | AQ26: 1 | AR26: 1 | AS26: 1 | AT26: 1 | AU26: 1 | AV26: 1 | AW26: 1 | AX26: 1 | AY26: 1 | AZ26: 1 | BA26: 1 | BB26: 1 | BC26: 1 | BD26: 1 | BE26: 1 | BF26: 1 | BG26: 1 | BH26: 1 | BI26: 1 | BJ26: 1 | BK26: 1 | BL26: 1 | BM26: 1 | BN26: 1 | BO26: 1 | BP26: 1 | BQ26: 1 | BR26: 1 | BS26: 1 | BT26: 1 | BU26: 1 | BV26: 1 | BW26: 1 | BX26: 1 | BY26: 1 | BZ26: 1 | CA26: 1 | CB26: 1 | CC26: 1
A27: MOSMAN PARK | B27: 1 | C27: 1 | D27: 1 | E27: 1 | F27: 1 | G27: 1 | H27: 1 | I27: 1 | J27: 1 | K27: 1 | L27: 1 | M27: 1 | N27: 1 | O27: 1 | P27: 1 | Q27: 1 | R27: 1 | S27: 1 | T27: 1 | U27: 1 | V27: 1 | W27: 1 | X27: 1 | Y27: 1 | Z27: 1 | AA27: 1 | AB27: 1 | AC27: 1 | AD27: 1 | AE27: 1 | AF27: 1 | AG27: 1 | AH27: 1 | AI27: 1 | AJ27: 1 | AK27: 1 | AL27: 1 | AM27: 1 | AN27: 1 | AO27: 1 | AP27: 1 | AQ27: 1 | AR27: 1 | AS27: 1 | AT27: 1 | AU27: 1 | AV27: 1 | AW27: 1 | AX27: 1 | AY27: 1 | AZ27: 1 | BA27: 1 | BB27: 1 | BC27: 1 | BD27: 1 | BE27: 1 | BF27: 1 | BG27: 1 | BH27: 1 | BI27: 1 | BJ27: 1 | BK27: 1 | BL27: 1 | BM27: 1 | BN27: 1 | BO27: 1 | BP27: 1 | BQ27: 1 | BR27: 1 | BS27: 1 | BT27: 1 | BU27: 1 | BV27: 1 | BW27: 1 | BX27: 1 | BY27: 1 | BZ27: 1 | CA27: 1 | CB27: 1 | CC27: 1
A28: MUNDARING | B28: 1 | C28: 1 | D28: 1 | E28: 1 | F28: 1 | G28: 1 | H28: 1 | I28: 1 | J28: 1 | K28: 1 | L28: 1 | M28: 1 | N28: 1 | O28: 1 | P28: 1 | Q28: 1 | R28: 1 | S28: 1 | T28: 1 | U28: 1 | V28: 1 | W28: 1 | X28: 1 | Y28: 1 | Z28: 1 | AA28: 1 | AB28: 1 | AC28: 1 | AD28: 1 | AE28: 1 | AF28: 1 | AG28: 1 | AH28: 1 | AI28: 1 | AJ28: 1 | AK28: 1 | AL28: 1 | AM28: 1 | AN28: 1 | AO28: 1 | AP28: 1 | AQ28: 1 | AR28: 1 | AS28: 1 | AT28: 1 | AU28: 1 | AV28: 1 | AW28: 1 | AX28: 1 | AY28: 1 | AZ28: 1 | BA28: 1 | BB28: 1 | BC28: 1 | BD28: 1 | BE28: 1 | BF28: 1 | BG28: 1 | BH28: 1 | BI28: 1 | BJ28: 1 | BK28: 1 | BL28: 1 | BM28: 1 | BN28: 1 | BO28: 1 | BP28: 1 | BQ28: 1 | BR28: 1 | BS28: 1 | BT28: 1 | BU28: 1 | BV28: 1 | BW28: 1 | BX28: 1 | BY28: 1 | BZ28: 1 | CA28: 1 | CB28: 1 | CC28: 1
A29: MURRAY | B29: 1 | C29: 1 | D29: 1 | E29: 1 | F29: 1 | G29: 1 | H29: 1 | I29: 1 | J29: 1 | K29: 1 | L29: 1 | M29: 1 | N29: 1 | O29: 1 | P29: 1 | Q29: 1 | R29: 1 | S29: 1 | T29: 1 | U29: 1 | V29: 1 | W29: 1 | X29: 1 | Y29: 1 | Z29: 1 | AA29: 1 | AB29: 1 | AC29: 1 | AD29: 1 | AE29: 1 | AF29: 1 | AG29: 1 | AH29: 1 | AI29: 1 | AJ29: 1 | AK29: 1 | AL29: 1 | AM29: 1 | AN29: 1 | AO29: 1 | AP29: 1 | AQ29: 1 | AR29: 1 | AS29: 1 | AT29: 1 | AU29: 1 | AV29: 1 | AW29: 1 | AX29: 1 | AY29: 1 | AZ29: 1 | BA29: 1 | BB29: 1 | BC29: 1 | BD29: 1 | BE29: 1 | BF29: 1 | BG29: 1 | BH29: 1 | BI29: 1 | BJ29: 1 | BK29: 1 | BL29: 1 | BM29: 1 | BN29: 1 | BO29: 1 | BP29: 1 | BQ29: 1 | BR29: 1 | BS29: 1 | BT29: 1 | BU29: 1 | BV29: 1 | BW29: 1 | BX29: 1 | BY29: 1 | BZ29: 1 | CA29: 1 | CB29: 1 | CC29: 1
A30: NEDLANDS | B30: 1 | C30: 1 | D30: 1 | E30: 1 | F30: 1 | G30: 1 | H30: 1 | I30: 1 | J30: 1 | K30: 1 | L30: 1 | M30: 1 | N30: 1 | O30: 1 | P30: 1 | Q30: 1 | R30: 1 | S30: 1 | T30: 1 | U30: 1 | V30: 1 | W30: 1 | X30: 1 | Y30: 1 | Z30: 1 | AA30: 1 | AB30: 1 | AC30: 1 | AD30: 1 | AE30: 1 | AF30: 1 | AG30: 1 | AH30: 1 | AI30: 1 | AJ30: 1 | AK30: 1 | AL30: 1 | AM30: 1 | AN30: 1 | AO30: 1 | AP30: 1 | AQ30: 1 | AR30: 1 | AS30: 1 | AT30: 1 | AU30: 1 | AV30: 1 | AW30: 1 | AX30: 1 | AY30: 1 | AZ30: 1 | BA30: 1 | BB30: 1 | BC30: 1 | BD30: 1 | BE30: 1 | BF30: 1 | BG30: 1 | BH30: 1 | BI30: 1 | BJ30: 1 | BK30: 1 | BL30: 1 | BM30: 1 | BN30: 1 | BO30: 1 | BP30: 1 | BQ30: 1 | BR30: 1 | BS30: 1 | BT30: 1 | BU30: 1 | BV30: 1 | BW30: 1 | BX30: 1 | BY30: 1 | BZ30: 1 | CA30: 1 | CB30: 1 | CC30: 1
A31: PEPPERMINT GROVE | B31: 1 | C31: 1 | D31: 1 | E31: 1 | F31: 1 | G31: 1 | H31: 1 | I31: 1 | J31: 1 | K31: 1 | L31: 1 | M31: 1 | N31: 1 | O31: 1 | P31: 1 | Q31: 1 | R31: 1 | S31: 1 | T31: 1 | U31: 1 | V31: 1 | W31: 1 | X31: 1 | Y31: 1 | Z31: 1 | AA31: 1 | AB31: 1 | AC31: 1 | AD31: 1 | AE31: 1 | AF31: 1 | AG31: 1 | AH31: 1 | AI31: 1 | AJ31: 1 | AK31: 1 | AL31: 1 | AM31: 1 | AN31: 1 | AO31: 1 | AP31: 1 | AQ31: 1 | AR31: 1 | AS31: 1 | AT31: 1 | AU31: 1 | AV31: 1 | AW31: 1 | AX31: 1 | AY31: 1 | AZ31: 1 | BA31: 1 | BB31: 1 | BC31: 1 | BD31: 1 | BE31: 1 | BF31: 1 | BG31: 1 | BH31: 1 | BI31: 1 | BJ31: 1 | BK31: 1 | BL31: 1 | BM31: 1 | BN31: 1 | BO31: 1 | BP31: 1 | BQ31: 1 | BR31: 1 | BS31: 1 | BT31: 1 | BU31: 1 | BV31: 1 | BW31: 1 | BX31: 1 | BY31: 1 | BZ31: 1 | CA31: 1 | CB31: 1 | CC31: 1
A32: PERTH | B32: 1 | C32: 1 | D32: 1 | E32: 1 | F32: 1 | G32: 1 | H32: 1 | I32: 1 | J32: 1 | K32: 1 | L32: 1 | M32: 1 | N32: 1 | O32: 1 | P32: 1 | Q32: 1 | R32: 1 | S32: 1 | T32: 1 | U32: 1 | V32: 1 | W32: 1 | X32: 1 | Y32: 1 | Z32: 1 | AA32: 1 | AB32: 1 | AC32: 1 | AD32: 1 | AE32: 1 | AF32: 1 | AG32: 1 | AH32: 1 | AI32: 1 | AJ32: 1 | AK32: 1 | AL32: 1 | AM32: 1 | AN32: 1 | AO32: 1 | AP32: 1 | AQ32: 1 | AR32: 1 | AS32: 1 | AT32: 1 | AU32: 1 | AV32: 1 | AW32: 1 | AX32: 1 | AY32: 1 | AZ32: 1 | BA32: 1 | BB32: 1 | BC32: 1 | BD32: 1 | BE32: 1 | BF32: 1 | BG32: 1 | BH32: 1 | BI32: 1 | BJ32: 1 | BK32: 1 | BL32: 1 | BM32: 1 | BN32: 1 | BO32: 1 | BP32: 1 | BQ32: 1 | BR32: 1 | BS32: 1 | BT32: 1 | BU32: 1 | BV32: 1 | BW32: 1 | BX32: 1 | BY32: 1 | BZ32: 1 | CA32: 1 | CB32: 1 | CC32: 1
A33: ROCKINGHAM | B33: 1 | C33: 1 | D33: 1 | E33: 1 | F33: 1 | G33: 1 | H33: 1 | I33: 1 | J33: 1 | K33: 1 | L33: 1 | M33: 1 | N33: 1 | O33: 1 | P33: 1 | Q33: 1 | R33: 1 | S33: 1 | T33: 1 | U33: 1 | V33: 1 | W33: 1 | X33: 1 | Y33: 1 | Z33: 1 | AA33: 1 | AB33: 1 | AC33: 1 | AD33: 1 | AE33: 1 | AF33: 1 | AG33: 1 | AH33: 1 | AI33: 1 | AJ33: 1 | AK33: 1 | AL33: 1 | AM33: 1 | AN33: 1 | AO33: 1 | AP33: 1 | AQ33: 1 | AR33: 1 | AS33: 1 | AT33: 1 | AU33: 1 | AV33: 1 | AW33: 1 | AX33: 1 | AY33: 1 | AZ33: 1 | BA33: 1 | BB33: 1 | BC33: 1 | BD33: 1 | BE33: 1 | BF33: 1 | BG33: 1 | BH33: 1 | BI33: 1 | BJ33: 1 | BK33: 1 | BL33: 1 | BM33: 1 | BN33: 1 | BO33: 1 | BP33: 1 | BQ33: 1 | BR33: 1 | BS33: 1 | BT33: 1 | BU33: 1 | BV33: 1 | BW33: 1 | BX33: 1 | BY33: 1 | BZ33: 1 | CA33: 1 | CB33: 1 | CC33: 1
A34: SERPENTINE-JARRAHDALE | B34: 1 | C34: 1 | D34: 1 | E34: 1 | F34: 1 | G34: 1 | H34: 1 | I34: 1 | J34: 1 | K34: 1 | L34: 1 | M34: 1 | N34: 1 | O34: 1 | P34: 1 | Q34: 1 | R34: 1 | S34: 1 | T34: 1 | U34: 1 | V34: 1 | W34: 1 | X34: 1 | Y34: 1 | Z34: 1 | AA34: 1 | AB34: 1 | AC34: 1 | AD34: 1 | AE34: 1 | AF34: 1 | AG34: 1 | AH34: 1 | AI34: 1 | AJ34: 1 | AK34: 1 | AL34: 1 | AM34: 1 | AN34: 1 | AO34: 1 | AP34: 1 | AQ34: 1 | AR34: 1 | AS34: 1 | AT34: 1 | AU34: 1 | AV34: 1 | AW34: 1 | AX34: 1 | AY34: 1 | AZ34: 1 | BA34: 1 | BB34: 1 | BC34: 1 | BD34: 1 | BE34: 1 | BF34: 1 | BG34: 1 | BH34: 1 | BI34: 1 | BJ34: 1 | BK34: 1 | BL34: 1 | BM34: 1 | BN34: 1 | BO34: 1 | BP34: 1 | BQ34: 1 | BR34: 1 | BS34: 1 | BT34: 1 | BU34: 1 | BV34: 1 | BW34: 1 | BX34: 1 | BY34: 1 | BZ34: 1 | CA34: 1 | CB34: 1 | CC34: 1
A35: SOUTH PERTH | B35: 1 | C35: 1 | D35: 1 | E35: 1 | F35: 1 | G35: 1 | H35: 1 | I35: 1 | J35: 1 | K35: 1 | L35: 1 | M35: 1 | N35: 1 | O35: 1 | P35: 1 | Q35: 1 | R35: 1 | S35: 1 | T35: 1 | U35: 1 | V35: 1 | W35: 1 | X35: 1 | Y35: 1 | Z35: 1 | AA35: 1 | AB35: 1 | AC35: 1 | AD35: 1 | AE35: 1 | AF35: 1 | AG35: 1 | AH35: 1 | AI35: 1 | AJ35: 1 | AK35: 1 | AL35: 1 | AM35: 1 | AN35: 1 | AO35: 1 | AP35: 1 | AQ35: 1 | AR35: 1 | AS35: 1 | AT35: 1 | AU35: 1 | AV35: 1 | AW35: 1 | AX35: 1 | AY35: 1 | AZ35: 1 | BA35: 1 | BB35: 1 | BC35: 1 | BD35: 1 | BE35: 1 | BF35: 1 | BG35: 1 | BH35: 1 | BI35: 1 | BJ35: 1 | BK35: 1 | BL35: 1 | BM35: 1 | BN35: 1 | BO35: 1 | BP35: 1 | BQ35: 1 | BR35: 1 | BS35: 1 | BT35: 1 | BU35: 1 | BV35: 1 | BW35: 1 | BX35: 1 | BY35: 1 | BZ35: 1 | CA35: 1 | CB35: 1 | CC35: 1
A36: STIRLING | B36: 1 | C36: 1 | D36: 1 | E36: 1 | F36: 1 | G36: 1 | H36: 1 | I36: 1 | J36: 1 | K36: 1 | L36: 1 | M36: 1 | N36: 1 | O36: 1 | P36: 1 | Q36: 1 | R36: 1 | S36: 1 | T36: 1 | U36: 1 | V36: 1 | W36: 1 | X36: 1 | Y36: 1 | Z36: 1 | AA36: 1 | AB36: 1 | AC36: 1 | AD36: 1 | AE36: 1 | AF36: 1 | AG36: 1 | AH36: 1 | AI36: 1 | AJ36: 1 | AK36: 1 | AL36: 1 | AM36: 1 | AN36: 1 | AO36: 1 | AP36: 1 | AQ36: 1 | AR36: 1 | AS36: 1 | AT36: 1 | AU36: 1 | AV36: 1 | AW36: 1 | AX36: 1 | AY36: 1 | AZ36: 1 | BA36: 1 | BB36: 1 | BC36: 1 | BD36: 1 | BE36: 1 | BF36: 1 | BG36: 1 | BH36: 1 | BI36: 1 | BJ36: 1 | BK36: 1 | BL36: 1 | BM36: 1 | BN36: 1 | BO36: 1 | BP36: 1 | BQ36: 1 | BR36: 1 | BS36: 1 | BT36: 1 | BU36: 1 | BV36: 1 | BW36: 1 | BX36: 1 | BY36: 1 | BZ36: 1 | CA36: 1 | CB36: 1 | CC36: 1
A37: SUBIACO | B37: 1 | C37: 1 | D37: 1 | E37: 1 | F37: 1 | G37: 1 | H37: 1 | I37: 1 | J37: 1 | K37: 1 | L37: 1 | M37: 1 | N37: 1 | O37: 1 | P37: 1 | Q37: 1 | R37: 1 | S37: 1 | T37: 1 | U37: 1 | V37: 1 | W37: 1 | X37: 1 | Y37: 1 | Z37: 1 | AA37: 1 | AB37: 1 | AC37: 1 | AD37: 1 | AE37: 1 | AF37: 1 | AG37: 1 | AH37: 1 | AI37: 1 | AJ37: 1 | AK37: 1 | AL37: 1 | AM37: 1 | AN37: 1 | AO37: 1 | AP37: 1 | AQ37: 1 | AR37: 1 | AS37: 1 | AT37: 1 | AU37: 1 | AV37: 1 | AW37: 1 | AX37: 1 | AY37: 1 | AZ37: 1 | BA37: 1 | BB37: 1 | BC37: 1 | BD37: 1 | BE37: 1 | BF37: 1 | BG37: 1 | BH37: 1 | BI37: 1 | BJ37: 1 | BK37: 1 | BL37: 1 | BM37: 1 | BN37: 1 | BO37: 1 | BP37: 1 | BQ37: 1 | BR37: 1 | BS37: 1 | BT37: 1 | BU37: 1 | BV37: 1 | BW37: 1 | BX37: 1 | BY37: 1 | BZ37: 1 | CA37: 1 | CB37: 1 | CC37: 1
A38: SWAN | B38: 1 | C38: 1 | D38: 1 | E38: 1 | F38: 1 | G38: 1 | H38: 1 | I38: 1 | J38: 1 | K38: 1 | L38: 1 | M38: 1 | N38: 1 | O38: 1 | P38: 1 | Q38: 1 | R38: 1 | S38: 1 | T38: 1 | U38: 1 | V38: 1 | W38: 1 | X38: 1 | Y38: 1 | Z38: 1 | AA38: 1 | AB38: 1 | AC38: 1 | AD38: 1 | AE38: 1 | AF38: 1 | AG38: 1 | AH38: 1 | AI38: 1 | AJ38: 1 | AK38: 1 | AL38: 1 | AM38: 1 | AN38: 1 | AO38: 1 | AP38: 1 | AQ38: 1 | AR38: 1 | AS38: 1 | AT38: 1 | AU38: 1 | AV38: 1 | AW38: 1 | AX38: 1 | AY38: 1 | AZ38: 1 | BA38: 1 | BB38: 1 | BC38: 1 | BD38: 1 | BE38: 1 | BF38: 1 | BG38: 1 | BH38: 1 | BI38: 1 | BJ38: 1 | BK38: 1 | BL38: 1 | BM38: 1 | BN38: 1 | BO38: 1 | BP38: 1 | BQ38: 1 | BR38: 1 | BS38: 1 | BT38: 1 | BU38: 1 | BV38: 1 | BW38: 1 | BX38: 1 | BY38: 1 | BZ38: 1 | CA38: 1 | CB38: 1 | CC38: 1
A39: VICTORIA PARK | B39: 1 | C39: 1 | D39: 1 | E39: 1 | F39: 1 | G39: 1 | H39: 1 | I39: 1 | J39: 1 | K39: 1 | L39: 1 | M39: 1 | N39: 1 | O39: 1 | P39: 1 | Q39: 1 | R39: 1 | S39: 1 | T39: 1 | U39: 1 | V39: 1 | W39: 1 | X39: 1 | Y39: 1 | Z39: 1 | AA39: 1 | AB39: 1 | AC39: 1 | AD39: 1 | AE39: 1 | AF39: 1 | AG39: 1 | AH39: 1 | AI39: 1 | AJ39: 1 | AK39: 1 | AL39: 1 | AM39: 1 | AN39: 1 | AO39: 1 | AP39: 1 | AQ39: 1 | AR39: 1 | AS39: 1 | AT39: 1 | AU39: 1 | AV39: 1 | AW39: 1 | AX39: 1 | AY39: 1 | AZ39: 1 | BA39: 1 | BB39: 1 | BC39: 1 | BD39: 1 | BE39: 1 | BF39: 1 | BG39: 1 | BH39: 1 | BI39: 1 | BJ39: 1 | BK39: 1 | BL39: 1 | BM39: 1 | BN39: 1 | BO39: 1 | BP39: 1 | BQ39: 1 | BR39: 1 | BS39: 1 | BT39: 1 | BU39: 1 | BV39: 1 | BW39: 1 | BX39: 1 | BY39: 1 | BZ39: 1 | CA39: 1 | CB39: 1 | CC39: 1
A40: VINCENT | B40: 1 | C40: 1 | D40: 1 | E40: 1 | F40: 1 | G40: 1 | H40: 1 | I40: 1 | J40: 1 | K40: 1 | L40: 1 | M40: 1 | N40: 1 | O40: 1 | P40: 1 | Q40: 1 | R40: 1 | S40: 1 | T40: 1 | U40: 1 | V40: 1 | W40: 1 | X40: 1 | Y40: 1 | Z40: 1 | AA40: 1 | AB40: 1 | AC40: 1 | AD40: 1 | AE40: 1 | AF40: 1 | AG40: 1 | AH40: 1 | AI40: 1 | AJ40: 1 | AK40: 1 | AL40: 1 | AM40: 1 | AN40: 1 | AO40: 1 | AP40: 1 | AQ40: 1 | AR40: 1 | AS40: 1 | AT40: 1 | AU40: 1 | AV40: 1 | AW40: 1 | AX40: 1 | AY40: 1 | AZ40: 1 | BA40: 1 | BB40: 1 | BC40: 1 | BD40: 1 | BE40: 1 | BF40: 1 | BG40: 1 | BH40: 1 | BI40: 1 | BJ40: 1 | BK40: 1 | BL40: 1 | BM40: 1 | BN40: 1 | BO40: 1 | BP40: 1 | BQ40: 1 | BR40: 1 | BS40: 1 | BT40: 1 | BU40: 1 | BV40: 1 | BW40: 1 | BX40: 1 | BY40: 1 | BZ40: 1 | CA40: 1 | CB40: 1 | CC40: 1
A41: WANNEROO | B41: 1 | C41: 1 | D41: 1 | E41: 1 | F41: 1 | G41: 1 | H41: 1 | I41: 1 | J41: 1 | K41: 1 | L41: 1 | M41: 1 | N41: 1 | O41: 1 | P41: 1 | Q41: 1 | R41: 1 | S41: 1 | T41: 1 | U41: 1 | V41: 1 | W41: 1 | X41: 1 | Y41: 1 | Z41: 1 | AA41: 1 | AB41: 1 | AC41: 1 | AD41: 1 | AE41: 1 | AF41: 1 | AG41: 1 | AH41: 1 | AI41: 1 | AJ41: 1 | AK41: 1 | AL41: 1 | AM41: 1 | AN41: 1 | AO41: 1 | AP41: 1 | AQ41: 1 | AR41: 1 | AS41: 1 | AT41: 1 | AU41: 1 | AV41: 1 | AW41: 1 | AX41: 1 | AY41: 1 | AZ41: 1 | BA41: 1 | BB41: 1 | BC41: 1 | BD41: 1 | BE41: 1 | BF41: 1 | BG41: 1 | BH41: 1 | BI41: 1 | BJ41: 1 | BK41: 1 | BL41: 1 | BM41: 1 | BN41: 1 | BO41: 1 | BP41: 1 | BQ41: 1 | BR41: 1 | BS41: 1 | BT41: 1 | BU41: 1 | BV41: 1 | BW41: 1 | BX41: 1 | BY41: 1 | BZ41: 1 | CA41: 1 | CB41: 1 | CC41: 1
A43: Commercial Network ON/OFF
A44: LGA | B44: 2021 | C44: =B44+1 -> 2022 | D44: =C44+1 -> 2023 | E44: 2024 | F44: 2025 | G44: 2026 | H44: 2027 | I44: 2028 | J44: 2029 | K44: 2030 | L44: 2031 | M44: 2032 | N44: 2033 | O44: 2034 | P44: 2035 | Q44: 2036 | R44: 2037 | S44: 2038 | T44: 2039 | U44: 2040 | V44: 2041 | W44: 2042 | X44: 2043 | Y44: 2044 | Z44: 2045 | AA44: 2046 | AB44: 2047 | AC44: 2048 | AD44: 2049 | AE44: 2050 | AF44: 2051 | AG44: 2052 | AH44: 2053 | AI44: 2054 | AJ44: 2055 | AK44: 2056 | AL44: 2057 | AM44: 2058 | AN44: 2059 | AO44: 2060 | AP44: 2061 | AQ44: 2062 | AR44: 2063 | AS44: 2064 | AT44: 2065 | AU44: 2066 | AV44: 2067 | AW44: 2068 | AX44: 2069 | AY44: 2070 | AZ44: 2071 | BA44: 2072 | BB44: 2073 | BC44: 2074 | BD44: 2075 | BE44: 2076 | BF44: 2077 | BG44: 2078 | BH44: 2079 | BI44: 2080 | BJ44: 2081 | BK44: 2082 | BL44: 2083 | BM44: 2084 | BN44: 2085 | BO44: 2086 | BP44: =BO44+1 -> 2087 | BQ44: 2088 | BR44: 2089 | BS44: 2090 | BT44: 2091 | BU44: 2092 | BV44: 2093 | BW44: 2094 | BX44: 2095 | BY44: 2096 | BZ44: 2097 | CA44: 2098 | CB44: 2099 | CC44: 2100
A45: ARMADALE | B45: 1 | C45: 1 | D45: 1 | E45: 1 | F45: 1 | G45: 1 | H45: 1 | I45: 1 | J45: 1 | K45: 1 | L45: 1 | M45: 1 | N45: 1 | O45: 1 | P45: 1 | Q45: 1 | R45: 1 | S45: 1 | T45: 1 | U45: 1 | V45: 1 | W45: 1 | X45: 1 | Y45: 1 | Z45: 1 | AA45: 1 | AB45: 1 | AC45: 1 | AD45: 1 | AE45: 1 | AF45: 1 | AG45: 1 | AH45: 1 | AI45: 1 | AJ45: 1 | AK45: 1 | AL45: 1 | AM45: 1 | AN45: 1 | AO45: 1 | AP45: 1 | AQ45: 1 | AR45: 1 | AS45: 1 | AT45: 1 | AU45: 1 | AV45: 1 | AW45: 1 | AX45: 1 | AY45: 1 | AZ45: 1 | BA45: 1 | BB45: 1 | BC45: 1 | BD45: 1 | BE45: 1 | BF45: 1 | BG45: 1 | BH45: 1 | BI45: 1 | BJ45: 1 | BK45: 1 | BL45: 1 | BM45: 1 | BN45: 1 | BO45: 1 | BP45: 1 | BQ45: 1 | BR45: 1 | BS45: 1 | BT45: 1 | BU45: 1 | BV45: 1 | BW45: 1 | BX45: 1 | BY45: 1 | BZ45: 1 | CA45: 1 | CB45: 1 | CC45: 1
A46: BASSENDEAN | B46: 1 | C46: 1 | D46: 1 | E46: 1 | F46: 1 | G46: 1 | H46: 1 | I46: 1 | J46: 1 | K46: 1 | L46: 1 | M46: 1 | N46: 1 | O46: 1 | P46: 1 | Q46: 1 | R46: 1 | S46: 1 | T46: 1 | U46: 1 | V46: 1 | W46: 1 | X46: 1 | Y46: 1 | Z46: 1 | AA46: 1 | AB46: 1 | AC46: 1 | AD46: 1 | AE46: 1 | AF46: 1 | AG46: 1 | AH46: 1 | AI46: 1 | AJ46: 1 | AK46: 1 | AL46: 1 | AM46: 1 | AN46: 1 | AO46: 1 | AP46: 1 | AQ46: 1 | AR46: 1 | AS46: 1 | AT46: 1 | AU46: 1 | AV46: 1 | AW46: 1 | AX46: 1 | AY46: 1 | AZ46: 1 | BA46: 1 | BB46: 1 | BC46: 1 | BD46: 1 | BE46: 1 | BF46: 1 | BG46: 1 | BH46: 1 | BI46: 1 | BJ46: 1 | BK46: 1 | BL46: 1 | BM46: 1 | BN46: 1 | BO46: 1 | BP46: 1 | BQ46: 1 | BR46: 1 | BS46: 1 | BT46: 1 | BU46: 1 | BV46: 1 | BW46: 1 | BX46: 1 | BY46: 1 | BZ46: 1 | CA46: 1 | CB46: 1 | CC46: 1
A47: BAYSWATER | B47: 1 | C47: 1 | D47: 1 | E47: 1 | F47: 1 | G47: 1 | H47: 1 | I47: 1 | J47: 1 | K47: 1 | L47: 1 | M47: 1 | N47: 1 | O47: 1 | P47: 1 | Q47: 1 | R47: 1 | S47: 1 | T47: 1 | U47: 1 | V47: 1 | W47: 1 | X47: 1 | Y47: 1 | Z47: 1 | AA47: 1 | AB47: 1 | AC47: 1 | AD47: 1 | AE47: 1 | AF47: 1 | AG47: 1 | AH47: 1 | AI47: 1 | AJ47: 1 | AK47: 1 | AL47: 1 | AM47: 1 | AN47: 1 | AO47: 1 | AP47: 1 | AQ47: 1 | AR47: 1 | AS47: 1 | AT47: 1 | AU47: 1 | AV47: 1 | AW47: 1 | AX47: 1 | AY47: 1 | AZ47: 1 | BA47: 1 | BB47: 1 | BC47: 1 | BD47: 1 | BE47: 1 | BF47: 1 | BG47: 1 | BH47: 1 | BI47: 1 | BJ47: 1 | BK47: 1 | BL47: 1 | BM47: 1 | BN47: 1 | BO47: 1 | BP47: 1 | BQ47: 1 | BR47: 1 | BS47: 1 | BT47: 1 | BU47: 1 | BV47: 1 | BW47: 1 | BX47: 1 | BY47: 1 | BZ47: 1 | CA47: 1 | CB47: 1 | CC47: 1
A48: BELMONT | B48: 1 | C48: 1 | D48: 1 | E48: 1 | F48: 1 | G48: 1 | H48: 1 | I48: 1 | J48: 1 | K48: 1 | L48: 1 | M48: 1 | N48: 1 | O48: 1 | P48: 1 | Q48: 1 | R48: 1 | S48: 1 | T48: 1 | U48: 1 | V48: 1 | W48: 1 | X48: 1 | Y48: 1 | Z48: 1 | AA48: 1 | AB48: 1 | AC48: 1 | AD48: 1 | AE48: 1 | AF48: 1 | AG48: 1 | AH48: 1 | AI48: 1 | AJ48: 1 | AK48: 1 | AL48: 1 | AM48: 1 | AN48: 1 | AO48: 1 | AP48: 1 | AQ48: 1 | AR48: 1 | AS48: 1 | AT48: 1 | AU48: 1 | AV48: 1 | AW48: 1 | AX48: 1 | AY48: 1 | AZ48: 1 | BA48: 1 | BB48: 1 | BC48: 1 | BD48: 1 | BE48: 1 | BF48: 1 | BG48: 1 | BH48: 1 | BI48: 1 | BJ48: 1 | BK48: 1 | BL48: 1 | BM48: 1 | BN48: 1 | BO48: 1 | BP48: 1 | BQ48: 1 | BR48: 1 | BS48: 1 | BT48: 1 | BU48: 1 | BV48: 1 | BW48: 1 | BX48: 1 | BY48: 1 | BZ48: 1 | CA48: 1 | CB48: 1 | CC48: 1
A49: BUNBURY | B49: 1 | C49: 1 | D49: 1 | E49: 1 | F49: 1 | G49: 1 | H49: 1 | I49: 1 | J49: 1 | K49: 1 | L49: 1 | M49: 1 | N49: 1 | O49: 1 | P49: 1 | Q49: 1 | R49: 1 | S49: 1 | T49: 1 | U49: 1 | V49: 1 | W49: 1 | X49: 1 | Y49: 1 | Z49: 1 | AA49: 1 | AB49: 1 | AC49: 1 | AD49: 1 | AE49: 1 | AF49: 1 | AG49: 1 | AH49: 1 | AI49: 1 | AJ49: 1 | AK49: 1 | AL49: 1 | AM49: 1 | AN49: 1 | AO49: 1 | AP49: 1 | AQ49: 1 | AR49: 1 | AS49: 1 | AT49: 1 | AU49: 1 | AV49: 1 | AW49: 1 | AX49: 1 | AY49: 1 | AZ49: 1 | BA49: 1 | BB49: 1 | BC49: 1 | BD49: 1 | BE49: 1 | BF49: 1 | BG49: 1 | BH49: 1 | BI49: 1 | BJ49: 1 | BK49: 1 | BL49: 1 | BM49: 1 | BN49: 1 | BO49: 1 | BP49: 1 | BQ49: 1 | BR49: 1 | BS49: 1 | BT49: 1 | BU49: 1 | BV49: 1 | BW49: 1 | BX49: 1 | BY49: 1 | BZ49: 1 | CA49: 1 | CB49: 1 | CC49: 1
A50: BUSSELTON | B50: 1 | C50: 1 | D50: 1 | E50: 1 | F50: 1 | G50: 1 | H50: 1 | I50: 1 | J50: 1 | K50: 1 | L50: 1 | M50: 1 | N50: 1 | O50: 1 | P50: 1 | Q50: 1 | R50: 1 | S50: 1 | T50: 1 | U50: 1 | V50: 1 | W50: 1 | X50: 1 | Y50: 1 | Z50: 1 | AA50: 1 | AB50: 1 | AC50: 1 | AD50: 1 | AE50: 1 | AF50: 1 | AG50: 1 | AH50: 1 | AI50: 1 | AJ50: 1 | AK50: 1 | AL50: 1 | AM50: 1 | AN50: 1 | AO50: 1 | AP50: 1 | AQ50: 1 | AR50: 1 | AS50: 1 | AT50: 1 | AU50: 1 | AV50: 1 | AW50: 1 | AX50: 1 | AY50: 1 | AZ50: 1 | BA50: 1 | BB50: 1 | BC50: 1 | BD50: 1 | BE50: 1 | BF50: 1 | BG50: 1 | BH50: 1 | BI50: 1 | BJ50: 1 | BK50: 1 | BL50: 1 | BM50: 1 | BN50: 1 | BO50: 1 | BP50: 1 | BQ50: 1 | BR50: 1 | BS50: 1 | BT50: 1 | BU50: 1 | BV50: 1 | BW50: 1 | BX50: 1 | BY50: 1 | BZ50: 1 | CA50: 1 | CB50: 1 | CC50: 1
A51: CAMBRIDGE | B51: 1 | C51: 1 | D51: 1 | E51: 1 | F51: 1 | G51: 1 | H51: 1 | I51: 1 | J51: 1 | K51: 1 | L51: 1 | M51: 1 | N51: 1 | O51: 1 | P51: 1 | Q51: 1 | R51: 1 | S51: 1 | T51: 1 | U51: 1 | V51: 1 | W51: 1 | X51: 1 | Y51: 1 | Z51: 1 | AA51: 1 | AB51: 1 | AC51: 1 | AD51: 1 | AE51: 1 | AF51: 1 | AG51: 1 | AH51: 1 | AI51: 1 | AJ51: 1 | AK51: 1 | AL51: 1 | AM51: 1 | AN51: 1 | AO51: 1 | AP51: 1 | AQ51: 1 | AR51: 1 | AS51: 1 | AT51: 1 | AU51: 1 | AV51: 1 | AW51: 1 | AX51: 1 | AY51: 1 | AZ51: 1 | BA51: 1 | BB51: 1 | BC51: 1 | BD51: 1 | BE51: 1 | BF51: 1 | BG51: 1 | BH51: 1 | BI51: 1 | BJ51: 1 | BK51: 1 | BL51: 1 | BM51: 1 | BN51: 1 | BO51: 1 | BP51: 1 | BQ51: 1 | BR51: 1 | BS51: 1 | BT51: 1 | BU51: 1 | BV51: 1 | BW51: 1 | BX51: 1 | BY51: 1 | BZ51: 1 | CA51: 1 | CB51: 1 | CC51: 1
A52: CANNING | B52: 1 | C52: 1 | D52: 1 | E52: 1 | F52: 1 | G52: 1 | H52: 1 | I52: 1 | J52: 1 | K52: 1 | L52: 1 | M52: 1 | N52: 1 | O52: 1 | P52: 1 | Q52: 1 | R52: 1 | S52: 1 | T52: 1 | U52: 1 | V52: 1 | W52: 1 | X52: 1 | Y52: 1 | Z52: 1 | AA52: 1 | AB52: 1 | AC52: 1 | AD52: 1 | AE52: 1 | AF52: 1 | AG52: 1 | AH52: 1 | AI52: 1 | AJ52: 1 | AK52: 1 | AL52: 1 | AM52: 1 | AN52: 1 | AO52: 1 | AP52: 1 | AQ52: 1 | AR52: 1 | AS52: 1 | AT52: 1 | AU52: 1 | AV52: 1 | AW52: 1 | AX52: 1 | AY52: 1 | AZ52: 1 | BA52: 1 | BB52: 1 | BC52: 1 | BD52: 1 | BE52: 1 | BF52: 1 | BG52: 1 | BH52: 1 | BI52: 1 | BJ52: 1 | BK52: 1 | BL52: 1 | BM52: 1 | BN52: 1 | BO52: 1 | BP52: 1 | BQ52: 1 | BR52: 1 | BS52: 1 | BT52: 1 | BU52: 1 | BV52: 1 | BW52: 1 | BX52: 1 | BY52: 1 | BZ52: 1 | CA52: 1 | CB52: 1 | CC52: 1
A53: CAPEL | B53: 1 | C53: 1 | D53: 1 | E53: 1 | F53: 1 | G53: 1 | H53: 1 | I53: 1 | J53: 1 | K53: 1 | L53: 1 | M53: 1 | N53: 1 | O53: 1 | P53: 1 | Q53: 1 | R53: 1 | S53: 1 | T53: 1 | U53: 1 | V53: 1 | W53: 1 | X53: 1 | Y53: 1 | Z53: 1 | AA53: 1 | AB53: 1 | AC53: 1 | AD53: 1 | AE53: 1 | AF53: 1 | AG53: 1 | AH53: 1 | AI53: 1 | AJ53: 1 | AK53: 1 | AL53: 1 | AM53: 1 | AN53: 1 | AO53: 1 | AP53: 1 | AQ53: 1 | AR53: 1 | AS53: 1 | AT53: 1 | AU53: 1 | AV53: 1 | AW53: 1 | AX53: 1 | AY53: 1 | AZ53: 1 | BA53: 1 | BB53: 1 | BC53: 1 | BD53: 1 | BE53: 1 | BF53: 1 | BG53: 1 | BH53: 1 | BI53: 1 | BJ53: 1 | BK53: 1 | BL53: 1 | BM53: 1 | BN53: 1 | BO53: 1 | BP53: 1 | BQ53: 1 | BR53: 1 | BS53: 1 | BT53: 1 | BU53: 1 | BV53: 1 | BW53: 1 | BX53: 1 | BY53: 1 | BZ53: 1 | CA53: 1 | CB53: 1 | CC53: 1
A54: CHITTERING | B54: 1 | C54: 1 | D54: 1 | E54: 1 | F54: 1 | G54: 1 | H54: 1 | I54: 1 | J54: 1 | K54: 1 | L54: 1 | M54: 1 | N54: 1 | O54: 1 | P54: 1 | Q54: 1 | R54: 1 | S54: 1 | T54: 1 | U54: 1 | V54: 1 | W54: 1 | X54: 1 | Y54: 1 | Z54: 1 | AA54: 1 | AB54: 1 | AC54: 1 | AD54: 1 | AE54: 1 | AF54: 1 | AG54: 1 | AH54: 1 | AI54: 1 | AJ54: 1 | AK54: 1 | AL54: 1 | AM54: 1 | AN54: 1 | AO54: 1 | AP54: 1 | AQ54: 1 | AR54: 1 | AS54: 1 | AT54: 1 | AU54: 1 | AV54: 1 | AW54: 1 | AX54: 1 | AY54: 1 | AZ54: 1 | BA54: 1 | BB54: 1 | BC54: 1 | BD54: 1 | BE54: 1 | BF54: 1 | BG54: 1 | BH54: 1 | BI54: 1 | BJ54: 1 | BK54: 1 | BL54: 1 | BM54: 1 | BN54: 1 | BO54: 1 | BP54: 1 | BQ54: 1 | BR54: 1 | BS54: 1 | BT54: 1 | BU54: 1 | BV54: 1 | BW54: 1 | BX54: 1 | BY54: 1 | BZ54: 1 | CA54: 1 | CB54: 1 | CC54: 1
A55: COCKBURN | B55: 1 | C55: 1 | D55: 1 | E55: 1 | F55: 1 | G55: 1 | H55: 1 | I55: 1 | J55: 1 | K55: 1 | L55: 1 | M55: 1 | N55: 1 | O55: 1 | P55: 1 | Q55: 1 | R55: 1 | S55: 1 | T55: 1 | U55: 1 | V55: 1 | W55: 1 | X55: 1 | Y55: 1 | Z55: 1 | AA55: 1 | AB55: 1 | AC55: 1 | AD55: 1 | AE55: 1 | AF55: 1 | AG55: 1 | AH55: 1 | AI55: 1 | AJ55: 1 | AK55: 1 | AL55: 1 | AM55: 1 | AN55: 1 | AO55: 1 | AP55: 1 | AQ55: 1 | AR55: 1 | AS55: 1 | AT55: 1 | AU55: 1 | AV55: 1 | AW55: 1 | AX55: 1 | AY55: 1 | AZ55: 1 | BA55: 1 | BB55: 1 | BC55: 1 | BD55: 1 | BE55: 1 | BF55: 1 | BG55: 1 | BH55: 1 | BI55: 1 | BJ55: 1 | BK55: 1 | BL55: 1 | BM55: 1 | BN55: 1 | BO55: 1 | BP55: 1 | BQ55: 1 | BR55: 1 | BS55: 1 | BT55: 1 | BU55: 1 | BV55: 1 | BW55: 1 | BX55: 1 | BY55: 1 | BZ55: 1 | CA55: 1 | CB55: 1 | CC55: 1
A56: COTTESLOE | B56: 1 | C56: 1 | D56: 1 | E56: 1 | F56: 1 | G56: 1 | H56: 1 | I56: 1 | J56: 1 | K56: 1 | L56: 1 | M56: 1 | N56: 1 | O56: 1 | P56: 1 | Q56: 1 | R56: 1 | S56: 1 | T56: 1 | U56: 1 | V56: 1 | W56: 1 | X56: 1 | Y56: 1 | Z56: 1 | AA56: 1 | AB56: 1 | AC56: 1 | AD56: 1 | AE56: 1 | AF56: 1 | AG56: 1 | AH56: 1 | AI56: 1 | AJ56: 1 | AK56: 1 | AL56: 1 | AM56: 1 | AN56: 1 | AO56: 1 | AP56: 1 | AQ56: 1 | AR56: 1 | AS56: 1 | AT56: 1 | AU56: 1 | AV56: 1 | AW56: 1 | AX56: 1 | AY56: 1 | AZ56: 1 | BA56: 1 | BB56: 1 | BC56: 1 | BD56: 1 | BE56: 1 | BF56: 1 | BG56: 1 | BH56: 1 | BI56: 1 | BJ56: 1 | BK56: 1 | BL56: 1 | BM56: 1 | BN56: 1 | BO56: 1 | BP56: 1 | BQ56: 1 | BR56: 1 | BS56: 1 | BT56: 1 | BU56: 1 | BV56: 1 | BW56: 1 | BX56: 1 | BY56: 1 | BZ56: 1 | CA56: 1 | CB56: 1 | CC56: 1
A57: DARDANUP | B57: 1 | C57: 1 | D57: 1 | E57: 1 | F57: 1 | G57: 1 | H57: 1 | I57: 1 | J57: 1 | K57: 1 | L57: 1 | M57: 1 | N57: 1 | O57: 1 | P57: 1 | Q57: 1 | R57: 1 | S57: 1 | T57: 1 | U57: 1 | V57: 1 | W57: 1 | X57: 1 | Y57: 1 | Z57: 1 | AA57: 1 | AB57: 1 | AC57: 1 | AD57: 1 | AE57: 1 | AF57: 1 | AG57: 1 | AH57: 1 | AI57: 1 | AJ57: 1 | AK57: 1 | AL57: 1 | AM57: 1 | AN57: 1 | AO57: 1 | AP57: 1 | AQ57: 1 | AR57: 1 | AS57: 1 | AT57: 1 | AU57: 1 | AV57: 1 | AW57: 1 | AX57: 1 | AY57: 1 | AZ57: 1 | BA57: 1 | BB57: 1 | BC57: 1 | BD57: 1 | BE57: 1 | BF57: 1 | BG57: 1 | BH57: 1 | BI57: 1 | BJ57: 1 | BK57: 1 | BL57: 1 | BM57: 1 | BN57: 1 | BO57: 1 | BP57: 1 | BQ57: 1 | BR57: 1 | BS57: 1 | BT57: 1 | BU57: 1 | BV57: 1 | BW57: 1 | BX57: 1 | BY57: 1 | BZ57: 1 | CA57: 1 | CB57: 1 | CC57: 1
A58: EAST FREMANTLE | B58: 1 | C58: 1 | D58: 1 | E58: 1 | F58: 1 | G58: 1 | H58: 1 | I58: 1 | J58: 1 | K58: 1 | L58: 1 | M58: 1 | N58: 1 | O58: 1 | P58: 1 | Q58: 1 | R58: 1 | S58: 1 | T58: 1 | U58: 1 | V58: 1 | W58: 1 | X58: 1 | Y58: 1 | Z58: 1 | AA58: 1 | AB58: 1 | AC58: 1 | AD58: 1 | AE58: 1 | AF58: 1 | AG58: 1 | AH58: 1 | AI58: 1 | AJ58: 1 | AK58: 1 | AL58: 1 | AM58: 1 | AN58: 1 | AO58: 1 | AP58: 1 | AQ58: 1 | AR58: 1 | AS58: 1 | AT58: 1 | AU58: 1 | AV58: 1 | AW58: 1 | AX58: 1 | AY58: 1 | AZ58: 1 | BA58: 1 | BB58: 1 | BC58: 1 | BD58: 1 | BE58: 1 | BF58: 1 | BG58: 1 | BH58: 1 | BI58: 1 | BJ58: 1 | BK58: 1 | BL58: 1 | BM58: 1 | BN58: 1 | BO58: 1 | BP58: 1 | BQ58: 1 | BR58: 1 | BS58: 1 | BT58: 1 | BU58: 1 | BV58: 1 | BW58: 1 | BX58: 1 | BY58: 1 | BZ58: 1 | CA58: 1 | CB58: 1 | CC58: 1
A59: FREMANTLE | B59: 1 | C59: 1 | D59: 1 | E59: 1 | F59: 1 | G59: 1 | H59: 1 | I59: 1 | J59: 1 | K59: 1 | L59: 1 | M59: 1 | N59: 1 | O59: 1 | P59: 1 | Q59: 1 | R59: 1 | S59: 1 | T59: 1 | U59: 1 | V59: 1 | W59: 1 | X59: 1 | Y59: 1 | Z59: 1 | AA59: 1 | AB59: 1 | AC59: 1 | AD59: 1 | AE59: 1 | AF59: 1 | AG59: 1 | AH59: 1 | AI59: 1 | AJ59: 1 | AK59: 1 | AL59: 1 | AM59: 1 | AN59: 1 | AO59: 1 | AP59: 1 | AQ59: 1 | AR59: 1 | AS59: 1 | AT59: 1 | AU59: 1 | AV59: 1 | AW59: 1 | AX59: 1 | AY59: 1 | AZ59: 1 | BA59: 1 | BB59: 1 | BC59: 1 | BD59: 1 | BE59: 1 | BF59: 1 | BG59: 1 | BH59: 1 | BI59: 1 | BJ59: 1 | BK59: 1 | BL59: 1 | BM59: 1 | BN59: 1 | BO59: 1 | BP59: 1 | BQ59: 1 | BR59: 1 | BS59: 1 | BT59: 1 | BU59: 1 | BV59: 1 | BW59: 1 | BX59: 1 | BY59: 1 | BZ59: 1 | CA59: 1 | CB59: 1 | CC59: 1
A60: GOSNELLS | B60: 1 | C60: 1 | D60: 1 | E60: 1 | F60: 1 | G60: 1 | H60: 1 | I60: 1 | J60: 1 | K60: 1 | L60: 1 | M60: 1 | N60: 1 | O60: 1 | P60: 1 | Q60: 1 | R60: 1 | S60: 1 | T60: 1 | U60: 1 | V60: 1 | W60: 1 | X60: 1 | Y60: 1 | Z60: 1 | AA60: 1 | AB60: 1 | AC60: 1 | AD60: 1 | AE60: 1 | AF60: 1 | AG60: 1 | AH60: 1 | AI60: 1 | AJ60: 1 | AK60: 1 | AL60: 1 | AM60: 1 | AN60: 1 | AO60: 1 | AP60: 1 | AQ60: 1 | AR60: 1 | AS60: 1 | AT60: 1 | AU60: 1 | AV60: 1 | AW60: 1 | AX60: 1 | AY60: 1 | AZ60: 1 | BA60: 1 | BB60: 1 | BC60: 1 | BD60: 1 | BE60: 1 | BF60: 1 | BG60: 1 | BH60: 1 | BI60: 1 | BJ60: 1 | BK60: 1 | BL60: 1 | BM60: 1 | BN60: 1 | BO60: 1 | BP60: 1 | BQ60: 1 | BR60: 1 | BS60: 1 | BT60: 1 | BU60: 1 | BV60: 1 | BW60: 1 | BX60: 1 | BY60: 1 | BZ60: 1 | CA60: 1 | CB60: 1 | CC60: 1
A61: GREATER GERALDTON | B61: 1 | C61: 1 | D61: 1 | E61: 1 | F61: 1 | G61: 1 | H61: 1 | I61: 1 | J61: 1 | K61: 1 | L61: 1 | M61: 1 | N61: 1 | O61: 1 | P61: 1 | Q61: 1 | R61: 1 | S61: 1 | T61: 1 | U61: 1 | V61: 1 | W61: 1 | X61: 1 | Y61: 1 | Z61: 1 | AA61: 1 | AB61: 1 | AC61: 1 | AD61: 1 | AE61: 1 | AF61: 1 | AG61: 1 | AH61: 1 | AI61: 1 | AJ61: 1 | AK61: 1 | AL61: 1 | AM61: 1 | AN61: 1 | AO61: 1 | AP61: 1 | AQ61: 1 | AR61: 1 | AS61: 1 | AT61: 1 | AU61: 1 | AV61: 1 | AW61: 1 | AX61: 1 | AY61: 1 | AZ61: 1 | BA61: 1 | BB61: 1 | BC61: 1 | BD61: 1 | BE61: 1 | BF61: 1 | BG61: 1 | BH61: 1 | BI61: 1 | BJ61: 1 | BK61: 1 | BL61: 1 | BM61: 1 | BN61: 1 | BO61: 1 | BP61: 1 | BQ61: 1 | BR61: 1 | BS61: 1 | BT61: 1 | BU61: 1 | BV61: 1 | BW61: 1 | BX61: 1 | BY61: 1 | BZ61: 1 | CA61: 1 | CB61: 1 | CC61: 1
A62: HARVEY | B62: 1 | C62: 1 | D62: 1 | E62: 1 | F62: 1 | G62: 1 | H62: 1 | I62: 1 | J62: 1 | K62: 1 | L62: 1 | M62: 1 | N62: 1 | O62: 1 | P62: 1 | Q62: 1 | R62: 1 | S62: 1 | T62: 1 | U62: 1 | V62: 1 | W62: 1 | X62: 1 | Y62: 1 | Z62: 1 | AA62: 1 | AB62: 1 | AC62: 1 | AD62: 1 | AE62: 1 | AF62: 1 | AG62: 1 | AH62: 1 | AI62: 1 | AJ62: 1 | AK62: 1 | AL62: 1 | AM62: 1 | AN62: 1 | AO62: 1 | AP62: 1 | AQ62: 1 | AR62: 1 | AS62: 1 | AT62: 1 | AU62: 1 | AV62: 1 | AW62: 1 | AX62: 1 | AY62: 1 | AZ62: 1 | BA62: 1 | BB62: 1 | BC62: 1 | BD62: 1 | BE62: 1 | BF62: 1 | BG62: 1 | BH62: 1 | BI62: 1 | BJ62: 1 | BK62: 1 | BL62: 1 | BM62: 1 | BN62: 1 | BO62: 1 | BP62: 1 | BQ62: 1 | BR62: 1 | BS62: 1 | BT62: 1 | BU62: 1 | BV62: 1 | BW62: 1 | BX62: 1 | BY62: 1 | BZ62: 1 | CA62: 1 | CB62: 1 | CC62: 1
A63: JOONDALUP | B63: 1 | C63: 1 | D63: 1 | E63: 1 | F63: 1 | G63: 1 | H63: 1 | I63: 1 | J63: 1 | K63: 1 | L63: 1 | M63: 1 | N63: 1 | O63: 1 | P63: 1 | Q63: 1 | R63: 1 | S63: 1 | T63: 1 | U63: 1 | V63: 1 | W63: 1 | X63: 1 | Y63: 1 | Z63: 1 | AA63: 1 | AB63: 1 | AC63: 1 | AD63: 1 | AE63: 1 | AF63: 1 | AG63: 1 | AH63: 1 | AI63: 1 | AJ63: 1 | AK63: 1 | AL63: 1 | AM63: 1 | AN63: 1 | AO63: 1 | AP63: 1 | AQ63: 1 | AR63: 1 | AS63: 1 | AT63: 1 | AU63: 1 | AV63: 1 | AW63: 1 | AX63: 1 | AY63: 1 | AZ63: 1 | BA63: 1 | BB63: 1 | BC63: 1 | BD63: 1 | BE63: 1 | BF63: 1 | BG63: 1 | BH63: 1 | BI63: 1 | BJ63: 1 | BK63: 1 | BL63: 1 | BM63: 1 | BN63: 1 | BO63: 1 | BP63: 1 | BQ63: 1 | BR63: 1 | BS63: 1 | BT63: 1 | BU63: 1 | BV63: 1 | BW63: 1 | BX63: 1 | BY63: 1 | BZ63: 1 | CA63: 1 | CB63: 1 | CC63: 1
A64: KALAMUNDA | B64: 1 | C64: 1 | D64: 1 | E64: 1 | F64: 1 | G64: 1 | H64: 1 | I64: 1 | J64: 1 | K64: 1 | L64: 1 | M64: 1 | N64: 1 | O64: 1 | P64: 1 | Q64: 1 | R64: 1 | S64: 1 | T64: 1 | U64: 1 | V64: 1 | W64: 1 | X64: 1 | Y64: 1 | Z64: 1 | AA64: 1 | AB64: 1 | AC64: 1 | AD64: 1 | AE64: 1 | AF64: 1 | AG64: 1 | AH64: 1 | AI64: 1 | AJ64: 1 | AK64: 1 | AL64: 1 | AM64: 1 | AN64: 1 | AO64: 1 | AP64: 1 | AQ64: 1 | AR64: 1 | AS64: 1 | AT64: 1 | AU64: 1 | AV64: 1 | AW64: 1 | AX64: 1 | AY64: 1 | AZ64: 1 | BA64: 1 | BB64: 1 | BC64: 1 | BD64: 1 | BE64: 1 | BF64: 1 | BG64: 1 | BH64: 1 | BI64: 1 | BJ64: 1 | BK64: 1 | BL64: 1 | BM64: 1 | BN64: 1 | BO64: 1 | BP64: 1 | BQ64: 1 | BR64: 1 | BS64: 1 | BT64: 1 | BU64: 1 | BV64: 1 | BW64: 1 | BX64: 1 | BY64: 1 | BZ64: 1 | CA64: 1 | CB64: 1 | CC64: 1
A65: KWINANA | B65: 1 | C65: 1 | D65: 1 | E65: 1 | F65: 1 | G65: 1 | H65: 1 | I65: 1 | J65: 1 | K65: 1 | L65: 1 | M65: 1 | N65: 1 | O65: 1 | P65: 1 | Q65: 1 | R65: 1 | S65: 1 | T65: 1 | U65: 1 | V65: 1 | W65: 1 | X65: 1 | Y65: 1 | Z65: 1 | AA65: 1 | AB65: 1 | AC65: 1 | AD65: 1 | AE65: 1 | AF65: 1 | AG65: 1 | AH65: 1 | AI65: 1 | AJ65: 1 | AK65: 1 | AL65: 1 | AM65: 1 | AN65: 1 | AO65: 1 | AP65: 1 | AQ65: 1 | AR65: 1 | AS65: 1 | AT65: 1 | AU65: 1 | AV65: 1 | AW65: 1 | AX65: 1 | AY65: 1 | AZ65: 1 | BA65: 1 | BB65: 1 | BC65: 1 | BD65: 1 | BE65: 1 | BF65: 1 | BG65: 1 | BH65: 1 | BI65: 1 | BJ65: 1 | BK65: 1 | BL65: 1 | BM65: 1 | BN65: 1 | BO65: 1 | BP65: 1 | BQ65: 1 | BR65: 1 | BS65: 1 | BT65: 1 | BU65: 1 | BV65: 1 | BW65: 1 | BX65: 1 | BY65: 1 | BZ65: 1 | CA65: 1 | CB65: 1 | CC65: 1
A66: MANDURAH | B66: 1 | C66: 1 | D66: 1 | E66: 1 | F66: 1 | G66: 1 | H66: 1 | I66: 1 | J66: 1 | K66: 1 | L66: 1 | M66: 1 | N66: 1 | O66: 1 | P66: 1 | Q66: 1 | R66: 1 | S66: 1 | T66: 1 | U66: 1 | V66: 1 | W66: 1 | X66: 1 | Y66: 1 | Z66: 1 | AA66: 1 | AB66: 1 | AC66: 1 | AD66: 1 | AE66: 1 | AF66: 1 | AG66: 1 | AH66: 1 | AI66: 1 | AJ66: 1 | AK66: 1 | AL66: 1 | AM66: 1 | AN66: 1 | AO66: 1 | AP66: 1 | AQ66: 1 | AR66: 1 | AS66: 1 | AT66: 1 | AU66: 1 | AV66: 1 | AW66: 1 | AX66: 1 | AY66: 1 | AZ66: 1 | BA66: 1 | BB66: 1 | BC66: 1 | BD66: 1 | BE66: 1 | BF66: 1 | BG66: 1 | BH66: 1 | BI66: 1 | BJ66: 1 | BK66: 1 | BL66: 1 | BM66: 1 | BN66: 1 | BO66: 1 | BP66: 1 | BQ66: 1 | BR66: 1 | BS66: 1 | BT66: 1 | BU66: 1 | BV66: 1 | BW66: 1 | BX66: 1 | BY66: 1 | BZ66: 1 | CA66: 1 | CB66: 1 | CC66: 1
A67: MELVILLE | B67: 1 | C67: 1 | D67: 1 | E67: 1 | F67: 1 | G67: 1 | H67: 1 | I67: 1 | J67: 1 | K67: 1 | L67: 1 | M67: 1 | N67: 1 | O67: 1 | P67: 1 | Q67: 1 | R67: 1 | S67: 1 | T67: 1 | U67: 1 | V67: 1 | W67: 1 | X67: 1 | Y67: 1 | Z67: 1 | AA67: 1 | AB67: 1 | AC67: 1 | AD67: 1 | AE67: 1 | AF67: 1 | AG67: 1 | AH67: 1 | AI67: 1 | AJ67: 1 | AK67: 1 | AL67: 1 | AM67: 1 | AN67: 1 | AO67: 1 | AP67: 1 | AQ67: 1 | AR67: 1 | AS67: 1 | AT67: 1 | AU67: 1 | AV67: 1 | AW67: 1 | AX67: 1 | AY67: 1 | AZ67: 1 | BA67: 1 | BB67: 1 | BC67: 1 | BD67: 1 | BE67: 1 | BF67: 1 | BG67: 1 | BH67: 1 | BI67: 1 | BJ67: 1 | BK67: 1 | BL67: 1 | BM67: 1 | BN67: 1 | BO67: 1 | BP67: 1 | BQ67: 1 | BR67: 1 | BS67: 1 | BT67: 1 | BU67: 1 | BV67: 1 | BW67: 1 | BX67: 1 | BY67: 1 | BZ67: 1 | CA67: 1 | CB67: 1 | CC67: 1
A68: MOSMAN PARK | B68: 1 | C68: 1 | D68: 1 | E68: 1 | F68: 1 | G68: 1 | H68: 1 | I68: 1 | J68: 1 | K68: 1 | L68: 1 | M68: 1 | N68: 1 | O68: 1 | P68: 1 | Q68: 1 | R68: 1 | S68: 1 | T68: 1 | U68: 1 | V68: 1 | W68: 1 | X68: 1 | Y68: 1 | Z68: 1 | AA68: 1 | AB68: 1 | AC68: 1 | AD68: 1 | AE68: 1 | AF68: 1 | AG68: 1 | AH68: 1 | AI68: 1 | AJ68: 1 | AK68: 1 | AL68: 1 | AM68: 1 | AN68: 1 | AO68: 1 | AP68: 1 | AQ68: 1 | AR68: 1 | AS68: 1 | AT68: 1 | AU68: 1 | AV68: 1 | AW68: 1 | AX68: 1 | AY68: 1 | AZ68: 1 | BA68: 1 | BB68: 1 | BC68: 1 | BD68: 1 | BE68: 1 | BF68: 1 | BG68: 1 | BH68: 1 | BI68: 1 | BJ68: 1 | BK68: 1 | BL68: 1 | BM68: 1 | BN68: 1 | BO68: 1 | BP68: 1 | BQ68: 1 | BR68: 1 | BS68: 1 | BT68: 1 | BU68: 1 | BV68: 1 | BW68: 1 | BX68: 1 | BY68: 1 | BZ68: 1 | CA68: 1 | CB68: 1 | CC68: 1
A69: MUNDARING | B69: 1 | C69: 1 | D69: 1 | E69: 1 | F69: 1 | G69: 1 | H69: 1 | I69: 1 | J69: 1 | K69: 1 | L69: 1 | M69: 1 | N69: 1 | O69: 1 | P69: 1 | Q69: 1 | R69: 1 | S69: 1 | T69: 1 | U69: 1 | V69: 1 | W69: 1 | X69: 1 | Y69: 1 | Z69: 1 | AA69: 1 | AB69: 1 | AC69: 1 | AD69: 1 | AE69: 1 | AF69: 1 | AG69: 1 | AH69: 1 | AI69: 1 | AJ69: 1 | AK69: 1 | AL69: 1 | AM69: 1 | AN69: 1 | AO69: 1 | AP69: 1 | AQ69: 1 | AR69: 1 | AS69: 1 | AT69: 1 | AU69: 1 | AV69: 1 | AW69: 1 | AX69: 1 | AY69: 1 | AZ69: 1 | BA69: 1 | BB69: 1 | BC69: 1 | BD69: 1 | BE69: 1 | BF69: 1 | BG69: 1 | BH69: 1 | BI69: 1 | BJ69: 1 | BK69: 1 | BL69: 1 | BM69: 1 | BN69: 1 | BO69: 1 | BP69: 1 | BQ69: 1 | BR69: 1 | BS69: 1 | BT69: 1 | BU69: 1 | BV69: 1 | BW69: 1 | BX69: 1 | BY69: 1 | BZ69: 1 | CA69: 1 | CB69: 1 | CC69: 1
A70: MURRAY | B70: 1 | C70: 1 | D70: 1 | E70: 1 | F70: 1 | G70: 1 | H70: 1 | I70: 1 | J70: 1 | K70: 1 | L70: 1 | M70: 1 | N70: 1 | O70: 1 | P70: 1 | Q70: 1 | R70: 1 | S70: 1 | T70: 1 | U70: 1 | V70: 1 | W70: 1 | X70: 1 | Y70: 1 | Z70: 1 | AA70: 1 | AB70: 1 | AC70: 1 | AD70: 1 | AE70: 1 | AF70: 1 | AG70: 1 | AH70: 1 | AI70: 1 | AJ70: 1 | AK70: 1 | AL70: 1 | AM70: 1 | AN70: 1 | AO70: 1 | AP70: 1 | AQ70: 1 | AR70: 1 | AS70: 1 | AT70: 1 | AU70: 1 | AV70: 1 | AW70: 1 | AX70: 1 | AY70: 1 | AZ70: 1 | BA70: 1 | BB70: 1 | BC70: 1 | BD70: 1 | BE70: 1 | BF70: 1 | BG70: 1 | BH70: 1 | BI70: 1 | BJ70: 1 | BK70: 1 | BL70: 1 | BM70: 1 | BN70: 1 | BO70: 1 | BP70: 1 | BQ70: 1 | BR70: 1 | BS70: 1 | BT70: 1 | BU70: 1 | BV70: 1 | BW70: 1 | BX70: 1 | BY70: 1 | BZ70: 1 | CA70: 1 | CB70: 1 | CC70: 1
A71: NEDLANDS | B71: 1 | C71: 1 | D71: 1 | E71: 1 | F71: 1 | G71: 1 | H71: 1 | I71: 1 | J71: 1 | K71: 1 | L71: 1 | M71: 1 | N71: 1 | O71: 1 | P71: 1 | Q71: 1 | R71: 1 | S71: 1 | T71: 1 | U71: 1 | V71: 1 | W71: 1 | X71: 1 | Y71: 1 | Z71: 1 | AA71: 1 | AB71: 1 | AC71: 1 | AD71: 1 | AE71: 1 | AF71: 1 | AG71: 1 | AH71: 1 | AI71: 1 | AJ71: 1 | AK71: 1 | AL71: 1 | AM71: 1 | AN71: 1 | AO71: 1 | AP71: 1 | AQ71: 1 | AR71: 1 | AS71: 1 | AT71: 1 | AU71: 1 | AV71: 1 | AW71: 1 | AX71: 1 | AY71: 1 | AZ71: 1 | BA71: 1 | BB71: 1 | BC71: 1 | BD71: 1 | BE71: 1 | BF71: 1 | BG71: 1 | BH71: 1 | BI71: 1 | BJ71: 1 | BK71: 1 | BL71: 1 | BM71: 1 | BN71: 1 | BO71: 1 | BP71: 1 | BQ71: 1 | BR71: 1 | BS71: 1 | BT71: 1 | BU71: 1 | BV71: 1 | BW71: 1 | BX71: 1 | BY71: 1 | BZ71: 1 | CA71: 1 | CB71: 1 | CC71: 1
A72: PEPPERMINT GROVE | B72: 1 | C72: 1 | D72: 1 | E72: 1 | F72: 1 | G72: 1 | H72: 1 | I72: 1 | J72: 1 | K72: 1 | L72: 1 | M72: 1 | N72: 1 | O72: 1 | P72: 1 | Q72: 1 | R72: 1 | S72: 1 | T72: 1 | U72: 1 | V72: 1 | W72: 1 | X72: 1 | Y72: 1 | Z72: 1 | AA72: 1 | AB72: 1 | AC72: 1 | AD72: 1 | AE72: 1 | AF72: 1 | AG72: 1 | AH72: 1 | AI72: 1 | AJ72: 1 | AK72: 1 | AL72: 1 | AM72: 1 | AN72: 1 | AO72: 1 | AP72: 1 | AQ72: 1 | AR72: 1 | AS72: 1 | AT72: 1 | AU72: 1 | AV72: 1 | AW72: 1 | AX72: 1 | AY72: 1 | AZ72: 1 | BA72: 1 | BB72: 1 | BC72: 1 | BD72: 1 | BE72: 1 | BF72: 1 | BG72: 1 | BH72: 1 | BI72: 1 | BJ72: 1 | BK72: 1 | BL72: 1 | BM72: 1 | BN72: 1 | BO72: 1 | BP72: 1 | BQ72: 1 | BR72: 1 | BS72: 1 | BT72: 1 | BU72: 1 | BV72: 1 | BW72: 1 | BX72: 1 | BY72: 1 | BZ72: 1 | CA72: 1 | CB72: 1 | CC72: 1
A73: PERTH | B73: 1 | C73: 1 | D73: 1 | E73: 1 | F73: 1 | G73: 1 | H73: 1 | I73: 1 | J73: 1 | K73: 1 | L73: 1 | M73: 1 | N73: 1 | O73: 1 | P73: 1 | Q73: 1 | R73: 1 | S73: 1 | T73: 1 | U73: 1 | V73: 1 | W73: 1 | X73: 1 | Y73: 1 | Z73: 1 | AA73: 1 | AB73: 1 | AC73: 1 | AD73: 1 | AE73: 1 | AF73: 1 | AG73: 1 | AH73: 1 | AI73: 1 | AJ73: 1 | AK73: 1 | AL73: 1 | AM73: 1 | AN73: 1 | AO73: 1 | AP73: 1 | AQ73: 1 | AR73: 1 | AS73: 1 | AT73: 1 | AU73: 1 | AV73: 1 | AW73: 1 | AX73: 1 | AY73: 1 | AZ73: 1 | BA73: 1 | BB73: 1 | BC73: 1 | BD73: 1 | BE73: 1 | BF73: 1 | BG73: 1 | BH73: 1 | BI73: 1 | BJ73: 1 | BK73: 1 | BL73: 1 | BM73: 1 | BN73: 1 | BO73: 1 | BP73: 1 | BQ73: 1 | BR73: 1 | BS73: 1 | BT73: 1 | BU73: 1 | BV73: 1 | BW73: 1 | BX73: 1 | BY73: 1 | BZ73: 1 | CA73: 1 | CB73: 1 | CC73: 1
A74: ROCKINGHAM | B74: 1 | C74: 1 | D74: 1 | E74: 1 | F74: 1 | G74: 1 | H74: 1 | I74: 1 | J74: 1 | K74: 1 | L74: 1 | M74: 1 | N74: 1 | O74: 1 | P74: 1 | Q74: 1 | R74: 1 | S74: 1 | T74: 1 | U74: 1 | V74: 1 | W74: 1 | X74: 1 | Y74: 1 | Z74: 1 | AA74: 1 | AB74: 1 | AC74: 1 | AD74: 1 | AE74: 1 | AF74: 1 | AG74: 1 | AH74: 1 | AI74: 1 | AJ74: 1 | AK74: 1 | AL74: 1 | AM74: 1 | AN74: 1 | AO74: 1 | AP74: 1 | AQ74: 1 | AR74: 1 | AS74: 1 | AT74: 1 | AU74: 1 | AV74: 1 | AW74: 1 | AX74: 1 | AY74: 1 | AZ74: 1 | BA74: 1 | BB74: 1 | BC74: 1 | BD74: 1 | BE74: 1 | BF74: 1 | BG74: 1 | BH74: 1 | BI74: 1 | BJ74: 1 | BK74: 1 | BL74: 1 | BM74: 1 | BN74: 1 | BO74: 1 | BP74: 1 | BQ74: 1 | BR74: 1 | BS74: 1 | BT74: 1 | BU74: 1 | BV74: 1 | BW74: 1 | BX74: 1 | BY74: 1 | BZ74: 1 | CA74: 1 | CB74: 1 | CC74: 1
A75: SERPENTINE-JARRAHDALE | B75: 1 | C75: 1 | D75: 1 | E75: 1 | F75: 1 | G75: 1 | H75: 1 | I75: 1 | J75: 1 | K75: 1 | L75: 1 | M75: 1 | N75: 1 | O75: 1 | P75: 1 | Q75: 1 | R75: 1 | S75: 1 | T75: 1 | U75: 1 | V75: 1 | W75: 1 | X75: 1 | Y75: 1 | Z75: 1 | AA75: 1 | AB75: 1 | AC75: 1 | AD75: 1 | AE75: 1 | AF75: 1 | AG75: 1 | AH75: 1 | AI75: 1 | AJ75: 1 | AK75: 1 | AL75: 1 | AM75: 1 | AN75: 1 | AO75: 1 | AP75: 1 | AQ75: 1 | AR75: 1 | AS75: 1 | AT75: 1 | AU75: 1 | AV75: 1 | AW75: 1 | AX75: 1 | AY75: 1 | AZ75: 1 | BA75: 1 | BB75: 1 | BC75: 1 | BD75: 1 | BE75: 1 | BF75: 1 | BG75: 1 | BH75: 1 | BI75: 1 | BJ75: 1 | BK75: 1 | BL75: 1 | BM75: 1 | BN75: 1 | BO75: 1 | BP75: 1 | BQ75: 1 | BR75: 1 | BS75: 1 | BT75: 1 | BU75: 1 | BV75: 1 | BW75: 1 | BX75: 1 | BY75: 1 | BZ75: 1 | CA75: 1 | CB75: 1 | CC75: 1
A76: SOUTH PERTH | B76: 1 | C76: 1 | D76: 1 | E76: 1 | F76: 1 | G76: 1 | H76: 1 | I76: 1 | J76: 1 | K76: 1 | L76: 1 | M76: 1 | N76: 1 | O76: 1 | P76: 1 | Q76: 1 | R76: 1 | S76: 1 | T76: 1 | U76: 1 | V76: 1 | W76: 1 | X76: 1 | Y76: 1 | Z76: 1 | AA76: 1 | AB76: 1 | AC76: 1 | AD76: 1 | AE76: 1 | AF76: 1 | AG76: 1 | AH76: 1 | AI76: 1 | AJ76: 1 | AK76: 1 | AL76: 1 | AM76: 1 | AN76: 1 | AO76: 1 | AP76: 1 | AQ76: 1 | AR76: 1 | AS76: 1 | AT76: 1 | AU76: 1 | AV76: 1 | AW76: 1 | AX76: 1 | AY76: 1 | AZ76: 1 | BA76: 1 | BB76: 1 | BC76: 1 | BD76: 1 | BE76: 1 | BF76: 1 | BG76: 1 | BH76: 1 | BI76: 1 | BJ76: 1 | BK76: 1 | BL76: 1 | BM76: 1 | BN76: 1 | BO76: 1 | BP76: 1 | BQ76: 1 | BR76: 1 | BS76: 1 | BT76: 1 | BU76: 1 | BV76: 1 | BW76: 1 | BX76: 1 | BY76: 1 | BZ76: 1 | CA76: 1 | CB76: 1 | CC76: 1
A77: STIRLING | B77: 1 | C77: 1 | D77: 1 | E77: 1 | F77: 1 | G77: 1 | H77: 1 | I77: 1 | J77: 1 | K77: 1 | L77: 1 | M77: 1 | N77: 1 | O77: 1 | P77: 1 | Q77: 1 | R77: 1 | S77: 1 | T77: 1 | U77: 1 | V77: 1 | W77: 1 | X77: 1 | Y77: 1 | Z77: 1 | AA77: 1 | AB77: 1 | AC77: 1 | AD77: 1 | AE77: 1 | AF77: 1 | AG77: 1 | AH77: 1 | AI77: 1 | AJ77: 1 | AK77: 1 | AL77: 1 | AM77: 1 | AN77: 1 | AO77: 1 | AP77: 1 | AQ77: 1 | AR77: 1 | AS77: 1 | AT77: 1 | AU77: 1 | AV77: 1 | AW77: 1 | AX77: 1 | AY77: 1 | AZ77: 1 | BA77: 1 | BB77: 1 | BC77: 1 | BD77: 1 | BE77: 1 | BF77: 1 | BG77: 1 | BH77: 1 | BI77: 1 | BJ77: 1 | BK77: 1 | BL77: 1 | BM77: 1 | BN77: 1 | BO77: 1 | BP77: 1 | BQ77: 1 | BR77: 1 | BS77: 1 | BT77: 1 | BU77: 1 | BV77: 1 | BW77: 1 | BX77: 1 | BY77: 1 | BZ77: 1 | CA77: 1 | CB77: 1 | CC77: 1
A78: SUBIACO | B78: 1 | C78: 1 | D78: 1 | E78: 1 | F78: 1 | G78: 1 | H78: 1 | I78: 1 | J78: 1 | K78: 1 | L78: 1 | M78: 1 | N78: 1 | O78: 1 | P78: 1 | Q78: 1 | R78: 1 | S78: 1 | T78: 1 | U78: 1 | V78: 1 | W78: 1 | X78: 1 | Y78: 1 | Z78: 1 | AA78: 1 | AB78: 1 | AC78: 1 | AD78: 1 | AE78: 1 | AF78: 1 | AG78: 1 | AH78: 1 | AI78: 1 | AJ78: 1 | AK78: 1 | AL78: 1 | AM78: 1 | AN78: 1 | AO78: 1 | AP78: 1 | AQ78: 1 | AR78: 1 | AS78: 1 | AT78: 1 | AU78: 1 | AV78: 1 | AW78: 1 | AX78: 1 | AY78: 1 | AZ78: 1 | BA78: 1 | BB78: 1 | BC78: 1 | BD78: 1 | BE78: 1 | BF78: 1 | BG78: 1 | BH78: 1 | BI78: 1 | BJ78: 1 | BK78: 1 | BL78: 1 | BM78: 1 | BN78: 1 | BO78: 1 | BP78: 1 | BQ78: 1 | BR78: 1 | BS78: 1 | BT78: 1 | BU78: 1 | BV78: 1 | BW78: 1 | BX78: 1 | BY78: 1 | BZ78: 1 | CA78: 1 | CB78: 1 | CC78: 1
A79: SWAN | B79: 1 | C79: 1 | D79: 1 | E79: 1 | F79: 1 | G79: 1 | H79: 1 | I79: 1 | J79: 1 | K79: 1 | L79: 1 | M79: 1 | N79: 1 | O79: 1 | P79: 1 | Q79: 1 | R79: 1 | S79: 1 | T79: 1 | U79: 1 | V79: 1 | W79: 1 | X79: 1 | Y79: 1 | Z79: 1 | AA79: 1 | AB79: 1 | AC79: 1 | AD79: 1 | AE79: 1 | AF79: 1 | AG79: 1 | AH79: 1 | AI79: 1 | AJ79: 1 | AK79: 1 | AL79: 1 | AM79: 1 | AN79: 1 | AO79: 1 | AP79: 1 | AQ79: 1 | AR79: 1 | AS79: 1 | AT79: 1 | AU79: 1 | AV79: 1 | AW79: 1 | AX79: 1 | AY79: 1 | AZ79: 1 | BA79: 1 | BB79: 1 | BC79: 1 | BD79: 1 | BE79: 1 | BF79: 1 | BG79: 1 | BH79: 1 | BI79: 1 | BJ79: 1 | BK79: 1 | BL79: 1 | BM79: 1 | BN79: 1 | BO79: 1 | BP79: 1 | BQ79: 1 | BR79: 1 | BS79: 1 | BT79: 1 | BU79: 1 | BV79: 1 | BW79: 1 | BX79: 1 | BY79: 1 | BZ79: 1 | CA79: 1 | CB79: 1 | CC79: 1
A80: VICTORIA PARK | B80: 1 | C80: 1 | D80: 1 | E80: 1 | F80: 1 | G80: 1 | H80: 1 | I80: 1 | J80: 1 | K80: 1 | L80: 1 | M80: 1 | N80: 1 | O80: 1 | P80: 1 | Q80: 1 | R80: 1 | S80: 1 | T80: 1 | U80: 1 | V80: 1 | W80: 1 | X80: 1 | Y80: 1 | Z80: 1 | AA80: 1 | AB80: 1 | AC80: 1 | AD80: 1 | AE80: 1 | AF80: 1 | AG80: 1 | AH80: 1 | AI80: 1 | AJ80: 1 | AK80: 1 | AL80: 1 | AM80: 1 | AN80: 1 | AO80: 1 | AP80: 1 | AQ80: 1 | AR80: 1 | AS80: 1 | AT80: 1 | AU80: 1 | AV80: 1 | AW80: 1 | AX80: 1 | AY80: 1 | AZ80: 1 | BA80: 1 | BB80: 1 | BC80: 1 | BD80: 1 | BE80: 1 | BF80: 1 | BG80: 1 | BH80: 1 | BI80: 1 | BJ80: 1 | BK80: 1 | BL80: 1 | BM80: 1 | BN80: 1 | BO80: 1 | BP80: 1 | BQ80: 1 | BR80: 1 | BS80: 1 | BT80: 1 | BU80: 1 | BV80: 1 | BW80: 1 | BX80: 1 | BY80: 1 | BZ80: 1 | CA80: 1 | CB80: 1 | CC80: 1
A81: VINCENT | B81: 1 | C81: 1 | D81: 1 | E81: 1 | F81: 1 | G81: 1 | H81: 1 | I81: 1 | J81: 1 | K81: 1 | L81: 1 | M81: 1 | N81: 1 | O81: 1 | P81: 1 | Q81: 1 | R81: 1 | S81: 1 | T81: 1 | U81: 1 | V81: 1 | W81: 1 | X81: 1 | Y81: 1 | Z81: 1 | AA81: 1 | AB81: 1 | AC81: 1 | AD81: 1 | AE81: 1 | AF81: 1 | AG81: 1 | AH81: 1 | AI81: 1 | AJ81: 1 | AK81: 1 | AL81: 1 | AM81: 1 | AN81: 1 | AO81: 1 | AP81: 1 | AQ81: 1 | AR81: 1 | AS81: 1 | AT81: 1 | AU81: 1 | AV81: 1 | AW81: 1 | AX81: 1 | AY81: 1 | AZ81: 1 | BA81: 1 | BB81: 1 | BC81: 1 | BD81: 1 | BE81: 1 | BF81: 1 | BG81: 1 | BH81: 1 | BI81: 1 | BJ81: 1 | BK81: 1 | BL81: 1 | BM81: 1 | BN81: 1 | BO81: 1 | BP81: 1 | BQ81: 1 | BR81: 1 | BS81: 1 | BT81: 1 | BU81: 1 | BV81: 1 | BW81: 1 | BX81: 1 | BY81: 1 | BZ81: 1 | CA81: 1 | CB81: 1 | CC81: 1
A82: WANNEROO | B82: 1 | C82: 1 | D82: 1 | E82: 1 | F82: 1 | G82: 1 | H82: 1 | I82: 1 | J82: 1 | K82: 1 | L82: 1 | M82: 1 | N82: 1 | O82: 1 | P82: 1 | Q82: 1 | R82: 1 | S82: 1 | T82: 1 | U82: 1 | V82: 1 | W82: 1 | X82: 1 | Y82: 1 | Z82: 1 | AA82: 1 | AB82: 1 | AC82: 1 | AD82: 1 | AE82: 1 | AF82: 1 | AG82: 1 | AH82: 1 | AI82: 1 | AJ82: 1 | AK82: 1 | AL82: 1 | AM82: 1 | AN82: 1 | AO82: 1 | AP82: 1 | AQ82: 1 | AR82: 1 | AS82: 1 | AT82: 1 | AU82: 1 | AV82: 1 | AW82: 1 | AX82: 1 | AY82: 1 | AZ82: 1 | BA82: 1 | BB82: 1 | BC82: 1 | BD82: 1 | BE82: 1 | BF82: 1 | BG82: 1 | BH82: 1 | BI82: 1 | BJ82: 1 | BK82: 1 | BL82: 1 | BM82: 1 | BN82: 1 | BO82: 1 | BP82: 1 | BQ82: 1 | BR82: 1 | BS82: 1 | BT82: 1 | BU82: 1 | BV82: 1 | BW82: 1 | BX82: 1 | BY82: 1 | BZ82: 1 | CA82: 1 | CB82: 1 | CC82: 1
A84: Residential Network No new connections
A85: LGA | B85: 2021 | C85: =B85+1 -> 2022 | D85: =C85+1 -> 2023 | E85: 2024 | F85: 2025 | G85: 2026 | H85: 2027 | I85: 2028 | J85: 2029 | K85: 2030 | L85: 2031 | M85: 2032 | N85: 2033 | O85: 2034 | P85: 2035 | Q85: 2036 | R85: 2037 | S85: 2038 | T85: 2039 | U85: 2040 | V85: 2041 | W85: 2042 | X85: 2043 | Y85: 2044 | Z85: 2045 | AA85: 2046 | AB85: 2047 | AC85: 2048 | AD85: 2049 | AE85: 2050 | AF85: 2051 | AG85: 2052 | AH85: 2053 | AI85: 2054 | AJ85: 2055 | AK85: 2056 | AL85: 2057 | AM85: 2058 | AN85: 2059 | AO85: 2060 | AP85: 2061 | AQ85: 2062 | AR85: 2063 | AS85: 2064 | AT85: 2065 | AU85: 2066 | AV85: 2067 | AW85: 2068 | AX85: 2069 | AY85: 2070 | AZ85: 2071 | BA85: 2072 | BB85: 2073 | BC85: 2074 | BD85: 2075 | BE85: 2076 | BF85: 2077 | BG85: 2078 | BH85: 2079 | BI85: 2080 | BJ85: 2081 | BK85: 2082 | BL85: 2083 | BM85: 2084 | BN85: 2085 | BO85: 2086 | BP85: =BO85+1 -> 2087 | BQ85: 2088 | BR85: 2089 | BS85: 2090 | BT85: 2091 | BU85: 2092 | BV85: 2093 | BW85: 2094 | BX85: 2095 | BY85: 2096 | BZ85: 2097 | CA85: 2098 | CB85: 2099 | CC85: 2100
A86: ARMADALE | B86: 0 | C86: 0 | D86: 0 | E86: 0 | F86: 0 | G86: 0 | H86: 0 | I86: 0 | J86: 0 | K86: 0 | L86: 0 | M86: 0 | N86: 0 | O86: 0 | P86: 0 | Q86: 0 | R86: 0 | S86: 0 | T86: 0 | U86: 0 | V86: 0 | W86: 0 | X86: 0 | Y86: 0 | Z86: 0 | AA86: 0 | AB86: 0 | AC86: 0 | AD86: 0 | AE86: 0 | AF86: 0 | AG86: 0 | AH86: 0 | AI86: 0 | AJ86: 0 | AK86: 0 | AL86: 0 | AM86: 0 | AN86: 0 | AO86: 0 | AP86: 0 | AQ86: 0 | AR86: 0 | AS86: 0 | AT86: 0 | AU86: 0 | AV86: 0 | AW86: 0 | AX86: 0 | AY86: 0 | AZ86: 0 | BA86: 0 | BB86: 0 | BC86: 0 | BD86: 0 | BE86: 0 | BF86: 0 | BG86: 0 | BH86: 0 | BI86: 0 | BJ86: 0 | BK86: 0 | BL86: 0 | BM86: 0 | BN86: 0 | BO86: 0 | BP86: 0 | BQ86: 0 | BR86: 0 | BS86: 0 | BT86: 0 | BU86: 0 | BV86: 0 | BW86: 0 | BX86: 0 | BY86: 0 | BZ86: 0 | CA86: 0 | CB86: 0 | CC86: 0
A87: BASSENDEAN | B87: 0 | C87: 0 | D87: 0 | E87: 0 | F87: 0 | G87: 0 | H87: 0 | I87: 0 | J87: 0 | K87: 0 | L87: 0 | M87: 0 | N87: 0 | O87: 0 | P87: 0 | Q87: 0 | R87: 0 | S87: 0 | T87: 0 | U87: 0 | V87: 0 | W87: 0 | X87: 0 | Y87: 0 | Z87: 0 | AA87: 0 | AB87: 0 | AC87: 0 | AD87: 0 | AE87: 0 | AF87: 0 | AG87: 0 | AH87: 0 | AI87: 0 | AJ87: 0 | AK87: 0 | AL87: 0 | AM87: 0 | AN87: 0 | AO87: 0 | AP87: 0 | AQ87: 0 | AR87: 0 | AS87: 0 | AT87: 0 | AU87: 0 | AV87: 0 | AW87: 0 | AX87: 0 | AY87: 0 | AZ87: 0 | BA87: 0 | BB87: 0 | BC87: 0 | BD87: 0 | BE87: 0 | BF87: 0 | BG87: 0 | BH87: 0 | BI87: 0 | BJ87: 0 | BK87: 0 | BL87: 0 | BM87: 0 | BN87: 0 | BO87: 0 | BP87: 0 | BQ87: 0 | BR87: 0 | BS87: 0 | BT87: 0 | BU87: 0 | BV87: 0 | BW87: 0 | BX87: 0 | BY87: 0 | BZ87: 0 | CA87: 0 | CB87: 0 | CC87: 0
A88: BAYSWATER | B88: 0 | C88: 0 | D88: 0 | E88: 0 | F88: 0 | G88: 0 | H88: 0 | I88: 0 | J88: 0 | K88: 0 | L88: 0 | M88: 0 | N88: 0 | O88: 0 | P88: 0 | Q88: 0 | R88: 0 | S88: 0 | T88: 0 | U88: 0 | V88: 0 | W88: 0 | X88: 0 | Y88: 0 | Z88: 0 | AA88: 0 | AB88: 0 | AC88: 0 | AD88: 0 | AE88: 0 | AF88: 0 | AG88: 0 | AH88: 0 | AI88: 0 | AJ88: 0 | AK88: 0 | AL88: 0 | AM88: 0 | AN88: 0 | AO88: 0 | AP88: 0 | AQ88: 0 | AR88: 0 | AS88: 0 | AT88: 0 | AU88: 0 | AV88: 0 | AW88: 0 | AX88: 0 | AY88: 0 | AZ88: 0 | BA88: 0 | BB88: 0 | BC88: 0 | BD88: 0 | BE88: 0 | BF88: 0 | BG88: 0 | BH88: 0 | BI88: 0 | BJ88: 0 | BK88: 0 | BL88: 0 | BM88: 0 | BN88: 0 | BO88: 0 | BP88: 0 | BQ88: 0 | BR88: 0 | BS88: 0 | BT88: 0 | BU88: 0 | BV88: 0 | BW88: 0 | BX88: 0 | BY88: 0 | BZ88: 0 | CA88: 0 | CB88: 0 | CC88: 0
A89: BELMONT | B89: 0 | C89: 0 | D89: 0 | E89: 0 | F89: 0 | G89: 0 | H89: 0 | I89: 0 | J89: 0 | K89: 0 | L89: 0 | M89: 0 | N89: 0 | O89: 0 | P89: 0 | Q89: 0 | R89: 0 | S89: 0 | T89: 0 | U89: 0 | V89: 0 | W89: 0 | X89: 0 | Y89: 0 | Z89: 0 | AA89: 0 | AB89: 0 | AC89: 0 | AD89: 0 | AE89: 0 | AF89: 0 | AG89: 0 | AH89: 0 | AI89: 0 | AJ89: 0 | AK89: 0 | AL89: 0 | AM89: 0 | AN89: 0 | AO89: 0 | AP89: 0 | AQ89: 0 | AR89: 0 | AS89: 0 | AT89: 0 | AU89: 0 | AV89: 0 | AW89: 0 | AX89: 0 | AY89: 0 | AZ89: 0 | BA89: 0 | BB89: 0 | BC89: 0 | BD89: 0 | BE89: 0 | BF89: 0 | BG89: 0 | BH89: 0 | BI89: 0 | BJ89: 0 | BK89: 0 | BL89: 0 | BM89: 0 | BN89: 0 | BO89: 0 | BP89: 0 | BQ89: 0 | BR89: 0 | BS89: 0 | BT89: 0 | BU89: 0 | BV89: 0 | BW89: 0 | BX89: 0 | BY89: 0 | BZ89: 0 | CA89: 0 | CB89: 0 | CC89: 0
A90: BUNBURY | B90: 0 | C90: 0 | D90: 0 | E90: 0 | F90: 0 | G90: 0 | H90: 0 | I90: 0 | J90: 0 | K90: 0 | L90: 0 | M90: 0 | N90: 0 | O90: 0 | P90: 0 | Q90: 0 | R90: 0 | S90: 0 | T90: 0 | U90: 0 | V90: 0 | W90: 0 | X90: 0 | Y90: 0 | Z90: 0 | AA90: 0 | AB90: 0 | AC90: 0 | AD90: 0 | AE90: 0 | AF90: 0 | AG90: 0 | AH90: 0 | AI90: 0 | AJ90: 0 | AK90: 0 | AL90: 0 | AM90: 0 | AN90: 0 | AO90: 0 | AP90: 0 | AQ90: 0 | AR90: 0 | AS90: 0 | AT90: 0 | AU90: 0 | AV90: 0 | AW90: 0 | AX90: 0 | AY90: 0 | AZ90: 0 | BA90: 0 | BB90: 0 | BC90: 0 | BD90: 0 | BE90: 0 | BF90: 0 | BG90: 0 | BH90: 0 | BI90: 0 | BJ90: 0 | BK90: 0 | BL90: 0 | BM90: 0 | BN90: 0 | BO90: 0 | BP90: 0 | BQ90: 0 | BR90: 0 | BS90: 0 | BT90: 0 | BU90: 0 | BV90: 0 | BW90: 0 | BX90: 0 | BY90: 0 | BZ90: 0 | CA90: 0 | CB90: 0 | CC90: 0
A91: BUSSELTON | B91: 0 | C91: 0 | D91: 0 | E91: 0 | F91: 0 | G91: 0 | H91: 0 | I91: 0 | J91: 0 | K91: 0 | L91: 0 | M91: 0 | N91: 0 | O91: 0 | P91: 0 | Q91: 0 | R91: 0 | S91: 0 | T91: 0 | U91: 0 | V91: 0 | W91: 0 | X91: 0 | Y91: 0 | Z91: 0 | AA91: 0 | AB91: 0 | AC91: 0 | AD91: 0 | AE91: 0 | AF91: 0 | AG91: 0 | AH91: 0 | AI91: 0 | AJ91: 0 | AK91: 0 | AL91: 0 | AM91: 0 | AN91: 0 | AO91: 0 | AP91: 0 | AQ91: 0 | AR91: 0 | AS91: 0 | AT91: 0 | AU91: 0 | AV91: 0 | AW91: 0 | AX91: 0 | AY91: 0 | AZ91: 0 | BA91: 0 | BB91: 0 | BC91: 0 | BD91: 0 | BE91: 0 | BF91: 0 | BG91: 0 | BH91: 0 | BI91: 0 | BJ91: 0 | BK91: 0 | BL91: 0 | BM91: 0 | BN91: 0 | BO91: 0 | BP91: 0 | BQ91: 0 | BR91: 0 | BS91: 0 | BT91: 0 | BU91: 0 | BV91: 0 | BW91: 0 | BX91: 0 | BY91: 0 | BZ91: 0 | CA91: 0 | CB91: 0 | CC91: 0
A92: CAMBRIDGE | B92: 0 | C92: 0 | D92: 0 | E92: 0 | F92: 0 | G92: 0 | H92: 0 | I92: 0 | J92: 0 | K92: 0 | L92: 0 | M92: 0 | N92: 0 | O92: 0 | P92: 0 | Q92: 0 | R92: 0 | S92: 0 | T92: 0 | U92: 0 | V92: 0 | W92: 0 | X92: 0 | Y92: 0 | Z92: 0 | AA92: 0 | AB92: 0 | AC92: 0 | AD92: 0 | AE92: 0 | AF92: 0 | AG92: 0 | AH92: 0 | AI92: 0 | AJ92: 0 | AK92: 0 | AL92: 0 | AM92: 0 | AN92: 0 | AO92: 0 | AP92: 0 | AQ92: 0 | AR92: 0 | AS92: 0 | AT92: 0 | AU92: 0 | AV92: 0 | AW92: 0 | AX92: 0 | AY92: 0 | AZ92: 0 | BA92: 0 | BB92: 0 | BC92: 0 | BD92: 0 | BE92: 0 | BF92: 0 | BG92: 0 | BH92: 0 | BI92: 0 | BJ92: 0 | BK92: 0 | BL92: 0 | BM92: 0 | BN92: 0 | BO92: 0 | BP92: 0 | BQ92: 0 | BR92: 0 | BS92: 0 | BT92: 0 | BU92: 0 | BV92: 0 | BW92: 0 | BX92: 0 | BY92: 0 | BZ92: 0 | CA92: 0 | CB92: 0 | CC92: 0
A93: CANNING | B93: 0 | C93: 0 | D93: 0 | E93: 0 | F93: 0 | G93: 0 | H93: 0 | I93: 0 | J93: 0 | K93: 0 | L93: 0 | M93: 0 | N93: 0 | O93: 0 | P93: 0 | Q93: 0 | R93: 0 | S93: 0 | T93: 0 | U93: 0 | V93: 0 | W93: 0 | X93: 0 | Y93: 0 | Z93: 0 | AA93: 0 | AB93: 0 | AC93: 0 | AD93: 0 | AE93: 0 | AF93: 0 | AG93: 0 | AH93: 0 | AI93: 0 | AJ93: 0 | AK93: 0 | AL93: 0 | AM93: 0 | AN93: 0 | AO93: 0 | AP93: 0 | AQ93: 0 | AR93: 0 | AS93: 0 | AT93: 0 | AU93: 0 | AV93: 0 | AW93: 0 | AX93: 0 | AY93: 0 | AZ93: 0 | BA93: 0 | BB93: 0 | BC93: 0 | BD93: 0 | BE93: 0 | BF93: 0 | BG93: 0 | BH93: 0 | BI93: 0 | BJ93: 0 | BK93: 0 | BL93: 0 | BM93: 0 | BN93: 0 | BO93: 0 | BP93: 0 | BQ93: 0 | BR93: 0 | BS93: 0 | BT93: 0 | BU93: 0 | BV93: 0 | BW93: 0 | BX93: 0 | BY93: 0 | BZ93: 0 | CA93: 0 | CB93: 0 | CC93: 0
A94: CAPEL | B94: 0 | C94: 0 | D94: 0 | E94: 0 | F94: 0 | G94: 0 | H94: 0 | I94: 0 | J94: 0 | K94: 0 | L94: 0 | M94: 0 | N94: 0 | O94: 0 | P94: 0 | Q94: 0 | R94: 0 | S94: 0 | T94: 0 | U94: 0 | V94: 0 | W94: 0 | X94: 0 | Y94: 0 | Z94: 0 | AA94: 0 | AB94: 0 | AC94: 0 | AD94: 0 | AE94: 0 | AF94: 0 | AG94: 0 | AH94: 0 | AI94: 0 | AJ94: 0 | AK94: 0 | AL94: 0 | AM94: 0 | AN94: 0 | AO94: 0 | AP94: 0 | AQ94: 0 | AR94: 0 | AS94: 0 | AT94: 0 | AU94: 0 | AV94: 0 | AW94: 0 | AX94: 0 | AY94: 0 | AZ94: 0 | BA94: 0 | BB94: 0 | BC94: 0 | BD94: 0 | BE94: 0 | BF94: 0 | BG94: 0 | BH94: 0 | BI94: 0 | BJ94: 0 | BK94: 0 | BL94: 0 | BM94: 0 | BN94: 0 | BO94: 0 | BP94: 0 | BQ94: 0 | BR94: 0 | BS94: 0 | BT94: 0 | BU94: 0 | BV94: 0 | BW94: 0 | BX94: 0 | BY94: 0 | BZ94: 0 | CA94: 0 | CB94: 0 | CC94: 0
A95: CHITTERING | B95: 0 | C95: 0 | D95: 0 | E95: 0 | F95: 0 | G95: 0 | H95: 0 | I95: 0 | J95: 0 | K95: 0 | L95: 0 | M95: 0 | N95: 0 | O95: 0 | P95: 0 | Q95: 0 | R95: 0 | S95: 0 | T95: 0 | U95: 0 | V95: 0 | W95: 0 | X95: 0 | Y95: 0 | Z95: 0 | AA95: 0 | AB95: 0 | AC95: 0 | AD95: 0 | AE95: 0 | AF95: 0 | AG95: 0 | AH95: 0 | AI95: 0 | AJ95: 0 | AK95: 0 | AL95: 0 | AM95: 0 | AN95: 0 | AO95: 0 | AP95: 0 | AQ95: 0 | AR95: 0 | AS95: 0 | AT95: 0 | AU95: 0 | AV95: 0 | AW95: 0 | AX95: 0 | AY95: 0 | AZ95: 0 | BA95: 0 | BB95: 0 | BC95: 0 | BD95: 0 | BE95: 0 | BF95: 0 | BG95: 0 | BH95: 0 | BI95: 0 | BJ95: 0 | BK95: 0 | BL95: 0 | BM95: 0 | BN95: 0 | BO95: 0 | BP95: 0 | BQ95: 0 | BR95: 0 | BS95: 0 | BT95: 0 | BU95: 0 | BV95: 0 | BW95: 0 | BX95: 0 | BY95: 0 | BZ95: 0 | CA95: 0 | CB95: 0 | CC95: 0
A96: COCKBURN | B96: 0 | C96: 0 | D96: 0 | E96: 0 | F96: 0 | G96: 0 | H96: 0 | I96: 0 | J96: 0 | K96: 0 | L96: 0 | M96: 0 | N96: 0 | O96: 0 | P96: 0 | Q96: 0 | R96: 0 | S96: 0 | T96: 0 | U96: 0 | V96: 0 | W96: 0 | X96: 0 | Y96: 0 | Z96: 0 | AA96: 0 | AB96: 0 | AC96: 0 | AD96: 0 | AE96: 0 | AF96: 0 | AG96: 0 | AH96: 0 | AI96: 0 | AJ96: 0 | AK96: 0 | AL96: 0 | AM96: 0 | AN96: 0 | AO96: 0 | AP96: 0 | AQ96: 0 | AR96: 0 | AS96: 0 | AT96: 0 | AU96: 0 | AV96: 0 | AW96: 0 | AX96: 0 | AY96: 0 | AZ96: 0 | BA96: 0 | BB96: 0 | BC96: 0 | BD96: 0 | BE96: 0 | BF96: 0 | BG96: 0 | BH96: 0 | BI96: 0 | BJ96: 0 | BK96: 0 | BL96: 0 | BM96: 0 | BN96: 0 | BO96: 0 | BP96: 0 | BQ96: 0 | BR96: 0 | BS96: 0 | BT96: 0 | BU96: 0 | BV96: 0 | BW96: 0 | BX96: 0 | BY96: 0 | BZ96: 0 | CA96: 0 | CB96: 0 | CC96: 0
A97: COTTESLOE | B97: 0 | C97: 0 | D97: 0 | E97: 0 | F97: 0 | G97: 0 | H97: 0 | I97: 0 | J97: 0 | K97: 0 | L97: 0 | M97: 0 | N97: 0 | O97: 0 | P97: 0 | Q97: 0 | R97: 0 | S97: 0 | T97: 0 | U97: 0 | V97: 0 | W97: 0 | X97: 0 | Y97: 0 | Z97: 0 | AA97: 0 | AB97: 0 | AC97: 0 | AD97: 0 | AE97: 0 | AF97: 0 | AG97: 0 | AH97: 0 | AI97: 0 | AJ97: 0 | AK97: 0 | AL97: 0 | AM97: 0 | AN97: 0 | AO97: 0 | AP97: 0 | AQ97: 0 | AR97: 0 | AS97: 0 | AT97: 0 | AU97: 0 | AV97: 0 | AW97: 0 | AX97: 0 | AY97: 0 | AZ97: 0 | BA97: 0 | BB97: 0 | BC97: 0 | BD97: 0 | BE97: 0 | BF97: 0 | BG97: 0 | BH97: 0 | BI97: 0 | BJ97: 0 | BK97: 0 | BL97: 0 | BM97: 0 | BN97: 0 | BO97: 0 | BP97: 0 | BQ97: 0 | BR97: 0 | BS97: 0 | BT97: 0 | BU97: 0 | BV97: 0 | BW97: 0 | BX97: 0 | BY97: 0 | BZ97: 0 | CA97: 0 | CB97: 0 | CC97: 0
A98: DARDANUP | B98: 0 | C98: 0 | D98: 0 | E98: 0 | F98: 0 | G98: 0 | H98: 0 | I98: 0 | J98: 0 | K98: 0 | L98: 0 | M98: 0 | N98: 0 | O98: 0 | P98: 0 | Q98: 0 | R98: 0 | S98: 0 | T98: 0 | U98: 0 | V98: 0 | W98: 0 | X98: 0 | Y98: 0 | Z98: 0 | AA98: 0 | AB98: 0 | AC98: 0 | AD98: 0 | AE98: 0 | AF98: 0 | AG98: 0 | AH98: 0 | AI98: 0 | AJ98: 0 | AK98: 0 | AL98: 0 | AM98: 0 | AN98: 0 | AO98: 0 | AP98: 0 | AQ98: 0 | AR98: 0 | AS98: 0 | AT98: 0 | AU98: 0 | AV98: 0 | AW98: 0 | AX98: 0 | AY98: 0 | AZ98: 0 | BA98: 0 | BB98: 0 | BC98: 0 | BD98: 0 | BE98: 0 | BF98: 0 | BG98: 0 | BH98: 0 | BI98: 0 | BJ98: 0 | BK98: 0 | BL98: 0 | BM98: 0 | BN98: 0 | BO98: 0 | BP98: 0 | BQ98: 0 | BR98: 0 | BS98: 0 | BT98: 0 | BU98: 0 | BV98: 0 | BW98: 0 | BX98: 0 | BY98: 0 | BZ98: 0 | CA98: 0 | CB98: 0 | CC98: 0
A99: EAST FREMANTLE | B99: 0 | C99: 0 | D99: 0 | E99: 0 | F99: 0 | G99: 0 | H99: 0 | I99: 0 | J99: 0 | K99: 0 | L99: 0 | M99: 0 | N99: 0 | O99: 0 | P99: 0 | Q99: 0 | R99: 0 | S99: 0 | T99: 0 | U99: 0 | V99: 0 | W99: 0 | X99: 0 | Y99: 0 | Z99: 0 | AA99: 0 | AB99: 0 | AC99: 0 | AD99: 0 | AE99: 0 | AF99: 0 | AG99: 0 | AH99: 0 | AI99: 0 | AJ99: 0 | AK99: 0 | AL99: 0 | AM99: 0 | AN99: 0 | AO99: 0 | AP99: 0 | AQ99: 0 | AR99: 0 | AS99: 0 | AT99: 0 | AU99: 0 | AV99: 0 | AW99: 0 | AX99: 0 | AY99: 0 | AZ99: 0 | BA99: 0 | BB99: 0 | BC99: 0 | BD99: 0 | BE99: 0 | BF99: 0 | BG99: 0 | BH99: 0 | BI99: 0 | BJ99: 0 | BK99: 0 | BL99: 0 | BM99: 0 | BN99: 0 | BO99: 0 | BP99: 0 | BQ99: 0 | BR99: 0 | BS99: 0 | BT99: 0 | BU99: 0 | BV99: 0 | BW99: 0 | BX99: 0 | BY99: 0 | BZ99: 0 | CA99: 0 | CB99: 0 | CC99: 0
A100: FREMANTLE | B100: 0 | C100: 0 | D100: 0 | E100: 0 | F100: 0 | G100: 0 | H100: 0 | I100: 0 | J100: 0 | K100: 0 | L100: 0 | M100: 0 | N100: 0 | O100: 0 | P100: 0 | Q100: 0 | R100: 0 | S100: 0 | T100: 0 | U100: 0 | V100: 0 | W100: 0 | X100: 0 | Y100: 0 | Z100: 0 | AA100: 0 | AB100: 0 | AC100: 0 | AD100: 0 | AE100: 0 | AF100: 0 | AG100: 0 | AH100: 0 | AI100: 0 | AJ100: 0 | AK100: 0 | AL100: 0 | AM100: 0 | AN100: 0 | AO100: 0 | AP100: 0 | AQ100: 0 | AR100: 0 | AS100: 0 | AT100: 0 | AU100: 0 | AV100: 0 | AW100: 0 | AX100: 0 | AY100: 0 | AZ100: 0 | BA100: 0 | BB100: 0 | BC100: 0 | BD100: 0 | BE100: 0 | BF100: 0 | BG100: 0 | BH100: 0 | BI100: 0 | BJ100: 0 | BK100: 0 | BL100: 0 | BM100: 0 | BN100: 0 | BO100: 0 | BP100: 0 | BQ100: 0 | BR100: 0 | BS100: 0 | BT100: 0 | BU100: 0 | BV100: 0 | BW100: 0 | BX100: 0 | BY100: 0 | BZ100: 0 | CA100: 0 | CB100: 0 | CC100: 0
A101: GOSNELLS | B101: 0 | C101: 0 | D101: 0 | E101: 0 | F101: 0 | G101: 0 | H101: 0 | I101: 0 | J101: 0 | K101: 0 | L101: 0 | M101: 0 | N101: 0 | O101: 0 | P101: 0 | Q101: 0 | R101: 0 | S101: 0 | T101: 0 | U101: 0 | V101: 0 | W101: 0 | X101: 0 | Y101: 0 | Z101: 0 | AA101: 0 | AB101: 0 | AC101: 0 | AD101: 0 | AE101: 0 | AF101: 0 | AG101: 0 | AH101: 0 | AI101: 0 | AJ101: 0 | AK101: 0 | AL101: 0 | AM101: 0 | AN101: 0 | AO101: 0 | AP101: 0 | AQ101: 0 | AR101: 0 | AS101: 0 | AT101: 0 | AU101: 0 | AV101: 0 | AW101: 0 | AX101: 0 | AY101: 0 | AZ101: 0 | BA101: 0 | BB101: 0 | BC101: 0 | BD101: 0 | BE101: 0 | BF101: 0 | BG101: 0 | BH101: 0 | BI101: 0 | BJ101: 0 | BK101: 0 | BL101: 0 | BM101: 0 | BN101: 0 | BO101: 0 | BP101: 0 | BQ101: 0 | BR101: 0 | BS101: 0 | BT101: 0 | BU101: 0 | BV101: 0 | BW101: 0 | BX101: 0 | BY101: 0 | BZ101: 0 | CA101: 0 | CB101: 0 | CC101: 0
A102: GREATER GERALDTON | B102: 0 | C102: 0 | D102: 0 | E102: 0 | F102: 0 | G102: 0 | H102: 0 | I102: 0 | J102: 0 | K102: 0 | L102: 0 | M102: 0 | N102: 0 | O102: 0 | P102: 0 | Q102: 0 | R102: 0 | S102: 0 | T102: 0 | U102: 0 | V102: 0 | W102: 0 | X102: 0 | Y102: 0 | Z102: 0 | AA102: 0 | AB102: 0 | AC102: 0 | AD102: 0 | AE102: 0 | AF102: 0 | AG102: 0 | AH102: 0 | AI102: 0 | AJ102: 0 | AK102: 0 | AL102: 0 | AM102: 0 | AN102: 0 | AO102: 0 | AP102: 0 | AQ102: 0 | AR102: 0 | AS102: 0 | AT102: 0 | AU102: 0 | AV102: 0 | AW102: 0 | AX102: 0 | AY102: 0 | AZ102: 0 | BA102: 0 | BB102: 0 | BC102: 0 | BD102: 0 | BE102: 0 | BF102: 0 | BG102: 0 | BH102: 0 | BI102: 0 | BJ102: 0 | BK102: 0 | BL102: 0 | BM102: 0 | BN102: 0 | BO102: 0 | BP102: 0 | BQ102: 0 | BR102: 0 | BS102: 0 | BT102: 0 | BU102: 0 | BV102: 0 | BW102: 0 | BX102: 0 | BY102: 0 | BZ102: 0 | CA102: 0 | CB102: 0 | CC102: 0
A103: HARVEY | B103: 0 | C103: 0 | D103: 0 | E103: 0 | F103: 0 | G103: 0 | H103: 0 | I103: 0 | J103: 0 | K103: 0 | L103: 0 | M103: 0 | N103: 0 | O103: 0 | P103: 0 | Q103: 0 | R103: 0 | S103: 0 | T103: 0 | U103: 0 | V103: 0 | W103: 0 | X103: 0 | Y103: 0 | Z103: 0 | AA103: 0 | AB103: 0 | AC103: 0 | AD103: 0 | AE103: 0 | AF103: 0 | AG103: 0 | AH103: 0 | AI103: 0 | AJ103: 0 | AK103: 0 | AL103: 0 | AM103: 0 | AN103: 0 | AO103: 0 | AP103: 0 | AQ103: 0 | AR103: 0 | AS103: 0 | AT103: 0 | AU103: 0 | AV103: 0 | AW103: 0 | AX103: 0 | AY103: 0 | AZ103: 0 | BA103: 0 | BB103: 0 | BC103: 0 | BD103: 0 | BE103: 0 | BF103: 0 | BG103: 0 | BH103: 0 | BI103: 0 | BJ103: 0 | BK103: 0 | BL103: 0 | BM103: 0 | BN103: 0 | BO103: 0 | BP103: 0 | BQ103: 0 | BR103: 0 | BS103: 0 | BT103: 0 | BU103: 0 | BV103: 0 | BW103: 0 | BX103: 0 | BY103: 0 | BZ103: 0 | CA103: 0 | CB103: 0 | CC103: 0
A104: JOONDALUP | B104: 0 | C104: 0 | D104: 0 | E104: 0 | F104: 0 | G104: 0 | H104: 0 | I104: 0 | J104: 0 | K104: 0 | L104: 0 | M104: 0 | N104: 0 | O104: 0 | P104: 0 | Q104: 0 | R104: 0 | S104: 0 | T104: 0 | U104: 0 | V104: 0 | W104: 0 | X104: 0 | Y104: 0 | Z104: 0 | AA104: 0 | AB104: 0 | AC104: 0 | AD104: 0 | AE104: 0 | AF104: 0 | AG104: 0 | AH104: 0 | AI104: 0 | AJ104: 0 | AK104: 0 | AL104: 0 | AM104: 0 | AN104: 0 | AO104: 0 | AP104: 0 | AQ104: 0 | AR104: 0 | AS104: 0 | AT104: 0 | AU104: 0 | AV104: 0 | AW104: 0 | AX104: 0 | AY104: 0 | AZ104: 0 | BA104: 0 | BB104: 0 | BC104: 0 | BD104: 0 | BE104: 0 | BF104: 0 | BG104: 0 | BH104: 0 | BI104: 0 | BJ104: 0 | BK104: 0 | BL104: 0 | BM104: 0 | BN104: 0 | BO104: 0 | BP104: 0 | BQ104: 0 | BR104: 0 | BS104: 0 | BT104: 0 | BU104: 0 | BV104: 0 | BW104: 0 | BX104: 0 | BY104: 0 | BZ104: 0 | CA104: 0 | CB104: 0 | CC104: 0
A105: KALAMUNDA | B105: 0 | C105: 0 | D105: 0 | E105: 0 | F105: 0 | G105: 0 | H105: 0 | I105: 0 | J105: 0 | K105: 0 | L105: 0 | M105: 0 | N105: 0 | O105: 0 | P105: 0 | Q105: 0 | R105: 0 | S105: 0 | T105: 0 | U105: 0 | V105: 0 | W105: 0 | X105: 0 | Y105: 0 | Z105: 0 | AA105: 0 | AB105: 0 | AC105: 0 | AD105: 0 | AE105: 0 | AF105: 0 | AG105: 0 | AH105: 0 | AI105: 0 | AJ105: 0 | AK105: 0 | AL105: 0 | AM105: 0 | AN105: 0 | AO105: 0 | AP105: 0 | AQ105: 0 | AR105: 0 | AS105: 0 | AT105: 0 | AU105: 0 | AV105: 0 | AW105: 0 | AX105: 0 | AY105: 0 | AZ105: 0 | BA105: 0 | BB105: 0 | BC105: 0 | BD105: 0 | BE105: 0 | BF105: 0 | BG105: 0 | BH105: 0 | BI105: 0 | BJ105: 0 | BK105: 0 | BL105: 0 | BM105: 0 | BN105: 0 | BO105: 0 | BP105: 0 | BQ105: 0 | BR105: 0 | BS105: 0 | BT105: 0 | BU105: 0 | BV105: 0 | BW105: 0 | BX105: 0 | BY105: 0 | BZ105: 0 | CA105: 0 | CB105: 0 | CC105: 0
A106: KWINANA | B106: 0 | C106: 0 | D106: 0 | E106: 0 | F106: 0 | G106: 0 | H106: 0 | I106: 0 | J106: 0 | K106: 0 | L106: 0 | M106: 0 | N106: 0 | O106: 0 | P106: 0 | Q106: 0 | R106: 0 | S106: 0 | T106: 0 | U106: 0 | V106: 0 | W106: 0 | X106: 0 | Y106: 0 | Z106: 0 | AA106: 0 | AB106: 0 | AC106: 0 | AD106: 0 | AE106: 0 | AF106: 0 | AG106: 0 | AH106: 0 | AI106: 0 | AJ106: 0 | AK106: 0 | AL106: 0 | AM106: 0 | AN106: 0 | AO106: 0 | AP106: 0 | AQ106: 0 | AR106: 0 | AS106: 0 | AT106: 0 | AU106: 0 | AV106: 0 | AW106: 0 | AX106: 0 | AY106: 0 | AZ106: 0 | BA106: 0 | BB106: 0 | BC106: 0 | BD106: 0 | BE106: 0 | BF106: 0 | BG106: 0 | BH106: 0 | BI106: 0 | BJ106: 0 | BK106: 0 | BL106: 0 | BM106: 0 | BN106: 0 | BO106: 0 | BP106: 0 | BQ106: 0 | BR106: 0 | BS106: 0 | BT106: 0 | BU106: 0 | BV106: 0 | BW106: 0 | BX106: 0 | BY106: 0 | BZ106: 0 | CA106: 0 | CB106: 0 | CC106: 0
A107: MANDURAH | B107: 0 | C107: 0 | D107: 0 | E107: 0 | F107: 0 | G107: 0 | H107: 0 | I107: 0 | J107: 0 | K107: 0 | L107: 0 | M107: 0 | N107: 0 | O107: 0 | P107: 0 | Q107: 0 | R107: 0 | S107: 0 | T107: 0 | U107: 0 | V107: 0 | W107: 0 | X107: 0 | Y107: 0 | Z107: 0 | AA107: 0 | AB107: 0 | AC107: 0 | AD107: 0 | AE107: 0 | AF107: 0 | AG107: 0 | AH107: 0 | AI107: 0 | AJ107: 0 | AK107: 0 | AL107: 0 | AM107: 0 | AN107: 0 | AO107: 0 | AP107: 0 | AQ107: 0 | AR107: 0 | AS107: 0 | AT107: 0 | AU107: 0 | AV107: 0 | AW107: 0 | AX107: 0 | AY107: 0 | AZ107: 0 | BA107: 0 | BB107: 0 | BC107: 0 | BD107: 0 | BE107: 0 | BF107: 0 | BG107: 0 | BH107: 0 | BI107: 0 | BJ107: 0 | BK107: 0 | BL107: 0 | BM107: 0 | BN107: 0 | BO107: 0 | BP107: 0 | BQ107: 0 | BR107: 0 | BS107: 0 | BT107: 0 | BU107: 0 | BV107: 0 | BW107: 0 | BX107: 0 | BY107: 0 | BZ107: 0 | CA107: 0 | CB107: 0 | CC107: 0
A108: MELVILLE | B108: 0 | C108: 0 | D108: 0 | E108: 0 | F108: 0 | G108: 0 | H108: 0 | I108: 0 | J108: 0 | K108: 0 | L108: 0 | M108: 0 | N108: 0 | O108: 0 | P108: 0 | Q108: 0 | R108: 0 | S108: 0 | T108: 0 | U108: 0 | V108: 0 | W108: 0 | X108: 0 | Y108: 0 | Z108: 0 | AA108: 0 | AB108: 0 | AC108: 0 | AD108: 0 | AE108: 0 | AF108: 0 | AG108: 0 | AH108: 0 | AI108: 0 | AJ108: 0 | AK108: 0 | AL108: 0 | AM108: 0 | AN108: 0 | AO108: 0 | AP108: 0 | AQ108: 0 | AR108: 0 | AS108: 0 | AT108: 0 | AU108: 0 | AV108: 0 | AW108: 0 | AX108: 0 | AY108: 0 | AZ108: 0 | BA108: 0 | BB108: 0 | BC108: 0 | BD108: 0 | BE108: 0 | BF108: 0 | BG108: 0 | BH108: 0 | BI108: 0 | BJ108: 0 | BK108: 0 | BL108: 0 | BM108: 0 | BN108: 0 | BO108: 0 | BP108: 0 | BQ108: 0 | BR108: 0 | BS108: 0 | BT108: 0 | BU108: 0 | BV108: 0 | BW108: 0 | BX108: 0 | BY108: 0 | BZ108: 0 | CA108: 0 | CB108: 0 | CC108: 0
A109: MOSMAN PARK | B109: 0 | C109: 0 | D109: 0 | E109: 0 | F109: 0 | G109: 0 | H109: 0 | I109: 0 | J109: 0 | K109: 0 | L109: 0 | M109: 0 | N109: 0 | O109: 0 | P109: 0 | Q109: 0 | R109: 0 | S109: 0 | T109: 0 | U109: 0 | V109: 0 | W109: 0 | X109: 0 | Y109: 0 | Z109: 0 | AA109: 0 | AB109: 0 | AC109: 0 | AD109: 0 | AE109: 0 | AF109: 0 | AG109: 0 | AH109: 0 | AI109: 0 | AJ109: 0 | AK109: 0 | AL109: 0 | AM109: 0 | AN109: 0 | AO109: 0 | AP109: 0 | AQ109: 0 | AR109: 0 | AS109: 0 | AT109: 0 | AU109: 0 | AV109: 0 | AW109: 0 | AX109: 0 | AY109: 0 | AZ109: 0 | BA109: 0 | BB109: 0 | BC109: 0 | BD109: 0 | BE109: 0 | BF109: 0 | BG109: 0 | BH109: 0 | BI109: 0 | BJ109: 0 | BK109: 0 | BL109: 0 | BM109: 0 | BN109: 0 | BO109: 0 | BP109: 0 | BQ109: 0 | BR109: 0 | BS109: 0 | BT109: 0 | BU109: 0 | BV109: 0 | BW109: 0 | BX109: 0 | BY109: 0 | BZ109: 0 | CA109: 0 | CB109: 0 | CC109: 0
A110: MUNDARING | B110: 0 | C110: 0 | D110: 0 | E110: 0 | F110: 0 | G110: 0 | H110: 0 | I110: 0 | J110: 0 | K110: 0 | L110: 0 | M110: 0 | N110: 0 | O110: 0 | P110: 0 | Q110: 0 | R110: 0 | S110: 0 | T110: 0 | U110: 0 | V110: 0 | W110: 0 | X110: 0 | Y110: 0 | Z110: 0 | AA110: 0 | AB110: 0 | AC110: 0 | AD110: 0 | AE110: 0 | AF110: 0 | AG110: 0 | AH110: 0 | AI110: 0 | AJ110: 0 | AK110: 0 | AL110: 0 | AM110: 0 | AN110: 0 | AO110: 0 | AP110: 0 | AQ110: 0 | AR110: 0 | AS110: 0 | AT110: 0 | AU110: 0 | AV110: 0 | AW110: 0 | AX110: 0 | AY110: 0 | AZ110: 0 | BA110: 0 | BB110: 0 | BC110: 0 | BD110: 0 | BE110: 0 | BF110: 0 | BG110: 0 | BH110: 0 | BI110: 0 | BJ110: 0 | BK110: 0 | BL110: 0 | BM110: 0 | BN110: 0 | BO110: 0 | BP110: 0 | BQ110: 0 | BR110: 0 | BS110: 0 | BT110: 0 | BU110: 0 | BV110: 0 | BW110: 0 | BX110: 0 | BY110: 0 | BZ110: 0 | CA110: 0 | CB110: 0 | CC110: 0
A111: MURRAY | B111: 0 | C111: 0 | D111: 0 | E111: 0 | F111: 0 | G111: 0 | H111: 0 | I111: 0 | J111: 0 | K111: 0 | L111: 0 | M111: 0 | N111: 0 | O111: 0 | P111: 0 | Q111: 0 | R111: 0 | S111: 0 | T111: 0 | U111: 0 | V111: 0 | W111: 0 | X111: 0 | Y111: 0 | Z111: 0 | AA111: 0 | AB111: 0 | AC111: 0 | AD111: 0 | AE111: 0 | AF111: 0 | AG111: 0 | AH111: 0 | AI111: 0 | AJ111: 0 | AK111: 0 | AL111: 0 | AM111: 0 | AN111: 0 | AO111: 0 | AP111: 0 | AQ111: 0 | AR111: 0 | AS111: 0 | AT111: 0 | AU111: 0 | AV111: 0 | AW111: 0 | AX111: 0 | AY111: 0 | AZ111: 0 | BA111: 0 | BB111: 0 | BC111: 0 | BD111: 0 | BE111: 0 | BF111: 0 | BG111: 0 | BH111: 0 | BI111: 0 | BJ111: 0 | BK111: 0 | BL111: 0 | BM111: 0 | BN111: 0 | BO111: 0 | BP111: 0 | BQ111: 0 | BR111: 0 | BS111: 0 | BT111: 0 | BU111: 0 | BV111: 0 | BW111: 0 | BX111: 0 | BY111: 0 | BZ111: 0 | CA111: 0 | CB111: 0 | CC111: 0
A112: NEDLANDS | B112: 0 | C112: 0 | D112: 0 | E112: 0 | F112: 0 | G112: 0 | H112: 0 | I112: 0 | J112: 0 | K112: 0 | L112: 0 | M112: 0 | N112: 0 | O112: 0 | P112: 0 | Q112: 0 | R112: 0 | S112: 0 | T112: 0 | U112: 0 | V112: 0 | W112: 0 | X112: 0 | Y112: 0 | Z112: 0 | AA112: 0 | AB112: 0 | AC112: 0 | AD112: 0 | AE112: 0 | AF112: 0 | AG112: 0 | AH112: 0 | AI112: 0 | AJ112: 0 | AK112: 0 | AL112: 0 | AM112: 0 | AN112: 0 | AO112: 0 | AP112: 0 | AQ112: 0 | AR112: 0 | AS112: 0 | AT112: 0 | AU112: 0 | AV112: 0 | AW112: 0 | AX112: 0 | AY112: 0 | AZ112: 0 | BA112: 0 | BB112: 0 | BC112: 0 | BD112: 0 | BE112: 0 | BF112: 0 | BG112: 0 | BH112: 0 | BI112: 0 | BJ112: 0 | BK112: 0 | BL112: 0 | BM112: 0 | BN112: 0 | BO112: 0 | BP112: 0 | BQ112: 0 | BR112: 0 | BS112: 0 | BT112: 0 | BU112: 0 | BV112: 0 | BW112: 0 | BX112: 0 | BY112: 0 | BZ112: 0 | CA112: 0 | CB112: 0 | CC112: 0
A113: PEPPERMINT GROVE | B113: 0 | C113: 0 | D113: 0 | E113: 0 | F113: 0 | G113: 0 | H113: 0 | I113: 0 | J113: 0 | K113: 0 | L113: 0 | M113: 0 | N113: 0 | O113: 0 | P113: 0 | Q113: 0 | R113: 0 | S113: 0 | T113: 0 | U113: 0 | V113: 0 | W113: 0 | X113: 0 | Y113: 0 | Z113: 0 | AA113: 0 | AB113: 0 | AC113: 0 | AD113: 0 | AE113: 0 | AF113: 0 | AG113: 0 | AH113: 0 | AI113: 0 | AJ113: 0 | AK113: 0 | AL113: 0 | AM113: 0 | AN113: 0 | AO113: 0 | AP113: 0 | AQ113: 0 | AR113: 0 | AS113: 0 | AT113: 0 | AU113: 0 | AV113: 0 | AW113: 0 | AX113: 0 | AY113: 0 | AZ113: 0 | BA113: 0 | BB113: 0 | BC113: 0 | BD113: 0 | BE113: 0 | BF113: 0 | BG113: 0 | BH113: 0 | BI113: 0 | BJ113: 0 | BK113: 0 | BL113: 0 | BM113: 0 | BN113: 0 | BO113: 0 | BP113: 0 | BQ113: 0 | BR113: 0 | BS113: 0 | BT113: 0 | BU113: 0 | BV113: 0 | BW113: 0 | BX113: 0 | BY113: 0 | BZ113: 0 | CA113: 0 | CB113: 0 | CC113: 0
A114: PERTH | B114: 0 | C114: 0 | D114: 0 | E114: 0 | F114: 0 | G114: 0 | H114: 0 | I114: 0 | J114: 0 | K114: 0 | L114: 0 | M114: 0 | N114: 0 | O114: 0 | P114: 0 | Q114: 0 | R114: 0 | S114: 0 | T114: 0 | U114: 0 | V114: 0 | W114: 0 | X114: 0 | Y114: 0 | Z114: 0 | AA114: 0 | AB114: 0 | AC114: 0 | AD114: 0 | AE114: 0 | AF114: 0 | AG114: 0 | AH114: 0 | AI114: 0 | AJ114: 0 | AK114: 0 | AL114: 0 | AM114: 0 | AN114: 0 | AO114: 0 | AP114: 0 | AQ114: 0 | AR114: 0 | AS114: 0 | AT114: 0 | AU114: 0 | AV114: 0 | AW114: 0 | AX114: 0 | AY114: 0 | AZ114: 0 | BA114: 0 | BB114: 0 | BC114: 0 | BD114: 0 | BE114: 0 | BF114: 0 | BG114: 0 | BH114: 0 | BI114: 0 | BJ114: 0 | BK114: 0 | BL114: 0 | BM114: 0 | BN114: 0 | BO114: 0 | BP114: 0 | BQ114: 0 | BR114: 0 | BS114: 0 | BT114: 0 | BU114: 0 | BV114: 0 | BW114: 0 | BX114: 0 | BY114: 0 | BZ114: 0 | CA114: 0 | CB114: 0 | CC114: 0
A115: ROCKINGHAM | B115: 0 | C115: 0 | D115: 0 | E115: 0 | F115: 0 | G115: 0 | H115: 0 | I115: 0 | J115: 0 | K115: 0 | L115: 0 | M115: 0 | N115: 0 | O115: 0 | P115: 0 | Q115: 0 | R115: 0 | S115: 0 | T115: 0 | U115: 0 | V115: 0 | W115: 0 | X115: 0 | Y115: 0 | Z115: 0 | AA115: 0 | AB115: 0 | AC115: 0 | AD115: 0 | AE115: 0 | AF115: 0 | AG115: 0 | AH115: 0 | AI115: 0 | AJ115: 0 | AK115: 0 | AL115: 0 | AM115: 0 | AN115: 0 | AO115: 0 | AP115: 0 | AQ115: 0 | AR115: 0 | AS115: 0 | AT115: 0 | AU115: 0 | AV115: 0 | AW115: 0 | AX115: 0 | AY115: 0 | AZ115: 0 | BA115: 0 | BB115: 0 | BC115: 0 | BD115: 0 | BE115: 0 | BF115: 0 | BG115: 0 | BH115: 0 | BI115: 0 | BJ115: 0 | BK115: 0 | BL115: 0 | BM115: 0 | BN115: 0 | BO115: 0 | BP115: 0 | BQ115: 0 | BR115: 0 | BS115: 0 | BT115: 0 | BU115: 0 | BV115: 0 | BW115: 0 | BX115: 0 | BY115: 0 | BZ115: 0 | CA115: 0 | CB115: 0 | CC115: 0
A116: SERPENTINE-JARRAHDALE | B116: 0 | C116: 0 | D116: 0 | E116: 0 | F116: 0 | G116: 0 | H116: 0 | I116: 0 | J116: 0 | K116: 0 | L116: 0 | M116: 0 | N116: 0 | O116: 0 | P116: 0 | Q116: 0 | R116: 0 | S116: 0 | T116: 0 | U116: 0 | V116: 0 | W116: 0 | X116: 0 | Y116: 0 | Z116: 0 | AA116: 0 | AB116: 0 | AC116: 0 | AD116: 0 | AE116: 0 | AF116: 0 | AG116: 0 | AH116: 0 | AI116: 0 | AJ116: 0 | AK116: 0 | AL116: 0 | AM116: 0 | AN116: 0 | AO116: 0 | AP116: 0 | AQ116: 0 | AR116: 0 | AS116: 0 | AT116: 0 | AU116: 0 | AV116: 0 | AW116: 0 | AX116: 0 | AY116: 0 | AZ116: 0 | BA116: 0 | BB116: 0 | BC116: 0 | BD116: 0 | BE116: 0 | BF116: 0 | BG116: 0 | BH116: 0 | BI116: 0 | BJ116: 0 | BK116: 0 | BL116: 0 | BM116: 0 | BN116: 0 | BO116: 0 | BP116: 0 | BQ116: 0 | BR116: 0 | BS116: 0 | BT116: 0 | BU116: 0 | BV116: 0 | BW116: 0 | BX116: 0 | BY116: 0 | BZ116: 0 | CA116: 0 | CB116: 0 | CC116: 0
A117: SOUTH PERTH | B117: 0 | C117: 0 | D117: 0 | E117: 0 | F117: 0 | G117: 0 | H117: 0 | I117: 0 | J117: 0 | K117: 0 | L117: 0 | M117: 0 | N117: 0 | O117: 0 | P117: 0 | Q117: 0 | R117: 0 | S117: 0 | T117: 0 | U117: 0 | V117: 0 | W117: 0 | X117: 0 | Y117: 0 | Z117: 0 | AA117: 0 | AB117: 0 | AC117: 0 | AD117: 0 | AE117: 0 | AF117: 0 | AG117: 0 | AH117: 0 | AI117: 0 | AJ117: 0 | AK117: 0 | AL117: 0 | AM117: 0 | AN117: 0 | AO117: 0 | AP117: 0 | AQ117: 0 | AR117: 0 | AS117: 0 | AT117: 0 | AU117: 0 | AV117: 0 | AW117: 0 | AX117: 0 | AY117: 0 | AZ117: 0 | BA117: 0 | BB117: 0 | BC117: 0 | BD117: 0 | BE117: 0 | BF117: 0 | BG117: 0 | BH117: 0 | BI117: 0 | BJ117: 0 | BK117: 0 | BL117: 0 | BM117: 0 | BN117: 0 | BO117: 0 | BP117: 0 | BQ117: 0 | BR117: 0 | BS117: 0 | BT117: 0 | BU117: 0 | BV117: 0 | BW117: 0 | BX117: 0 | BY117: 0 | BZ117: 0 | CA117: 0 | CB117: 0 | CC117: 0
A118: STIRLING | B118: 0 | C118: 0 | D118: 0 | E118: 0 | F118: 0 | G118: 0 | H118: 0 | I118: 0 | J118: 0 | K118: 0 | L118: 0 | M118: 0 | N118: 0 | O118: 0 | P118: 0 | Q118: 0 | R118: 0 | S118: 0 | T118: 0 | U118: 0 | V118: 0 | W118: 0 | X118: 0 | Y118: 0 | Z118: 0 | AA118: 0 | AB118: 0 | AC118: 0 | AD118: 0 | AE118: 0 | AF118: 0 | AG118: 0 | AH118: 0 | AI118: 0 | AJ118: 0 | AK118: 0 | AL118: 0 | AM118: 0 | AN118: 0 | AO118: 0 | AP118: 0 | AQ118: 0 | AR118: 0 | AS118: 0 | AT118: 0 | AU118: 0 | AV118: 0 | AW118: 0 | AX118: 0 | AY118: 0 | AZ118: 0 | BA118: 0 | BB118: 0 | BC118: 0 | BD118: 0 | BE118: 0 | BF118: 0 | BG118: 0 | BH118: 0 | BI118: 0 | BJ118: 0 | BK118: 0 | BL118: 0 | BM118: 0 | BN118: 0 | BO118: 0 | BP118: 0 | BQ118: 0 | BR118: 0 | BS118: 0 | BT118: 0 | BU118: 0 | BV118: 0 | BW118: 0 | BX118: 0 | BY118: 0 | BZ118: 0 | CA118: 0 | CB118: 0 | CC118: 0
A119: SUBIACO | B119: 0 | C119: 0 | D119: 0 | E119: 0 | F119: 0 | G119: 0 | H119: 0 | I119: 0 | J119: 0 | K119: 0 | L119: 0 | M119: 0 | N119: 0 | O119: 0 | P119: 0 | Q119: 0 | R119: 0 | S119: 0 | T119: 0 | U119: 0 | V119: 0 | W119: 0 | X119: 0 | Y119: 0 | Z119: 0 | AA119: 0 | AB119: 0 | AC119: 0 | AD119: 0 | AE119: 0 | AF119: 0 | AG119: 0 | AH119: 0 | AI119: 0 | AJ119: 0 | AK119: 0 | AL119: 0 | AM119: 0 | AN119: 0 | AO119: 0 | AP119: 0 | AQ119: 0 | AR119: 0 | AS119: 0 | AT119: 0 | AU119: 0 | AV119: 0 | AW119: 0 | AX119: 0 | AY119: 0 | AZ119: 0 | BA119: 0 | BB119: 0 | BC119: 0 | BD119: 0 | BE119: 0 | BF119: 0 | BG119: 0 | BH119: 0 | BI119: 0 | BJ119: 0 | BK119: 0 | BL119: 0 | BM119: 0 | BN119: 0 | BO119: 0 | BP119: 0 | BQ119: 0 | BR119: 0 | BS119: 0 | BT119: 0 | BU119: 0 | BV119: 0 | BW119: 0 | BX119: 0 | BY119: 0 | BZ119: 0 | CA119: 0 | CB119: 0 | CC119: 0
A120: SWAN | B120: 0 | C120: 0 | D120: 0 | E120: 0 | F120: 0 | G120: 0 | H120: 0 | I120: 0 | J120: 0 | K120: 0 | L120: 0 | M120: 0 | N120: 0 | O120: 0 | P120: 0 | Q120: 0 | R120: 0 | S120: 0 | T120: 0 | U120: 0 | V120: 0 | W120: 0 | X120: 0 | Y120: 0 | Z120: 0 | AA120: 0 | AB120: 0 | AC120: 0 | AD120: 0 | AE120: 0 | AF120: 0 | AG120: 0 | AH120: 0 | AI120: 0 | AJ120: 0 | AK120: 0 | AL120: 0 | AM120: 0 | AN120: 0 | AO120: 0 | AP120: 0 | AQ120: 0 | AR120: 0 | AS120: 0 | AT120: 0 | AU120: 0 | AV120: 0 | AW120: 0 | AX120: 0 | AY120: 0 | AZ120: 0 | BA120: 0 | BB120: 0 | BC120: 0 | BD120: 0 | BE120: 0 | BF120: 0 | BG120: 0 | BH120: 0 | BI120: 0 | BJ120: 0 | BK120: 0 | BL120: 0 | BM120: 0 | BN120: 0 | BO120: 0 | BP120: 0 | BQ120: 0 | BR120: 0 | BS120: 0 | BT120: 0 | BU120: 0 | BV120: 0 | BW120: 0 | BX120: 0 | BY120: 0 | BZ120: 0 | CA120: 0 | CB120: 0 | CC120: 0
A121: VICTORIA PARK | B121: 0 | C121: 0 | D121: 0 | E121: 0 | F121: 0 | G121: 0 | H121: 0 | I121: 0 | J121: 0 | K121: 0 | L121: 0 | M121: 0 | N121: 0 | O121: 0 | P121: 0 | Q121: 0 | R121: 0 | S121: 0 | T121: 0 | U121: 0 | V121: 0 | W121: 0 | X121: 0 | Y121: 0 | Z121: 0 | AA121: 0 | AB121: 0 | AC121: 0 | AD121: 0 | AE121: 0 | AF121: 0 | AG121: 0 | AH121: 0 | AI121: 0 | AJ121: 0 | AK121: 0 | AL121: 0 | AM121: 0 | AN121: 0 | AO121: 0 | AP121: 0 | AQ121: 0 | AR121: 0 | AS121: 0 | AT121: 0 | AU121: 0 | AV121: 0 | AW121: 0 | AX121: 0 | AY121: 0 | AZ121: 0 | BA121: 0 | BB121: 0 | BC121: 0 | BD121: 0 | BE121: 0 | BF121: 0 | BG121: 0 | BH121: 0 | BI121: 0 | BJ121: 0 | BK121: 0 | BL121: 0 | BM121: 0 | BN121: 0 | BO121: 0 | BP121: 0 | BQ121: 0 | BR121: 0 | BS121: 0 | BT121: 0 | BU121: 0 | BV121: 0 | BW121: 0 | BX121: 0 | BY121: 0 | BZ121: 0 | CA121: 0 | CB121: 0 | CC121: 0
A122: VINCENT | B122: 0 | C122: 0 | D122: 0 | E122: 0 | F122: 0 | G122: 0 | H122: 0 | I122: 0 | J122: 0 | K122: 0 | L122: 0 | M122: 0 | N122: 0 | O122: 0 | P122: 0 | Q122: 0 | R122: 0 | S122: 0 | T122: 0 | U122: 0 | V122: 0 | W122: 0 | X122: 0 | Y122: 0 | Z122: 0 | AA122: 0 | AB122: 0 | AC122: 0 | AD122: 0 | AE122: 0 | AF122: 0 | AG122: 0 | AH122: 0 | AI122: 0 | AJ122: 0 | AK122: 0 | AL122: 0 | AM122: 0 | AN122: 0 | AO122: 0 | AP122: 0 | AQ122: 0 | AR122: 0 | AS122: 0 | AT122: 0 | AU122: 0 | AV122: 0 | AW122: 0 | AX122: 0 | AY122: 0 | AZ122: 0 | BA122: 0 | BB122: 0 | BC122: 0 | BD122: 0 | BE122: 0 | BF122: 0 | BG122: 0 | BH122: 0 | BI122: 0 | BJ122: 0 | BK122: 0 | BL122: 0 | BM122: 0 | BN122: 0 | BO122: 0 | BP122: 0 | BQ122: 0 | BR122: 0 | BS122: 0 | BT122: 0 | BU122: 0 | BV122: 0 | BW122: 0 | BX122: 0 | BY122: 0 | BZ122: 0 | CA122: 0 | CB122: 0 | CC122: 0
A123: WANNEROO | B123: 0 | C123: 0 | D123: 0 | E123: 0 | F123: 0 | G123: 0 | H123: 0 | I123: 0 | J123: 0 | K123: 0 | L123: 0 | M123: 0 | N123: 0 | O123: 0 | P123: 0 | Q123: 0 | R123: 0 | S123: 0 | T123: 0 | U123: 0 | V123: 0 | W123: 0 | X123: 0 | Y123: 0 | Z123: 0 | AA123: 0 | AB123: 0 | AC123: 0 | AD123: 0 | AE123: 0 | AF123: 0 | AG123: 0 | AH123: 0 | AI123: 0 | AJ123: 0 | AK123: 0 | AL123: 0 | AM123: 0 | AN123: 0 | AO123: 0 | AP123: 0 | AQ123: 0 | AR123: 0 | AS123: 0 | AT123: 0 | AU123: 0 | AV123: 0 | AW123: 0 | AX123: 0 | AY123: 0 | AZ123: 0 | BA123: 0 | BB123: 0 | BC123: 0 | BD123: 0 | BE123: 0 | BF123: 0 | BG123: 0 | BH123: 0 | BI123: 0 | BJ123: 0 | BK123: 0 | BL123: 0 | BM123: 0 | BN123: 0 | BO123: 0 | BP123: 0 | BQ123: 0 | BR123: 0 | BS123: 0 | BT123: 0 | BU123: 0 | BV123: 0 | BW123: 0 | BX123: 0 | BY123: 0 | BZ123: 0 | CA123: 0 | CB123: 0 | CC123: 0
A125: Commercial No new connections
A126: LGA | B126: 2021 | C126: =B126+1 -> 2022 | D126: =C126+1 -> 2023 | E126: 2024 | F126: 2025 | G126: 2026 | H126: 2027 | I126: 2028 | J126: 2029 | K126: 2030 | L126: 2031 | M126: 2032 | N126: 2033 | O126: 2034 | P126: 2035 | Q126: 2036 | R126: 2037 | S126: 2038 | T126: 2039 | U126: 2040 | V126: 2041 | W126: 2042 | X126: 2043 | Y126: 2044 | Z126: 2045 | AA126: 2046 | AB126: 2047 | AC126: 2048 | AD126: 2049 | AE126: 2050 | AF126: 2051 | AG126: 2052 | AH126: 2053 | AI126: 2054 | AJ126: 2055 | AK126: 2056 | AL126: 2057 | AM126: 2058 | AN126: 2059 | AO126: 2060 | AP126: 2061 | AQ126: 2062 | AR126: 2063 | AS126: 2064 | AT126: 2065 | AU126: 2066 | AV126: 2067 | AW126: 2068 | AX126: 2069 | AY126: 2070 | AZ126: 2071 | BA126: 2072 | BB126: 2073 | BC126: 2074 | BD126: 2075 | BE126: 2076 | BF126: 2077 | BG126: 2078 | BH126: 2079 | BI126: 2080 | BJ126: 2081 | BK126: 2082 | BL126: 2083 | BM126: 2084 | BN126: 2085 | BO126: 2086 | BP126: =BO126+1 -> 2087 | BQ126: 2088 | BR126: 2089 | BS126: 2090 | BT126: 2091 | BU126: 2092 | BV126: 2093 | BW126: 2094 | BX126: 2095 | BY126: 2096 | BZ126: 2097 | CA126: 2098 | CB126: 2099 | CC126: 2100
